Workbook

Sheet Cover
C2: Cover
C4: NAVIGATION
C6: COMMENTS
C9: Bonneville Power Administration
C10: 6P Energy Conservation Standards Savings Model
C11: CENTRAL COMMERCIAL STOCK MODEL
D13: Model Description
C14: This model serves as the centralized linking model for calculating the shipment and stock for individualcommercial appliance models when the shipment of an appliance is driven by commercial floor space. The central commercial model contains information on commercial building stock as captured in the Sixth Plan, as well as market penetration data, and appliance specific lifetime for each appliance modeled. The function of the central model is to centralize common stock model driving factors and conduct shipment forecast and stock turnover modeling for each linked product.
D16: Prepared By:
C17: Navigant Consulting | D17: Cadeo Group
C18: One Market Street | Spear Street Tower, Suite 1200 | D18: 840 First Street, Suite 300
C19: San Francisco, CA 94105 | D19: Washington, DC 20002

Sheet Comments
C2: Comments
C4: NAVIGATION
C7: Tab | D7: Comment
C8: Example | D8: Please use this space to document your comments as you review the model. We look forward to receiving your feedback. Thank you.

Sheet Navigation
C2: NAVIGATION
C5: INFORMATION TABS | E5: INPUT TABS | H5: PRODUCT STOCK MODELS
C7: COVER | E7: FLOOR SPACE | H7: PRE-RINSE SPRAY VALVES
C9: DEFINITIONS | E9: SATURATION AND LIFETIME | H9: ACIM
C11: NAVIGATION | E11: COUNCIL SHIPMENTS | H11: BVM

Sheet Definitions
C2: Definitions
C4: NAVIGATION
C6: COMMENTS
C9: Category | D9: Definition
C10: Average Megawatt (aMW) | D10: The average number of megawatts over a specified time period
C11: Adjustment to 6P Baseline | D11: Adjustment to reconcile the 6P projected energy consumption and the modeled consumption calculated using best available data.
C12: Department of Energy Aggregate Lifecycle Savings | D12: Sum of 'Total First Year Savings'. This accounts for the cumulative savings in accordance with DOE Carbon Accounting Practices.
C13: Department of Energy Notice of Proposed Rulemaking (DOE NOPR) | D13: Federal Register notice detailing analyses conducted by the DOE to establish proposed energy conservation standards.
C14: Efficiency Level (EL) | D14: The discrete efficiency ratings of a product. Each efficiency level is associated with a different UEC.
C15: Efficiency Level Distribution | D15: The mix of various equipment efficiencies shipped in a given year.
C16: First Year Savings, by Year | D16: Savings due to the higher standards for units installed in a particular year. First year savings are highest following the standards compliance year while the stock turns over, after which first year savings are only attributed to shipments associated with new construction.
C17: Governmental Regulatory Impact Model (GRIM) | D17: The industry cash flow model used by DOE to assess impacts on manufacturers due to proposed energy conservation standards
C18: Installed Unit Energy Consumption (Installed UEC) | D18: The average annual unit energy consumption of all installed units in a given year.
C19: Market Unit Energy Consumption (Market UEC) | D19: The average annual unit energy consumption of units shipped in a given year.
C20: National Impact Analysis (NIA) | D20: The energy impact analysis used by DOE to calculate energy savings associated with each standard.
C21: Pre-case | D21: The case representing 6P baseline assumptions where energy consumption due to the product accounts for shipment and shipment UEC by year, without the affect of standards announced following the development of the 6P.
C22: Post-case | D22: The case in which standards are implemented. If the 6P already captured the analyzed standard, the post-case will be the same as the pre-case.
C23: Product Class | D23: Product classificiation determined by product configuration, size, application, location, and other attributes that contribute to consumer utility. DOE is allowed to establish different standards for each product class.
C24: Product Class Distribution | D24: Market share/mix of each product class shipped in a given year.
C25: Product Lifetime | D25: The average time a given class of products stays in the field as part of the installed stock. Some products will last longer (delaying replacement) whereas others will fail and be retired earlier (accelerating replacement), but the lifetime represents the market average.
C26: Shipments | D26: Sales of products. This may be presented by product class, efficiency distribution, or delineated by other metrics. Shipments may be attributed to new construction and/or replacements and retrofits.
C27: Sixth Power Plan (6P) | D27: The Pacific Northwest Resource Plan published by the Northwest Power Conservation Council. The 6P timeframe is from 2010-2015.
C28: Sixth Power Plan Baseline (6P Baseline) | D28: The 6P assumes equipment efficiency and shipment units in the region. When available, the 6P assumptions are the baseline for each standard impact analysis.
C29: Standard Compliance Year | D29: The year when the appliance standard goes into effect.
C30: Stock | D30: All units installed in previous years which remain in operation.
C31: Technical Support Document (TSD) | D31: TSD's are published by the DOE as companion documents to Federal Register notices (e.g., ANOPRs/preliminary analyses and NOPRs). The TSDs include technical detail that supports the notices. The final rule TSD includes the discussion of the Manufacturer Impact Analysis (MIA) and National Impact Analysis (NIA).
C32: Total First Year Savings through 2034 | D32: The sum of first year savings from 2010 through 2034
C33: Trial Standard Level (TSL) | D33: A proposed efficiency standard evaluated by DOE during the NOPR and Final Rule phase analyses. A TSL may specify different standard efficiency levels for each product class included in the rulemaking.

Sheet Floor Space
B2: 6th Plan Floor Space by Building Type
A4: All units in millions of square feet
B5: New SF reference | E5: Total | K5: Large off | Q5: Medium off | W5: Small Off | AC5: Big Box | AI5: Small Box | AO5: High End | AU5: Anchor | BA5: K-12 | BG5: University | BM5: Warehouse | BS5: Supermarket | BY5: MIniMart | CE5: Restaurant | CK5: Lodging | CQ5: Hospital | CW5: OtherHealth | DC5: Assembly | DI5: Other
C6: Total | D6: Beginning SF | E6: New SF | F6: End of Year SF | G6: Stock Growth | I6: Large Office | J6: Beginning SF | K6: New SF | L6: End of Year SF | M6: Stock Growth | O6: Medium Office | P6: Beginning SF | Q6: New SF | R6: End of Year SF | S6: Stock Growth | U6: Small Office | V6: Beginning SF | W6: New SF | X6: End of Year SF | Y6: Stock Growth | AA6: Big Box-Retail | AB6: Beginning SF | AC6: New SF | AD6: End of Year SF | AE6: Stock Growth | AG6: Small Box-Retail | AH6: Beginning SF | AI6: New SF | AJ6: End of Year SF | AK6: Stock Growth | AM6: High End-Retail | AN6: Beginning SF | AO6: New SF | AP6: End of Year SF | AQ6: Stock Growth | AS6: Anchor-Retail | AT6: Beginning SF | AU6: New SF | AV6: End of Year SF | AW6: Stock Growth | AY6: K-12 | AZ6: Beginning SF | BA6: New SF | BB6: End of Year SF | BC6: Stock Growth | BE6: University | BF6: Beginning SF | BG6: New SF | BH6: End of Year SF | BI6: Stock Growth | BK6: Warehouse | BL6: Beginning SF | BM6: New SF | BN6: End of Year SF | BO6: Stock Growth | BQ6: Supermarket | BR6: Beginning SF | BS6: New SF | BT6: End of Year SF | BU6: Stock Growth | BW6: Mini Mart | BX6: Beginning SF | BY6: New SF | BZ6: End of Year SF | CA6: Stock Growth | CC6: Restaurant | CD6: Beginning SF | CE6: New SF | CF6: End of Year SF | CG6: Stock Growth | CI6: Lodging | CJ6: Beginning SF | CK6: New SF | CL6: End of Year SF | CM6: Stock Growth | CO6: Hospital | CP6: Beginning SF | CQ6: New SF | CR6: End of Year SF | CS6: Stock Growth | CU6: Other Health | CV6: Beginning SF | CW6: New SF | CX6: End of Year SF | CY6: Stock Growth | DA6: Assembly | DB6: Beginning SF | DC6: New SF | DD6: End of Year SF | DE6: Stock Growth | DG6: Other | DH6: Beginning SF | DI6: New SF | DJ6: End of Year SF | DK6: Stock Growth
C7: 1987 | F7: =L7+R7+X7+AD7+AJ7+AP7+AV7+BB7+BH7+BN7+BT7+BZ7+CF7+CL7+CR7+CX7+DD7+DJ7 -> 1765.013888 | I7: 1987 | L7: 170.1558004 | O7: 1987 | R7: 76.66216083 | U7: 1987 | X7: 89.95315007 | AA7: 1987 | AD7: 82.5387293 | AG7: 1987 | AJ7: 152.4476572 | AM7: 1987 | AP7: 38.1119143 | AS7: 1987 | AV7: 73.58334872 | AY7: 1987 | BB7: 150.3217189 | BE7: 1987 | BH7: 76.1922716 | BK7: 1987 | BN7: 178.0105952 | BQ7: 1987 | BT7: 36.04076503 | BW7: 1987 | BZ7: 14.58413149 | CC7: 1987 | CF7: 34.54168997 | CI7: 1987 | CL7: 106.0737749 | CO7: 1987 | CR7: 38.87548256 | CU7: 1987 | CX7: 84.78723658 | DA7: 1987 | DD7: 123.1253769 | DG7: 1987 | DJ7: 239.0080846
C8: =C7+1 -> 1988 | D8: =J8+P8+V8+AB8+AH8+AN8+AT8+AZ8+BF8+BL8+BR8+BX8+CD8+CJ8+CP8+CV8+DB8+DH8 -> 1765.013888 | E8: =K8+Q8+W8+AC8+AI8+AO8+AU8+BA8+BG8+BM8+BS8+BY8+CE8+CK8+CQ8+CW8+DC8+DI8 -> 36.2501319 | F8: =L8+R8+X8+AD8+AJ8+AP8+AV8+BB8+BH8+BN8+BT8+BZ8+CF8+CL8+CR8+CX8+DD8+DJ8 -> 1801.26402 | G8: =F8/F7-1 -> 0.02053815675 | I8: =I7+1 -> 1988 | J8: =L7 -> 170.1558004 | K8: 2.386797452 | L8: =J8+K8 -> 172.5425978 | M8: =L8/L7-1 -> 0.01402712953 | O8: =O7+1 -> 1988 | P8: =R7 -> 76.66216083 | Q8: 1.07535006 | R8: =P8+Q8 -> 77.73751089 | S8: =R8/R7-1 -> 0.01402712953 | U8: =U7+1 -> 1988 | V8: =X7 -> 89.95315007 | W8: 1.261784488 | X8: =V8+W8 -> 91.21493456 | Y8: =X8/X7-1 -> 0.01402712953 | AA8: =AA7+1 -> 1988 | AB8: =AD7 -> 82.5387293 | AC8: 1.806965486 | AD8: =AB8+AC8 -> 84.34569479 | AE8: =AD8/AD7-1 -> 0.02189233468 | AG8: =AG7+1 -> 1988 | AH8: =AJ7 -> 152.4476572 | AI8: 3.337435133 | AJ8: =AH8+AI8 -> 155.7850923 | AK8: =AJ8/AJ7-1 -> 0.02189233468 | AM8: =AM7+1 -> 1988 | AN8: =AP7 -> 38.1119143 | AO8: 0.8343587833 | AP8: =AN8+AO8 -> 38.94627308 | AQ8: =AP8/AP7-1 -> 0.02189233468 | AS8: =AS7+1 -> 1988 | AT8: =AV7 -> 73.58334872 | AU8: 1.610911297 | AV8: =AT8+AU8 -> 75.19426002 | AW8: =AV8/AV7-1 -> 0.02189233468 | AY8: =AY7+1 -> 1988 | AZ8: =BB7 -> 150.3217189 | BA8: 2.12572404 | BB8: =AZ8+BA8 -> 152.4474429 | BC8: =BB8/BB7-1 -> 0.01414116374 | BE8: =BE7+1 -> 1988 | BF8: =BH7 -> 76.1922716 | BG8: 1.09506996 | BH8: =BF8+BG8 -> 77.28734156 | BI8: =BH8/BH7-1 -> 0.01437245454 | BK8: =BK7+1 -> 1988 | BL8: =BN7 -> 178.0105952 | BM8: 6.1831019 | BN8: =BL8+BM8 -> 184.1936971 | BO8: =BN8/BN7-1 -> 0.03473446 | BQ8: =BQ7+1 -> 1988 | BR8: =BT7 -> 36.04076503 | BS8: 0.8688026291 | BT8: =BR8+BS8 -> 36.90956766 | BU8: =BT8/BT7-1 -> 0.02410610952 | BW8: =BW7+1 -> 1988 | BX8: =BZ7 -> 14.58413149 | BY8: 0.3515666709 | BZ8: =BX8+BY8 -> 14.93569816 | CA8: =BZ8/BZ7-1 -> 0.02410610952 | CC8: =CC7+1 -> 1988 | CD8: =CF7 -> 34.54168997 | CE8: 0.305242 | CF8: =CD8+CE8 -> 34.84693197 | CG8: =CF8/CF7-1 -> 0.00883691563 | CI8: =CI7+1 -> 1988 | CJ8: =CL7 -> 106.0737749 | CK8: 3.262188 | CL8: =CJ8+CK8 -> 109.3359629 | CM8: =CL8/CL7-1 -> 0.03075395406 | CO8: =CO7+1 -> 1988 | CP8: =CR7 -> 38.87548256 | CQ8: 0.744949084 | CR8: =CP8+CQ8 -> 39.62043164 | CS8: =CR8/CR7-1 -> 0.01916243954 | CU8: =CU7+1 -> 1988 | CV8: =CX7 -> 84.78723658 | CW8: 1.556976916 | CX8: =CV8+CW8 -> 86.34421349 | CY8: =CX8/CX7-1 -> 0.01836334074 | DA8: =DA7+1 -> 1988 | DB8: =DD7 -> 123.1253769 | DC8: 2.39379924 | DD8: =DB8+DC8 -> 125.5191761 | DE8: =DD8/DD7-1 -> 0.01944196477 | DG8: =DG7+1 -> 1988 | DH8: =DJ7 -> 239.0080846 | DI8: 5.04910876 | DJ8: =DH8+DI8 -> 244.0571933 | DK8: =DJ8/DJ7-1 -> 0.02112526348
C9: =C8+1 -> 1989 | D9: 1801.26402 | E9: 35.31114 | F9: 1836.57516 | G9: =F9/F8-1 -> 0.01960353374 | I9: =I8+1 -> 1989 | J9: =L8 -> 172.5425978 | K9: 3.248148666 | L9: 175.7907465 | M9: =L9/L8-1 -> 0.01882519857 | O9: =O8+1 -> 1989 | P9: =R8 -> 77.73751089 | Q9: 1.463424079 | R9: 79.20093497 | S9: =R9/R8-1 -> 0.01882519857 | U9: =U8+1 -> 1989 | V9: =X8 -> 91.21493456 | W9: 1.717139255 | X9: 92.93207381 | Y9: =X9/X8-1 -> 0.01882519857 | AA9: =AA8+1 -> 1989 | AB9: =AD8 -> 84.34569479 | AC9: 1.590880307 | AD9: 85.9365751 | AE9: =AD9/AD8-1 -> 0.01886142868 | AG9: =AG8+1 -> 1989 | AH9: =AJ8 -> 155.7850923 | AI9: 2.938329409 | AJ9: 158.7234217 | AK9: =AJ9/AJ8-1 -> 0.01886142868 | AM9: =AM8+1 -> 1989 | AN9: =AP8 -> 38.94627308 | AO9: 0.7345823521 | AP9: 39.68085544 | AQ9: =AP9/AP8-1 -> 0.01886142868 | AS9: =AS8+1 -> 1989 | AT9: =AV8 -> 75.19426002 | AU9: 1.418271173 | AV9: 76.61253119 | AW9: =AV9/AV8-1 -> 0.01886142868 | AY9: =AY8+1 -> 1989 | AZ9: =BB8 -> 152.4474429 | BA9: 2.75885676 | BB9: 155.2062997 | BC9: =BB9/BB8-1 -> 0.01809710093 | BE9: =BE8+1 -> 1989 | BF9: =BH8 -> 77.28734156 | BG9: 1.42122924 | BH9: 78.7085708 | BI9: =BH9/BH8-1 -> 0.01838890058 | BK9: =BK8+1 -> 1989 | BL9: =BN8 -> 184.1936971 | BM9: 6.219824 | BN9: 190.4135211 | BO9: =BN9/BN8-1 -> 0.03376784383 | BQ9: =BQ8+1 -> 1989 | BR9: =BT8 -> 36.90956766 | BS9: 0.7582129333 | BT9: 37.66778059 | BU9: =BT9/BT8-1 -> 0.0205424496 | BW9: =BW8+1 -> 1989 | BX9: =BZ8 -> 14.93569816 | BY9: 0.3068158267 | BZ9: 15.24251398 | CA9: =BZ9/BZ8-1 -> 0.0205424496 | CC9: =CC8+1 -> 1989 | CD9: =CF8 -> 34.84693197 | CE9: 0.431992 | CF9: 35.27892397 | CG9: =CF9/CF8-1 -> 0.01239684459 | CI9: =CI8+1 -> 1989 | CJ9: =CL8 -> 109.3359629 | CK9: 2.168044 | CL9: 111.5040069 | CM9: =CL9/CL8-1 -> 0.01982919382 | CO9: =CO8+1 -> 1989 | CP9: =CR8 -> 39.62043164 | CQ9: 1.044884952 | CR9: 40.66531659 | CS9: =CR9/CR8-1 -> 0.02637237679 | CU9: =CU8+1 -> 1989 | CV9: =CX8 -> 86.34421349 | CW9: 2.169793048 | CX9: 88.51400654 | CY9: =CX9/CX8-1 -> 0.02512957105 | DA9: =DA8+1 -> 1989 | DB9: =DD8 -> 125.5191761 | DC9: 1.60020252 | DD9: 127.1193787 | DE9: =DD9/DD8-1 -> 0.01274866972 | DG9: =DG8+1 -> 1989 | DH9: =DJ8 -> 244.0571933 | DI9: 3.32050948 | DJ9: 247.3777028 | DK9: =DJ9/DJ8-1 -> 0.01360545631
C10: 1990 | D10: 1836.57516 | E10: 38.0837829 | F10: 1874.658943 | G10: 0.02073630512 | I10: 1990 | J10: 175.7907465 | K10: 3.876587738 | L10: 179.6673342 | M10: 0.02205228555 | O10: 1990 | P10: 79.20093497 | Q10: 1.746561634 | R10: 80.9474966 | S10: 0.02205228555 | U10: 1990 | V10: 92.93207381 | W10: 2.049364628 | X10: 94.98143844 | Y10: 0.02205228555 | AA10: 1990 | AB10: 85.9365751 | AC10: 1.276836338 | AD10: 87.21341143 | AE10: 0.01485789184 | AG10: 1990 | AH10: 158.7234217 | AI10: 2.358295432 | AJ10: 161.0817172 | AK10: 0.01485789184 | AM10: 1990 | AN10: 39.68085544 | AO10: 0.5895738581 | AP10: 40.27042929 | AQ10: 0.01485789184 | AS10: 1990 | AT10: 76.61253119 | AU10: 1.138300702 | AV10: 77.75083189 | AW10: 0.01485789184 | AY10: 1990 | AZ10: 155.2062997 | BA10: 3.69547068 | BB10: 158.9017703 | BC10: 0.02381005596 | BE10: 1990 | BF10: 78.7085708 | BG10: 1.90372732 | BH10: 80.61229812 | BI10: 0.02418703961 | BK10: 1990 | BL10: 190.4135211 | BM10: 6.6104589 | BN10: 197.02398 | BO10: 0.03471633139 | BQ10: 1990 | BR10: 37.66778059 | BS10: 0.6313626435 | BT10: 38.29914323 | BU10: 0.01676134441 | BW10: 1990 | BX10: 15.24251398 | BY10: 0.2554850265 | BZ10: 15.49799901 | CA10: 0.01676134441 | CC10: 1990 | CD10: 35.27892397 | CE10: 0.422204 | CF10: 35.70112797 | CG10: 0.01196759857 | CI10: 1990 | CJ10: 111.5040069 | CK10: 2.162034 | CL10: 113.6660409 | CM10: 0.01938974267 | CO10: 1990 | CP10: 40.66531659 | CQ10: 0.818707952 | CR10: 41.48402455 | CS10: 0.02013283113 | CU10: 1990 | CV10: 88.51400654 | CW10: 1.684720048 | CX10: 90.19872659 | CY10: 0.01903337239 | DA10: 1990 | DB10: 127.1193787 | DC10: 2.2772282 | DD10: 129.3966069 | DE10: 0.01791409165 | DG10: 1990 | DH10: 247.3777028 | DI10: 4.5868638 | DJ10: 251.9645666 | DK10: 0.01854194516
C11: 1991 | D11: 1874.658943 | E11: 33.9309064 | F11: 1908.58985 | G11: 0.01809977571 | I11: 1991 | J11: 179.6673342 | K11: 2.671251822 | L11: 182.3385861 | M11: 0.01486776566 | O11: 1991 | P11: 80.9474966 | Q11: 1.20350841 | R11: 82.15100501 | S11: 0.01486776566 | U11: 1991 | V11: 94.98143844 | W11: 1.412161768 | X11: 96.39360021 | Y11: 0.01486776566 | AA11: 1991 | AB11: 87.21341143 | AC11: 0.9746619376 | AD11: 88.18807337 | AE11: 0.01117559698 | AG11: 1991 | AH11: 161.0817172 | AI11: 1.800184352 | AJ11: 162.8819015 | AK11: 0.01117559698 | AM11: 1991 | AN11: 40.27042929 | AO11: 0.4500460881 | AP11: 40.72047538 | AQ11: 0.01117559698 | AS11: 1991 | AT11: 77.75083189 | AU11: 0.8689119622 | AV11: 78.61974385 | AW11: 0.01117559698 | AY11: 1991 | AZ11: 158.9017703 | BA11: 3.8088864 | BB11: 162.7106567 | BC11: 0.02397006901 | BE11: 1991 | BF11: 80.61229812 | BG11: 1.9621536 | BH11: 82.57445172 | BI11: 0.02434062352 | BK11: 1991 | BL11: 197.02398 | BM11: 5.5759664 | BN11: 202.5999464 | BO11: 0.02830095301 | BQ11: 1991 | BR11: 38.29914323 | BS11: 0.4271134191 | BT11: 38.72625665 | BU11: 0.01115203587 | BW11: 1991 | BX11: 15.49799901 | BY11: 0.1728342409 | BZ11: 15.67083325 | CA11: 0.01115203587 | CC11: 1991 | CD11: 35.70112797 | CE11: 0.470812 | CF11: 36.17193997 | CG11: 0.01318759453 | CI11: 1991 | CJ11: 113.6660409 | CK11: 1.443938 | CL11: 115.1099789 | CM11: 0.0127033368 | CO11: 1991 | CP11: 41.48402455 | CQ11: 0.672037628 | CR11: 42.15606217 | CS11: 0.01619991395 | CU11: 1991 | CV11: 90.19872659 | CW11: 1.392704372 | CX11: 91.59143096 | CY11: 0.01544039949 | DA11: 1991 | DB11: 129.3966069 | DC11: 2.88392216 | DD11: 132.280529 | DE11: 0.02228746356 | DG11: 1991 | DH11: =DJ10 -> 251.9645666 | DI11: 5.73981184 | DJ11: 257.7043784 | DK11: 0.02278023421
C12: 1992 | D12: 1908.58985 | E12: 35.30806798 | F12: 1943.897918 | G12: 0.01849955767 | I12: 1992 | J12: 182.3385861 | K12: 2.12573646 | L12: 184.4643225 | M12: 0.01165818221 | O12: 1992 | P12: 82.15100501 | Q12: 0.9577313851 | R12: 83.1087364 | S12: 0.01165818221 | U12: 1992 | V12: 96.39360021 | W12: 1.123774155 | X12: 97.51737436 | Y12: 0.01165818221 | AA12: 1992 | AB12: 88.18807337 | AC12: 1.226306031 | AD12: 89.4143794 | AE12: 0.01390557685 | AG12: 1992 | AH12: 162.8819015 | AI12: 2.264966799 | AJ12: 165.1468683 | AK12: 0.01390557685 | AM12: 1992 | AN12: 40.72047538 | AO12: 0.5662416997 | AP12: 41.28671708 | AQ12: 0.01390557685 | AS12: 1992 | AT12: 78.61974385 | AU12: 1.09325289 | AV12: 79.71299674 | AW12: 0.01390557685 | AY12: 1992 | AZ12: 162.7106567 | BA12: 4.51099044 | BB12: 167.2216472 | BC12: 0.02772400118 | BE12: 1992 | BF12: 82.57445172 | BG12: 2.32384356 | BH12: 84.89829528 | BI12: 0.02814240375 | BK12: 1992 | BL12: 202.5999464 | BM12: 5.2320659 | BN12: 207.8320123 | BO12: 0.0258246164 | BQ12: 1992 | BR12: 38.72625665 | BS12: 0.6884163839 | BT12: 39.41467304 | BU12: 0.01777647631 | BW12: 1992 | BX12: 15.67083325 | BY12: 0.2785721961 | BZ12: 15.94940545 | CA12: 0.01777647631 | CC12: 1992 | CD12: 36.17193997 | CE12: 0.388026 | CF12: 36.55996597 | CG12: 0.0107272654 | CI12: 1992 | CJ12: 115.1099789 | CK12: 0.892656 | CL12: 116.0026349 | CM12: 0.007754809866 | CO12: 1992 | CP12: 42.15606217 | CQ12: 1.220877844 | CR12: 43.37694002 | CS12: 0.02896090814 | CU12: 1992 | CV12: 91.59143096 | CW12: 2.507288156 | CX12: 94.09871912 | CY12: 0.0273747023 | DA12: 1992 | DB12: 132.280529 | DC12: 2.614993387 | DD12: 134.8955224 | DE12: 0.01976854346 | DG12: 1992 | DH12: 257.7043784 | DI12: 5.292328697 | DJ12: 262.9967071 | DK12: 0.02053643298
C13: 1993 | D13: 1943.897918 | E13: 36.5213678 | F13: 1980.419285 | G13: 0.0187876984 | I13: 1993 | J13: 184.4643225 | K13: 1.895949836 | L13: 186.3602723 | M13: 0.0102781384 | O13: 1993 | P13: 83.1087364 | Q13: 0.8542030945 | R13: 83.96293949 | S13: 0.0102781384 | U13: 1993 | V13: 97.51737436 | W13: 1.00229707 | X13: 98.51967143 | Y13: 0.0102781384 | AA13: 1993 | AB13: 89.4143794 | AC13: 1.873835126 | AD13: 91.28821453 | AE13: 0.0209567537 | AG13: 1993 | AH13: 165.1468683 | AI13: 3.460942244 | AJ13: 168.6078106 | AK13: 0.0209567537 | AM13: 1993 | AN13: 41.28671708 | AO13: 0.8652355609 | AP13: 42.15195264 | AQ13: 0.0209567537 | AS13: 1993 | AT13: 79.71299674 | AU13: 1.670525639 | AV13: 81.38352238 | AW13: 0.0209567537 | AY13: 1993 | AZ13: 167.2216472 | BA13: 3.85630608 | BB13: 171.0779533 | BC13: 0.02306104589 | BE13: 1993 | BF13: 84.89829528 | BG13: 1.98658192 | BH13: 86.8848772 | BI13: 0.02339955017 | BK13: 1993 | BL13: 207.8320123 | BM13: 4.377544 | BN13: 212.2095563 | BO13: 0.02106289571 | BQ13: 1993 | BR13: 39.41467304 | BS13: 0.9839041679 | BT13: 40.3985772 | BU13: 0.02496289052 | BW13: 1993 | BX13: 15.94940545 | BY13: 0.3981432621 | BZ13: 16.34754871 | CA13: 0.02496289052 | CC13: 1993 | CD13: 36.55996597 | CE13: 0.387412 | CF13: 36.94737797 | CG13: 0.01059661818 | CI13: 1993 | CJ13: 116.0026349 | CK13: 1.34405 | CL13: 117.3466849 | CM13: 0.01158637475 | CO13: 1993 | CP13: 43.37694002 | CQ13: 0.935607852 | CR13: 44.31254787 | CS13: 0.02156924512 | CU13: 1993 | CV13: 94.09871912 | CW13: 1.961420148 | CX13: 96.06013927 | CY13: 0.02084428105 | DA13: 1993 | DB13: 134.8955224 | DC13: 2.799922372 | DD13: 137.6954448 | DE13: 0.02075622913 | DG13: 1993 | DH13: 262.9967071 | DI13: 5.867487427 | DJ13: 268.8641946 | DK13: 0.02231011746
C14: 1994 | D14: 1980.419285 | E14: 42.01702186 | F14: 2022.436307 | G14: 0.02121622536 | I14: 1994 | J14: 186.3602723 | K14: 2.973462926 | L14: 189.3337353 | M14: 0.01595545493 | O14: 1994 | P14: 83.96293949 | Q14: 1.339666897 | R14: 85.30260639 | S14: 0.01595545493 | U14: 1994 | V14: 98.51967143 | W14: 1.571926177 | X14: 100.0915976 | Y14: 0.01595545493 | AA14: 1994 | AB14: 91.28821453 | AC14: 2.484082732 | AD14: 93.77229726 | AE14: 0.0272114286 | AG14: 1994 | AH14: 168.6078106 | AI14: 4.588059399 | AJ14: 173.19587 | AK14: 0.0272114286 | AM14: 1994 | AN14: 42.15195264 | AO14: 1.14701485 | AP14: 43.29896749 | AQ14: 0.0272114286 | AS14: 1994 | AT14: 81.38352238 | AU14: 2.214561909 | AV14: 83.59808429 | AW14: 0.0272114286 | AY14: 1994 | AZ14: 171.0779533 | BA14: 3.71726256 | BB14: 174.7952158 | BC14: 0.02172847225 | BE14: 1994 | BF14: 86.8848772 | BG14: 1.91495344 | BH14: 88.79983064 | BI14: 0.02204012369 | BK14: 1994 | BL14: 212.2095563 | BM14: 6.01053 | BN14: 218.2200863 | BO14: 0.02832355952 | BQ14: 1994 | BR14: 40.3985772 | BS14: 1.25942752 | BT14: 41.65800472 | BU14: 0.03117504643 | BW14: 1994 | BX14: 16.34754871 | BY14: 0.50963559 | BZ14: 16.8571843 | CA14: 0.03117504643 | CC14: 1994 | CD14: 36.94737797 | CE14: 0.479898 | CF14: 37.42727597 | CG14: 0.01298868895 | CI14: 1994 | CJ14: 117.3466849 | CK14: 1.499834 | CL14: 118.8465189 | CM14: 0.01278122174 | CO14: 1994 | CP14: 44.31254787 | CQ14: 0.941043764 | CR14: 45.25359163 | CS14: 0.0212365077 | CU14: 1994 | CV14: 96.06013927 | CW14: 1.939752236 | CX14: 97.9998915 | CY14: 0.02019310248 | DA14: 1994 | DB14: 137.6954448 | DC14: 2.424570362 | DD14: 140.1200151 | DE14: 0.01760821039 | DG14: 1994 | DH14: 268.8641946 | DI14: 5.0013395 | DJ14: 273.8655341 | DK14: 0.01860173129
C15: 1995 | D15: 2022.436307 | E15: 51.35325001 | F15: 2073.789557 | G15: 0.02539177616 | I15: 1995 | J15: 189.3337353 | K15: 3.719348877 | L15: 193.0530842 | M15: 0.01964440659 | O15: 1995 | P15: 85.30260639 | Q15: 1.675719083 | R15: 86.97832547 | S15: 0.01964440659 | U15: 1995 | V15: 100.0915976 | W15: 1.96624004 | X15: 102.0578376 | Y15: 0.01964440659 | AA15: 1995 | AB15: 93.77229726 | AC15: 2.281843504 | AD15: 96.05414076 | AE15: 0.02433387653 | AG15: 1995 | AH15: 173.19587 | AI15: 4.214526916 | AJ15: 177.4103969 | AK15: 0.02433387653 | AM15: 1995 | AN15: 43.29896749 | AO15: 1.053631729 | AP15: 44.35259922 | AQ15: 0.02433387653 | AS15: 1995 | AT15: 83.59808429 | AU15: 2.034265462 | AV15: 85.63234975 | AW15: 0.02433387653 | AY15: 1995 | AZ15: 174.7952158 | BA15: 4.90699704 | BB15: 179.7022129 | BC15: 0.02807283379 | BE15: 1995 | BF15: 88.79983064 | BG15: 2.52784696 | BH15: 91.3276776 | BI15: 0.02846679934 | BK15: 1995 | BL15: 218.2200863 | BM15: 9.715292 | BN15: 227.9353783 | BO15: 0.04452061294 | BQ15: 1995 | BR15: 41.65800472 | BS15: 1.132697096 | BT15: 42.79070182 | BU15: 0.02719038281 | BW15: 1995 | BX15: 16.8571843 | BY15: 0.4583532943 | BZ15: 17.31553759 | CA15: 0.02719038281 | CC15: 1995 | CD15: 37.42727597 | CE15: 0.50528 | CF15: 37.93255597 | CG15: 0.01350031459 | CI15: 1995 | CJ15: 118.8465189 | CK15: 2.27628 | CL15: 121.1227989 | CM15: 0.01915310622 | CO15: 1995 | CP15: 45.25359163 | CQ15: 0.893222452 | CR15: 46.14681409 | CS15: 0.01973815602 | CU15: 1995 | CV15: 97.9998915 | CW15: 1.818305548 | CX15: 99.81819705 | CY15: 0.01855415879 | DA15: 1995 | DB15: 140.1200151 | DC15: 3.389949532 | DD15: 143.5099647 | DE15: 0.0241931856 | DG15: 1995 | DH15: 273.8655341 | DI15: 6.78345048 | DJ15: 280.6489845 | DK15: 0.0247692741
C16: 1996 | D16: 2073.789557 | E16: 50.782489 | F16: 2124.572046 | G16: 0.02448777352 | I16: 1996 | J16: 193.0530842 | K16: 4.286509428 | L16: 197.3395936 | M16: 0.02220378632 | O16: 1996 | P16: 86.97832547 | Q16: 1.931248153 | R16: 88.90957362 | S16: 0.02220378632 | U16: 1996 | V16: 102.0578376 | W16: 2.266070419 | X16: 104.3239081 | Y16: 0.02220378632 | AA16: 1996 | AB16: 96.05414076 | AC16: 1.247991239 | AD16: 97.302132 | AE16: 0.01299258136 | AG16: 1996 | AH16: 177.4103969 | AI16: 2.305019016 | AJ16: 179.7154159 | AK16: 0.01299258136 | AM16: 1996 | AN16: 44.35259922 | AO16: 0.5762547539 | AP16: 44.92885397 | AQ16: 0.01299258136 | AS16: 1996 | AT16: 85.63234975 | AU16: 1.112585271 | AV16: 86.74493502 | AW16: 0.01299258136 | AY16: 1996 | AZ16: 179.7022129 | BA16: 3.5196612 | BB16: 183.2218741 | BC16: 0.01958607601 | BE16: 1996 | BF16: 91.3276776 | BG16: 1.8131588 | BH16: 93.1408364 | BI16: 0.01985333305 | BK16: 1996 | BL16: 227.9353783 | BM16: 11.074449 | BN16: 239.0098273 | BO16: 0.04858591536 | BQ16: 1996 | BR16: 42.79070182 | BS16: 0.7098202923 | BT16: 43.50052211 | BU16: 0.01658819001 | BW16: 1996 | BX16: 17.31553759 | BY16: 0.2872334277 | BZ16: 17.60277102 | CA16: 0.01658819001 | CC16: 1996 | CD16: 37.93255597 | CE16: 0.43663 | CF16: 38.36918597 | CG16: 0.01151069283 | CI16: 1996 | CJ16: 121.1227989 | CK16: 2.727852 | CL16: 123.8506509 | CM16: 0.02252137521 | CO16: 1996 | CP16: 46.14681409 | CQ16: 0.761081432 | CR16: 46.90789552 | CS16: 0.01649261053 | CU16: 1996 | CV16: 99.81819705 | CW16: 1.570816568 | CX16: 101.3890136 | CY16: 0.0157367756 | DA16: 1996 | DB16: 143.5099647 | DC16: 4.678553 | DD16: 148.1885177 | DE16: 0.03260089298 | DG16: 1996 | DH16: 280.6489845 | DI16: 9.477555 | DJ16: 290.1265395 | DK16: 0.03377013822
C17: 1997 | D17: 2124.572046 | E17: 58.58708517 | F17: 2183.159131 | G17: 0.02757594654 | I17: 1997 | J17: 197.3395936 | K17: 4.68176049 | L17: 202.0213541 | M17: 0.02372438498 | O17: 1997 | P17: 88.90957362 | Q17: 2.109324953 | R17: 91.01889858 | S17: 0.02372438498 | U17: 1997 | V17: 104.3239081 | W17: 2.475020557 | X17: 106.7989286 | Y17: 0.02372438498 | AA17: 1997 | AB17: 97.302132 | AC17: 1.557059478 | AD17: 98.85919148 | AE17: 0.01600231615 | AG17: 1997 | AH17: 179.7154159 | AI17: 2.875862902 | AJ17: 182.5912788 | AK17: 0.01600231615 | AM17: 1997 | AN17: 44.92885397 | AO17: 0.7189657255 | AP17: 45.6478197 | AQ17: 0.01600231615 | AS17: 1997 | AT17: 86.74493502 | AU17: 1.388119874 | AV17: 88.1330549 | AW17: 0.01600231615 | AY17: 1997 | AZ17: 183.2218741 | BA17: 4.07161128 | BB17: 187.2934853 | BC17: 0.02222229906 | BE17: 1997 | BF17: 93.1408364 | BG17: 2.09749672 | BH17: 95.23833312 | BI17: 0.02251962513 | BK17: 1997 | BL17: 239.0098273 | BM17: 11.35085 | BN17: 250.3606773 | BO17: 0.04749114347 | BQ17: 1997 | BR17: 43.50052211 | BS17: 0.8304208053 | BT17: 44.33094292 | BU17: 0.01908990433 | BW17: 1997 | BX17: 17.60277102 | BY17: 0.3360352147 | BZ17: 17.93880624 | CA17: 0.01908990433 | CC17: 1997 | CD17: 38.36918597 | CE17: 0.697398 | CF17: 39.06658397 | CG17: 0.01817599155 | CI17: 1997 | CJ17: 123.8506509 | CK17: 4.763932 | CL17: 128.6145829 | CM17: 0.03846513495 | CO17: 1997 | CP17: 46.90789552 | CQ17: 1.176831324 | CR17: 48.08472684 | CS17: 0.02508812879 | CU17: 1997 | CV17: 101.3890136 | CW17: 2.420904676 | CX17: 103.8099183 | CY17: 0.02387738661 | DA17: 1997 | DB17: 148.1885177 | DC17: 4.987403957 | DD17: 153.1759216 | DE17: 0.0336558057 | DG17: 1997 | DH17: 290.1265395 | DI17: 10.04808721 | DJ17: 300.1746268 | DK17: 0.03463346451
C18: 1998 | D18: 2183.159131 | E18: 68.92211589 | F18: 2252.081247 | G18: 0.0315699002 | I18: 1998 | J18: 202.0213541 | K18: 6.680399671 | L18: 208.7017537 | M18: 0.0330677898 | O18: 1998 | P18: 91.01889858 | Q18: 3.009793806 | R18: 94.02869238 | S18: 0.0330677898 | U18: 1998 | V18: 106.7989286 | W18: 3.531604523 | X18: 110.3305331 | Y18: 0.0330677898 | AA18: 1998 | AB18: 98.85919148 | AC18: 2.157076997 | AD18: 101.0162685 | AE18: 0.02181969086 | AG18: 1998 | AH18: 182.5912788 | AI18: 3.984085257 | AJ18: 186.5753641 | AK18: 0.02181969086 | AM18: 1998 | AN18: 45.6478197 | AO18: 0.9960213142 | AP18: 46.64384101 | AQ18: 0.02181969086 | AS18: 1998 | AT18: 88.1330549 | AU18: 1.923036012 | AV18: 90.05609091 | AW18: 0.02181969086 | AY18: 1998 | AZ18: 187.2934853 | BA18: 3.65675508 | BB18: 190.9502404 | BC18: 0.01952419794 | BE18: 1998 | BF18: 95.23833312 | BG18: 1.88378292 | BH18: 97.12211604 | BI18: 0.01977967125 | BK18: 1998 | BL18: 250.3606773 | BM18: 11.832202 | BN18: 262.1928793 | BO18: 0.04726062466 | BQ18: 1998 | BR18: 44.33094292 | BS18: 1.209836259 | BT18: 45.54077917 | BU18: 0.02729101117 | BW18: 1998 | BX18: 17.93880624 | BY18: 0.4895681615 | BZ18: 18.4283744 | CA18: 0.02729101117 | CC18: 1998 | CD18: 39.06658397 | CE18: 0.566138 | CF18: 39.63272197 | CG18: 0.01449161771 | CI18: 1998 | CJ18: 128.6145829 | CK18: 4.379604 | CL18: 132.9941869 | CM18: 0.03405215724 | CO18: 1998 | CP18: 48.08472684 | CQ18: 1.37540272 | CR18: 49.46012956 | CS18: 0.02860373367 | CU18: 1998 | CV18: 103.8099183 | CW18: 2.80197728 | CX18: 106.6118956 | CY18: 0.02699142169 | DA18: 1998 | DB18: 153.1759216 | DC18: 6.086956352 | DD18: 159.262878 | DE18: 0.03973833673 | DG18: 1998 | DH18: 300.1746268 | DI18: 12.35787554 | DJ18: 312.5325023 | DK18: 0.04116895446
C19: 1999 | D19: 2252.081247 | E19: 78.09546941 | F19: 2330.176717 | G19: 0.03467702131 | I19: 1999 | J19: 208.7017537 | K19: 7.994546622 | L19: 216.6963004 | M19: 0.03830608262 | O19: 1999 | P19: 94.02869238 | Q19: 3.601870859 | R19: 97.63056324 | S19: 0.03830608262 | U19: 1999 | V19: 110.3305331 | W19: 4.226330519 | X19: 114.5568637 | Y19: 0.03830608262 | AA19: 1999 | AB19: 101.0162685 | AC19: 2.712593736 | AD19: 103.7288622 | AE19: 0.02685303839 | AG19: 1999 | AH19: 186.5753641 | AI19: 5.010115414 | AJ19: 191.5854795 | AK19: 0.02685303839 | AM19: 1999 | AN19: 46.64384101 | AO19: 1.252528854 | AP19: 47.89636987 | AQ19: 0.02685303839 | AS19: 1999 | AT19: 90.05609091 | AU19: 2.418279667 | AV19: 92.47437058 | AW19: 0.02685303839 | AY19: 1999 | AZ19: 190.9502404 | BA19: 4.47079512 | BB19: 195.4210355 | BC19: 0.02341340399 | BE19: 1999 | BF19: 97.12211604 | BG19: 2.30313688 | BH19: 99.42525292 | BI19: 0.02371382517 | BK19: 1999 | BL19: 262.1928793 | BM19: 10.835366 | BN19: 273.0282453 | BO19: 0.04132593542 | BQ19: 1999 | BR19: 45.54077917 | BS19: 1.546205965 | BT19: 47.08698514 | BU19: 0.03395211924 | BW19: 1999 | BX19: 18.4283744 | BY19: 0.625682365 | BZ19: 19.05405676 | CA19: 0.03395211924 | CC19: 1999 | CD19: 39.63272197 | CE19: 0.617092 | CF19: 40.24981397 | CG19: 0.01557026541 | CI19: 1999 | CJ19: 132.9941869 | CK19: 3.34888 | CL19: 136.3430669 | CM19: 0.02518064946 | CO19: 1999 | CP19: 49.46012956 | CQ19: 2.155412844 | CR19: 51.61554241 | CS19: 0.04357879494 | CU19: 1999 | CV19: 106.6118956 | CW19: 4.372853156 | CX19: 110.9847487 | CY19: 0.04101655948 | DA19: 1999 | DB19: 159.262878 | DC19: 6.816060274 | DD19: 166.0789383 | DE19: 0.04279754555 | DG19: 1999 | DH19: 312.5325023 | DI19: 13.78771914 | DJ19: 326.3202214 | DK19: 0.04411611285
C20: 2000 | D20: 2330.176717 | E20: 74.38685613 | F20: 2404.563573 | G20: 0.03192326813 | I20: 2000 | J20: 216.6963004 | K20: 8.484140192 | L20: 225.1804406 | M20: 0.03915221523 | O20: 2000 | P20: 97.63056324 | Q20: 3.822452825 | R20: 101.4530161 | S20: 0.03915221523 | U20: 2000 | V20: 114.5568637 | W20: 4.485154983 | X20: 119.0420186 | Y20: 0.03915221523 | AA20: 2000 | AB20: 103.7288622 | AC20: 2.34353628 | AD20: 106.0723985 | AE20: 0.02259290452 | AG20: 2000 | AH20: 191.5854795 | AI20: 4.328472445 | AJ20: 195.9139519 | AK20: 0.02259290452 | AM20: 2000 | AN20: 47.89636987 | AO20: 1.082118111 | AP20: 48.97848798 | AQ20: 0.02259290452 | AS20: 2000 | AT20: 92.47437058 | AU20: 2.089264625 | AV20: 94.5636352 | AW20: 0.02259290452 | AY20: 2000 | AZ20: 195.4210355 | BA20: 4.03331412 | BB20: 199.4543497 | BC20: 0.02063909911 | BE20: 2000 | BF20: 99.42525292 | BG20: 2.07776788 | BH20: 101.5030208 | BI20: 0.02089778823 | BK20: 2000 | BL20: 273.0282453 | BM20: 9.45979 | BN20: 282.4880353 | BO20: 0.03464766068 | BQ20: 2000 | BR20: 47.08698514 | BS20: 1.249156988 | BT20: 48.33614213 | BU20: 0.02652871031 | BW20: 2000 | BX20: 19.05405676 | BY20: 0.505479552 | BZ20: 19.55953632 | CA20: 0.02652871031 | CC20: 2000 | CD20: 40.24981397 | CE20: 0.62833 | CF20: 40.87814397 | CG20: 0.01561075538 | CI20: 2000 | CJ20: 136.3430669 | CK20: 3.417398 | CL20: 139.7604649 | CM20: 0.02506469949 | CO20: 2000 | CP20: 51.61554241 | CQ20: 1.927935656 | CR20: 53.54347806 | CS20: 0.03735184338 | CU20: 2000 | CV20: 110.9847487 | CW20: 3.911698344 | CX20: 114.8964471 | CY20: 0.03524536829 | DA20: 2000 | DB20: 166.0789383 | DC20: 6.745608466 | DD20: 172.8245467 | DE20: 0.04061688097 | DG20: 2000 | DH20: 326.3202214 | DI20: 13.79523766 | DJ20: 340.1154591 | DK20: 0.04227515414
C21: 2001 | D21: 2404.563573 | E21: 62.32514 | F21: 2466.888713 | G21: 0.02591952265 | I21: 2001 | J21: 225.1804406 | K21: 5.68730383 | L21: 230.8677444 | M21: 0.02525665114 | O21: 2001 | P21: 101.4530161 | Q21: 2.562363434 | R21: 104.0153795 | S21: 0.02525665114 | U21: 2001 | V21: 119.0420186 | W21: 3.006602736 | X21: 122.0486214 | Y21: 0.02525665114 | AA21: 2001 | AB21: 106.0723985 | AC21: 2.113687018 | AD21: 108.1860855 | AE21: 0.01992683345 | AG21: 2001 | AH21: 195.9139519 | AI21: 3.90394469 | AJ21: 199.8178966 | AK21: 0.01992683345 | AM21: 2001 | AN21: 48.97848798 | AO21: 0.9759861725 | AP21: 49.95447415 | AQ21: 0.01992683345 | AS21: 2001 | AT21: 94.5636352 | AU21: 1.884353809 | AV21: 96.44798901 | AW21: 0.01992683345 | AY21: 2001 | AZ21: 199.4543497 | BA21: 4.68585744 | BB21: 204.1402071 | BC21: 0.02349338306 | BE21: 2001 | BF21: 101.5030208 | BG21: 2.41392656 | BH21: 103.9169474 | BI21: 0.0237818199 | BK21: 2001 | BL21: 282.4880353 | BM21: 10.408618 | BN21: 292.8966533 | BO21: 0.03684622603 | BQ21: 2001 | BR21: 48.33614213 | BS21: 1.097457108 | BT21: 49.43359924 | BU21: 0.02270468968 | BW21: 2001 | BX21: 19.55953632 | BY21: 0.4440932024 | BZ21: 20.00362952 | CA21: 0.02270468968 | CC21: 2001 | CD21: 40.87814397 | CE21: 0.42196 | CF21: 41.30010397 | CG21: 0.01032238646 | CI21: 2001 | CJ21: 139.7604649 | CK21: 1.992464 | CL21: 141.7529289 | CM21: 0.01425627771 | CO21: 2001 | CP21: 53.54347806 | CQ21: 1.570573244 | CR21: 55.11405131 | CS21: 0.02933267133 | CU21: 2001 | CV21: 114.8964471 | CW21: 3.213792756 | CX21: 118.1102398 | CY21: 0.02797121093 | DA21: 2001 | DB21: 172.8245467 | DC21: 5.25881672 | DD21: 178.0833634 | DE21: 0.03042864466 | DG21: 2001 | DH21: 340.1154591 | DI21: 10.68333928 | DJ21: 350.7987984 | DK21: 0.03141091942
C22: 2002 | D22: 2466.888713 | E22: 48.61879034 | F22: 2515.507503 | G22: 0.01970854627 | I22: 2002 | J22: 230.8677444 | K22: 3.932147969 | L22: 234.7998924 | M22: 0.01703203702 | O22: 2002 | P22: 104.0153795 | Q22: 1.771593794 | R22: 105.7869733 | S22: 0.01703203702 | U22: 2002 | V22: 122.0486214 | W22: 2.078736637 | X22: 124.127358 | Y22: 0.01703203702 | AA22: 2002 | AB22: 108.1860855 | AC22: 1.723652168 | AD22: 109.9097377 | AE22: 0.01593229074 | AG22: 2002 | AH22: 199.8178966 | AI22: 3.183556824 | AJ22: 203.0014534 | AK22: 0.01593229074 | AM22: 2002 | AN22: 49.95447415 | AO22: 0.7958892059 | AP22: 50.75036336 | AQ22: 0.01593229074 | AS22: 2002 | AT22: 96.44798901 | AU22: 1.536637402 | AV22: 97.98462641 | AW22: 0.01593229074 | AY22: 2002 | AZ22: 204.1402071 | BA22: 5.752696 | BB22: 209.8929031 | BC22: 0.02818012229 | BE22: 2002 | BF22: 103.9169474 | BG22: 2.743728 | BH22: 106.6606754 | BI22: 0.02640308506 | BK22: 2002 | BL22: 292.8966533 | BM22: 5.888368 | BN22: 298.7850213 | BO22: 0.02010391014 | BQ22: 2002 | BR22: 49.43359924 | BS22: 0.6342823109 | BT22: 50.06788155 | BU22: 0.01283099594 | BW22: 2002 | BX22: 20.00362952 | BY22: 0.2566664891 | BZ22: 20.26029601 | CA22: 0.01283099594 | CC22: 2002 | CD22: 41.30010397 | CE22: 1.309694736 | CF22: 42.60979871 | CG22: 0.03171165712 | CI22: 2002 | CJ22: 141.7529289 | CK22: 0.928538 | CL22: 142.6814669 | CM22: 0.006550397281 | CO22: 2002 | CP22: 55.11405131 | CQ22: 1.015875952 | CR22: 56.12992726 | CS22: 0.01843224963 | CU22: 2002 | CV22: 118.1102398 | CW22: 3.149736848 | CX22: 121.2599767 | CY22: 0.02666777116 | DA22: 2002 | DB22: 178.0833634 | DC22: 4.698094 | DD22: 182.7814574 | DE22: 0.0263814312 | DG22: 2002 | DH22: 350.7987984 | DI22: 7.218896 | DJ22: 358.0176944 | DK22: 0.02057845133
C23: 2003 | D23: 2515.507503 | E23: 52.0334898 | F23: 2567.540993 | G23: 0.0206850863 | I23: 2003 | J23: 234.7998924 | K23: 3.585114143 | L23: 238.3850065 | M23: 0.01526880659 | O23: 2003 | P23: 105.7869733 | Q23: 1.615240835 | R23: 107.4022141 | S23: 0.01526880659 | U23: 2003 | V23: 124.127358 | W23: 1.895276622 | X23: 126.0226346 | Y23: 0.01526880659 | AA23: 2003 | AB23: 109.9097377 | AC23: 1.633255762 | AD23: 111.5429934 | AE23: 0.01485997325 | AG23: 2003 | AH23: 203.0014534 | AI23: 3.016596168 | AJ23: 206.0180496 | AK23: 0.01485997325 | AM23: 2003 | AN23: 50.75036336 | AO23: 0.754149042 | AP23: 51.5045124 | AQ23: 0.01485997325 | AS23: 2003 | AT23: 97.98462641 | AU23: 1.456048928 | AV23: 99.44067534 | AW23: 0.01485997325 | AY23: 2003 | AZ23: 209.8929031 | BA23: 6.45374 | BB23: 216.3466431 | BC23: 0.03074777615 | BE23: 2003 | BF23: 106.6606754 | BG23: 3.196356 | BH23: 109.8570314 | BI23: 0.02996752073 | BK23: 2003 | BL23: 298.7850213 | BM23: 6.787264 | BN23: 305.5722853 | BO23: 0.02271621238 | BQ23: 2003 | BR23: 50.06788155 | BS23: 0.6198857668 | BT23: 50.68776731 | BU23: 0.01238090663 | BW23: 2003 | BX23: 20.26029601 | BY23: 0.2508408332 | BZ23: 20.51113684 | CA23: 0.01238090663 | CC23: 2003 | CD23: 42.60979871 | CE23: 1.279968102 | CF23: 43.88976681 | CG23: 0.03003929004 | CI23: 2003 | CJ23: 142.6814669 | CK23: 1.653578 | CL23: 144.3350449 | CM23: 0.01158929773 | CO23: 2003 | CP23: 56.12992726 | CQ23: 1.039350756 | CR23: 57.16927801 | CS23: 0.01851687338 | CU23: 2003 | CV23: 121.2599767 | CW23: 3.250010844 | CX23: 124.5099875 | CY23: 0.02680200783 | DA23: 2003 | DB23: 182.7814574 | DC23: 4.057734 | DD23: 186.8391914 | DE23: 0.02219992146 | DG23: 2003 | DH23: 358.0176944 | DI23: 9.48908 | DJ23: 367.5067744 | DK23: 0.02650450005
C24: 2004 | D24: 2567.540993 | E24: 50.9207945 | F24: 2618.461788 | G24: 0.01983251471 | I24: 2004 | J24: 238.3850065 | K24: 4.233898481 | L24: 242.618905 | M24: 0.01776075829 | O24: 2004 | P24: 107.4022141 | Q24: 1.907544765 | R24: 109.3097589 | S24: 0.01776075829 | U24: 2004 | V24: 126.0226346 | W24: 2.238257553 | X24: 128.2608922 | Y24: 0.01776075829 | AA24: 2004 | AB24: 111.5429934 | AC24: 1.765142182 | AD24: 113.3081356 | AE24: 0.01582476969 | AG24: 2004 | AH24: 206.0180496 | AI24: 3.260188187 | AJ24: 209.2782378 | AK24: 0.01582476969 | AM24: 2004 | AN24: 51.5045124 | AO24: 0.8150470467 | AP24: 52.31955945 | AQ24: 0.01582476969 | AS24: 2004 | AT24: 99.44067534 | AU24: 1.573625785 | AV24: 101.0143011 | AW24: 0.01582476969 | AY24: 2004 | AZ24: 216.3466431 | BA24: 4.318812 | BB24: 220.6654551 | BC24: 0.01996246366 | BE24: 2004 | BF24: 109.8570314 | BG24: 1.700626 | BH24: 111.5576574 | BI24: 0.01548035641 | BK24: 2004 | BL24: 305.5722853 | BM24: 6.083902 | BN24: 311.6561873 | BO24: 0.0199098619 | BQ24: 2004 | BR24: 50.68776731 | BS24: 0.6687351458 | BT24: 51.35650246 | BU24: 0.01319322553 | BW24: 2004 | BX24: 20.51113684 | BY24: 0.2706080542 | BZ24: 20.78174489 | CA24: 0.01319322553 | CC24: 2004 | CD24: 43.88976681 | CE24: 1.380834504 | CF24: 45.27060131 | CG24: 0.03146142266 | CI24: 2004 | CJ24: 144.3350449 | CK24: 1.865274 | CL24: 146.2003189 | CM24: 0.01292322319 | CO24: 2004 | CP24: 57.16927801 | CQ24: 1.128147136 | CR24: 58.29742515 | CS24: 0.01973345082 | CU24: 2004 | CV24: 124.5099875 | CW24: 3.349797664 | CX24: 127.8597852 | CY24: 0.02690384708 | DA24: 2004 | DB24: 186.8391914 | DC24: 5.616084 | DD24: 192.4552754 | DE24: 0.03005838313 | DG24: 2004 | DH24: 367.5067744 | DI24: 8.74427 | DJ24: 376.2510444 | DK24: 0.02379349337
B25: =102357/F25 -> 38.27976831 | C25: 2005 | D25: 2618.461788 | E25: 55.457218 | F25: 2673.919006 | G25: 0.02117931156 | I25: 2005 | J25: 242.618905 | K25: 3.273232631 | L25: 245.8921376 | M25: 0.01349125136 | O25: 2005 | P25: 109.3097589 | Q25: 1.474725433 | R25: 110.7844843 | S25: 0.01349125136 | U25: 2005 | V25: 128.2608922 | W25: 1.730399936 | X25: 129.9912921 | Y25: 0.01349125136 | AA25: 2005 | AB25: 113.3081356 | AC25: 2.389871966 | AD25: 115.6980076 | AE25: 0.02109179498 | AG25: 2005 | AH25: 209.2782378 | AI25: 4.414053684 | AJ25: 213.6922915 | AK25: 0.02109179498 | AM25: 2005 | AN25: 52.31955945 | AO25: 1.103513421 | AP25: 53.42307287 | AQ25: 0.02109179498 | AS25: 2005 | AT25: 101.0143011 | AU25: 2.130572929 | AV25: 103.1448741 | AW25: 0.02109179498 | AY25: 2005 | AZ25: 220.6654551 | BA25: 5.014962 | BB25: 225.6804171 | BC25: 0.02272653868 | BE25: 2005 | BF25: 111.5576574 | BG25: 2.22119 | BH25: 113.7788474 | BI25: 0.0199106906 | BK25: 2005 | BL25: 311.6561873 | BM25: 9.477118 | BN25: 321.1333053 | BO25: 0.0304088877 | BQ25: 2005 | BR25: 51.35650246 | BS25: 0.09987499257 | BT25: 51.45637745 | BU25: 0.001944738987 | BW25: 2005 | BX25: 20.78174489 | BY25: 0.1408067804 | BZ25: 20.92255167 | CA25: 0.006775503267 | CC25: 2005 | CD25: 45.27060131 | CE25: 0.246814227 | CF25: 45.51741554 | CG25: 0.005451975892 | CI25: 2005 | CJ25: 146.2003189 | CK25: 2.34981 | CL25: 148.5501289 | CM25: 0.01607253676 | CO25: 2005 | CP25: 58.29742515 | CQ25: 3.615662 | CR25: 61.91308715 | CS25: 0.06202095531 | CU25: 2005 | CV25: 127.8597852 | CW25: 4.039822 | CX25: 131.8996072 | CY25: 0.03159572022 | DA25: 2005 | DB25: 192.4552754 | DC25: 3.38958 | DD25: 195.8448554 | DE25: 0.01761229975 | DG25: 2005 | DH25: 376.2510444 | DI25: 8.345208 | DJ25: 384.5962524 | DK25: 0.02217989325
C26: 2006 | D26: 2673.919006 | E26: 64.906328 | F26: 2738.825334 | G26: 0.02427385716 | I26: 2006 | J26: 245.8921376 | K26: 6.084374826 | L26: 251.9765124 | M26: 0.02474408041 | O26: 2006 | P26: 110.7844843 | Q26: 2.741260189 | R26: 113.5257445 | S26: 0.02474408041 | U26: 2006 | V26: 129.9912921 | W26: 3.216514985 | X26: 133.2078071 | Y26: 0.02474408041 | AA26: 2006 | AB26: 115.6980076 | AC26: 3.09753416 | AD26: 118.7955417 | AE26: 0.02677257996 | AG26: 2006 | AH26: 213.6922915 | AI26: 5.721093961 | AJ26: 219.4133854 | AK26: 0.02677257996 | AM26: 2006 | AN26: 53.42307287 | AO26: 1.43027349 | AP26: 54.85334636 | AQ26: 0.02677257996 | AS26: 2006 | AT26: 103.1448741 | AU26: 2.761454389 | AV26: 105.9063284 | AW26: 0.02677257996 | AY26: 2006 | AZ26: 225.6804171 | BA26: 4.86792 | BB26: 230.5483371 | BC26: 0.02156997077 | BE26: 2006 | BF26: 113.7788474 | BG26: 1.965732 | BH26: 115.7445794 | BI26: 0.01727677899 | BK26: 2006 | BL26: 321.1333053 | BM26: 9.07813 | BN26: 330.2114353 | BO26: 0.02826903921 | BQ26: 2006 | BR26: 51.45637745 | BS26: 0.103381184 | BT26: 51.55975864 | BU26: 0.002009103421 | BW26: 2006 | BX26: 20.92255167 | BY26: 0.1379919784 | BZ26: 21.06054365 | CA26: 0.006595370417 | CC26: 2006 | CD26: 45.51741554 | CE26: 0.2554788376 | CF26: 45.77289438 | CG26: 0.005612771169 | CI26: 2006 | CJ26: 148.5501289 | CK26: 3.046338 | CL26: 151.5964669 | CM26: 0.02050713805 | CO26: 2006 | CP26: 61.91308715 | CQ26: 0.90778 | CR26: 62.82086715 | CS26: 0.01466216662 | CU26: 2006 | CV26: 131.8996072 | CW26: 3.586658 | CX26: 135.4862652 | CY26: 0.02719233269 | DA26: 2006 | DB26: 195.8448554 | DC26: 4.097262 | DD26: 199.9421174 | DE26: 0.02092095802 | DG26: 2006 | DH26: 384.5962524 | DI26: 11.80715 | DJ26: 396.4034024 | DK26: 0.03070011714
C27: 2007 | D27: 2738.825334 | E27: 59.71464798 | F27: 2798.539982 | G27: 0.02180301432 | I27: 2007 | J27: 251.9765124 | K27: 4.552423998 | L27: 256.5289364 | M27: 0.01806685851 | O27: 2007 | P27: 113.5257445 | Q27: 2.051053564 | R27: 115.5767981 | S27: 0.01806685851 | U27: 2007 | V27: 133.2078071 | W27: 2.406646604 | X27: 135.6144537 | Y27: 0.01806685851 | AA27: 2007 | AB27: 118.7955417 | AC27: 2.590407285 | AD27: 121.385949 | AE27: 0.02180559343 | AG27: 2007 | AH27: 219.4133854 | AI27: 4.784439076 | AJ27: 224.1978245 | AK27: 0.02180559343 | AM27: 2007 | AN27: 54.85334636 | AO27: 1.196109769 | AP27: 56.04945613 | AQ27: 0.02180559343 | AS27: 2007 | AT27: 105.9063284 | AU27: 2.30935034 | AV27: 108.2156788 | AW27: 0.02180559343 | AY27: 2007 | AZ27: 230.5483371 | BA27: 5.266142446 | BB27: 235.8144795 | BC27: 0.02284181492 | BE27: 2007 | BF27: 115.7445794 | BG27: 2.175320282 | BH27: 117.9198996 | BI27: 0.01879414392 | BK27: 2007 | BL27: 330.2114353 | BM27: 8.696626354 | BN27: 338.9080617 | BO27: 0.02633653903 | BQ27: 2007 | BR27: 51.55975864 | BS27: 0.1050378197 | BT27: 51.66479646 | BU27: 0.002037205419 | BW27: 2007 | BX27: 21.06054365 | BY27: 0.1436985013 | BZ27: 21.20424215 | CA27: 0.006823114523 | CC27: 2007 | CD27: 45.77289438 | CE27: 0.259572768 | CF27: 46.03246715 | CG27: 0.00567088386 | CI27: 2007 | CJ27: 151.5964669 | CK27: 2.987523948 | CL27: 154.5839908 | CM27: 0.01970708163 | CO27: 2007 | CP27: 62.82086715 | CQ27: 1.555451066 | CR27: 64.37631821 | CS27: 0.0247601018 | CU27: 2007 | CV27: 135.4862652 | CW27: 2.919941321 | CX27: 138.4062065 | CY27: 0.021551567 | DA27: 2007 | DB27: 199.9421174 | DC27: 4.294196976 | DD27: 204.2363144 | DE27: 0.02147720066 | DG27: 2007 | DH27: 396.4034024 | DI27: 11.42070586 | DJ27: 407.8241082 | DK27: 0.02881081694
C28: 2008 | D28: 2798.539982 | E28: 58.48471531 | F28: 2857.024697 | G28: 0.02089829543 | I28: 2008 | J28: 256.5289364 | K28: 4.755624758 | L28: 261.2845612 | M28: 0.01853835604 | O28: 2008 | P28: 115.5767981 | Q28: 2.142603833 | R28: 117.7194019 | S28: 0.01853835604 | U28: 2008 | V28: 135.6144537 | W28: 2.514069027 | X28: 138.1285228 | Y28: 0.01853835604 | AA28: 2008 | AB28: 121.385949 | AC28: 2.414037631 | AD28: 123.7999867 | AE28: 0.0198872905 | AG28: 2008 | AH28: 224.1978245 | AI28: 4.458687266 | AJ28: 228.6565118 | AK28: 0.0198872905 | AM28: 2008 | AN28: 56.04945613 | AO28: 1.114671816 | AP28: 57.16412794 | AQ28: 0.0198872905 | AS28: 2008 | AT28: 108.2156788 | AU28: 2.152116641 | AV28: 110.3677954 | AW28: 0.0198872905 | AY28: 2008 | AZ28: 235.8144795 | BA28: 5.815105111 | BB28: 241.6295847 | BC28: 0.02465966094 | BE28: 2008 | BF28: 117.9198996 | BG28: 2.428297129 | BH28: 120.3481968 | BI28: 0.02059276794 | BK28: 2008 | BL28: 338.9080617 | BM28: 8.394756578 | BN28: 347.3028183 | BO28: 0.02477001148 | BQ28: 2008 | BR28: 51.66479646 | BS28: 0.1159388059 | BT28: 51.78073526 | BU28: 0.002244058118 | BW28: 2008 | BX28: 21.20424215 | BY28: 0.1615093346 | BZ28: 21.36575149 | CA28: 0.007616840697 | CC28: 2008 | CD28: 46.03246715 | CE28: 0.2865116283 | CF28: 46.31897877 | CG28: 0.006224120628 | CI28: 2008 | CJ28: 154.5839908 | CK28: 2.515246868 | CL28: 157.0992377 | CM28: 0.01627106956 | CO28: 2008 | CP28: 64.37631821 | CQ28: 1.498799235 | CR28: 65.87511745 | CS28: 0.02328184147 | CU28: 2008 | CV28: 138.4062065 | CW28: 3.049910795 | CX28: 141.4561173 | CY28: 0.02203593951 | DA28: 2008 | DB28: 204.2363144 | DC28: 4.082710272 | DD28: 208.3190247 | DE28: 0.019990129 | DG28: 2008 | DH28: 407.8241082 | DI28: 10.58411858 | DJ28: 418.4082268 | DK28: 0.02595265549
C29: 2009 | D29: 2857.024697 | E29: 56.32861153 | F29: 2913.353308 | G29: 0.01971582941 | I29: 2009 | J29: 261.2845612 | K29: 4.389443171 | L29: 265.6740044 | M29: 0.01679947392 | O29: 2009 | P29: 117.7194019 | Q29: 1.977624022 | R29: 119.6970259 | S29: 0.01679947392 | U29: 2009 | V29: 138.1285228 | W29: 2.320486515 | X29: 140.4490093 | Y29: 0.01679947392 | AA29: 2009 | AB29: 123.7999867 | AC29: 2.34716538 | AD29: 126.147152 | AE29: 0.01895933468 | AG29: 2009 | AH29: 228.6565118 | AI29: 4.335175333 | AJ29: 232.9916871 | AK29: 0.01895933468 | AM29: 2009 | AN29: 57.16412794 | AO29: 1.083793833 | AP29: 58.24792178 | AQ29: 0.01895933468 | AS29: 2009 | AT29: 110.3677954 | AU29: 2.092499971 | AV29: 112.4602954 | AW29: 0.01895933468 | AY29: 2009 | AZ29: 241.6295847 | BA29: 5.573829617 | BB29: 247.2034143 | BC29: 0.02306766212 | BE29: 2009 | BF29: 120.3481968 | BG29: 2.306183125 | BH29: 122.6543799 | BI29: 0.01916258978 | BK29: 2009 | BL29: 347.3028183 | BM29: 8.071930183 | BN29: 355.3747484 | BO29: 0.02324176413 | BQ29: 2009 | BR29: 51.78073526 | BS29: 0.1000259521 | BT29: 51.88076121 | BU29: 0.001931721356 | BW29: 2009 | BX29: 21.36575149 | BY29: 0.1416165586 | BZ29: 21.50736805 | CA29: 0.006628203957 | CC29: 2009 | CD29: 46.31897877 | CE29: 0.247187283 | CF29: 46.56616606 | CG29: 0.005336630675 | CI29: 2009 | CJ29: 157.0992377 | CK29: 2.268523329 | CL29: 159.367761 | CM29: 0.0144400658 | CO29: 2009 | CP29: 65.87511745 | CQ29: 1.628682463 | CR29: 67.50379991 | CS29: 0.02472378837 | CU29: 2009 | CV29: 141.4561173 | CW29: 3.185467372 | CX29: 144.6415847 | CY29: 0.02251912065 | DA29: 2009 | DB29: 208.3190247 | DC29: 4.350068567 | DD29: 212.6690933 | DE29: 0.02088176331 | DG29: 2009 | DH29: 418.4082268 | DI29: 9.908908856 | DJ29: 428.3171357 | DK29: 0.0236823949
C30: 2010 | D30: 2913.353308 | E30: 34.73680566 | F30: 2948.090114 | G30: 0.01192330692 | I30: 2010 | J30: 265.6740044 | K30: 3.403925381 | L30: 269.0779297 | M30: 0.01281241418 | O30: 2010 | P30: 119.6970259 | Q30: 1.533607873 | R30: 121.2306338 | S30: 0.01281241418 | U30: 2010 | V30: 140.4490093 | W30: 1.799490878 | X30: 142.2485001 | Y30: 0.01281241418 | AA30: 2010 | AB30: 126.147152 | AC30: 1.015893714 | AD30: 127.1630458 | AE30: 0.008053243356 | AG30: 2010 | AH30: 232.9916871 | AI30: 1.876338756 | AJ30: 234.8680259 | AK30: 0.008053243356 | AM30: 2010 | AN30: 58.24792178 | AO30: 0.469084689 | AP30: 58.71700647 | AQ30: 0.008053243356 | AS30: 2010 | AT30: 112.4602954 | AU30: 0.9056701267 | AV30: 113.3659655 | AW30: 0.008053243356 | AY30: 2010 | AZ30: 247.2034143 | BA30: 1.001461045 | BB30: 248.2048753 | BC30: 0.004051161866 | BE30: 2010 | BF30: 122.6543799 | BG30: 0.7369298436 | BH30: 123.3913097 | BI30: 0.00600818205 | BK30: 2010 | BL30: 355.3747484 | BM30: 8.091911365 | BN30: 363.4666598 | BO30: 0.02277007975 | BQ30: 2010 | BR30: 51.88076121 | BS30: 0.4505649599 | BT30: 52.33132617 | BU30: 0.008684625078 | BW30: 2010 | BX30: 21.50736805 | BY30: 0.1167594573 | BZ30: 21.62412751 | CA30: 0.005428811979 | CC30: 2010 | CD30: 46.56616606 | CE30: 0.859604004 | CF30: 47.42577006 | CG30: 0.01845984063 | CI30: 2010 | CJ30: 159.367761 | CK30: 1.31791492 | CL30: 160.685676 | CM30: 0.008269645699 | CO30: 2010 | CP30: 67.50379991 | CQ30: 0.5590405253 | CR30: 68.06284044 | CS30: 0.008281615643 | CU30: 2010 | CV30: 144.6415847 | CW30: 2.217044311 | CX30: 146.858629 | CY30: 0.0153278486 | DA30: 2010 | DB30: 212.6690933 | DC30: 5.166261956 | DD30: 217.8353552 | DE30: 0.02429249063 | DG30: 2010 | DH30: 428.3171357 | DI30: 3.215301851 | DJ30: 431.5324375 | DK30: 0.007506825162
C31: 2011 | D31: 2948.090114 | E31: 39.12394742 | F31: 2987.214061 | G31: 0.01327094692 | I31: 2011 | J31: 269.0779297 | K31: 4.585888723 | L31: 273.6638185 | M31: 0.01704297609 | O31: 2011 | P31: 121.2306338 | Q31: 2.066130794 | R31: 123.2967646 | S31: 0.01704297609 | U31: 2011 | V31: 142.2485001 | W31: 2.424337787 | X31: 144.6728379 | Y31: 0.01704297609 | AA31: 2011 | AB31: 127.1630458 | AC31: 0.6502108434 | AD31: 127.8132566 | AE31: 0.005113205959 | AG31: 2011 | AH31: 234.8680259 | AI31: 1.200928589 | AJ31: 236.0689544 | AK31: 0.005113205959 | AM31: 2011 | AN31: 58.71700647 | AO31: 0.3002321474 | AP31: 59.01723861 | AQ31: 0.005113205959 | AS31: 2011 | AT31: 113.3659655 | AU31: 0.5796635305 | AV31: 113.9456291 | AW31: 0.005113205959 | AY31: 2011 | AZ31: 248.2048753 | BA31: 3.479512052 | BB31: 251.6843874 | BC31: 0.01401870953 | BE31: 2011 | BF31: 123.3913097 | BG31: 1.916194553 | BH31: 125.3075043 | BI31: 0.01552941254 | BK31: 2011 | BL31: 363.4666598 | BM31: 12.66382232 | BN31: 376.1304821 | BO31: 0.03484177153 | BQ31: 2011 | BR31: 52.33132617 | BS31: 0.1821309314 | BT31: 52.5134571 | BU31: 0.003480342363 | BW31: 2011 | BX31: 21.62412751 | BY31: 0.1996374048 | BZ31: 21.82376491 | CA31: 0.009232159993 | CC31: 2011 | CD31: 47.42577006 | CE31: 0.8469524838 | CF31: 48.27272255 | CG31: 0.0178584867 | CI31: 2011 | CJ31: 160.685676 | CK31: 1.844104565 | CL31: 162.5297805 | CM31: 0.0114764714 | CO31: 2011 | CP31: 68.06284044 | CQ31: 0.668020612 | CR31: 68.73086105 | CS31: 0.009814762472 | CU31: 2011 | CV31: 146.858629 | CW31: 2.468830084 | CX31: 149.3274591 | CY31: 0.01681092968 | DA31: 2011 | DB31: 217.8353552 | DC31: 2.248604466 | DD31: 220.0839597 | DE31: 0.01032249546 | DG31: 2011 | DH31: 431.5324375 | DI31: 0.7987455327 | DJ31: 432.3311831 | DK31: 0.001850951315
C32: 2012 | D32: 2987.214061 | E32: 43.62783054 | F32: 3030.841892 | G32: 0.01460485578 | I32: 2012 | J32: 273.6638185 | K32: 4.620595449 | L32: 278.2844139 | M32: 0.01688420294 | O32: 2012 | P32: 123.2967646 | Q32: 2.081767595 | R32: 125.3785322 | S32: 0.01688420294 | U32: 2012 | V32: 144.6728379 | W32: 2.442685556 | X32: 147.1155235 | Y32: 0.01688420294 | AA32: 2012 | AB32: 127.8132566 | AC32: 1.526620963 | AD32: 129.3398776 | AE32: 0.01194415199 | AG32: 2012 | AH32: 236.0689544 | AI32: 2.819643471 | AJ32: 238.8885979 | AK32: 0.01194415199 | AM32: 2012 | AN32: 59.01723861 | AO32: 0.7049108679 | AP32: 59.72214948 | AQ32: 0.01194415199 | AS32: 2012 | AT32: 113.9456291 | AU32: 1.360983912 | AV32: 115.306613 | AW32: 0.01194415199 | AY32: 2012 | AZ32: 251.6843874 | BA32: 3.910578306 | BB32: 255.5949657 | BC32: 0.01553762769 | BE32: 2012 | BF32: 125.3075043 | BG32: 2.058960241 | BH32: 127.3664645 | BI32: 0.01643126046 | BK32: 2012 | BL32: 376.1304821 | BM32: 12.93160406 | BN32: 389.0620862 | BO32: 0.03438063298 | BQ32: 2012 | BR32: 52.5134571 | BS32: 0.358477048 | BT32: 52.87193415 | BU32: 0.006826384468 | BW32: 2012 | BX32: 21.82376491 | BY32: 0.3212980162 | BZ32: 22.14506293 | CA32: 0.01472239174 | CC32: 2012 | CD32: 48.27272255 | CE32: 0.9388884502 | CF32: 49.211611 | CG32: 0.01944966848 | CI32: 2012 | CJ32: 162.5297805 | CK32: 2.23365426 | CL32: 164.7634348 | CM32: 0.01374304606 | CO32: 2012 | CP32: 68.73086105 | CQ32: 0.9900577429 | CR32: 69.72091879 | CS32: 0.01440484999 | CU32: 2012 | CV32: 149.3274591 | CW32: 3.016167458 | CX32: 152.3436265 | CY32: 0.02019834448 | DA32: 2012 | DB32: 220.0839597 | DC32: 0.9412533615 | DD32: 221.025213 | DE32: 0.004276792197 | DG32: 2012 | DH32: 432.3311831 | DI32: 0.3696837874 | DJ32: 432.7008668 | DK32: 0.0008550939693
C33: 2013 | D33: 3030.841892 | E33: 44.25493938 | F33: 3075.096831 | G33: 0.01460153349 | I33: 2013 | J33: 278.2844139 | K33: 4.472817933 | L33: 282.7572318 | M33: 0.01607282949 | O33: 2013 | P33: 125.3785322 | Q33: 2.015187769 | R33: 127.39372 | S33: 0.01607282949 | U33: 2013 | V33: 147.1155235 | W33: 2.364562724 | X33: 149.4800862 | Y33: 0.01607282949 | AA33: 2013 | AB33: 129.3398776 | AC33: 1.666399379 | AD33: 131.0062769 | AE33: 0.01288387936 | AG33: 2013 | AH33: 238.8885979 | AI33: 3.077811876 | AJ33: 241.9664098 | AK33: 0.01288387936 | AM33: 2013 | AN33: 59.72214948 | AO33: 0.769452969 | AP33: 60.49160245 | AQ33: 0.01288387936 | AS33: 2013 | AT33: 115.306613 | AU33: 1.485596491 | AV33: 116.7922095 | AW33: 0.01288387936 | AY33: 2013 | AZ33: 255.5949657 | BA33: 3.771267661 | BB33: 259.3662333 | BC33: 0.01475485893 | BE33: 2013 | BF33: 127.3664645 | BG33: 1.992910753 | BH33: 129.3593753 | BI33: 0.01564706032 | BK33: 2013 | BL33: 389.0620862 | BM33: 12.41133155 | BN33: 401.4734177 | BO33: 0.03190064515 | BQ33: 2013 | BR33: 52.87193415 | BS33: 0.3566694879 | BT33: 53.22860364 | BU33: 0.006745913378 | BW33: 2013 | BX33: 22.14506293 | BY33: 0.3345211908 | BZ33: 22.47958412 | CA33: 0.01510590383 | CC33: 2013 | CD33: 49.211611 | CE33: 0.8768276184 | CF33: 50.08843861 | CG33: 0.01781749471 | CI33: 2013 | CJ33: 164.7634348 | CK33: 2.000174571 | CL33: 166.7636094 | CM33: 0.01213967512 | CO33: 2013 | CP33: 69.72091879 | CQ33: 1.073924933 | CR33: 70.79484373 | CS33: 0.01540319537 | CU33: 2013 | CV33: 152.3436265 | CW33: 3.461155671 | CX33: 155.8047822 | CY33: 0.02271939923 | DA33: 2013 | DB33: 221.025213 | DC33: 1.373298831 | DD33: 222.3985119 | DE33: 0.006213313007 | DG33: 2013 | DH33: 432.7008668 | DI33: 0.7510279711 | DJ33: 433.4518948 | DK33: 0.001735674755
C34: 2014 | D34: 3075.096831 | E34: 42.87296029 | F34: 3117.969792 | G34: 0.01394198708 | I34: 2014 | J34: 282.7572318 | K34: 3.972026955 | L34: 286.7292588 | M34: 0.0140474814 | O34: 2014 | P34: 127.39372 | Q34: 1.789560911 | R34: 129.1832809 | S34: 0.0140474814 | U34: 2014 | V34: 149.4800862 | W34: 2.09981873 | X34: 151.5799049 | Y34: 0.0140474814 | AA34: 2014 | AB34: 131.0062769 | AC34: 1.599137322 | AD34: 132.6054143 | AE34: 0.01220657025 | AG34: 2014 | AH34: 241.9664098 | AI34: 2.953579978 | AJ34: 244.9199898 | AK34: 0.01220657025 | AM34: 2014 | AN34: 60.49160245 | AO34: 0.7383949946 | AP34: 61.22999744 | AQ34: 0.01220657025 | AS34: 2014 | AT34: 116.7922095 | AU34: 1.425632309 | AV34: 118.2178418 | AW34: 0.01220657025 | AY34: 2014 | AZ34: 259.3662333 | BA34: 3.402885409 | BB34: 262.7691187 | BC34: 0.01312000165 | BE34: 2014 | BF34: 129.3593753 | BG34: 1.780358013 | BH34: 131.1397333 | BI34: 0.01376288351 | BK34: 2014 | BL34: 401.4734177 | BM34: 12.00142377 | BN34: 413.4748415 | BO34: 0.02989344558 | BQ34: 2014 | BR34: 53.22860364 | BS34: 0.2317448064 | BT34: 53.46034845 | BU34: 0.004353764527 | BW34: 2014 | BX34: 22.47958412 | BY34: 0.3222767147 | BZ34: 22.80186083 | CA34: 0.01433641802 | CC34: 2014 | CD34: 50.08843861 | CE34: 0.7713077621 | CF34: 50.85974638 | CG34: 0.01539891806 | CI34: 2014 | CJ34: 166.7636094 | CK34: 1.373304077 | CL34: 168.1369134 | CM34: 0.008235034501 | CO34: 2014 | CP34: 70.79484373 | CQ34: 0.9748514699 | CR34: 71.7696952 | CS34: 0.01377009142 | CU34: 2014 | CV34: 155.8047822 | CW34: 3.325143637 | CX34: 159.1299258 | CY34: 0.02134173028 | DA34: 2014 | DB34: 222.3985119 | DC34: 2.505145804 | DD34: 224.9036577 | DE34: 0.01126422017 | DG34: 2014 | DH34: 433.4518948 | DI34: 1.606367627 | DJ34: 435.0582624 | DK34: 0.003705988245
C35: 2015 | D35: 3117.969792 | E35: 42.27557992 | F35: 3160.245372 | G35: 0.0135586881 | I35: 2015 | J35: 286.7292588 | K35: 3.913664683 | L35: 290.6429235 | M35: 0.0136493384 | O35: 2015 | P35: 129.1832809 | Q35: 1.763266317 | R35: 130.9465472 | S35: 0.0136493384 | U35: 2015 | V35: 151.5799049 | W35: 2.068965417 | X35: 153.6488704 | Y35: 0.0136493384 | AA35: 2015 | AB35: 132.6054143 | AC35: 1.162163314 | AD35: 133.7675776 | AE35: 0.008764071362 | AG35: 2015 | AH35: 244.9199898 | AI35: 2.146496268 | AJ35: 247.066486 | AK35: 0.008764071362 | AM35: 2015 | AN35: 61.22999744 | AO35: 0.5366240671 | AP35: 61.76662151 | AQ35: 0.008764071362 | AS35: 2015 | AT35: 118.2178418 | AU35: 1.036069602 | AV35: 119.2539114 | AW35: 0.008764071362 | AY35: 2015 | AZ35: 262.7691187 | BA35: 3.326276836 | BB35: 266.0953956 | BC35: 0.01265855307 | BE35: 2015 | BF35: 131.1397333 | BG35: 1.713259513 | BH35: 132.8529928 | BI35: 0.01306438155 | BK35: 2015 | BL35: 413.4748415 | BM35: 12.561971 | BN35: 426.0368125 | BO35: 0.03038146398 | BQ35: 2015 | BR35: 53.46034845 | BS35: 0.2453228086 | BT35: 53.70567126 | BU35: 0.004588874104 | BW35: 2015 | BX35: 22.80186083 | BY35: 0.2222173016 | BZ35: 23.02407813 | CA35: 0.009745577487 | CC35: 2015 | CD35: 50.85974638 | CE35: 0.6453180537 | CF35: 51.50506443 | CG35: 0.01268818859 | CI35: 2015 | CJ35: 168.1369134 | CK35: 0.7564964711 | CL35: 168.8934099 | CM35: 0.004499288441 | CO35: 2015 | CP35: 71.7696952 | CQ35: 1.063732785 | CR35: 72.83342798 | CS35: 0.01482147559 | CU35: 2015 | CV35: 159.1299258 | CW35: 3.470682737 | CX35: 162.6006086 | CY35: 0.02181037111 | DA35: 2015 | DB35: 224.9036577 | DC35: 3.261576733 | DD35: 228.1652344 | DE35: 0.01450210622 | DG35: 2015 | DH35: 435.0582624 | DI35: 2.381476007 | DJ35: 437.4397385 | DK35: 0.005473924329
C36: 2016 | D36: 3160.245372 | E36: 38.50119286 | F36: 3198.746564 | G36: 0.01218297579 | I36: 2016 | J36: 290.6429235 | K36: 3.632069508 | L36: 294.274993 | M36: 0.01249667277 | O36: 2016 | P36: 130.9465472 | Q36: 1.636396151 | R36: 132.5829433 | S36: 0.01249667277 | U36: 2016 | V36: 153.6488704 | W36: 1.920099655 | X36: 155.56897 | Y36: 0.01249667277 | AA36: 2016 | AB36: 133.7675776 | AC36: 0.8211988494 | AD36: 134.5887764 | AE36: 0.006138997688 | AG36: 2016 | AH36: 247.066486 | AI36: 1.516740586 | AJ36: 248.5832266 | AK36: 0.006138997688 | AM36: 2016 | AN36: 61.76662151 | AO36: 0.3791851466 | AP36: 62.14580666 | AQ36: 0.006138997688 | AS36: 2016 | AT36: 119.2539114 | AU36: 0.7320994861 | AV36: 119.9860109 | AW36: 0.006138997688 | AY36: 2016 | AZ36: 266.0953956 | BA36: 3.003495607 | BB36: 269.0988912 | BC36: 0.01128728891 | BE36: 2016 | BF36: 132.8529928 | BG36: 1.593316766 | BH36: 134.4463096 | BI36: 0.01199308147 | BK36: 2016 | BL36: 426.0368125 | BM36: 12.44595497 | BN36: 438.4827675 | BO36: 0.0292133323 | BQ36: 2016 | BR36: 53.70567126 | BS36: 0.2451718821 | BT36: 53.95084314 | BU36: 0.004565102276 | BW36: 2016 | BX36: 23.02407813 | BY36: 0.1373527524 | BZ36: 23.16143089 | CA36: 0.005965613548 | CC36: 2016 | CD36: 51.50506443 | CE36: 0.5549149146 | CF36: 52.05997934 | CG36: 0.01077398739 | CI36: 2016 | CJ36: 168.8934099 | CK36: 0.7297006879 | CL36: 169.6231106 | CM36: 0.004320480523 | CO36: 2016 | CP36: 72.83342798 | CQ36: 0.9052761405 | CR36: 73.73870412 | CS36: 0.01242940454 | CU36: 2016 | CV36: 162.6006086 | CW36: 3.146154202 | CX36: 165.7467628 | CY36: 0.01934896941 | DA36: 2016 | DB36: 228.1652344 | DC36: 2.806342825 | DD36: 230.9715772 | DE36: 0.01229960748 | DG36: 2016 | DH36: 437.4397385 | DI36: 2.295722726 | DJ36: 439.7354612 | DK36: 0.005248089105
C37: 2017 | D37: 3198.746564 | E37: 38.41885644 | F37: 3237.165421 | G37: 0.01201059717 | I37: 2017 | J37: 294.274993 | K37: 3.623825384 | L37: 297.8988184 | M37: 0.01231441838 | O37: 2017 | P37: 132.5829433 | Q37: 1.632681835 | R37: 134.2156252 | S37: 0.01231441838 | U37: 2017 | V37: 155.56897 | W37: 1.915741384 | X37: 157.4847114 | Y37: 0.01231441838 | AA37: 2017 | AB37: 134.5887764 | AC37: 0.7427986532 | AD37: 135.3315751 | AE37: 0.005519023747 | AG37: 2017 | AH37: 248.5832266 | AI37: 1.371936731 | AJ37: 249.9551634 | AK37: 0.005519023747 | AM37: 2017 | AN37: 62.14580666 | AO37: 0.3429841827 | AP37: 62.48879084 | AQ37: 0.005519023747 | AS37: 2017 | AT37: 119.9860109 | AU37: 0.6622056432 | AV37: 120.6482165 | AW37: 0.005519023747 | AY37: 2017 | AZ37: 269.0988912 | BA37: 3.02183838 | BB37: 272.1207296 | BC37: 0.01122947169 | BE37: 2017 | BF37: 134.4463096 | BG37: 1.677285184 | BH37: 136.1235948 | BI37: 0.01247550185 | BK37: 2017 | BL37: 438.4827675 | BM37: 12.25259424 | BN37: 450.7353617 | BO37: 0.02794316026 | BQ37: 2017 | BR37: 53.95084314 | BS37: 0.2296784641 | BT37: 54.1805216 | BU37: 0.004257180254 | BW37: 2017 | BX37: 23.16143089 | BY37: 0.128739607 | BZ37: 23.29017049 | CA37: 0.005558361554 | CC37: 2017 | CD37: 52.05997934 | CE37: 0.4886049865 | CF37: 52.54858433 | CG37: 0.009385424133 | CI37: 2017 | CJ37: 169.6231106 | CK37: 0.620719929 | CL37: 170.2438305 | CM37: 0.003659406592 | CO37: 2017 | CP37: 73.73870412 | CQ37: 1.003042156 | CR37: 74.74174628 | CS37: 0.01360265504 | CU37: 2017 | CV37: 165.7467628 | CW37: 3.463165793 | CX37: 169.2099286 | CY37: 0.02089431935 | DA37: 2017 | DB37: 230.9715772 | DC37: 2.836478426 | DD37: 233.8080557 | DE37: 0.01228063842 | DG37: 2017 | DH37: 439.7354612 | DI37: 2.404535455 | DJ37: 442.1399966 | DK37: 0.005468140888
C38: 2018 | D38: 3237.165421 | E38: 40.83799083 | F38: 3278.003412 | G38: 0.01261535495 | I38: 2018 | J38: 297.8988184 | K38: 3.910406542 | L38: 301.8092249 | M38: 0.01312662656 | O38: 2018 | P38: 134.2156252 | Q38: 1.761798391 | R38: 135.9774236 | S38: 0.01312662656 | U38: 2018 | V38: 157.4847114 | W38: 2.067242996 | X38: 159.5519544 | Y38: 0.01312662656 | AA38: 2018 | AB38: 135.3315751 | AC38: 0.7345822184 | AD38: 136.0661573 | AE38: 0.005428017947 | AG38: 2018 | AH38: 249.9551634 | AI38: 1.356761113 | AJ38: 251.3119245 | AK38: 0.005428017947 | AM38: 2018 | AN38: 62.48879084 | AO38: 0.3391902782 | AP38: 62.82798112 | AQ38: 0.005428017947 | AS38: 2018 | AT38: 120.6482165 | AU38: 0.6548806844 | AV38: 121.3030972 | AW38: 0.005428017947 | AY38: 2018 | AZ38: 272.1207296 | BA38: 3.158493248 | BB38: 275.2792228 | BC38: 0.01160695568 | BE38: 2018 | BF38: 136.1235948 | BG38: 1.775477769 | BH38: 137.8990725 | BI38: 0.01304313019 | BK38: 2018 | BL38: 450.7353617 | BM38: 13.54349878 | BN38: 464.2788605 | BO38: 0.03004756212 | BQ38: 2018 | BR38: 54.1805216 | BS38: 0.2390573429 | BT38: 54.41957894 | BU38: 0.004412237753 | BW38: 2018 | BX38: 23.29017049 | BY38: 0.101865611 | BZ38: 23.3920361 | CA38: 0.004373759781 | CC38: 2018 | CD38: 52.54858433 | CE38: 0.4651969326 | CF38: 53.01378126 | CG38: 0.008852701525 | CI38: 2018 | CJ38: 170.2438305 | CK38: 0.6349039987 | CL38: 170.8787345 | CM38: 0.003729380364 | CO38: 2018 | CP38: 74.74174628 | CQ38: 1.013621378 | CR38: 75.75536766 | CS38: 0.01356164966 | CU38: 2018 | CV38: 169.2099286 | CW38: 3.607158028 | CX38: 172.8170866 | CY38: 0.02131764997 | DA38: 2018 | DB38: 233.8080557 | DC38: 3.020099938 | DD38: 236.8281556 | DE38: 0.01291700549 | DG38: 2018 | DH38: 442.1399966 | DI38: 2.453755583 | DJ38: 444.5937522 | DK38: 0.005549725429
C39: 2019 | D39: 3278.003412 | E39: 42.60713859 | F39: 3320.61055 | G39: 0.0129978933 | I39: 2019 | J39: 301.8092249 | K39: 4.072944598 | L39: 305.8821695 | M39: 0.01349509644 | O39: 2019 | P39: 135.9774236 | Q39: 1.835028445 | R39: 137.812452 | S39: 0.01349509644 | U39: 2019 | V39: 159.5519544 | W39: 2.153169013 | X39: 161.7051234 | Y39: 0.01349509644 | AA39: 2019 | AB39: 136.0661573 | AC39: 0.7774845062 | AD39: 136.8436418 | AE39: 0.005714018252 | AG39: 2019 | AH39: 251.3119245 | AI39: 1.436000923 | AJ39: 252.7479254 | AK39: 0.005714018252 | AM39: 2019 | AN39: 62.82798112 | AO39: 0.3590002308 | AP39: 63.18698135 | AQ39: 0.005714018252 | AS39: 2019 | AT39: 121.3030972 | AU39: 0.6931281113 | AV39: 121.9962253 | AW39: 0.005714018252 | AY39: 2019 | AZ39: 275.2792228 | BA39: 3.080879661 | BB39: 278.3601025 | BC39: 0.01119183507 | BE39: 2019 | BF39: 137.8990725 | BG39: 1.766096903 | BH39: 139.6651694 | BI39: 0.01280717027 | BK39: 2019 | BL39: 464.2788605 | BM39: 13.28365269 | BN39: 477.5625132 | BO39: 0.02861136662 | BQ39: 2019 | BR39: 54.41957894 | BS39: 0.2282506205 | BT39: 54.64782956 | BU39: 0.004194273917 | BW39: 2019 | BX39: 23.3920361 | BY39: 0.1755140715 | BZ39: 23.56755018 | CA39: 0.00750315495 | CC39: 2019 | CD39: 53.01378126 | CE39: 0.5221960759 | CF39: 53.53597734 | CG39: 0.009850194864 | CI39: 2019 | CJ39: 170.8787345 | CK39: 0.6507703361 | CL39: 171.5295049 | CM39: 0.003808375208 | CO39: 2019 | CP39: 75.75536766 | CQ39: 0.903228719 | CR39: 76.65859638 | CS39: 0.01192296661 | CU39: 2019 | CV39: 172.8170866 | CW39: 3.25544946 | CX39: 176.0725361 | CY39: 0.01883754392 | DA39: 2019 | DB39: 236.8281556 | DC39: 5.093496345 | DD39: 241.9216519 | DE39: 0.0215071402 | DG39: 2019 | DH39: 444.5937522 | DI39: 2.320847878 | DJ39: 446.9146001 | DK39: 0.005220154054
C40: 2020 | D40: 3320.61055 | E40: 44.73403121 | F40: 3365.344582 | G40: 0.01347162834 | I40: 2020 | J40: 305.8821695 | K40: 4.88915569 | L40: 310.7713252 | M40: 0.0159837878 | O40: 2020 | P40: 137.812452 | Q40: 2.202764989 | R40: 140.015217 | S40: 0.0159837878 | U40: 2020 | V40: 161.7051234 | W40: 2.584660379 | X40: 164.2897838 | Y40: 0.0159837878 | AA40: 2020 | AB40: 136.8436418 | AC40: 1.151816626 | AD40: 137.9954584 | AE40: 0.008417026988 | AG40: 2020 | AH40: 252.7479254 | AI40: 2.127386109 | AJ40: 254.8753115 | AK40: 0.008417026988 | AM40: 2020 | AN40: 63.18698135 | AO40: 0.5318465273 | AP40: 63.71882788 | AQ40: 0.008417026988 | AS40: 2020 | AT40: 121.9962253 | AU40: 1.026845521 | AV40: 123.0230708 | AW40: 0.008417026988 | AY40: 2020 | AZ40: 278.3601025 | BA40: 2.848222563 | BB40: 281.208325 | BC40: 0.01023215086 | BE40: 2020 | BF40: 139.6651694 | BG40: 1.6979433 | BH40: 141.3631127 | BI40: 0.01215724226 | BK40: 2020 | BL40: 477.5625132 | BM40: 12.50620074 | BN40: 490.0687139 | BO40: 0.02618756789 | BQ40: 2020 | BR40: 54.64782956 | BS40: 0.2159813587 | BT40: 54.86381092 | BU40: 0.00395224038 | BW40: 2020 | BX40: 23.56755018 | BY40: 0.2868791895 | BZ40: 23.85442936 | CA40: 0.01217263514 | CC40: 2020 | CD40: 53.53597734 | CE40: 0.6343909494 | CF40: 54.17036829 | CG40: 0.01184980607 | CI40: 2020 | CJ40: 171.5295049 | CK40: 0.9967065812 | CL40: 172.5262114 | CM40: 0.005810700509 | CO40: 2020 | CP40: 76.65859638 | CQ40: 0.9743705987 | CR40: 77.63296697 | CS40: 0.01271051969 | CU40: 2020 | CV40: 176.0725361 | CW40: 3.246998913 | CX40: 179.319535 | CY40: 0.01844125714 | DA40: 2020 | DB40: 241.9216519 | DC40: 4.577146923 | DD40: 246.4987989 | DE40: 0.01891995564 | DG40: 2020 | DH40: 446.9146001 | DI40: 2.234714252 | DJ40: 449.1493143 | DK40: 0.005000316059
C41: 2021 | D41: 3365.344582 | E41: 42.9819102 | F41: 3408.326492 | G41: 0.01277191953 | I41: 2021 | J41: 310.7713252 | K41: 4.094118966 | L41: 314.8654442 | M41: 0.0131740564 | O41: 2021 | P41: 140.015217 | Q41: 1.844568366 | R41: 141.8597854 | S41: 0.0131740564 | U41: 2021 | V41: 164.2897838 | W41: 2.164362878 | X41: 166.4541467 | Y41: 0.0131740564 | AA41: 2021 | AB41: 137.9954584 | AC41: 1.264063177 | AD41: 139.2595216 | AE41: 0.009160179557 | AG41: 2021 | AH41: 254.8753115 | AI41: 2.334703618 | AJ41: 257.2100151 | AK41: 0.009160179557 | AM41: 2021 | AN41: 63.71882788 | AO41: 0.5836759045 | AP41: 64.30250378 | AQ41: 0.009160179557 | AS41: 2021 | AT41: 123.0230708 | AU41: 1.126913418 | AV41: 124.1499842 | AW41: 0.009160179557 | AY41: 2021 | AZ41: 281.208325 | BA41: 2.040770911 | BB41: 283.2490959 | BC41: 0.007257149697 | BE41: 2021 | BF41: 141.3631127 | BG41: 1.364029556 | BH41: 142.7271423 | BI41: 0.009649119419 | BK41: 2021 | BL41: 490.0687139 | BM41: 12.889938 | BN41: 502.9586519 | BO41: 0.02630230749 | BQ41: 2021 | BR41: 54.86381092 | BS41: 0.2254737883 | BT41: 55.08928471 | BU41: 0.004109699717 | BW41: 2021 | BX41: 23.85442936 | BY41: 0.2394453938 | BZ41: 24.09387476 | CA41: 0.01003777496 | CC41: 2021 | CD41: 54.17036829 | CE41: 0.5883698613 | CF41: 54.75873815 | CG41: 0.01086147058 | CI41: 2021 | CJ41: 172.5262114 | CK41: 0.7214984372 | CL41: 173.2477099 | CM41: 0.004181964185 | CO41: 2021 | CP41: 77.63296697 | CQ41: 0.6969264598 | CR41: 78.32989343 | CS41: 0.008977197278 | CU41: 2021 | CV41: 179.319535 | CW41: 3.215609298 | CX41: 182.5351443 | CY41: 0.01793228662 | DA41: 2021 | DB41: 246.4987989 | DC41: 5.11953458 | DD41: 251.6183334 | DE41: 0.02076900416 | DG41: 2021 | DH41: 449.1493143 | DI41: 2.467907581 | DJ41: 451.6172219 | DK41: 0.005494626179
C42: 2022 | D42: 3408.326492 | E42: 42.23437614 | F42: 3450.560868 | G42: 0.01239152888 | I42: 2022 | J42: 314.8654442 | K42: 4.39061146 | L42: 319.2560556 | M42: 0.01394440559 | O42: 2022 | P42: 141.8597854 | Q42: 1.978150384 | R42: 143.8379358 | S42: 0.01394440559 | U42: 2022 | V42: 166.4541467 | W42: 2.321104133 | X42: 168.7752508 | Y42: 0.01394440559 | AA42: 2022 | AB42: 139.2595216 | AC42: 1.07410521 | AD42: 140.3336268 | AE42: 0.007712975012 | AG42: 2022 | AH42: 257.2100151 | AI42: 1.98385442 | AJ42: 259.1938695 | AK42: 0.007712975012 | AM42: 2022 | AN42: 64.30250378 | AO42: 0.4959636049 | AP42: 64.79846739 | AQ42: 0.007712975012 | AS42: 2022 | AT42: 124.1499842 | AU42: 0.9575657261 | AV42: 125.10755 | AW42: 0.007712975012 | AY42: 2022 | AZ42: 283.2490959 | BA42: 1.820453667 | BB42: 285.0695496 | BC42: 0.006427041403 | BE42: 2022 | BF42: 142.7271423 | BG42: 1.226625273 | BH42: 143.9537676 | BI42: 0.008594197663 | BK42: 2022 | BL42: 502.9586519 | BM42: 13.70878122 | BN42: 516.6674332 | BO42: 0.02725627875 | BQ42: 2022 | BR42: 55.08928471 | BS42: 0.2242554362 | BT42: 55.31354015 | BU42: 0.004070763259 | BW42: 2022 | BX42: 24.09387476 | BY42: 0.2259398485 | BZ42: 24.31981461 | CA42: 0.009377480824 | CC42: 2022 | CD42: 54.75873815 | CE42: 0.5226920769 | CF42: 55.28143023 | CG42: 0.0095453638 | CI42: 2022 | CJ42: 173.2477099 | CK42: 0.6722814572 | CL42: 173.9199913 | CM42: 0.003880463746 | CO42: 2022 | CP42: 78.32989343 | CQ42: 0.6504961383 | CR42: 78.98038957 | CS42: 0.008304570705 | CU42: 2022 | CV42: 182.5351443 | CW42: 2.842405968 | CX42: 185.3775502 | CY42: 0.01557182853 | DA42: 2022 | DB42: 251.6183334 | DC42: 4.719862177 | DD42: 256.3381956 | DE42: 0.01875802177 | DG42: 2022 | DH42: 451.6172219 | DI42: 2.41922794 | DJ42: 454.0364499 | DK42: 0.005356810641
C43: 2023 | D43: 3450.560868 | E43: 41.67010117 | F43: 3492.230969 | G43: 0.01207632694 | I43: 2023 | J43: 319.2560556 | K43: 4.579630479 | L43: 323.8356861 | M43: 0.01434469417 | O43: 2023 | P43: 143.8379358 | Q43: 2.063311198 | R43: 145.901247 | S43: 0.01434469417 | U43: 2023 | V43: 168.7752508 | W43: 2.421029355 | X43: 171.1962802 | Y43: 0.01434469417 | AA43: 2023 | AB43: 140.3336268 | AC43: 1.027048135 | AD43: 141.360675 | AE43: 0.007318617482 | AG43: 2023 | AH43: 259.1938695 | AI43: 1.896940785 | AJ43: 261.0908103 | AK43: 0.007318617482 | AM43: 2023 | AN43: 64.79846739 | AO43: 0.4742351962 | AP43: 65.27270258 | AQ43: 0.007318617482 | AS43: 2023 | AT43: 125.10755 | AU43: 0.9156143022 | AV43: 126.0231643 | AW43: 0.007318617482 | AY43: 2023 | AZ43: 285.0695496 | BA43: 1.84289143 | BB43: 286.912441 | BC43: 0.006464708112 | BE43: 2023 | BF43: 143.9537676 | BG43: 1.203199821 | BH43: 145.1569674 | BI43: 0.008358237797 | BK43: 2023 | BL43: 516.6674332 | BM43: 13.2319218 | BN43: 529.899355 | BO43: 0.02561013324 | BQ43: 2023 | BR43: 55.31354015 | BS43: 0.2227663064 | BT43: 55.53630645 | BU43: 0.004027337714 | BW43: 2023 | BX43: 24.31981461 | BY43: 0.2229978871 | BZ43: 24.54281249 | CA43: 0.009169390915 | CC43: 2023 | CD43: 55.28143023 | CE43: 0.5238461875 | CF43: 55.80527641 | CG43: 0.009475988327 | CI43: 2023 | CJ43: 173.9199913 | CK43: 0.6768799851 | CL43: 174.5968713 | CM43: 0.003891904432 | CO43: 2023 | CP43: 78.98038957 | CQ43: 0.6512352733 | CR43: 79.63162485 | CS43: 0.008245531287 | CU43: 2023 | CV43: 185.3775502 | CW43: 2.772321103 | CX43: 188.1498713 | CY43: 0.01495499914 | DA43: 2023 | DB43: 256.3381956 | DC43: 4.528250312 | DD43: 260.8664459 | DE43: 0.01766514078 | DG43: 2023 | DH43: 454.0364499 | DI43: 2.415981612 | DJ43: 456.4524315 | DK43: 0.00532111819
C44: 2024 | D44: 3492.230969 | E44: 41.52625091 | F44: 3533.75722 | G44: 0.01189103793 | I44: 2024 | J44: 323.8356861 | K44: 4.8884845 | L44: 328.7241706 | M44: 0.01509557071 | O44: 2024 | P44: 145.901247 | Q44: 2.202462591 | R44: 148.1037095 | S44: 0.01509557071 | U44: 2024 | V44: 171.1962802 | W44: 2.584305553 | X44: 173.7805857 | Y44: 0.01509557071 | AA44: 2024 | AB44: 141.360675 | AC44: 0.9684494461 | AD44: 142.3291244 | AE44: 0.006850911305 | AG44: 2024 | AH44: 261.0908103 | AI44: 1.788709984 | AJ44: 262.8795203 | AK44: 0.006850911305 | AM44: 2024 | AN44: 65.27270258 | AO44: 0.447177496 | AP44: 65.71988008 | AQ44: 0.006850911305 | AS44: 2024 | AT44: 126.0231643 | AU44: 0.8633735207 | AV44: 126.8865378 | AW44: 0.006850911305 | AY44: 2024 | AZ44: 286.912441 | BA44: 1.847720498 | BB44: 288.7601615 | BC44: 0.006440015256 | BE44: 2024 | BF44: 145.1569674 | BG44: 1.22437711 | BH44: 146.3813445 | BI44: 0.008434849062 | BK44: 2024 | BL44: 529.899355 | BM44: 12.91264254 | BN44: 542.8119975 | BO44: 0.02436810391 | BQ44: 2024 | BR44: 55.53630645 | BS44: 0.2221194228 | BT44: 55.75842588 | BU44: 0.003999535384 | BW44: 2024 | BX44: 24.54281249 | BY44: 0.224472581 | BZ44: 24.76728508 | CA44: 0.009146163709 | CC44: 2024 | CD44: 55.80527641 | CE44: 0.5049417827 | CF44: 56.3102182 | CG44: 0.00904828029 | CI44: 2024 | CJ44: 174.5968713 | CK44: 0.6635666742 | CL44: 175.260438 | CM44: 0.003800564519 | CO44: 2024 | CP44: 79.63162485 | CQ44: 0.6399387858 | CR44: 80.27156363 | CS44: 0.008036239209 | CU44: 2024 | CV44: 188.1498713 | CW44: 2.735703247 | CX44: 190.8855746 | CY44: 0.01454002189 | DA44: 2024 | DB44: 260.8664459 | DC44: 4.362493334 | DD44: 265.2289393 | DE44: 0.01672309108 | DG44: 2024 | DH44: 456.4524315 | DI44: 2.445311843 | DJ44: 458.8977433 | DK44: 0.005357210685
C45: 2025 | D45: 3533.75722 | E45: 41.2886812 | F45: 3575.045901 | G45: 0.0116840741 | I45: 2025 | J45: 328.7241706 | K45: 5.155150691 | L45: 333.8793213 | M45: 0.01568229888 | O45: 2025 | P45: 148.1037095 | Q45: 2.322606638 | R45: 150.4263162 | S45: 0.01568229888 | U45: 2025 | V45: 173.7805857 | W45: 2.725279084 | X45: 176.5058648 | Y45: 0.01568229888 | AA45: 2025 | AB45: 142.3291244 | AC45: 0.8806848558 | AD45: 143.2098093 | AE45: 0.006187664397 | AG45: 2025 | AH45: 262.8795203 | AI45: 1.626610249 | AJ45: 264.5061306 | AK45: 0.006187664397 | AM45: 2025 | AN45: 65.71988008 | AO45: 0.4066525621 | AP45: 66.12653264 | AQ45: 0.006187664397 | AS45: 2025 | AT45: 126.8865378 | AU45: 0.7851313123 | AV45: 127.6716691 | AW45: 0.006187664397 | AY45: 2025 | AZ45: 288.7601615 | BA45: 1.991248347 | BB45: 290.7514099 | BC45: 0.006895855495 | BE45: 2025 | BF45: 146.3813445 | BG45: 1.23937929 | BH45: 147.6207238 | BI45: 0.008466784441 | BK45: 2025 | BL45: 542.8119975 | BM45: 13.2327469 | BN45: 556.0447444 | BO45: 0.02437814006 | BQ45: 2025 | BR45: 55.75842588 | BS45: 0.2245776296 | BT45: 55.98300351 | BU45: 0.004027689557 | BW45: 2025 | BX45: 24.76728508 | BY45: 0.2026659833 | BZ45: 24.96995106 | CA45: 0.008182809811 | CC45: 2025 | CD45: 56.3102182 | CE45: 0.5084790334 | CF45: 56.81869723 | CG45: 0.009029960275 | CI45: 2025 | CJ45: 175.260438 | CK45: 0.6537239461 | CL45: 175.9141619 | CM45: 0.003730014335 | CO45: 2025 | CP45: 80.27156363 | CQ45: 0.5805046627 | CR45: 80.85206829 | CS45: 0.007231759746 | CU45: 2025 | CV45: 190.8855746 | CW45: 2.626593136 | CX45: 193.5121677 | CY45: 0.01376003997 | DA45: 2025 | DB45: 265.2289393 | DC45: 3.70446183 | DD45: 268.9334011 | DE45: 0.01396703482 | DG45: 2025 | DH45: 458.8977433 | DI45: 2.422185047 | DJ45: 461.3199284 | DK45: 0.005278267506
C46: 2026 | D46: 3575.045901 | E46: 39.53658596 | F46: 3614.582487 | G46: 0.01105904289 | I46: 2026 | J46: 333.8793213 | K46: 5.237613606 | L46: 339.1169349 | M46: 0.01568714584 | O46: 2026 | P46: 150.4263162 | Q46: 2.35975956 | R46: 152.7860757 | S46: 0.01568714584 | U46: 2026 | V46: 176.5058648 | W46: 2.768873242 | X46: 179.274738 | Y46: 0.01568714584 | AA46: 2026 | AB46: 143.2098093 | AC46: 0.8001332387 | AD46: 144.0099425 | AE46: 0.005587139895 | AG46: 2026 | AH46: 264.5061306 | AI46: 1.477832755 | AJ46: 265.9839633 | AK46: 0.005587139895 | AM46: 2026 | AN46: 66.12653264 | AO46: 0.3694581886 | AP46: 66.49599083 | AQ46: 0.005587139895 | AS46: 2026 | AT46: 127.6716691 | AU46: 0.7133194758 | AV46: 128.3849886 | AW46: 0.005587139895 | AY46: 2026 | AZ46: 290.7514099 | BA46: 1.940109897 | BB46: 292.6915198 | BC46: 0.006672744587 | BE46: 2026 | BF46: 147.6207238 | BG46: 1.206496814 | BH46: 148.8272206 | BI46: 0.008172950133 | BK46: 2026 | BL46: 556.0447444 | BM46: 12.26075508 | BN46: 568.3054995 | BO46: 0.0220499433 | BQ46: 2026 | BR46: 55.98300351 | BS46: 0.2179477716 | BT46: 56.20095128 | BU46: 0.003893106085 | BW46: 2026 | BX46: 24.96995106 | BY46: 0.2312285624 | BZ46: 25.20117962 | CA46: 0.009260272953 | CC46: 2026 | CD46: 56.81869723 | CE46: 0.5543731114 | CF46: 57.37307034 | CG46: 0.009756878253 | CI46: 2026 | CJ46: 175.9141619 | CK46: 0.6678290441 | CL46: 176.581991 | CM46: 0.003796334739 | CO46: 2026 | CP46: 80.85206829 | CQ46: 0.4615319925 | CR46: 81.31360029 | CS46: 0.005708351094 | CU46: 2026 | CV46: 193.5121677 | CW46: 2.253964302 | CX46: 195.766132 | CY46: 0.0116476619 | DA46: 2026 | DB46: 268.9334011 | DC46: 3.749488442 | DD46: 272.6828895 | DE46: 0.01394207051 | DG46: 2026 | DH46: 461.3199284 | DI46: 2.265870869 | DJ46: 463.5857992 | DK46: 0.004911712522
C47: 2027 | D47: 3614.582487 | E47: 40.91819172 | F47: 3655.500679 | G47: 0.01132030929 | I47: 2027 | J47: 339.1169349 | K47: 5.180051467 | L47: 344.2969864 | M47: 0.0152751188 | O47: 2027 | P47: 152.7860757 | Q47: 2.333825458 | R47: 155.1199012 | S47: 0.0152751188 | U47: 2027 | V47: 179.274738 | W47: 2.738442921 | X47: 182.013181 | Y47: 0.0152751188 | AA47: 2027 | AB47: 144.0099425 | AC47: 0.9252726605 | AD47: 144.9352152 | AE47: 0.006425060968 | AG47: 2027 | AH47: 265.9839633 | AI47: 1.708963181 | AJ47: 267.6929265 | AK47: 0.006425060968 | AM47: 2027 | AN47: 66.49599083 | AO47: 0.4272407952 | AP47: 66.92323162 | AQ47: 0.006425060968 | AS47: 2027 | AT47: 128.3849886 | AU47: 0.8248813789 | AV47: 129.2098699 | AW47: 0.006425060968 | AY47: 2027 | AZ47: 292.6915198 | BA47: 1.957918897 | BB47: 294.6494387 | BC47: 0.006689359837 | BE47: 2027 | BF47: 148.8272206 | BG47: 1.254188418 | BH47: 150.081409 | BI47: 0.00842714399 | BK47: 2027 | BL47: 568.3054995 | BM47: 12.50161842 | BN47: 580.8071179 | BO47: 0.0219980599 | BQ47: 2027 | BR47: 56.20095128 | BS47: 0.2254732461 | BT47: 56.42642452 | BU47: 0.004011911559 | BW47: 2027 | BX47: 25.20117962 | BY47: 0.2044716042 | BZ47: 25.40565122 | CA47: 0.008113572748 | CC47: 2027 | CD47: 57.37307034 | CE47: 0.6157323429 | CF47: 57.98880268 | CG47: 0.01073207934 | CI47: 2027 | CJ47: 176.581991 | CK47: 0.8240133831 | CL47: 177.4060044 | CM47: 0.004666463316 | CO47: 2027 | CP47: 81.31360029 | CQ47: 0.5581080461 | CR47: 81.87170833 | CS47: 0.006863649428 | CU47: 2027 | CV47: 195.766132 | CW47: 2.490676889 | CX47: 198.2568089 | CY47: 0.01272271595 | DA47: 2027 | DB47: 272.6828895 | DC47: 3.815971428 | DD47: 276.498861 | DE47: 0.01399417263 | DG47: 2027 | DH47: 463.5857992 | DI47: 2.331341186 | DJ47: 465.9171404 | DK47: 0.005028931408
C48: 2028 | D48: 3655.500679 | E48: 42.59068126 | F48: 3698.09136 | G48: 0.01165112115 | I48: 2028 | J48: 344.2969864 | K48: 5.218939928 | L48: 349.5159263 | M48: 0.01515825039 | O48: 2028 | P48: 155.1199012 | Q48: 2.351346303 | R48: 157.4712475 | S48: 0.01515825039 | U48: 2028 | V48: 182.013181 | W48: 2.759001371 | X48: 184.7721823 | Y48: 0.01515825039 | AA48: 2028 | AB48: 144.9352152 | AC48: 1.113401862 | AD48: 146.048617 | AE48: 0.007682065817 | AG48: 2028 | AH48: 267.6929265 | AI48: 2.05643468 | AJ48: 269.7493612 | AK48: 0.007682065817 | AM48: 2028 | AN48: 66.92323162 | AO48: 0.51410867 | AP48: 67.43734029 | AQ48: 0.007682065817 | AS48: 2028 | AT48: 129.2098699 | AU48: 0.9925987251 | AV48: 130.2024687 | AW48: 0.007682065817 | AY48: 2028 | AZ48: 294.6494387 | BA48: 1.972136794 | BB48: 296.6215755 | BC48: 0.006693163249 | BE48: 2028 | BF48: 150.081409 | BG48: 1.283359596 | BH48: 151.3647686 | BI48: 0.008551089735 | BK48: 2028 | BL48: 580.8071179 | BM48: 12.57826928 | BN48: 593.3853872 | BO48: 0.02165653431 | BQ48: 2028 | BR48: 56.42642452 | BS48: 0.2263866059 | BT48: 56.65281113 | BU48: 0.004012067179 | BW48: 2028 | BX48: 25.40565122 | BY48: 0.2606604407 | BZ48: 25.66631167 | CA48: 0.01025993935 | CC48: 2028 | CD48: 57.98880268 | CE48: 0.6494352944 | CF48: 58.63823798 | CG48: 0.01119932236 | CI48: 2028 | CJ48: 177.4060044 | CK48: 0.920278478 | CL48: 178.3262828 | CM48: 0.005187414492 | CO48: 2028 | CP48: 81.87170833 | CQ48: 0.6395665355 | CR48: 82.51127487 | CS48: 0.007811813733 | CU48: 2028 | CV48: 198.2568089 | CW48: 2.678943368 | CX48: 200.9357523 | CY48: 0.01351249111 | DA48: 2028 | DB48: 276.498861 | DC48: 3.969776814 | DD48: 280.4686378 | DE48: 0.01435729898 | DG48: 2028 | DH48: 465.9171404 | DI48: 2.406036512 | DJ48: 468.3231769 | DK48: 0.005164086708
C49: 2029 | D49: 3698.09136 | E49: 42.83577617 | F49: 3740.927136 | G49: 0.01158321199 | I49: 2029 | J49: 349.5159263 | K49: 5.461959553 | L49: 354.9778859 | M49: 0.01562721222 | O49: 2029 | P49: 157.4712475 | Q49: 2.460836603 | R49: 159.9320841 | S49: 0.01562721222 | U49: 2029 | V49: 184.7721823 | W49: 2.887474105 | X49: 187.6596564 | Y49: 0.01562721222 | AA49: 2029 | AB49: 146.048617 | AC49: 1.181393386 | AD49: 147.2300104 | AE49: 0.008089041924 | AG49: 2029 | AH49: 269.7493612 | AI49: 2.182013892 | AJ49: 271.9313751 | AK49: 0.008089041924 | AM49: 2029 | AN49: 67.43734029 | AO49: 0.5455034729 | AP49: 67.98284377 | AQ49: 0.008089041924 | AS49: 2029 | AT49: 130.2024687 | AU49: 1.053213228 | AV49: 131.2556819 | AW49: 0.008089041924 | AY49: 2029 | AZ49: 296.6215755 | BA49: 1.949062555 | BB49: 298.570638 | BC49: 0.006570872506 | BE49: 2029 | BF49: 151.3647686 | BG49: 1.230400757 | BH49: 152.5951694 | BI49: 0.008128712962 | BK49: 2029 | BL49: 593.3853872 | BM49: 12.72897221 | BN49: 606.1143594 | BO49: 0.021451442 | BQ49: 2029 | BR49: 56.65281113 | BS49: 0.2135218355 | BT49: 56.86633297 | BU49: 0.003768953936 | BW49: 2029 | BX49: 25.66631167 | BY49: 0.2607154587 | BZ49: 25.92702712 | CA49: 0.01015788564 | CC49: 2029 | CD49: 58.63823798 | CE49: 0.7220006115 | CF49: 59.36023859 | CG49: 0.01231279514 | CI49: 2029 | CJ49: 178.3262828 | CK49: 1.128649272 | CL49: 179.4549321 | CM49: 0.006329124649 | CO49: 2029 | CP49: 82.51127487 | CQ49: 0.5955885118 | CR49: 83.10686338 | CS49: 0.007218268203 | CU49: 2029 | CV49: 200.9357523 | CW49: 2.641934944 | CX49: 203.5776872 | CY49: 0.01314815763 | DA49: 2029 | DB49: 280.4686378 | DC49: 3.167574031 | DD49: 283.6362118 | DE49: 0.01129386179 | DG49: 2029 | DH49: 468.3231769 | DI49: 2.424961739 | DJ49: 470.7481387 | DK49: 0.005177966538
C50: 2030 | D50: 3740.927136 | E50: 41.86564473 | F50: 3782.792781 | G50: 0.01119124838 | I50: 2030 | J50: 354.9778859 | K50: 5.98791888 | L50: 360.9658047 | M50: 0.01686842792 | O50: 2030 | P50: 159.9320841 | Q50: 2.697802833 | R50: 162.6298869 | S50: 0.01686842792 | U50: 2030 | V50: 187.6596564 | W50: 3.165523388 | X50: 190.8251798 | Y50: 0.01686842792 | AA50: 2030 | AB50: 147.2300104 | AC50: 0.8900051815 | AD50: 148.1200156 | AE50: 0.006044998429 | AG50: 2030 | AH50: 271.9313751 | AI50: 1.643824735 | AJ50: 273.5751998 | AK50: 0.006044998429 | AM50: 2030 | AN50: 67.98284377 | AO50: 0.4109561837 | AP50: 68.39379995 | AQ50: 0.006044998429 | AS50: 2030 | AT50: 131.2556819 | AU50: 0.7934403908 | AV50: 132.0491223 | AW50: 0.006044998429 | AY50: 2030 | AZ50: 298.570638 | BA50: 1.800996705 | BB50: 300.3716347 | BC50: 0.006032062353 | BE50: 2030 | BF50: 152.5951694 | BG50: 1.182326942 | BH50: 153.7774963 | BI50: 0.007748128246 | BK50: 2030 | BL50: 606.1143594 | BM50: 12.57667555 | BN50: 618.691035 | BO50: 0.02074967431 | BQ50: 2030 | BR50: 56.86633297 | BS50: 0.2174683181 | BT50: 57.08380128 | BU50: 0.00382420154 | BW50: 2030 | BX50: 25.92702712 | BY50: 0.1956408703 | BZ50: 26.12266799 | CA50: 0.007545827348 | CC50: 2030 | CD50: 59.36023859 | CE50: 0.5497321975 | CF50: 59.90997079 | CG50: 0.009260949931 | CI50: 2030 | CJ50: 179.4549321 | CK50: 0.6755091782 | CL50: 180.1304413 | CM50: 0.003764227431 | CO50: 2030 | CP50: 83.10686338 | CQ50: 0.6403673487 | CR50: 83.74723073 | CS50: 0.007705348543 | CU50: 2030 | CV50: 203.5776872 | CW50: 2.408782852 | CX50: 205.9864701 | CY50: 0.01183225374 | DA50: 2030 | DB50: 283.6362118 | DC50: 3.64474211 | DD50: 287.2809539 | DE50: 0.01285005919 | DG50: 2030 | DH50: 470.7481387 | DI50: 2.38393107 | DJ50: 473.1320697 | DK50: 0.005064132759
C51: 2031 | D51: =J51+P51+V51+AB51+AH51+AN51+AT51+AZ51+BF51+BL51+BR51+BX51+CD51+CJ51+CP51+CV51+DB51+DH51 -> 3782.792781 | E51: =K51+Q51+W51+AC51+AI51+AO51+AU51+BA51+BG51+BM51+BS51+BY51+CE51+CK51+CQ51+CW51+DC51+DI51 -> 41.86564473 | F51: =L51+R51+X51+AD51+AJ51+AP51+AV51+BB51+BH51+BN51+BT51+BZ51+CF51+CL51+CR51+CX51+DD51+DJ51 -> 3824.658426 | G51: =F51/F50-1 -> 0.01106739046 | I51: 2031 | J51: =L50 -> 360.9658047 | K51: =K50 -> 5.98791888 | L51: =J51+K51 -> 366.9537236 | M51: =L51/L50-1 -> 0.01658860424 | O51: 2031 | P51: 162.6298869 | Q51: =Q50 -> 2.697802833 | R51: 165.3276898 | S51: 0.01658860424 | U51: 2031 | V51: 190.8251798 | W51: =W50 -> 3.165523388 | X51: 193.9907032 | Y51: 0.01658860424 | AA51: 2031 | AB51: 148.1200156 | AC51: =AC50 -> 0.8900051815 | AD51: 149.0100208 | AE51: 0.006008675992 | AG51: 2031 | AH51: 273.5751998 | AI51: =AI50 -> 1.643824735 | AJ51: 275.2190245 | AK51: 0.006008675992 | AM51: 2031 | AN51: 68.39379995 | AO51: =AO50 -> 0.4109561837 | AP51: 68.80475613 | AQ51: 0.006008675992 | AS51: 2031 | AT51: 132.0491223 | AU51: =AU50 -> 0.7934403908 | AV51: 132.8425627 | AW51: 0.006008675992 | AY51: 2031 | AZ51: 300.3716347 | BA51: =BA50 -> 1.800996705 | BB51: 302.1726314 | BC51: 0.005995894742 | BE51: 2031 | BF51: 153.7774963 | BG51: =BG50 -> 1.182326942 | BH51: 154.9598233 | BI51: 0.007688556326 | BK51: 2031 | BL51: 618.691035 | BM51: =BM50 -> 12.57667555 | BN51: 631.2677105 | BO51: 0.02032787747 | BQ51: 2031 | BR51: 57.08380128 | BS51: =BS50 -> 0.2174683181 | BT51: 57.3012696 | BU51: 0.003809632737 | BW51: 2031 | BX51: 26.12266799 | BY51: =BY50 -> 0.1956408703 | BZ51: 26.31830887 | CA51: 0.007489314275 | CC51: 2031 | CD51: 59.90997079 | CE51: =CE50 -> 0.5497321975 | CF51: 60.45970299 | CG51: 0.009175971716 | CI51: 2031 | CJ51: 180.1304413 | CK51: =CK50 -> 0.6755091782 | CL51: 180.8059505 | CM51: 0.00375011116 | CO51: 2031 | CP51: 83.74723073 | CQ51: =CQ50 -> 0.6403673487 | CR51: 84.38759808 | CS51: 0.007646430134 | CU51: 2031 | CV51: 205.9864701 | CW51: =CW50 -> 2.408782852 | CX51: 208.3952529 | CY51: 0.01169388868 | DA51: 2031 | DB51: 287.2809539 | DC51: =DC50 -> 3.64474211 | DD51: 290.925696 | DE51: 0.0126870301 | DG51: 2031 | DH51: 473.1320697 | DI51: =DI50 -> 2.38393107 | DJ51: 475.5160008 | DK51: 0.005038616536
C52: 2032 | D52: 3824.658426 | E52: 41.86564473 | F52: 3866.52407 | G52: 0.0109462441 | I52: 2032 | J52: =L51 -> 366.9537236 | K52: =K51 -> 5.98791888 | L52: =J52+K52 -> 372.9416425 | M52: =L52/L51-1 -> 0.01631791285 | O52: 2032 | P52: 165.3276898 | Q52: =Q51 -> 2.697802833 | R52: 168.0254926 | S52: 0.01631791285 | U52: 2032 | V52: 193.9907032 | W52: =W51 -> 3.165523388 | X52: 197.1562266 | Y52: 0.01631791285 | AA52: 2032 | AB52: 149.0100208 | AC52: =AC51 -> 0.8900051815 | AD52: 149.900026 | AE52: 0.005972787447 | AG52: 2032 | AH52: 275.2190245 | AI52: =AI51 -> 1.643824735 | AJ52: 276.8628493 | AK52: 0.005972787447 | AM52: 2032 | AN52: 68.80475613 | AO52: =AO51 -> 0.4109561837 | AP52: 69.21571232 | AQ52: 0.005972787447 | AS52: 2032 | AT52: 132.8425627 | AU52: =AU51 -> 0.7934403908 | AV52: 133.6360031 | AW52: 0.005972787447 | AY52: 2032 | AZ52: 302.1726314 | BA52: =BA51 -> 1.800996705 | BB52: 303.9736281 | BC52: 0.005960158261 | BE52: 2032 | BF52: 154.9598233 | BG52: =BG51 -> 1.182326942 | BH52: 156.1421502 | BI52: 0.00762989346 | BK52: 2032 | BL52: 631.2677105 | BM52: =BM51 -> 12.57667555 | BN52: 643.8443861 | BO52: 0.01992288746 | BQ52: 2032 | BR52: 57.3012696 | BS52: =BS51 -> 0.2174683181 | BT52: 57.51873792 | BU52: 0.003795174516 | BW52: 2032 | BX52: 26.31830887 | BY52: =BY51 -> 0.1956408703 | BZ52: 26.51394974 | CA52: 0.007433641399 | CC52: 2032 | CD52: 60.45970299 | CE52: =CE51 -> 0.5497321975 | CF52: 61.00943518 | CG52: 0.009092538837 | CI52: 2032 | CJ52: 180.8059505 | CK52: =CK51 -> 0.6755091782 | CL52: 181.4814597 | CM52: 0.003736100368 | CO52: 2032 | CP52: 84.38759808 | CQ52: =CQ51 -> 0.6403673487 | CR52: 85.02796543 | CS52: 0.007588405918 | CU52: 2032 | CV52: 208.3952529 | CW52: =CW51 -> 2.408782852 | CX52: 210.8040358 | CY52: 0.01155872227 | DA52: 2032 | DB52: 290.925696 | DC52: =DC51 -> 3.64474211 | DD52: 294.5704381 | DE52: 0.0125280859 | DG52: 2032 | DH52: 475.5160008 | DI52: =DI51 -> 2.38393107 | DJ52: 477.8999319 | DK52: 0.005013356156
C53: 2033 | D53: 3866.52407 | E53: 41.86564473 | F53: 3908.389715 | G53: 0.01082772122 | I53: 2033 | J53: 372.9416425 | K53: 5.98791888 | L53: 378.9295614 | M53: 0.01605591384 | O53: 2033 | P53: 168.0254926 | Q53: 2.697802833 | R53: 170.7232954 | S53: 0.01605591384 | U53: 2033 | V53: 197.1562266 | W53: 3.165523388 | X53: 200.32175 | Y53: 0.01605591384 | AA53: 2033 | AB53: 149.900026 | AC53: 0.8900051815 | AD53: 150.7900311 | AE53: 0.005937325066 | AG53: 2033 | AH53: 276.8628493 | AI53: 1.643824735 | AJ53: 278.506674 | AK53: 0.005937325066 | AM53: 2033 | AN53: 69.21571232 | AO53: 0.4109561837 | AP53: 69.6266685 | AQ53: 0.005937325066 | AS53: 2033 | AT53: 133.6360031 | AU53: 0.7934403908 | AV53: 134.4294435 | AW53: 0.005937325066 | AY53: 2033 | AZ53: 303.9736281 | BA53: 1.800996705 | BB53: 305.7746249 | BC53: 0.005924845245 | BE53: 2033 | BF53: 156.1421502 | BG53: 1.182326942 | BH53: 157.3244771 | BI53: 0.007572118999 | BK53: 2033 | BL53: 643.8443861 | BM53: 12.57667555 | BN53: 656.4210616 | BO53: 0.01953371936 | BQ53: 2033 | BR53: 57.51873792 | BS53: 0.2174683181 | BT53: 57.73620624 | BU53: 0.003780825623 | BW53: 2033 | BX53: 26.51394974 | BY53: 0.1956408703 | BZ53: 26.70959061 | CA53: 0.007378790119 | CC53: 2033 | CD53: 61.00943518 | CE53: 0.5497321975 | CF53: 61.55916738 | CG53: 0.00901060952 | CI53: 2033 | CJ53: 181.4814597 | CK53: 0.6755091782 | CL53: 182.1569688 | CM53: 0.003722193878 | CO53: 2033 | CP53: 85.02796543 | CQ53: 0.6403673487 | CR53: 85.66833277 | CS53: 0.007531255693 | CU53: 2033 | CV53: 210.8040358 | CW53: 2.408782852 | CX53: 213.2128186 | CY53: 0.01142664486 | DA53: 2033 | DB53: 294.5704381 | DC53: 3.64474211 | DD53: 298.2151803 | DE53: 0.01237307495 | DG53: 2033 | DH53: 477.8999319 | DI53: 2.38393107 | DJ53: 480.283863 | DK53: 0.004988347792
C54: 2034 | D54: 3908.389715 | E54: 41.86564473 | F54: 3950.25536 | G54: 0.01071173751 | I54: 2034 | J54: 378.9295614 | K54: 5.98791888 | L54: 384.9174803 | M54: 0.01580219516 | O54: 2034 | P54: 170.7232954 | Q54: 2.697802833 | R54: 173.4210983 | S54: 0.01580219516 | U54: 2034 | V54: 200.32175 | W54: 3.165523388 | X54: 203.4872734 | Y54: 0.01580219516 | AA54: 2034 | AB54: 150.7900311 | AC54: 0.8900051815 | AD54: 151.6800363 | AE54: 0.005902281304 | AG54: 2034 | AH54: 278.506674 | AI54: 1.643824735 | AJ54: 280.1504987 | AK54: 0.005902281304 | AM54: 2034 | AN54: 69.6266685 | AO54: 0.4109561837 | AP54: 70.03762469 | AQ54: 0.005902281304 | AS54: 2034 | AT54: 134.4294435 | AU54: 0.7934403908 | AV54: 135.2228839 | AW54: 0.005902281304 | AY54: 2034 | AZ54: 305.7746249 | BA54: 1.800996705 | BB54: 307.5756216 | BC54: 0.005889948214 | BE54: 2034 | BF54: 157.3244771 | BG54: 1.182326942 | BH54: 158.5068041 | BI54: 0.007515212913 | BK54: 2034 | BL54: 656.4210616 | BM54: 12.57667555 | BN54: 668.9977372 | BO54: 0.01915946378 | BQ54: 2034 | BR54: 57.73620624 | BS54: 0.2174683181 | BT54: 57.95367456 | BU54: 0.003766584822 | BW54: 2034 | BX54: 26.70959061 | BY54: 0.1956408703 | BZ54: 26.90523148 | CA54: 0.007324742382 | CC54: 2034 | CD54: 61.55916738 | CE54: 0.5497321975 | CF54: 62.10889958 | CG54: 0.008930143484 | CI54: 2034 | CJ54: 182.1569688 | CK54: 0.6755091782 | CL54: 182.832478 | CM54: 0.00370839053 | CO54: 2034 | CP54: 85.66833277 | CQ54: 0.6403673487 | CR54: 86.30870012 | CS54: 0.007474959859 | CU54: 2034 | CV54: 213.2128186 | CW54: 2.408782852 | CX54: 215.6216015 | CY54: 0.01129755175 | DA54: 2034 | DB54: 298.2151803 | DC54: 3.64474211 | DD54: 301.8599224 | DE54: 0.01222185305 | DG54: 2034 | DH54: 480.283863 | DI54: 2.38393107 | DJ54: 482.667794 | DK54: 0.004963587691

Sheet Saturation and Lifetime
A2: Saturation and Lifetime Assumptions
A4: To add new products, insert rows within existing formatted lines--do not add to end. This way index formulas can find them. | V4: 1.467736955
A5: Saturation Assumptions | B5: Units/million sq. ft
A6: 1987 YE | C6: Office | F6: Retail | J6: School | L6: Warehouse | M6: Grocery | O6: Restaurant | P6: Lodging | Q6: Health | S6: Assembly | T6: Other | U6: Total | V6: Data Source
A7: Long Product Name | B7: Short Product Name | C7: Large Off | D7: Medium Off | E7: Small Off | F7: Big Box | G7: Small Box | H7: High End | I7: Anchor | J7: K-12 | K7: University | L7: Warehouse | M7: Supermarket | N7: MIniMart | O7: Restaurant | P7: Lodging | Q7: Hospital | R7: OtherHealth | S7: Assembly | T7: Other | U7: TOTAL
A8: Automataic Commercial Icemakers | B8: ACIM | C8: =52964/$U$59 -> 17.96552953 | D8: 17.96552953 | E8: 17.96552953 | F8: 17.96552953 | G8: 17.96552953 | H8: 17.96552953 | I8: 17.96552953 | J8: 17.96552953 | K8: 17.96552953 | L8: 17.96552953 | M8: 17.96552953 | N8: 17.96552953 | O8: 17.96552953 | P8: 17.96552953 | Q8: 17.96552953 | R8: 17.96552953 | S8: 17.96552953 | T8: 17.96552953 | U8: =SUMPRODUCT($C8:$T8,$C$55:$T$55) -> 17.96552953 | V8: No historical data, this number is taken from previous BPA-Impact Analysis icemakers model - using 2010 as proxy for 1987 (model installed stock at year end). This saturation is PNW specific.
B9: CRE | U9: =SUMPRODUCT($C9:$T9,$C$55:$T$55) -> 0
A10: Walk-in Coolers and Freezers | B10: WICFs | U10: =SUMPRODUCT($C10:$T10,$C$55:$T$55) -> 0
A11: Heating, Ventilation and Air Conditioning | B11: HVAC | U11: =SUMPRODUCT($C11:$T11,$C$55:$T$55) -> 0
A12: Pre-rinse Spray Valves | B12: Pre-rinse SV | C12: =C27 -> 5.76644517 | D12: =D27 -> 5.76644517 | E12: 5.76644517 | F12: 5.76644517 | G12: 5.76644517 | H12: 5.76644517 | I12: 5.76644517 | J12: 5.76644517 | K12: 5.76644517 | L12: 5.76644517 | M12: 5.76644517 | N12: 5.76644517 | O12: 5.76644517 | P12: 5.76644517 | Q12: 5.76644517 | R12: 5.76644517 | S12: 5.76644517 | T12: 5.76644517 | U12: =SUMPRODUCT($C12:$T12,$C$55:$T$55) -> 5.76644517 | V12: No 1987 source; kept same as 2010, 6P pre-rinse spray valve supply curve workbook assumed 17,000 units in PNW
A13: Beverage Vending Machine | B13: BVM | C13: =38.27*1.12 -> 42.8624 | D13: 42.8624 | E13: 42.8624 | F13: 42.8624 | G13: 42.8624 | H13: 42.8624 | I13: 42.8624 | J13: 42.8624 | K13: 42.8624 | L13: 42.8624 | M13: 42.8624 | N13: 42.8624 | O13: 42.8624 | P13: 42.8624 | Q13: 42.8624 | R13: 42.8624 | S13: 42.8624 | T13: 42.8624 | U13: =SUMPRODUCT($C13:$T13,$C$60:$T$60) -> 42.8624 | V13: From previous BPA-standards impact BVM model - using 2005 model installed stock at year end. This saturation is 6th Plan specific.
U15: =SUMPRODUCT($C15:$T15,$C$55:$T$55) -> 0
U16: =SUMPRODUCT($C16:$T16,$C$55:$T$55) -> 0
U17: =SUMPRODUCT($C17:$T17,$C$55:$T$55) -> 0
U18: =SUMPRODUCT($C18:$T18,$C$55:$T$55) -> 0
A21: 2010 YE | C21: Office | F21: Retail | J21: School | L21: Warehouse | M21: Grocery | O21: Restaurant | P21: Lodging | Q21: Health | S21: Assembly | T21: Other | U21: Total | V21: Data Source
A22: Long Product Name | B22: Short Product Name | C22: Large Off | D22: Medium Off | E22: Small Off | F22: Big Box | G22: Small Box | H22: High End | I22: Anchor | J22: K-12 | K22: University | L22: Warehouse | M22: Supermarket | N22: MIniMart | O22: Restaurant | P22: Lodging | Q22: Hospital | R22: OtherHealth | S22: Assembly | T22: Other | U22: TOTAL
A23: Automataic Commercial Icemakers | B23: ACIM | C23: =52964/$U$59 -> 17.96552953 | D23: 17.96552953 | E23: 17.96552953 | F23: 17.96552953 | G23: 17.96552953 | H23: 17.96552953 | I23: 17.96552953 | J23: 17.96552953 | K23: 17.96552953 | L23: 17.96552953 | M23: 17.96552953 | N23: 17.96552953 | O23: 17.96552953 | P23: 17.96552953 | Q23: 17.96552953 | R23: 17.96552953 | S23: 17.96552953 | T23: 17.96552953 | U23: =SUMPRODUCT($C23:$T23,$C$60:$T$60) -> 17.96552953 | V23: From previous BPA-standards impact ACIM model - using 2010 model installed stock at year end. This saturation is 6th Plan specific. The saturation allows 2010 shipment to match closely with 6P ACIM shipment units embedded in the commercial refrigeration products workbook
B24: CRE | U24: 0
A25: Walk-in Coolers and Freezers | B25: WICFs | U25: 0
A26: Heating, Ventilation and Air Conditioning | B26: HVAC | U26: 0
A27: Pre-rinse Spray Valves | B27: Pre-rinse SV | C27: =17000/$U$59 -> 5.76644517 | D27: =17000/$U$59 -> 5.76644517 | E27: 5.76644517 | F27: 5.76644517 | G27: 5.76644517 | H27: 5.76644517 | I27: 5.76644517 | J27: 5.76644517 | K27: 5.76644517 | L27: 5.76644517 | M27: 5.76644517 | N27: 5.76644517 | O27: 5.76644517 | P27: 5.76644517 | Q27: 5.76644517 | R27: 5.76644517 | S27: 5.76644517 | T27: 5.76644517 | U27: 5.76644517 | V27: No 1987 source; kept same as 2010, 6P pre-rinse spray valve supply curve workbook assumed 17,000 units in PNW
A28: Beverage Vending Machines | B28: BVM | C28: =38.27*1.12 -> 42.8624 | D28: 42.8624 | E28: 42.8624 | F28: 42.8624 | G28: 42.8624 | H28: 42.8624 | I28: 42.8624 | J28: 42.8624 | K28: 42.8624 | L28: 42.8624 | M28: 42.8624 | N28: 42.8624 | O28: 42.8624 | P28: 42.8624 | Q28: 42.8624 | R28: 42.8624 | S28: 42.8624 | T28: 42.8624 | U28: 42.8624 | V28: From previous BPA-standards impact BVM model - using 2010 model installed stock at year end. This saturation is 6th Plan specific. The saturation allows 2010 shipment to match closely with 6P BVM shipment units embedded in the commercial refrigeration products workbook
U30: 0
U31: 0
U32: 0
U33: 0
A36: Lifetime Assumptions | C36: Office | F36: Retail | J36: School | L36: Warehouse | M36: Grocery | O36: Restaurant | P36: Lodging | Q36: Health | S36: Assembly | T36: Other | U36: Total | V36: Data Source
A37: Long Product Name | B37: Short Product Name | C37: Large Off | D37: Medium Off | E37: Small Off | F37: Big Box | G37: Small Box | H37: High End | I37: Anchor | J37: K-12 | K37: University | L37: Warehouse | M37: Supermarket | N37: MIniMart | O37: Restaurant | P37: Lodging | Q37: Hospital | R37: OtherHealth | S37: Assembly | T37: Other | U37: TOTAL
A38: Automatic Commercial Icemakers | B38: ACIM | C38: 8.5 | D38: 8.5 | E38: 8.5 | F38: 8.5 | G38: 8.5 | H38: 8.5 | I38: 8.5 | J38: 8.5 | K38: 8.5 | L38: 8.5 | M38: 8.5 | N38: 8.5 | O38: 8.5 | P38: 8.5 | Q38: 8.5 | R38: 8.5 | S38: 8.5 | T38: 8.5 | U38: =SUMPRODUCT($C38:$T38,$C$60:$T$60) -> 8.5 | V38: Department of Energy: National Impact Analysis for Automatic Commercial Ice-Makers (tab: Lifetime Distribution)
B39: CRE | U39: =SUMPRODUCT($C39:$T39,$C$60:$T$60) -> 0
A40: Walk-in Coolers and Freezers | B40: WICFs | U40: =SUMPRODUCT($C40:$T40,$C$60:$T$60) -> 0
A41: Heating, Ventilation and Air Conditioning | B41: HVAC | U41: =SUMPRODUCT($C41:$T41,$C$60:$T$60) -> 0
A42: Pre-rinse Spray Valves | B42: Pre-rinse SV | C42: 5 | D42: 5 | E42: 5 | F42: 5 | G42: 5 | H42: 5 | I42: 5 | J42: 5 | K42: 5 | L42: 5 | M42: 5 | N42: 5 | O42: 5 | P42: 5 | Q42: 5 | R42: 5 | S42: 5 | T42: 5 | U42: 5 | V42: 'Proposeddata_Prerinse_SprayValve.xlsx'
A43: Beverage Vending Machines | B43: BVM | C43: 14 | D43: 14 | E43: 14 | F43: 14 | G43: 14 | H43: 14 | I43: 14 | J43: 14 | K43: 14 | L43: 14 | M43: 14 | N43: 14 | O43: 14 | P43: 14 | Q43: 14 | R43: 14 | S43: 14 | T43: 14 | U43: =SUMPRODUCT($C43:$T43,$C$60:$T$60) -> 14 | V43: Department of Energy: National Impact Analysis for Beverage Vending Machine
U44: 0
U45: 0
U46: 0
U47: 0
U48: 0
A51: Square Footage by Building Type
B52: 1987 YE | C52: Office | F52: Retail | J52: School | L52: Warehouse | M52: Grocery | O52: Restaurant | P52: Lodging | Q52: Health | S52: Assembly | T52: Other | U52: Total | V52: Data Source
C53: Large Off | D53: Medium Off | E53: Small Off | F53: Big Box | G53: Small Box | H53: High End | I53: Anchor | J53: K-12 | K53: University | L53: Warehouse | M53: Supermarket | N53: MIniMart | O53: Restaurant | P53: Lodging | Q53: Hospital | R53: OtherHealth | S53: Assembly | T53: Other | U53: TOTAL
B54: SF | C54: ='Floor Space'!L7 -> 170.1558004 | D54: ='Floor Space'!R7 -> 76.66216083 | E54: ='Floor Space'!X7 -> 89.95315007 | F54: ='Floor Space'!AD7 -> 82.5387293 | G54: ='Floor Space'!AJ7 -> 152.4476572 | H54: ='Floor Space'!AP7 -> 38.1119143 | I54: ='Floor Space'!AV7 -> 73.58334872 | J54: ='Floor Space'!BB7 -> 150.3217189 | K54: ='Floor Space'!BH7 -> 76.1922716 | L54: ='Floor Space'!BN7 -> 178.0105952 | M54: ='Floor Space'!BT7 -> 36.04076503 | N54: ='Floor Space'!BZ7 -> 14.58413149 | O54: ='Floor Space'!CF7 -> 34.54168997 | P54: ='Floor Space'!CL7 -> 106.0737749 | Q54: ='Floor Space'!CR7 -> 38.87548256 | R54: ='Floor Space'!CX7 -> 84.78723658 | S54: ='Floor Space'!DD7 -> 123.1253769 | T54: ='Floor Space'!DJ7 -> 239.0080846 | U54: =SUM(C54:T54) -> 1765.013888 | V54: 6P
B55: % | C55: =C54/$U$54 -> 0.09640479403 | D55: =D54/$U$54 -> 0.04343431025 | E55: 0.05096455651 | F55: 0.0467637846 | G55: 0.08637193067 | H55: 0.02159298267 | I55: 0.04168995451 | J55: 0.0851674425 | K55: 0.04316808616 | L55: 0.1008550677 | M55: 0.02041953622 | N55: 0.008262898996 | O55: 0.0195702086 | P55: 0.06009798313 | Q55: 0.02202559584 | R55: 0.04803771638 | S55: 0.06975887142 | T55: 0.1354142798 | U55: =SUM(C55:T55) -> 1 | V55: calculated
B57: 2010 YE | C57: Office | F57: Retail | J57: School | L57: Warehouse | M57: Grocery | O57: Restaurant | P57: Lodging | Q57: Health | S57: Assembly | T57: Other | U57: Total | V57: Data Source
C58: Large Off | D58: Medium Off | E58: Small Off | F58: Big Box | G58: Small Box | H58: High End | I58: Anchor | J58: K-12 | K58: University | L58: Warehouse | M58: Supermarket | N58: MIniMart | O58: Restaurant | P58: Lodging | Q58: Hospital | R58: OtherHealth | S58: Assembly | T58: Other | U58: TOTAL
B59: SF | C59: ='Floor Space'!L30 -> 269.0779297 | D59: ='Floor Space'!R30 -> 121.2306338 | E59: ='Floor Space'!X30 -> 142.2485001 | F59: ='Floor Space'!AD30 -> 127.1630458 | G59: ='Floor Space'!AJ30 -> 234.8680259 | H59: ='Floor Space'!AP30 -> 58.71700647 | I59: ='Floor Space'!AV30 -> 113.3659655 | J59: ='Floor Space'!BB30 -> 248.2048753 | K59: ='Floor Space'!BH30 -> 123.3913097 | L59: ='Floor Space'!BN30 -> 363.4666598 | M59: ='Floor Space'!BT30 -> 52.33132617 | N59: ='Floor Space'!BZ30 -> 21.62412751 | O59: ='Floor Space'!CF30 -> 47.42577006 | P59: ='Floor Space'!CL30 -> 160.685676 | Q59: ='Floor Space'!CR30 -> 68.06284044 | R59: ='Floor Space'!CX30 -> 146.858629 | S59: ='Floor Space'!DD30 -> 217.8353552 | T59: ='Floor Space'!DJ30 -> 431.5324375 | U59: =SUM($C$59:$T$59) -> 2948.090114 | V59: 6P
B60: % | C60: =C59/SUM($C$59:$T$59) -> 0.09127194873 | D60: =D59/SUM($C$59:$T$59) -> 0.04112175311 | E60: 0.04825106921 | F60: 0.043134043 | G60: 0.07966785844 | H60: 0.01991696461 | I60: 0.03845403673 | J60: 0.08419175321 | K60: 0.04185466013 | L60: 0.1232888568 | M60: 0.01775092489 | N60: 0.007334961507 | O60: 0.01608694722 | P60: 0.05450500824 | Q60: 0.02308709633 | R60: 0.04981483717 | S60: 0.07389033129 | T60: 0.1463769494 | U60: =SUM(C60:T60) -> 1 | V60: calculated

Sheet Council Shipments
B2: Shipment Units in the Sixth Plan
B5: Short Product Name | C5: 2005 | D5: =C5+1 -> 2006 | E5: =D5+1 -> 2007 | F5: 2008 | G5: 2009 | H5: 2010 | I5: 2011 | J5: 2012 | K5: 2013 | L5: 2014 | M5: 2015 | N5: 2016 | O5: 2017 | P5: 2018 | Q5: 2019 | R5: 2020 | S5: 2021 | T5: 2022 | U5: 2023 | V5: 2024 | W5: 2025 | X5: 2026 | Y5: 2027 | Z5: 2028 | AA5: =Z5+1 -> 2029 | AB5: 2030 | AC5: 2031 | AD5: 2032 | AE5: 2033 | AF5: =AE5+1 -> 2034 | AG5: Data Source
B6: ACIM | C6: 5478.4248 | D6: 5607.401903 | E6: 5739.41548 | F6: 5871.429057 | G6: 6003.442634 | H6: 6135.45621 | I6: 6264.689146 | J6: 6395.8242 | K6: 6530.169347 | L6: 6650.715134 | M6: 6758.554257 | N6: 6854.741747 | O6: 6940.472726 | P6: 7017.351811 | Q6: 7087.318396 | R6: 7151.569774 | S6: 7212.346377 | T6: 7272.090942 | U6: 7332.418181 | V6: 7394.297126 | W6: 7458.039962 | X6: 7523.764298 | Y6: 7591.444168 | Z6: 7661.096968 | AA6: 7732.854241 | AB6: 7806.561594 | AC6: 7882.151682 | AD6: 7959.525082 | AE6: 8041.047183 | AF6: 8126.984237 | AG6: Sixth Power Plan; PC_Pack_Refrig_Equip_6P_D3
B7: CRE
B8: WICFs
B9: HVAC
B10: Pre-rinse SV
B11: BVM | C11: 9305.218483 | D11: 9524.288775 | E11: 9748.516581 | F11: 9972.744388 | G11: 10196.97219 | H11: 10421.2 | I11: 10312.07222 | J11: 10229.80966 | K11: 10220.46986 | L11: 10181.73526 | M11: 10151.28197 | N11: 10134.79561 | O11: 10237.56352 | P11: 10305.27479 | Q11: 10397.22029 | R11: 10522.6927 | S11: 10707.37855 | T11: 10851.35812 | U11: 10914.66529 | V11: 10994.93539 | W11: 11101.7893 | X11: 11221.52909 | Y11: 11325.45007 | Z11: 11444.28868 | AA11: 11573.17445 | AB11: 11704.63794 | AC11: 11828.7307 | AD11: 11949.30531 | AE11: 12072.29142 | AF11: 12195.73725 | AG11: Sixth Power Plan; PC_Pack_Refrig_Equip_6P_D3
B12: SEM

Sheet Pre-Rinse Spray Valves
A1: Pre-rinse SV
M3: Building type level starts here.
B4: Assumptions | E4: Calibration | M4: Assumptions | P4: Calibration | X4: Assumptions | AA4: Calibration | AI4: Assumptions | AL4: Calibration | AT4: Assumptions | AW4: Calibration | BE4: Assumptions | BH4: Calibration | BP4: Assumptions | BS4: Calibration | CA4: Assumptions | CD4: Calibration | CL4: Assumptions | CO4: Calibration | CW4: Assumptions | CZ4: Calibration | DH4: Assumptions | DK4: Calibration | DS4: Assumptions | DV4: Calibration | ED4: Assumptions | EG4: Calibration | EO4: Assumptions | ER4: Calibration | EZ4: Assumptions | FC4: Calibration | FK4: Assumptions | FN4: Calibration | FV4: Assumptions | FY4: Calibration | GG4: Assumptions | GJ4: Calibration | GR4: Assumptions | GU4: Calibration
B5: Lifetime | D5: =INDEX('Saturation and Lifetime'!$B$37:$U$48,MATCH('Pre-Rinse Spray Valves'!$A$1,'Saturation and Lifetime'!$B$37:$B$48,0),MATCH('Pre-Rinse Spray Valves'!B10,'Saturation and Lifetime'!$B$37:$U$37,0)) -> 5 | E5: Check value: | G5: =SUM(OFFSET(G36,-D$6,0):G35) -> 16999.99422 | H5: Sum of last "lifetime" years of shipments | M5: Lifetime | O5: =INDEX('Saturation and Lifetime'!$B$37:$T$48,MATCH('Pre-Rinse Spray Valves'!$A$1,'Saturation and Lifetime'!$B$37:$B$48,0),MATCH('Pre-Rinse Spray Valves'!M10,'Saturation and Lifetime'!$B$37:$T$37,0)) -> 5 | P5: Set cell: | R5: =SUM(OFFSET(R36,-O$6,0):R35) -> 1551.619825 | S5: Sum of last "lifetime" years of shipments | X5: Lifetime | Z5: =INDEX('Saturation and Lifetime'!$B$37:$T$48,MATCH('Pre-Rinse Spray Valves'!$A$1,'Saturation and Lifetime'!$B$37:$B$48,0),MATCH('Pre-Rinse Spray Valves'!X10,'Saturation and Lifetime'!$B$37:$T$37,0)) -> 5 | AA5: Set cell: | AC5: =SUM(OFFSET(AC36,-Z$6,0):AC35) -> 699.0683147 | AD5: Sum of last "lifetime" years of shipments | AI5: Lifetime | AK5: =INDEX('Saturation and Lifetime'!$B$37:$T$48,MATCH('Pre-Rinse Spray Valves'!$A$1,'Saturation and Lifetime'!$B$37:$B$48,0),MATCH('Pre-Rinse Spray Valves'!AI10,'Saturation and Lifetime'!$B$37:$T$37,0)) -> 5 | AL5: Set cell: | AN5: =SUM(OFFSET(AN36,-AK$6,0):AN35) -> 820.2664305 | AO5: Sum of last "lifetime" years of shipments | AT5: Lifetime | AV5: =INDEX('Saturation and Lifetime'!$B$37:$T$48,MATCH('Pre-Rinse Spray Valves'!$A$1,'Saturation and Lifetime'!$B$37:$B$48,0),MATCH('Pre-Rinse Spray Valves'!AT10,'Saturation and Lifetime'!$B$37:$T$37,0)) -> 5 | AW5: Set cell: | AY5: =SUM(OFFSET(AY36,-AV$6,0):AY35) -> 733.2740073 | AZ5: Sum of last "lifetime" years of shipments | BE5: Lifetime | BG5: =INDEX('Saturation and Lifetime'!$B$37:$T$48,MATCH('Pre-Rinse Spray Valves'!$A$1,'Saturation and Lifetime'!$B$37:$B$48,0),MATCH('Pre-Rinse Spray Valves'!BE10,'Saturation and Lifetime'!$B$37:$T$37,0)) -> 5 | BH5: Set cell: | BJ5: =SUM(OFFSET(BJ36,-BG$6,0):BJ35) -> 1354.344869 | BK5: Sum of last "lifetime" years of shipments | BP5: Lifetime | BR5: =INDEX('Saturation and Lifetime'!$B$37:$T$48,MATCH('Pre-Rinse Spray Valves'!$A$1,'Saturation and Lifetime'!$B$37:$B$48,0),MATCH('Pre-Rinse Spray Valves'!BP10,'Saturation and Lifetime'!$B$37:$T$37,0)) -> 5 | BS5: Set cell: | BU5: =SUM(OFFSET(BU36,-BR$6,0):BU35) -> 338.5862172 | BV5: Sum of last "lifetime" years of shipments | CA5: Lifetime | CC5: =INDEX('Saturation and Lifetime'!$B$37:$T$48,MATCH('Pre-Rinse Spray Valves'!$A$1,'Saturation and Lifetime'!$B$37:$B$48,0),MATCH('Pre-Rinse Spray Valves'!CA10,'Saturation and Lifetime'!$B$37:$T$37,0)) -> 5 | CD5: Set cell: | CF5: =SUM(OFFSET(CF36,-CC$6,0):CF35) -> 653.7144131 | CG5: Sum of last "lifetime" years of shipments | CL5: Lifetime | CN5: =INDEX('Saturation and Lifetime'!$B$37:$T$48,MATCH('Pre-Rinse Spray Valves'!$A$1,'Saturation and Lifetime'!$B$37:$B$48,0),MATCH('Pre-Rinse Spray Valves'!CL10,'Saturation and Lifetime'!$B$37:$T$37,0)) -> 5 | CO5: Set cell: | CQ5: =SUM(OFFSET(CQ36,-CN$6,0):CQ35) -> 1431.255421 | CR5: Sum of last "lifetime" years of shipments | CW5: Lifetime | CY5: =INDEX('Saturation and Lifetime'!$B$37:$T$48,MATCH('Pre-Rinse Spray Valves'!$A$1,'Saturation and Lifetime'!$B$37:$B$48,0),MATCH('Pre-Rinse Spray Valves'!CW10,'Saturation and Lifetime'!$B$37:$T$37,0)) -> 5 | CZ5: Set cell: | DB5: =SUM(OFFSET(DB36,-CY$6,0):DB35) -> 711.5304163 | DC5: Sum of last "lifetime" years of shipments | DH5: Lifetime | DJ5: =INDEX('Saturation and Lifetime'!$B$37:$T$48,MATCH('Pre-Rinse Spray Valves'!$A$1,'Saturation and Lifetime'!$B$37:$B$48,0),MATCH('Pre-Rinse Spray Valves'!DH10,'Saturation and Lifetime'!$B$37:$T$37,0)) -> 5 | DK5: Set cell: | DM5: =SUM(OFFSET(DM36,-DJ$6,0):DM35) -> 2095.904954 | DN5: Sum of last "lifetime" years of shipments | DS5: Lifetime | DU5: =INDEX('Saturation and Lifetime'!$B$37:$T$48,MATCH('Pre-Rinse Spray Valves'!$A$1,'Saturation and Lifetime'!$B$37:$B$48,0),MATCH('Pre-Rinse Spray Valves'!DS10,'Saturation and Lifetime'!$B$37:$T$37,0)) -> 5 | DV5: Set cell: | DX5: =SUM(OFFSET(DX36,-DU$6,0):DX35) -> 301.7679527 | DY5: Sum of last "lifetime" years of shipments | ED5: Lifetime | EF5: =INDEX('Saturation and Lifetime'!$B$37:$T$48,MATCH('Pre-Rinse Spray Valves'!$A$1,'Saturation and Lifetime'!$B$37:$B$48,0),MATCH('Pre-Rinse Spray Valves'!ED10,'Saturation and Lifetime'!$B$37:$T$37,0)) -> 5 | EG5: Set cell: | EI5: =SUM(OFFSET(EI36,-EF$6,0):EI35) -> 124.6923208 | EJ5: Sum of last "lifetime" years of shipments | EO5: Lifetime | EQ5: =INDEX('Saturation and Lifetime'!$B$37:$T$48,MATCH('Pre-Rinse Spray Valves'!$A$1,'Saturation and Lifetime'!$B$37:$B$48,0),MATCH('Pre-Rinse Spray Valves'!EO10,'Saturation and Lifetime'!$B$37:$T$37,0)) -> 5 | ER5: Set cell: | ET5: =SUM(OFFSET(ET36,-EQ$6,0):ET35) -> 273.4745142 | EU5: Sum of last "lifetime" years of shipments | EZ5: Lifetime | FB5: =INDEX('Saturation and Lifetime'!$B$37:$T$48,MATCH('Pre-Rinse Spray Valves'!$A$1,'Saturation and Lifetime'!$B$37:$B$48,0),MATCH('Pre-Rinse Spray Valves'!EZ10,'Saturation and Lifetime'!$B$37:$T$37,0)) -> 5 | FC5: Set cell: | FE5: =SUM(OFFSET(FE36,-FB$6,0):FE35) -> 926.5894902 | FF5: Sum of last "lifetime" years of shipments | FK5: Lifetime | FM5: =INDEX('Saturation and Lifetime'!$B$37:$T$48,MATCH('Pre-Rinse Spray Valves'!$A$1,'Saturation and Lifetime'!$B$37:$B$48,0),MATCH('Pre-Rinse Spray Valves'!FK10,'Saturation and Lifetime'!$B$37:$T$37,0)) -> 5 | FN5: Set cell: | FP5: =SUM(OFFSET(FP36,-FM$6,0):FP35) -> 392.4796939 | FQ5: Sum of last "lifetime" years of shipments | FV5: Lifetime | FX5: =INDEX('Saturation and Lifetime'!$B$37:$T$48,MATCH('Pre-Rinse Spray Valves'!$A$1,'Saturation and Lifetime'!$B$37:$B$48,0),MATCH('Pre-Rinse Spray Valves'!FV10,'Saturation and Lifetime'!$B$37:$T$37,0)) -> 5 | FY5: Set cell: | GA5: =SUM(OFFSET(GA36,-FX$6,0):GA35) -> 846.8499014 | GB5: Sum of last "lifetime" years of shipments | GG5: Lifetime | GI5: =INDEX('Saturation and Lifetime'!$B$37:$T$48,MATCH('Pre-Rinse Spray Valves'!$A$1,'Saturation and Lifetime'!$B$37:$B$48,0),MATCH('Pre-Rinse Spray Valves'!GG10,'Saturation and Lifetime'!$B$37:$T$37,0)) -> 5 | GJ5: Set cell: | GL5: =SUM(OFFSET(GL36,-GI$6,0):GL35) -> 1256.172475 | GM5: Sum of last "lifetime" years of shipments | GR5: Lifetime | GT5: =INDEX('Saturation and Lifetime'!$B$37:$T$48,MATCH('Pre-Rinse Spray Valves'!$A$1,'Saturation and Lifetime'!$B$37:$B$48,0),MATCH('Pre-Rinse Spray Valves'!GR10,'Saturation and Lifetime'!$B$37:$T$37,0)) -> 5 | GU5: Set cell: | GW5: =SUM(OFFSET(GW36,-GT$6,0):GW35) -> 2488.402999 | GX5: Sum of last "lifetime" years of shipments
B6: Rounded Life | D6: =ROUND(D5,0) -> 5 | E6: Equal to value: | G6: =H35 -> 17000 | H6: 2011 beginning stock | M6: Rounded Life | O6: =ROUND(O5,0) -> 5 | P6: To value: | R6: =S35 -> 1551.623128 | S6: 2011 beginning stock | X6: Rounded Life | Z6: =ROUND(Z5,0) -> 5 | AA6: To value: | AC6: =AD35 -> 699.0698028 | AD6: 2011 beginning stock | AI6: Rounded Life | AK6: =ROUND(AK5,0) -> 5 | AL6: To value: | AN6: =AO35 -> 820.2681767 | AO6: 2011 beginning stock | AT6: Rounded Life | AV6: =ROUND(AV5,0) -> 5 | AW6: To value: | AY6: =AZ35 -> 733.2787311 | AZ6: 2011 beginning stock | BE6: Rounded Life | BG6: =ROUND(BG5,0) -> 5 | BH6: To value: | BJ6: =BK35 -> 1354.353593 | BK6: 2011 beginning stock | BP6: Rounded Life | BR6: =ROUND(BR5,0) -> 5 | BS6: To value: | BU6: =BV35 -> 338.5883984 | BV6: 2011 beginning stock | CA6: Rounded Life | CC6: =ROUND(CC5,0) -> 5 | CD6: To value: | CF6: =CG35 -> 653.7186244 | CG6: 2011 beginning stock | CL6: Rounded Life | CN6: =ROUND(CN5,0) -> 5 | CO6: To value: | CQ6: =CR35 -> 1431.259805 | CR6: 2011 beginning stock | CW6: Rounded Life | CY6: =ROUND(CY5,0) -> 5 | CZ6: To value: | DB6: =DC35 -> 711.5292221 | DC6: 2011 beginning stock | DH6: Rounded Life | DJ6: =ROUND(DJ5,0) -> 5 | DK6: To value: | DM6: =DN35 -> 2095.910565 | DN6: 2011 beginning stock | DS6: Rounded Life | DU6: =ROUND(DU5,0) -> 5 | DV6: To value: | DX6: =DY35 -> 301.7657231 | DY6: 2011 beginning stock | ED6: Rounded Life | EF6: =ROUND(EF5,0) -> 5 | EG6: To value: | EI6: =EJ35 -> 124.6943456 | EJ6: 2011 beginning stock | EO6: Rounded Life | EQ6: =ROUND(EQ5,0) -> 5 | ER6: To value: | ET6: =EU35 -> 273.4781027 | EU6: 2011 beginning stock | EZ6: Rounded Life | FB6: =ROUND(FB5,0) -> 5 | FC6: To value: | FE6: =FF35 -> 926.5851401 | FF6: 2011 beginning stock | FK6: Rounded Life | FM6: =ROUND(FM5,0) -> 5 | FN6: To value: | FP6: =FQ35 -> 392.4806375 | FQ6: 2011 beginning stock | FV6: Rounded Life | FX6: =ROUND(FX5,0) -> 5 | FY6: To value: | GA6: =GB35 -> 846.8522318 | GB6: 2011 beginning stock | GG6: Rounded Life | GI6: =ROUND(GI5,0) -> 5 | GJ6: To value: | GL6: =GM35 -> 1256.135632 | GM6: 2011 beginning stock | GR6: Rounded Life | GT6: =ROUND(GT5,0) -> 5 | GU6: To value: | GW6: =GX35 -> 2488.40814 | GX6: 2011 beginning stock
B7: Avg Stock Growth | D7: =AVERAGE(OFFSET(J36,-D$6,0):J35) -> 0.01972286065 | H7: Lifetime stock factor | M7: Avg Stock Growth | O7: =AVERAGE(OFFSET(U36,-O$6,0):U35) -> 0.01819223661 | P7: By changing: | R7: 0.9590469995 | S7: Lifetime stock factor | X7: Avg Stock Growth | Z7: =AVERAGE(OFFSET(AF36,-Z$6,0):AF35) -> 0.01819223661 | AA7: By changing: | AC7: 0.9590469995 | AD7: Lifetime stock factor | AI7: Avg Stock Growth | AK7: =AVERAGE(OFFSET(AQ36,-AK$6,0):AQ35) -> 0.01819223661 | AL7: By changing: | AN7: 0.9590469995 | AO7: Lifetime stock factor | AT7: Avg Stock Growth | AV7: =AVERAGE(OFFSET(BB36,-AV$6,0):BB35) -> 0.01909560839 | AW7: By changing: | AY7: 0.9541105347 | AZ7: Lifetime stock factor | BE7: Avg Stock Growth | BG7: =AVERAGE(OFFSET(BM36,-BG$6,0):BM35) -> 0.01909560839 | BH7: By changing: | BJ7: 0.9541105347 | BK7: Lifetime stock factor | BP7: Avg Stock Growth | BR7: =AVERAGE(OFFSET(BX36,-BR$6,0):BX35) -> 0.01909560839 | BS7: By changing: | BU7: 0.9541105347 | BV7: Lifetime stock factor | CA7: Avg Stock Growth | CC7: =AVERAGE(OFFSET(CI36,-CC$6,0):CI35) -> 0.01909560839 | CD7: By changing: | CF7: 0.9541105347 | CG7: Lifetime stock factor | CL7: Avg Stock Growth | CN7: =AVERAGE(OFFSET(CT36,-CN$6,0):CT35) -> 0.01923805412 | CO7: By changing: | CQ7: 0.9548907299 | CR7: Lifetime stock factor | CW7: Avg Stock Growth | CY7: =AVERAGE(OFFSET(DE36,-CY$6,0):DE35) -> 0.01636689254 | CZ7: By changing: | DB7: 0.9631377929 | DC7: Lifetime stock factor | DH7: Avg Stock Growth | DJ7: =AVERAGE(OFFSET(DP36,-DJ$6,0):DP35) -> 0.02507748672 | DK7: By changing: | DM7: 0.9481035944 | DN7: Lifetime stock factor | DS7: Avg Stock Growth | DU7: =AVERAGE(OFFSET(EA36,-DU$6,0):EA35) -> 0.003381342678 | DV7: By changing: | DX7: 0.9959472784 | DY7: Lifetime stock factor | ED7: Avg Stock Growth | EF7: =AVERAGE(OFFSET(EL36,-EF$6,0):EL35) -> 0.006618468315 | EG7: By changing: | EI7: 0.9863163713 | EJ7: Lifetime stock factor | EO7: Avg Stock Growth | EQ7: =AVERAGE(OFFSET(EW36,-EQ$6,0):EW35) -> 0.008260849392 | ER7: By changing: | ET7: 0.988811241 | EU7: Lifetime stock factor | EZ7: Avg Stock Growth | FB7: =AVERAGE(OFFSET(FH36,-FB$6,0):FH35) -> 0.01583900015 | FC7: By changing: | FE7: 0.9626521132 | FF7: Lifetime stock factor | FK7: Avg Stock Growth | FM7: =AVERAGE(OFFSET(FS36,-FM$6,0):FS35) -> 0.01914190278 | FN7: By changing: | FP7: 0.9596719112 | FQ7: Lifetime stock factor | FV7: Avg Stock Growth | FX7: =AVERAGE(OFFSET(GD36,-FX$6,0):GD35) -> 0.02172536169 | FY7: By changing: | GA7: 0.9526926541 | GB7: Lifetime stock factor | GG7: Avg Stock Growth | GI7: =AVERAGE(OFFSET(GO36,-GI$6,0):GO35) -> 0.02151250833 | GJ7: By changing: | GL7: 0.9592403677 | GM7: Lifetime stock factor | GR7: Avg Stock Growth | GT7: =AVERAGE(OFFSET(GZ36,-GT$6,0):GZ35) -> 0.02333056193 | GU7: By changing: | GW7: 0.9435090609 | GX7: Lifetime stock factor
B8: Shipment to Stock Saturation Factor | D8: 1 | E8: This factor does not change anything if 1987 saturation = 2010 saturation | M8: Shipment to Stock Saturation Factor | O8: 1 | P8: This factor does not change anything if 1987 saturation = 2010 saturation | X8: Shipment to Stock Saturation Factor | Z8: 1 | AA8: This factor does not change anything if 1987 saturation = 2010 saturation | AI8: Shipment to Stock Saturation Factor | AK8: 1 | AL8: This factor does not change anything if 1987 saturation = 2010 saturation | AT8: Shipment to Stock Saturation Factor | AV8: 1 | AW8: This factor does not change anything if 1987 saturation = 2010 saturation | BE8: Shipment to Stock Saturation Factor | BG8: 1 | BH8: This factor does not change anything if 1987 saturation = 2010 saturation | BP8: Shipment to Stock Saturation Factor | BR8: 1 | BS8: This factor does not change anything if 1987 saturation = 2010 saturation | CA8: Shipment to Stock Saturation Factor | CC8: 1 | CD8: This factor does not change anything if 1987 saturation = 2010 saturation | CL8: Shipment to Stock Saturation Factor | CN8: 1 | CO8: This factor does not change anything if 1987 saturation = 2010 saturation | CW8: Shipment to Stock Saturation Factor | CY8: 1 | CZ8: This factor does not change anything if 1987 saturation = 2010 saturation | DH8: Shipment to Stock Saturation Factor | DJ8: 1 | DK8: This factor does not change anything if 1987 saturation = 2010 saturation | DS8: Shipment to Stock Saturation Factor | DU8: 1 | DV8: This factor does not change anything if 1987 saturation = 2010 saturation | ED8: Shipment to Stock Saturation Factor | EF8: 1 | EG8: This factor does not change anything if 1987 saturation = 2010 saturation | EO8: Shipment to Stock Saturation Factor | EQ8: 1 | ER8: This factor does not change anything if 1987 saturation = 2010 saturation | EZ8: Shipment to Stock Saturation Factor | FB8: 1 | FC8: This factor does not change anything if 1987 saturation = 2010 saturation | FK8: Shipment to Stock Saturation Factor | FM8: 1 | FN8: This factor does not change anything if 1987 saturation = 2010 saturation | FV8: Shipment to Stock Saturation Factor | FX8: 1 | FY8: This factor does not change anything if 1987 saturation = 2010 saturation | GG8: Shipment to Stock Saturation Factor | GI8: 1 | GJ8: This factor does not change anything if 1987 saturation = 2010 saturation | GR8: Shipment to Stock Saturation Factor | GT8: 1 | GU8: This factor does not change anything if 1987 saturation = 2010 saturation
B10: TOTAL | M10: Large Off | X10: Medium Off | AI10: Small Off | AT10: Big Box | BE10: Small Box | BP10: High End | CA10: Anchor | CL10: K-12 | CW10: University | DH10: Warehouse | DS10: Supermarket | ED10: MiniMart | EO10: Restaurant | EZ10: Lodging | FK10: Hospital | FV10: OtherHealth | GG10: Assembly | GR10: Other
C11: Beginning Stock | D11: Demolitions | E11: Replacement Units | F11: New Units | G11: Total Shipments | H11: End of Year Stock | I11: Density | J11: Stock Growth | K11: Stock Saturation | N11: Beginning Stock | O11: Demolitions | P11: Replacement Units | Q11: New Units | R11: Total Shipments | S11: End of Year Stock | T11: Density | U11: Stock Growth | V11: Stock Saturation | Y11: Beginning Stock | Z11: Demolitions | AA11: Replacement Units | AB11: New Units | AC11: Total Shipments | AD11: End of Year Stock | AE11: Density | AF11: Stock Growth | AG11: Stock Saturation | AJ11: Beginning Stock | AK11: Demolitions | AL11: Replacement Units | AM11: New Units | AN11: Total Shipments | AO11: End of Year Stock | AP11: Density | AQ11: Stock Growth | AR11: Stock Saturation | AU11: Beginning Stock | AV11: Demolitions | AW11: Replacement Units | AX11: New Units | AY11: Total Shipments | AZ11: End of Year Stock | BA11: Density | BB11: Stock Growth | BC11: Stock Saturation | BF11: Beginning Stock | BG11: Demolitions | BH11: Replacement Units | BI11: New Units | BJ11: Total Shipments | BK11: End of Year Stock | BL11: Density | BM11: Stock Growth | BN11: Stock Saturation | BQ11: Beginning Stock | BR11: Demolitions | BS11: Replacement Units | BT11: New Units | BU11: Total Shipments | BV11: End of Year Stock | BW11: Density | BX11: Stock Growth | BY11: Stock Saturation | CB11: Beginning Stock | CC11: Demolitions | CD11: Replacement Units | CE11: New Units | CF11: Total Shipments | CG11: End of Year Stock | CH11: Density | CI11: Stock Growth | CJ11: Stock Saturation | CM11: Beginning Stock | CN11: Demolitions | CO11: Replacement Units | CP11: New Units | CQ11: Total Shipments | CR11: End of Year Stock | CS11: Density | CT11: Stock Growth | CU11: Stock Saturation | CX11: Beginning Stock | CY11: Demolitions | CZ11: Replacement Units | DA11: New Units | DB11: Total Shipments | DC11: End of Year Stock | DD11: Density | DE11: Stock Growth | DF11: Stock Saturation | DI11: Beginning Stock | DJ11: Demolitions | DK11: Replacement Units | DL11: New Units | DM11: Total Shipments | DN11: End of Year Stock | DO11: Density | DP11: Stock Growth | DQ11: Stock Saturation | DT11: Beginning Stock | DU11: Demolitions | DV11: Replacement Units | DW11: New Units | DX11: Total Shipments | DY11: End of Year Stock | DZ11: Density | EA11: Stock Growth | EB11: Stock Saturation | EE11: Beginning Stock | EF11: Demolitions | EG11: Replacement Units | EH11: New Units | EI11: Total Shipments | EJ11: End of Year Stock | EK11: Density | EL11: Stock Growth | EM11: Stock Saturation | EP11: Beginning Stock | EQ11: Demolitions | ER11: Replacement Units | ES11: New Units | ET11: Total Shipments | EU11: End of Year Stock | EV11: Density | EW11: Stock Growth | EX11: Stock Saturation | FA11: Beginning Stock | FB11: Demolitions | FC11: Replacement Units | FD11: New Units | FE11: Total Shipments | FF11: End of Year Stock | FG11: Density | FH11: Stock Growth | FI11: Stock Saturation | FL11: Beginning Stock | FM11: Demolitions | FN11: Replacement Units | FO11: New Units | FP11: Total Shipments | FQ11: End of Year Stock | FR11: Density | FS11: Stock Growth | FT11: Stock Saturation | FW11: Beginning Stock | FX11: Demolitions | FY11: Replacement Units | FZ11: New Units | GA11: Total Shipments | GB11: End of Year Stock | GC11: Density | GD11: Stock Growth | GE11: Stock Saturation | GH11: Beginning Stock | GI11: Demolitions | GJ11: Replacement Units | GK11: New Units | GL11: Total Shipments | GM11: End of Year Stock | GN11: Density | GO11: Stock Growth | GP11: Stock Saturation | GS11: Beginning Stock | GT11: Demolitions | GU11: Replacement Units | GV11: New Units | GW11: Total Shipments | GX11: End of Year Stock | GY11: Density | GZ11: Stock Growth | HA11: Stock Saturation
B12: 1987 | H12: =SUM(S12,AD12,AO12,AZ12,BK12,BV12,CG12,CR12,DC12,DN12,DY12,EJ12,EU12,FF12,FQ12,GB12,GM12,GX12) -> 10177.85581 | I12: =(K36-K12)/D$8+K12 -> 5.76644517 | K12: =INDEX('Saturation and Lifetime'!$B$7:$U$18,MATCH('Pre-Rinse Spray Valves'!$A$1,'Saturation and Lifetime'!$B$7:$B$18,0),MATCH('Pre-Rinse Spray Valves'!B10,'Saturation and Lifetime'!$B$7:$U$7,0)) -> 5.76644517 | M12: 1987 | S12: =V36*HLOOKUP(M10,'Saturation and Lifetime'!$C$58:$T$59,2,FALSE)-SUM(Q13:Q35) -> 981.1940933 | T12: =(V36-V12)/O$8+V12 -> 5.76644517 | V12: =INDEX('Saturation and Lifetime'!$B$7:$U$18,MATCH('Pre-Rinse Spray Valves'!$A$1,'Saturation and Lifetime'!$B$7:$B$18,0),MATCH('Pre-Rinse Spray Valves'!M10,'Saturation and Lifetime'!$B$7:$U$7,0)) -> 5.76644517 | X12: 1987 | AD12: =AG36*HLOOKUP(X10,'Saturation and Lifetime'!$C$58:$T$59,2,FALSE)-SUM(AB13:AB35) -> 442.0681471 | AE12: =(AG36-AG12)/Z$8+AG12 -> 5.76644517 | AG12: =INDEX('Saturation and Lifetime'!$B$7:$U$18,MATCH('Pre-Rinse Spray Valves'!$A$1,'Saturation and Lifetime'!$B$7:$B$18,0),MATCH('Pre-Rinse Spray Valves'!X10,'Saturation and Lifetime'!$B$7:$U$7,0)) -> 5.76644517 | AI12: 1987 | AO12: =AR36*HLOOKUP(AI10,'Saturation and Lifetime'!$C$58:$T$59,2,FALSE)-SUM(AM13:AM35) -> 518.7099078 | AP12: =(AR36-AR12)/AK$8+AR12 -> 5.76644517 | AR12: =INDEX('Saturation and Lifetime'!$B$7:$U$18,MATCH('Pre-Rinse Spray Valves'!$A$1,'Saturation and Lifetime'!$B$7:$B$18,0),MATCH('Pre-Rinse Spray Valves'!AI10,'Saturation and Lifetime'!$B$7:$U$7,0)) -> 5.76644517 | AT12: 1987 | AZ12: =BC36*HLOOKUP(AT10,'Saturation and Lifetime'!$C$58:$T$59,2,FALSE)-SUM(AX13:AX35) -> 475.955057 | BA12: =(BC36-BC12)/AV$8+BC12 -> 5.76644517 | BC12: =INDEX('Saturation and Lifetime'!$B$7:$U$18,MATCH('Pre-Rinse Spray Valves'!$A$1,'Saturation and Lifetime'!$B$7:$B$18,0),MATCH('Pre-Rinse Spray Valves'!AT10,'Saturation and Lifetime'!$B$7:$U$7,0)) -> 5.76644517 | BE12: 1987 | BK12: =BN36*HLOOKUP(BE10,'Saturation and Lifetime'!$C$58:$T$59,2,FALSE)-SUM(BI13:BI35) -> 879.0810566 | BL12: =(BN36-BN12)/BG$8+BN12 -> 5.76644517 | BN12: =INDEX('Saturation and Lifetime'!$B$7:$U$18,MATCH('Pre-Rinse Spray Valves'!$A$1,'Saturation and Lifetime'!$B$7:$B$18,0),MATCH('Pre-Rinse Spray Valves'!BE10,'Saturation and Lifetime'!$B$7:$U$7,0)) -> 5.76644517 | BP12: 1987 | BV12: =BY36*HLOOKUP(BP10,'Saturation and Lifetime'!$C$58:$T$59,2,FALSE)-SUM(BT13:BT35) -> 219.7702641 | BW12: =(BY36-BY12)/BR$8+BY12 -> 5.76644517 | BY12: =INDEX('Saturation and Lifetime'!$B$7:$U$18,MATCH('Pre-Rinse Spray Valves'!$A$1,'Saturation and Lifetime'!$B$7:$B$18,0),MATCH('Pre-Rinse Spray Valves'!BP10,'Saturation and Lifetime'!$B$7:$U$7,0)) -> 5.76644517 | CA12: 1987 | CG12: =CJ36*HLOOKUP(CA10,'Saturation and Lifetime'!$C$58:$T$59,2,FALSE)-SUM(CE13:CE35) -> 424.3143458 | CH12: =(CJ36-CJ12)/CC$8+CJ12 -> 5.76644517 | CJ12: =INDEX('Saturation and Lifetime'!$B$7:$U$18,MATCH('Pre-Rinse Spray Valves'!$A$1,'Saturation and Lifetime'!$B$7:$B$18,0),MATCH('Pre-Rinse Spray Valves'!CA10,'Saturation and Lifetime'!$B$7:$U$7,0)) -> 5.76644517 | CL12: 1987 | CR12: =CU36*HLOOKUP(CL10,'Saturation and Lifetime'!$C$58:$T$59,2,FALSE)-SUM(CP13:CP35) -> 866.8219497 | CS12: =(CU36-CU12)/CN$8+CU12 -> 5.76644517 | CU12: =INDEX('Saturation and Lifetime'!$B$7:$U$18,MATCH('Pre-Rinse Spray Valves'!$A$1,'Saturation and Lifetime'!$B$7:$B$18,0),MATCH('Pre-Rinse Spray Valves'!CL10,'Saturation and Lifetime'!$B$7:$U$7,0)) -> 5.76644517 | CW12: 1987 | DC12: =DF36*HLOOKUP(CW10,'Saturation and Lifetime'!$C$58:$T$59,2,FALSE)-SUM(DA13:DA35) -> 439.3585566 | DD12: =(DF36-DF12)/CY$8+DF12 -> 5.76644517 | DF12: =INDEX('Saturation and Lifetime'!$B$7:$U$18,MATCH('Pre-Rinse Spray Valves'!$A$1,'Saturation and Lifetime'!$B$7:$B$18,0),MATCH('Pre-Rinse Spray Valves'!CW10,'Saturation and Lifetime'!$B$7:$U$7,0)) -> 5.76644517 | DH12: 1987 | DN12: =DQ36*HLOOKUP(DH10,'Saturation and Lifetime'!$C$58:$T$59,2,FALSE)-SUM(DL13:DL35) -> 1026.488337 | DO12: =(DQ36-DQ12)/DJ$8+DQ12 -> 5.76644517 | DQ12: =INDEX('Saturation and Lifetime'!$B$7:$U$18,MATCH('Pre-Rinse Spray Valves'!$A$1,'Saturation and Lifetime'!$B$7:$B$18,0),MATCH('Pre-Rinse Spray Valves'!DH10,'Saturation and Lifetime'!$B$7:$U$7,0)) -> 5.76644517 | DS12: 1987 | DY12: =EB36*HLOOKUP(DS10,'Saturation and Lifetime'!$C$58:$T$59,2,FALSE)-SUM(DW13:DW35) -> 207.8270954 | DZ12: =(EB36-EB12)/DU$8+EB12 -> 5.76644517 | EB12: =INDEX('Saturation and Lifetime'!$B$7:$U$18,MATCH('Pre-Rinse Spray Valves'!$A$1,'Saturation and Lifetime'!$B$7:$B$18,0),MATCH('Pre-Rinse Spray Valves'!DS10,'Saturation and Lifetime'!$B$7:$U$7,0)) -> 5.76644517 | ED12: 1987 | EJ12: =EM36*HLOOKUP(ED10,'Saturation and Lifetime'!$C$58:$T$59,2,FALSE)-SUM(EH13:EH35) -> 84.09859458 | EK12: =(EM36-EM12)/EF$8+EM12 -> 5.76644517 | EM12: =INDEX('Saturation and Lifetime'!$B$7:$U$18,MATCH('Pre-Rinse Spray Valves'!$A$1,'Saturation and Lifetime'!$B$7:$B$18,0),MATCH('Pre-Rinse Spray Valves'!ED10,'Saturation and Lifetime'!$B$7:$U$7,0)) -> 5.76644517 | EO12: 1987 | EU12: =EX36*HLOOKUP(EO10,'Saturation and Lifetime'!$C$58:$T$59,2,FALSE)-SUM(ES13:ES35) -> 199.1827613 | EV12: =(EX36-EX12)/EQ$8+EX12 -> 5.76644517 | EX12: =INDEX('Saturation and Lifetime'!$B$7:$U$18,MATCH('Pre-Rinse Spray Valves'!$A$1,'Saturation and Lifetime'!$B$7:$B$18,0),MATCH('Pre-Rinse Spray Valves'!EO10,'Saturation and Lifetime'!$B$7:$U$7,0)) -> 5.76644517 | EZ12: 1987 | FF12: =FI36*HLOOKUP(EZ10,'Saturation and Lifetime'!$C$58:$T$59,2,FALSE)-SUM(FD13:FD35) -> 611.668607 | FG12: =(FI36-FI12)/FB$8+FI12 -> 5.76644517 | FI12: =INDEX('Saturation and Lifetime'!$B$7:$U$18,MATCH('Pre-Rinse Spray Valves'!$A$1,'Saturation and Lifetime'!$B$7:$B$18,0),MATCH('Pre-Rinse Spray Valves'!EZ10,'Saturation and Lifetime'!$B$7:$U$7,0)) -> 5.76644517 | FK12: 1987 | FQ12: =FT36*HLOOKUP(FK10,'Saturation and Lifetime'!$C$58:$T$59,2,FALSE)-SUM(FO13:FO35) -> 224.1733386 | FR12: =(FT36-FT12)/FM$8+FT12 -> 5.76644517 | FT12: =INDEX('Saturation and Lifetime'!$B$7:$U$18,MATCH('Pre-Rinse Spray Valves'!$A$1,'Saturation and Lifetime'!$B$7:$B$18,0),MATCH('Pre-Rinse Spray Valves'!FK10,'Saturation and Lifetime'!$B$7:$U$7,0)) -> 5.76644517 | FV12: 1987 | GB12: =GE36*HLOOKUP(FV10,'Saturation and Lifetime'!$C$58:$T$59,2,FALSE)-SUM(FZ13:FZ35) -> 488.9209509 | GC12: =(GE36-GE12)/FX$8+GE12 -> 5.76644517 | GE12: =INDEX('Saturation and Lifetime'!$B$7:$U$18,MATCH('Pre-Rinse Spray Valves'!$A$1,'Saturation and Lifetime'!$B$7:$B$18,0),MATCH('Pre-Rinse Spray Valves'!FV10,'Saturation and Lifetime'!$B$7:$U$7,0)) -> 5.76644517 | GG12: 1987 | GM12: =GP36*HLOOKUP(GG10,'Saturation and Lifetime'!$C$58:$T$59,2,FALSE)-SUM(GK13:GK35) -> 709.995735 | GN12: =(GP36-GP12)/GI$8+GP12 -> 5.76644517 | GP12: =INDEX('Saturation and Lifetime'!$B$7:$U$18,MATCH('Pre-Rinse Spray Valves'!$A$1,'Saturation and Lifetime'!$B$7:$B$18,0),MATCH('Pre-Rinse Spray Valves'!GG10,'Saturation and Lifetime'!$B$7:$U$7,0)) -> 5.76644517 | GR12: 1987 | GX12: =HA36*HLOOKUP(GR10,'Saturation and Lifetime'!$C$58:$T$59,2,FALSE)-SUM(GV13:GV35) -> 1378.227015 | GY12: =(HA36-HA12)/GT$8+HA12 -> 5.76644517 | HA12: =INDEX('Saturation and Lifetime'!$B$7:$U$18,MATCH('Pre-Rinse Spray Valves'!$A$1,'Saturation and Lifetime'!$B$7:$B$18,0),MATCH('Pre-Rinse Spray Valves'!GR10,'Saturation and Lifetime'!$B$7:$U$7,0)) -> 5.76644517
B13: =B12+1 -> 1988 | C13: =SUM(N13,Y13,AJ13,AU13,BF13,BQ13,CB13,CM13,CX13,DI13,DT13,EE13,EP13,FA13,FL13,FW13,GH13,GS13) -> 10177.85581 | D13: 0 | E13: 1947.509453 | F13: 209.034398 | G13: 2156.543851 | H13: 10386.89021 | I13: =(K$36-I$12)/(B$36-B$12)*D$8+I12 -> 5.76644517 | J13: =H13/H12-1 -> 0.02053815675 | M13: =M12+1 -> 1988 | N13: =S12 -> 981.1940933 | O13: 0 | P13: =((N13/((1+O$7)^O$6))/O$6*R$7)+(N13/((1+O$7)^O$6))*O$7 -> 188.2906252 | Q13: =INDEX('Floor Space'!$I$5:$DK$54,MATCH('Pre-Rinse Spray Valves'!M13,'Floor Space'!$I$5:$I$54,0),MATCH('Pre-Rinse Spray Valves'!M$10,'Floor Space'!$I$5:$DK$5,0))*'Pre-Rinse Spray Valves'!T13 -> 13.76333664 | R13: =Q13+P13 -> 202.0539618 | S13: =N13+Q13-O13 -> 994.9574299 | T13: =(V$36-T$12)/(M$36-M$12)*O$8+T12 -> 5.76644517 | U13: =S13/S12-1 -> 0.01402712953 | X13: =X12+1 -> 1988 | Y13: =AD12 -> 442.0681471 | Z13: 0 | AA13: =((Y13/((1+Z$7)^Z$6))/Z$6*AC$7)+(Y13/((1+Z$7)^Z$6))*Z$7 -> 84.83264256 | AB13: =INDEX('Floor Space'!$I$5:$DK$50,MATCH('Pre-Rinse Spray Valves'!X13,'Floor Space'!$I$5:$I$50,0),MATCH('Pre-Rinse Spray Valves'!X$10,'Floor Space'!$I$5:$DK$5,0))*'Pre-Rinse Spray Valves'!AE13 -> 6.20094716 | AC13: =AB13+AA13 -> 91.03358972 | AD13: =Y13+AB13-Z13 -> 448.2690942 | AE13: =(AG$36-AE$12)/(X$36-X$12)*Z$8+AE12 -> 5.76644517 | AF13: =AD13/AD12-1 -> 0.01402712953 | AI13: =AI12+1 -> 1988 | AJ13: =AO12 -> 518.7099078 | AK13: 0 | AL13: =((AJ13/((1+AK$7)^AK$6))/AK$6*AN$7)+(AJ13/((1+AK$7)^AK$6))*AK$7 -> 99.54015572 | AM13: =INDEX('Floor Space'!$I$5:$DK$50,MATCH('Pre-Rinse Spray Valves'!AI13,'Floor Space'!$I$5:$I$50,0),MATCH('Pre-Rinse Spray Valves'!AI$10,'Floor Space'!$I$5:$DK$5,0))*'Pre-Rinse Spray Valves'!AP13 -> 7.276011065 | AN13: =AM13+AL13 -> 106.8161668 | AO13: =AJ13+AM13-AK13 -> 525.9859188 | AP13: =(AR$36-AP$12)/(AI$36-AI$12)*AK$8+AP12 -> 5.76644517 | AQ13: =AO13/AO12-1 -> 0.01402712953 | AT13: =AT12+1 -> 1988 | AU13: =AZ12 -> 475.955057 | AV13: 0 | AW13: =((AU13/((1+AV$7)^AV$6))/AV$6*AY$7)+(AU13/((1+AV$7)^AV$6))*AV$7 -> 90.89508207 | AX13: =INDEX('Floor Space'!$I$5:$DK$50,MATCH('Pre-Rinse Spray Valves'!AT13,'Floor Space'!$I$5:$I$50,0),MATCH('Pre-Rinse Spray Valves'!AT$10,'Floor Space'!$I$5:$DK$5,0))*'Pre-Rinse Spray Valves'!BA13 -> 10.4197674 | AY13: =AX13+AW13 -> 101.3148495 | AZ13: =AU13+AX13-AV13 -> 486.3748244 | BA13: =(BC$36-BA$12)/(AT$36-AT$12)*AV$8+BA12 -> 5.76644517 | BB13: =AZ13/AZ12-1 -> 0.02189233468 | BE13: =BE12+1 -> 1988 | BF13: =BK12 -> 879.0810566 | BG13: 0 | BH13: =((BF13/((1+BG$7)^BG$6))/BG$6*BJ$7)+(BF13/((1+BG$7)^BG$6))*BG$7 -> 167.8817015 | BI13: =INDEX('Floor Space'!$I$5:$DK$50,MATCH('Pre-Rinse Spray Valves'!BE13,'Floor Space'!$I$5:$I$50,0),MATCH('Pre-Rinse Spray Valves'!BE$10,'Floor Space'!$I$5:$DK$5,0))*'Pre-Rinse Spray Valves'!BL13 -> 19.24513671 | BJ13: =BI13+BH13 -> 187.1268382 | BK13: =BF13+BI13-BG13 -> 898.3261933 | BL13: =(BN$36-BL$12)/(BE$36-BE$12)*BG$8+BL12 -> 5.76644517 | BM13: =BK13/BK12-1 -> 0.02189233468 | BP13: =BP12+1 -> 1988 | BQ13: =BV12 -> 219.7702641 | BR13: 0 | BS13: =((BQ13/((1+BR$7)^BR$6))/BR$6*BU$7)+(BQ13/((1+BR$7)^BR$6))*BR$7 -> 41.97042537 | BT13: =INDEX('Floor Space'!$I$5:$DK$50,MATCH('Pre-Rinse Spray Valves'!BP13,'Floor Space'!$I$5:$I$50,0),MATCH('Pre-Rinse Spray Valves'!BP$10,'Floor Space'!$I$5:$DK$5,0))*'Pre-Rinse Spray Valves'!BW13 -> 4.811284176 | BU13: =BT13+BS13 -> 46.78170955 | BV13: =BQ13+BT13-BR13 -> 224.5815483 | BW13: =(BY$36-BW$12)/(BP$36-BP$12)*BR$8+BW12 -> 5.76644517 | BX13: =BV13/BV12-1 -> 0.02189233468 | CA13: =CA12+1 -> 1988 | CB13: =CG12 -> 424.3143458 | CC13: 0 | CD13: =((CB13/((1+CC$7)^CC$6))/CC$6*CF$7)+(CB13/((1+CC$7)^CC$6))*CC$7 -> 81.03304446 | CE13: =INDEX('Floor Space'!$I$5:$DK$50,MATCH('Pre-Rinse Spray Valves'!CA13,'Floor Space'!$I$5:$I$50,0),MATCH('Pre-Rinse Spray Valves'!CA$10,'Floor Space'!$I$5:$DK$5,0))*'Pre-Rinse Spray Valves'!CH13 -> 9.28923167 | CF13: =CE13+CD13 -> 90.32227613 | CG13: =CB13+CE13-CC13 -> 433.6035775 | CH13: =(CJ$36-CH$12)/(CA$36-CA$12)*CC$8+CH12 -> 5.76644517 | CI13: =CG13/CG12-1 -> 0.02189233468 | CL13: =CL12+1 -> 1988 | CM13: =CR12 -> 866.8219497 | CN13: 0 | CO13: =((CM13/((1+CN$7)^CN$6))/CN$6*CQ$7)+(CM13/((1+CN$7)^CN$6))*CN$7 -> 165.6601046 | CP13: =INDEX('Floor Space'!$I$5:$DK$50,MATCH('Pre-Rinse Spray Valves'!CL13,'Floor Space'!$I$5:$I$50,0),MATCH('Pre-Rinse Spray Valves'!CL$10,'Floor Space'!$I$5:$DK$5,0))*'Pre-Rinse Spray Valves'!CS13 -> 12.25787112 | CQ13: =CP13+CO13 -> 177.9179757 | CR13: =CM13+CP13-CN13 -> 879.0798208 | CS13: =(CU$36-CS$12)/(CL$36-CL$12)*CN$8+CS12 -> 5.76644517 | CT13: =CR13/CR12-1 -> 0.01414116374 | CW13: =CW12+1 -> 1988 | CX13: =DC12 -> 439.3585566 | CY13: 0 | CZ13: =((CX13/((1+CY$7)^CY$6))/CY$6*DB$7)+(CX13/((1+CY$7)^CY$6))*CY$7 -> 84.6644898 | DA13: =INDEX('Floor Space'!$I$5:$DK$50,MATCH('Pre-Rinse Spray Valves'!CW13,'Floor Space'!$I$5:$I$50,0),MATCH('Pre-Rinse Spray Valves'!CW$10,'Floor Space'!$I$5:$DK$5,0))*'Pre-Rinse Spray Valves'!DD13 -> 6.314660882 | DB13: =DA13+CZ13 -> 90.97915068 | DC13: =CX13+DA13-CY13 -> 445.6732175 | DD13: =(DF$36-DD$12)/(CW$36-CW$12)*CY$8+DD12 -> 5.76644517 | DE13: =DC13/DC12-1 -> 0.01437245454 | DH13: =DH12+1 -> 1988 | DI13: =DN12 -> 1026.488337 | DJ13: 0 | DK13: =((DI13/((1+DJ$7)^DJ$6))/DJ$6*DM$7)+(DI13/((1+DJ$7)^DJ$6))*DJ$7 -> 194.7147973 | DL13: =INDEX('Floor Space'!$I$5:$DK$50,MATCH('Pre-Rinse Spray Valves'!DH13,'Floor Space'!$I$5:$I$50,0),MATCH('Pre-Rinse Spray Valves'!DH$10,'Floor Space'!$I$5:$DK$5,0))*'Pre-Rinse Spray Valves'!DO13 -> 35.65451809 | DM13: =DL13+DK13 -> 230.3693154 | DN13: =DI13+DL13-DJ13 -> 1062.142855 | DO13: =(DQ$36-DO$12)/(DH$36-DH$12)*DJ$8+DO12 -> 5.76644517 | DP13: =DN13/DN12-1 -> 0.03473446 | DS13: =DS12+1 -> 1988 | DT13: =DY12 -> 207.8270954 | DU13: 0 | DV13: =((DT13/((1+DU$7)^DU$6))/DU$6*DX$7)+(DT13/((1+DU$7)^DU$6))*DU$7 -> 41.39509667 | DW13: =INDEX('Floor Space'!$I$5:$DK$50,MATCH('Pre-Rinse Spray Valves'!DS13,'Floor Space'!$I$5:$I$50,0),MATCH('Pre-Rinse Spray Valves'!DS$10,'Floor Space'!$I$5:$DK$5,0))*'Pre-Rinse Spray Valves'!DZ13 -> 5.009902724 | DX13: =DW13+DV13 -> 46.4049994 | DY13: =DT13+DW13-DU13 -> 212.8369981 | DZ13: =(EB$36-DZ$12)/(DS$36-DS$12)*DU$8+DZ12 -> 5.76644517 | EA13: =DY13/DY12-1 -> 0.02410610952 | ED13: =ED12+1 -> 1988 | EE13: =EJ12 -> 84.09859458 | EF13: 0 | EG13: =((EE13/((1+EF$7)^EF$6))/EF$6*EI$7)+(EE13/((1+EF$7)^EF$6))*EF$7 -> 16.58985555 | EH13: =INDEX('Floor Space'!$I$5:$DK$50,MATCH('Pre-Rinse Spray Valves'!ED13,'Floor Space'!$I$5:$I$50,0),MATCH('Pre-Rinse Spray Valves'!ED$10,'Floor Space'!$I$5:$DK$5,0))*'Pre-Rinse Spray Valves'!EK13 -> 2.027289932 | EI13: =EH13+EG13 -> 18.61714548 | EJ13: =EE13+EH13-EF13 -> 86.12588451 | EK13: =(EM$36-EK$12)/(ED$36-ED$12)*EF$8+EK12 -> 5.76644517 | EL13: =EJ13/EJ12-1 -> 0.02410610952 | EO13: =EO12+1 -> 1988 | EP13: =EU12 -> 199.1827613 | EQ13: 0 | ER13: =((EP13/((1+EQ$7)^EQ$6))/EQ$6*ET$7)+(EP13/((1+EQ$7)^EQ$6))*EQ$7 -> 39.38248731 | ES13: =INDEX('Floor Space'!$I$5:$DK$50,MATCH('Pre-Rinse Spray Valves'!EO13,'Floor Space'!$I$5:$I$50,0),MATCH('Pre-Rinse Spray Valves'!EO$10,'Floor Space'!$I$5:$DK$5,0))*'Pre-Rinse Spray Valves'!EV13 -> 1.760161257 | ET13: =ES13+ER13 -> 41.14264856 | EU13: =EP13+ES13-EQ13 -> 200.9429226 | EV13: =(EX$36-EV$12)/(EO$36-EO$12)*EQ$8+EV12 -> 5.76644517 | EW13: =EU13/EU12-1 -> 0.00883691563 | EZ13: =EZ12+1 -> 1988 | FA13: =FF12 -> 611.668607 | FB13: 0 | FC13: =((FA13/((1+FB$7)^FB$6))/FB$6*FE$7)+(FA13/((1+FB$7)^FB$6))*FB$7 -> 117.8218313 | FD13: =INDEX('Floor Space'!$I$5:$DK$50,MATCH('Pre-Rinse Spray Valves'!EZ13,'Floor Space'!$I$5:$I$50,0),MATCH('Pre-Rinse Spray Valves'!EZ$10,'Floor Space'!$I$5:$DK$5,0))*'Pre-Rinse Spray Valves'!FG13 -> 18.81122824 | FE13: =FD13+FC13 -> 136.6330596 | FF13: =FA13+FD13-FB13 -> 630.4798352 | FG13: =(FI$36-FG$12)/(EZ$36-EZ$12)*FB$8+FG12 -> 5.76644517 | FH13: =FF13/FF12-1 -> 0.03075395406 | FK13: =FK12+1 -> 1988 | FL13: =FQ12 -> 224.1733386 | FM13: 0 | FN13: =((FL13/((1+FM$7)^FM$6))/FM$6*FP$7)+(FL13/((1+FM$7)^FM$6))*FM$7 -> 43.03780468 | FO13: =INDEX('Floor Space'!$I$5:$DK$50,MATCH('Pre-Rinse Spray Valves'!FK13,'Floor Space'!$I$5:$I$50,0),MATCH('Pre-Rinse Spray Valves'!FK$10,'Floor Space'!$I$5:$DK$5,0))*'Pre-Rinse Spray Valves'!FR13 -> 4.295708048 | FP13: =FO13+FN13 -> 47.33351273 | FQ13: =FL13+FO13-FM13 -> 228.4690467 | FR13: =(FT$36-FR$12)/(FK$36-FK$12)*FM$8+FR12 -> 5.76644517 | FS13: =FQ13/FQ12-1 -> 0.01916243954 | FV13: =FV12+1 -> 1988 | FW13: =GB12 -> 488.9209509 | FX13: 0 | FY13: =((FW13/((1+FX$7)^FX$6))/FX$6*GA$7)+(FW13/((1+FX$7)^FX$6))*FX$7 -> 93.20600703 | FZ13: =INDEX('Floor Space'!$I$5:$DK$50,MATCH('Pre-Rinse Spray Valves'!FV13,'Floor Space'!$I$5:$I$50,0),MATCH('Pre-Rinse Spray Valves'!FV$10,'Floor Space'!$I$5:$DK$5,0))*'Pre-Rinse Spray Valves'!GC13 -> 8.978222018 | GA13: =FZ13+FY13 -> 102.184229 | GB13: =FW13+FZ13-FX13 -> 497.8991729 | GC13: =(GE$36-GC$12)/(FV$36-FV$12)*FX$8+GC12 -> 5.76644517 | GD13: =GB13/GB12-1 -> 0.01836334074 | GG13: =GG12+1 -> 1988 | GH13: =GM12 -> 709.995735 | GI13: 0 | GJ13: =((GH13/((1+GI$7)^GI$6))/GI$6*GL$7)+(GH13/((1+GI$7)^GI$6))*GI$7 -> 136.1919639 | GK13: =INDEX('Floor Space'!$I$5:$DK$50,MATCH('Pre-Rinse Spray Valves'!GG13,'Floor Space'!$I$5:$I$50,0),MATCH('Pre-Rinse Spray Valves'!GG$10,'Floor Space'!$I$5:$DK$5,0))*'Pre-Rinse Spray Valves'!GN13 -> 13.80371207 | GL13: =GK13+GJ13 -> 149.9956759 | GM13: =GH13+GK13-GI13 -> 723.799447 | GN13: =(GP$36-GN$12)/(GG$36-GG$12)*GI$8+GN12 -> 5.76644517 | GO13: =GM13/GM12-1 -> 0.01944196477 | GR13: =GR12+1 -> 1988 | GS13: =GX12 -> 1378.227015 | GT13: 0 | GU13: =((GS13/((1+GT$7)^GT$6))/GT$6*GW$7)+(GS13/((1+GT$7)^GT$6))*GT$7 -> 260.4013381 | GV13: =INDEX('Floor Space'!$I$5:$DK$50,MATCH('Pre-Rinse Spray Valves'!GR13,'Floor Space'!$I$5:$I$50,0),MATCH('Pre-Rinse Spray Valves'!GR$10,'Floor Space'!$I$5:$DK$5,0))*'Pre-Rinse Spray Valves'!GY13 -> 29.11540882 | GW13: =GV13+GU13 -> 289.5167469 | GX13: =GS13+GV13-GT13 -> 1407.342424 | GY13: =(HA$36-GY$12)/(GR$36-GR$12)*GT$8+GY12 -> 5.76644517 | GZ13: =GX13/GX12-1 -> 0.02112526348
B14: =B13+1 -> 1989 | C14: =SUM(N14,Y14,AJ14,AU14,BF14,BQ14,CB14,CM14,CX14,DI14,DT14,EE14,EP14,FA14,FL14,FW14,GH14,GS14) -> 10386.89021 | D14: =SUM(O14,Z14,AK14,AV14,BG14,BR14,CC14,CN14,CY14,DJ14,DU14,EF14,EQ14,FB14,FM14,FX14,GI14,GT14) -> 0 | E14: =SUM(P14,AA14,AL14,AW14,BH14,BS14,CD14,CO14,CZ14,DK14,DV14,EG14,ER14,FC14,FN14,FY14,GJ14,GU14) -> 1987.472157 | F14: =SUM(Q14,AB14,AM14,AX14,BI14,BT14,CE14,CP14,DA14,DL14,DW14,EH14,ES14,FD14,FO14,FZ14,GK14,GV14) -> 203.6197527 | G14: =SUM(R14,AC14,AN14,AY14,BJ14,BU14,CF14,CQ14,DB14,DM14,DX14,EI14,ET14,FE14,FP14,GA14,GL14,GW14) -> 2191.091909 | H14: =SUM(S14,AD14,AO14,AZ14,BK14,BV14,CG14,CR14,DC14,DN14,DY14,EJ14,EU14,FF14,FQ14,GB14,GM14,GX14) -> 10590.50996 | I14: 5.76644517 | J14: =H14/H13-1 -> 0.01960353374 | M14: =M13+1 -> 1989 | N14: =S13 -> 994.9574299 | O14: 0 | P14: 190.9318022 | Q14: =INDEX('Floor Space'!$I$5:$DK$54,MATCH('Pre-Rinse Spray Valves'!M14,'Floor Space'!$I$5:$I$54,0),MATCH('Pre-Rinse Spray Valves'!M$10,'Floor Space'!$I$5:$DK$5,0))*'Pre-Rinse Spray Valves'!T14 -> 18.73027119 | R14: =Q14+P14 -> 209.6620734 | S14: =N14+Q14-O14 -> 1013.687701 | T14: 5.76644517 | U14: =S14/S13-1 -> 0.01882519857 | X14: =X13+1 -> 1989 | Y14: =AD13 -> 448.2690942 | Z14: 0 | AA14: 86.02260102 | AB14: =INDEX('Floor Space'!$I$5:$DK$50,MATCH('Pre-Rinse Spray Valves'!X14,'Floor Space'!$I$5:$I$50,0),MATCH('Pre-Rinse Spray Valves'!X$10,'Floor Space'!$I$5:$DK$5,0))*'Pre-Rinse Spray Valves'!AE14 -> 8.438754711 | AC14: =AB14+AA14 -> 94.46135573 | AD14: =Y14+AB14-Z14 -> 456.7078489 | AE14: 5.76644517 | AF14: =AD14/AD13-1 -> 0.01882519857 | AI14: =AI13+1 -> 1989 | AJ14: =AO13 -> 525.9859188 | AK14: 0 | AL14: 100.9364184 | AM14: =INDEX('Floor Space'!$I$5:$DK$50,MATCH('Pre-Rinse Spray Valves'!AI14,'Floor Space'!$I$5:$I$50,0),MATCH('Pre-Rinse Spray Valves'!AI$10,'Floor Space'!$I$5:$DK$5,0))*'Pre-Rinse Spray Valves'!AP14 -> 9.901789367 | AN14: =AM14+AL14 -> 110.8382077 | AO14: =AJ14+AM14-AK14 -> 535.8877082 | AP14: 5.76644517 | AQ14: =AO14/AO13-1 -> 0.01882519857 | AT14: =AT13+1 -> 1989 | AU14: =AZ13 -> 486.3748244 | AV14: 0 | AW14: 92.88498763 | AX14: =INDEX('Floor Space'!$I$5:$DK$50,MATCH('Pre-Rinse Spray Valves'!AT14,'Floor Space'!$I$5:$I$50,0),MATCH('Pre-Rinse Spray Valves'!AT$10,'Floor Space'!$I$5:$DK$5,0))*'Pre-Rinse Spray Valves'!BA14 -> 9.173724062 | AY14: =AX14+AW14 -> 102.0587117 | AZ14: =AU14+AX14-AV14 -> 495.5485484 | BA14: 5.76644517 | BB14: =AZ14/AZ13-1 -> 0.01886142868 | BE14: =BE13+1 -> 1989 | BF14: =BK13 -> 898.3261933 | BG14: 0 | BH14: 171.5570239 | BI14: =INDEX('Floor Space'!$I$5:$DK$50,MATCH('Pre-Rinse Spray Valves'!BE14,'Floor Space'!$I$5:$I$50,0),MATCH('Pre-Rinse Spray Valves'!BE$10,'Floor Space'!$I$5:$DK$5,0))*'Pre-Rinse Spray Valves'!BL14 -> 16.94371543 | BJ14: =BI14+BH14 -> 188.5007393 | BK14: =BF14+BI14-BG14 -> 915.2699087 | BL14: 5.76644517 | BM14: =BK14/BK13-1 -> 0.01886142868 | BP14: =BP13+1 -> 1989 | BQ14: =BV13 -> 224.5815483 | BR14: 0 | BS14: 42.88925597 | BT14: =INDEX('Floor Space'!$I$5:$DK$50,MATCH('Pre-Rinse Spray Valves'!BP14,'Floor Space'!$I$5:$I$50,0),MATCH('Pre-Rinse Spray Valves'!BP$10,'Floor Space'!$I$5:$DK$5,0))*'Pre-Rinse Spray Valves'!BW14 -> 4.235928857 | BU14: =BT14+BS14 -> 47.12518482 | BV14: =BQ14+BT14-BR14 -> 228.8174772 | BW14: 5.76644517 | BX14: =BV14/BV13-1 -> 0.01886142868 | CA14: =CA13+1 -> 1989 | CB14: =CG13 -> 433.6035775 | CC14: 0 | CD14: 82.80704699 | CE14: =INDEX('Floor Space'!$I$5:$DK$50,MATCH('Pre-Rinse Spray Valves'!CA14,'Floor Space'!$I$5:$I$50,0),MATCH('Pre-Rinse Spray Valves'!CA$10,'Floor Space'!$I$5:$DK$5,0))*'Pre-Rinse Spray Valves'!CH14 -> 8.178382953 | CF14: =CE14+CD14 -> 90.98542994 | CG14: =CB14+CE14-CC14 -> 441.7819605 | CH14: 5.76644517 | CI14: =CG14/CG13-1 -> 0.01886142868 | CL14: =CL13+1 -> 1989 | CM14: =CR13 -> 879.0798208 | CN14: 0 | CO14: 168.0027313 | CP14: =INDEX('Floor Space'!$I$5:$DK$50,MATCH('Pre-Rinse Spray Valves'!CL14,'Floor Space'!$I$5:$I$50,0),MATCH('Pre-Rinse Spray Valves'!CL$10,'Floor Space'!$I$5:$DK$5,0))*'Pre-Rinse Spray Valves'!CS14 -> 15.90879624 | CQ14: =CP14+CO14 -> 183.9115275 | CR14: =CM14+CP14-CN14 -> 894.9886171 | CS14: 5.76644517 | CT14: =CR14/CR13-1 -> 0.01809710093 | CW14: =CW13+1 -> 1989 | CX14: =DC13 -> 445.6732175 | CY14: 0 | CZ14: 85.88132633 | DA14: =INDEX('Floor Space'!$I$5:$DK$50,MATCH('Pre-Rinse Spray Valves'!CW14,'Floor Space'!$I$5:$I$50,0),MATCH('Pre-Rinse Spray Valves'!CW$10,'Floor Space'!$I$5:$DK$5,0))*'Pre-Rinse Spray Valves'!DD14 -> 8.195440487 | DB14: =DA14+CZ14 -> 94.07676682 | DC14: =CX14+DA14-CY14 -> 453.868658 | DD14: 5.76644517 | DE14: =DC14/DC13-1 -> 0.01838890058 | DH14: =DH13+1 -> 1989 | DI14: =DN13 -> 1062.142855 | DJ14: 0 | DK14: 201.4781107 | DL14: =INDEX('Floor Space'!$I$5:$DK$50,MATCH('Pre-Rinse Spray Valves'!DH14,'Floor Space'!$I$5:$I$50,0),MATCH('Pre-Rinse Spray Valves'!DH$10,'Floor Space'!$I$5:$DK$5,0))*'Pre-Rinse Spray Valves'!DO14 -> 35.86627407 | DM14: =DL14+DK14 -> 237.3443847 | DN14: =DI14+DL14-DJ14 -> 1098.009129 | DO14: 5.76644517 | DP14: =DN14/DN13-1 -> 0.03376784383 | DS14: =DS13+1 -> 1989 | DT14: =DY13 -> 212.8369981 | DU14: 0 | DV14: 42.39297141 | DW14: =INDEX('Floor Space'!$I$5:$DK$50,MATCH('Pre-Rinse Spray Valves'!DS14,'Floor Space'!$I$5:$I$50,0),MATCH('Pre-Rinse Spray Valves'!DS$10,'Floor Space'!$I$5:$DK$5,0))*'Pre-Rinse Spray Valves'!DZ14 -> 4.372193308 | DX14: =DW14+DV14 -> 46.76516471 | DY14: =DT14+DW14-DU14 -> 217.2091915 | DZ14: 5.76644517 | EA14: =DY14/DY13-1 -> 0.0205424496 | ED14: =ED13+1 -> 1989 | EE14: =EJ13 -> 86.12588451 | EF14: 0 | EG14: 16.98977242 | EH14: =INDEX('Floor Space'!$I$5:$DK$50,MATCH('Pre-Rinse Spray Valves'!ED14,'Floor Space'!$I$5:$I$50,0),MATCH('Pre-Rinse Spray Valves'!ED$10,'Floor Space'!$I$5:$DK$5,0))*'Pre-Rinse Spray Valves'!EK14 -> 1.769236642 | EI14: =EH14+EG14 -> 18.75900906 | EJ14: =EE14+EH14-EF14 -> 87.89512115 | EK14: 5.76644517 | EL14: =EJ14/EJ13-1 -> 0.0205424496 | EO14: =EO13+1 -> 1989 | EP14: =EU13 -> 200.9429226 | EQ14: 0 | ER14: 39.73050703 | ES14: =INDEX('Floor Space'!$I$5:$DK$50,MATCH('Pre-Rinse Spray Valves'!EO14,'Floor Space'!$I$5:$I$50,0),MATCH('Pre-Rinse Spray Valves'!EO$10,'Floor Space'!$I$5:$DK$5,0))*'Pre-Rinse Spray Valves'!EV14 -> 2.491058182 | ET14: =ES14+ER14 -> 42.22156521 | EU14: =EP14+ES14-EQ14 -> 203.4339808 | EV14: 5.76644517 | EW14: =EU14/EU13-1 -> 0.01239684459 | EZ14: =EZ13+1 -> 1989 | FA14: =FF13 -> 630.4798352 | FB14: 0 | FC14: 121.4453185 | FD14: =INDEX('Floor Space'!$I$5:$DK$50,MATCH('Pre-Rinse Spray Valves'!EZ14,'Floor Space'!$I$5:$I$50,0),MATCH('Pre-Rinse Spray Valves'!EZ$10,'Floor Space'!$I$5:$DK$5,0))*'Pre-Rinse Spray Valves'!FG14 -> 12.50190685 | FE14: =FD14+FC14 -> 133.9472254 | FF14: =FA14+FD14-FB14 -> 642.9817421 | FG14: 5.76644517 | FH14: =FF14/FF13-1 -> 0.01982919382 | FK14: =FK13+1 -> 1989 | FL14: =FQ13 -> 228.4690467 | FM14: 0 | FN14: 43.86251401 | FO14: =INDEX('Floor Space'!$I$5:$DK$50,MATCH('Pre-Rinse Spray Valves'!FK14,'Floor Space'!$I$5:$I$50,0),MATCH('Pre-Rinse Spray Valves'!FK$10,'Floor Space'!$I$5:$DK$5,0))*'Pre-Rinse Spray Valves'!FR14 -> 6.025271785 | FP14: =FO14+FN14 -> 49.8877858 | FQ14: =FL14+FO14-FM14 -> 234.4943185 | FR14: 5.76644517 | FS14: =FQ14/FQ13-1 -> 0.02637237679 | FV14: =FV13+1 -> 1989 | FW14: =GB13 -> 497.8991729 | FX14: 0 | FY14: 94.91758069 | FZ14: =INDEX('Floor Space'!$I$5:$DK$50,MATCH('Pre-Rinse Spray Valves'!FV14,'Floor Space'!$I$5:$I$50,0),MATCH('Pre-Rinse Spray Valves'!FV$10,'Floor Space'!$I$5:$DK$5,0))*'Pre-Rinse Spray Valves'!GC14 -> 12.51199264 | GA14: =FZ14+FY14 -> 107.4295733 | GB14: =FW14+FZ14-FX14 -> 510.4111655 | GC14: 5.76644517 | GD14: =GB14/GB13-1 -> 0.02512957105 | GG14: =GG13+1 -> 1989 | GH14: =GM13 -> 723.799447 | GI14: 0 | GJ14: 138.8398032 | GK14: =INDEX('Floor Space'!$I$5:$DK$50,MATCH('Pre-Rinse Spray Valves'!GG14,'Floor Space'!$I$5:$I$50,0),MATCH('Pre-Rinse Spray Valves'!GG$10,'Floor Space'!$I$5:$DK$5,0))*'Pre-Rinse Spray Valves'!GN14 -> 9.227480093 | GL14: =GK14+GJ14 -> 148.0672833 | GM14: =GH14+GK14-GI14 -> 733.0269271 | GN14: 5.76644517 | GO14: =GM14/GM13-1 -> 0.01274866972 | GR14: =GR13+1 -> 1989 | GS14: =GX13 -> 1407.342424 | GT14: 0 | GU14: 265.9023849 | GV14: =INDEX('Floor Space'!$I$5:$DK$50,MATCH('Pre-Rinse Spray Valves'!GR14,'Floor Space'!$I$5:$I$50,0),MATCH('Pre-Rinse Spray Valves'!GR$10,'Floor Space'!$I$5:$DK$5,0))*'Pre-Rinse Spray Valves'!GY14 -> 19.14753585 | GW14: =GV14+GU14 -> 285.0499208 | GX14: =GS14+GV14-GT14 -> 1426.48996 | GY14: 5.76644517 | GZ14: =GX14/GX13-1 -> 0.01360545631
B15: 1990 | C15: 10590.50996 | D15: 0 | E15: 2026.418005 | F15: 219.608046 | G15: 2246.026051 | H15: 10810.11801 | I15: 5.76644517 | J15: 0.02073630512 | M15: 1990 | N15: =S14 -> 1013.687701 | O15: 0 | P15: 194.5261313 | Q15: =INDEX('Floor Space'!$I$5:$DK$54,MATCH('Pre-Rinse Spray Valves'!M15,'Floor Space'!$I$5:$I$54,0),MATCH('Pre-Rinse Spray Valves'!M$10,'Floor Space'!$I$5:$DK$5,0))*'Pre-Rinse Spray Valves'!T15 -> 22.35413064 | R15: 216.8802619 | S15: 1036.041832 | T15: 5.76644517 | U15: =S15/S14-1 -> 0.02205228555 | X15: 1990 | Y15: =AD14 -> 456.7078489 | Z15: 0 | AA15: 87.64199357 | AB15: =INDEX('Floor Space'!$I$5:$DK$50,MATCH('Pre-Rinse Spray Valves'!X15,'Floor Space'!$I$5:$I$50,0),MATCH('Pre-Rinse Spray Valves'!X$10,'Floor Space'!$I$5:$DK$5,0))*'Pre-Rinse Spray Valves'!AE15 -> 10.0714519 | AC15: 97.71344546 | AD15: 466.7793008 | AE15: 5.76644517 | AF15: =AD15/AD14-1 -> 0.02205228555 | AI15: 1990 | AJ15: =AO14 -> 535.8877082 | AK15: 0 | AL15: 102.8365665 | AM15: =INDEX('Floor Space'!$I$5:$DK$50,MATCH('Pre-Rinse Spray Valves'!AI15,'Floor Space'!$I$5:$I$50,0),MATCH('Pre-Rinse Spray Valves'!AI$10,'Floor Space'!$I$5:$DK$5,0))*'Pre-Rinse Spray Valves'!AP15 -> 11.81754876 | AN15: 114.6541153 | AO15: 547.705257 | AP15: 5.76644517 | AQ15: =AO15/AO14-1 -> 0.02205228555 | AT15: 1990 | AU15: =AZ14 -> 495.5485484 | AV15: 0 | AW15: 94.6369312 | AX15: =INDEX('Floor Space'!$I$5:$DK$50,MATCH('Pre-Rinse Spray Valves'!AT15,'Floor Space'!$I$5:$I$50,0),MATCH('Pre-Rinse Spray Valves'!AT$10,'Floor Space'!$I$5:$DK$5,0))*'Pre-Rinse Spray Valves'!BA15 -> 7.362806733 | AY15: 101.9997379 | AZ15: 502.9113552 | BA15: 5.76644517 | BB15: =AZ15/AZ14-1 -> 0.01485789184 | BE15: 1990 | BF15: =BK14 -> 915.2699087 | BG15: 0 | BH15: 174.7928344 | BI15: =INDEX('Floor Space'!$I$5:$DK$50,MATCH('Pre-Rinse Spray Valves'!BE15,'Floor Space'!$I$5:$I$50,0),MATCH('Pre-Rinse Spray Valves'!BE$10,'Floor Space'!$I$5:$DK$5,0))*'Pre-Rinse Spray Valves'!BL15 -> 13.59898131 | BJ15: 188.3918157 | BK15: 928.86889 | BL15: 5.76644517 | BM15: =BK15/BK14-1 -> 0.01485789184 | BP15: 1990 | BQ15: =BV14 -> 228.8174772 | BR15: 0 | BS15: 43.69820861 | BT15: =INDEX('Floor Space'!$I$5:$DK$50,MATCH('Pre-Rinse Spray Valves'!BP15,'Floor Space'!$I$5:$I$50,0),MATCH('Pre-Rinse Spray Valves'!BP$10,'Floor Space'!$I$5:$DK$5,0))*'Pre-Rinse Spray Valves'!BW15 -> 3.399745327 | BU15: 47.09795394 | BV15: 232.2172225 | BW15: 5.76644517 | BX15: =BV15/BV14-1 -> 0.01485789184 | CA15: 1990 | CB15: =CG14 -> 441.7819605 | CC15: 0 | CD15: 84.3689062 | CE15: =INDEX('Floor Space'!$I$5:$DK$50,MATCH('Pre-Rinse Spray Valves'!CA15,'Floor Space'!$I$5:$I$50,0),MATCH('Pre-Rinse Spray Valves'!CA$10,'Floor Space'!$I$5:$DK$5,0))*'Pre-Rinse Spray Valves'!CH15 -> 6.563948585 | CF15: 90.93285478 | CG15: 448.3459091 | CH15: 5.76644517 | CI15: =CG15/CG14-1 -> 0.01485789184 | CL15: 1990 | CM15: =CR14 -> 894.9886171 | CN15: 0 | CO15: 171.0430936 | CP15: =INDEX('Floor Space'!$I$5:$DK$50,MATCH('Pre-Rinse Spray Valves'!CL15,'Floor Space'!$I$5:$I$50,0),MATCH('Pre-Rinse Spray Valves'!CL$10,'Floor Space'!$I$5:$DK$5,0))*'Pre-Rinse Spray Valves'!CS15 -> 21.30972906 | CQ15: 192.3528227 | CR15: 916.2983461 | CS15: 5.76644517 | CT15: =CR15/CR14-1 -> 0.02381005596 | CW15: 1990 | CX15: =DC14 -> 453.868658 | CY15: 0 | CZ15: 87.4605895 | DA15: =INDEX('Floor Space'!$I$5:$DK$50,MATCH('Pre-Rinse Spray Valves'!CW15,'Floor Space'!$I$5:$I$50,0),MATCH('Pre-Rinse Spray Valves'!CW$10,'Floor Space'!$I$5:$DK$5,0))*'Pre-Rinse Spray Valves'!DD15 -> 10.97773921 | DB15: 98.43832871 | DC15: 464.8463972 | DD15: 5.76644517 | DE15: =DC15/DC14-1 -> 0.02418703961 | DH15: 1990 | DI15: =DN14 -> 1098.009129 | DJ15: 0 | DK15: 208.281592 | DL15: =INDEX('Floor Space'!$I$5:$DK$50,MATCH('Pre-Rinse Spray Valves'!DH15,'Floor Space'!$I$5:$I$50,0),MATCH('Pre-Rinse Spray Valves'!DH$10,'Floor Space'!$I$5:$DK$5,0))*'Pre-Rinse Spray Valves'!DO15 -> 38.1188488 | DM15: 246.4004408 | DN15: 1136.127978 | DO15: 5.76644517 | DP15: =DN15/DN14-1 -> 0.03471633139 | DS15: 1990 | DT15: =DY14 -> 217.2091915 | DU15: 0 | DV15: 43.26382689 | DW15: =INDEX('Floor Space'!$I$5:$DK$50,MATCH('Pre-Rinse Spray Valves'!DS15,'Floor Space'!$I$5:$I$50,0),MATCH('Pre-Rinse Spray Valves'!DS$10,'Floor Space'!$I$5:$DK$5,0))*'Pre-Rinse Spray Valves'!DZ15 -> 3.640718066 | DX15: 46.90454495 | DY15: 220.8499095 | DZ15: 5.76644517 | EA15: =DY15/DY14-1 -> 0.01676134441 | ED15: 1990 | EE15: =EJ14 -> 87.89512115 | EF15: 0 | EG15: 17.33878397 | EH15: =INDEX('Floor Space'!$I$5:$DK$50,MATCH('Pre-Rinse Spray Valves'!ED15,'Floor Space'!$I$5:$I$50,0),MATCH('Pre-Rinse Spray Valves'!ED$10,'Floor Space'!$I$5:$DK$5,0))*'Pre-Rinse Spray Valves'!EK15 -> 1.473240397 | EI15: 18.81202436 | EJ15: 89.36836155 | EK15: 5.76644517 | EL15: =EJ15/EJ14-1 -> 0.01676134441 | EO15: 1990 | EP15: =EU14 -> 203.4339808 | EQ15: 0 | ER15: 40.22303995 | ES15: =INDEX('Floor Space'!$I$5:$DK$50,MATCH('Pre-Rinse Spray Valves'!EO15,'Floor Space'!$I$5:$I$50,0),MATCH('Pre-Rinse Spray Valves'!EO$10,'Floor Space'!$I$5:$DK$5,0))*'Pre-Rinse Spray Valves'!EV15 -> 2.434616217 | ET15: 42.65765616 | EU15: 205.868597 | EV15: 5.76644517 | EW15: =EU15/EU14-1 -> 0.01196759857 | EZ15: 1990 | FA15: =FF14 -> 642.9817421 | FB15: 0 | FC15: 123.8534813 | FD15: =INDEX('Floor Space'!$I$5:$DK$50,MATCH('Pre-Rinse Spray Valves'!EZ15,'Floor Space'!$I$5:$I$50,0),MATCH('Pre-Rinse Spray Valves'!EZ$10,'Floor Space'!$I$5:$DK$5,0))*'Pre-Rinse Spray Valves'!FG15 -> 12.46725052 | FE15: 136.3207318 | FF15: 655.4489926 | FG15: 5.76644517 | FH15: =FF15/FF14-1 -> 0.01938974267 | FK15: 1990 | FL15: =FQ14 -> 234.4943185 | FM15: 0 | FN15: 45.01927276 | FO15: =INDEX('Floor Space'!$I$5:$DK$50,MATCH('Pre-Rinse Spray Valves'!FK15,'Floor Space'!$I$5:$I$50,0),MATCH('Pre-Rinse Spray Valves'!FK$10,'Floor Space'!$I$5:$DK$5,0))*'Pre-Rinse Spray Valves'!FR15 -> 4.721034516 | FP15: 49.74030728 | FQ15: 239.215353 | FR15: 5.76644517 | FS15: =FQ15/FQ14-1 -> 0.02013283113 | FV15: 1990 | FW15: =GB14 -> 510.4111655 | FX15: 0 | FY15: 97.30281878 | FZ15: =INDEX('Floor Space'!$I$5:$DK$50,MATCH('Pre-Rinse Spray Valves'!FV15,'Floor Space'!$I$5:$I$50,0),MATCH('Pre-Rinse Spray Valves'!FV$10,'Floor Space'!$I$5:$DK$5,0))*'Pre-Rinse Spray Valves'!GC15 -> 9.714845784 | GA15: 107.0176646 | GB15: 520.1260113 | GC15: 5.76644517 | GD15: =GB15/GB14-1 -> 0.01903337239 | GG15: 1990 | GH15: =GM14 -> 733.0269271 | GI15: 0 | GJ15: 140.609826 | GK15: =INDEX('Floor Space'!$I$5:$DK$50,MATCH('Pre-Rinse Spray Valves'!GG15,'Floor Space'!$I$5:$I$50,0),MATCH('Pre-Rinse Spray Valves'!GG$10,'Floor Space'!$I$5:$DK$5,0))*'Pre-Rinse Spray Valves'!GN15 -> 13.13151156 | GL15: 153.7413376 | GM15: 746.1584387 | GN15: 5.76644517 | GO15: =GM15/GM14-1 -> 0.01791409165 | GR15: 1990 | GS15: =GX14 -> 1426.48996 | GT15: 0 | GU15: 269.5201082 | GV15: =INDEX('Floor Space'!$I$5:$DK$50,MATCH('Pre-Rinse Spray Valves'!GR15,'Floor Space'!$I$5:$I$50,0),MATCH('Pre-Rinse Spray Valves'!GR$10,'Floor Space'!$I$5:$DK$5,0))*'Pre-Rinse Spray Valves'!GY15 -> 26.44989861 | GW15: 295.9700068 | GX15: 1452.939858 | GY15: 5.76644517 | GZ15: =GX15/GX14-1 -> 0.01854194516
B16: 1991 | C16: 10810.11801 | D16: 0 | E16: 2068.406267 | F16: 195.6607113 | G16: 2264.066979 | H16: 11005.77872 | I16: 5.76644517 | J16: 0.01809977571 | M16: 1991 | N16: 1036.041832 | O16: 0 | P16: 198.8158771 | Q16: =INDEX('Floor Space'!$I$5:$DK$54,MATCH('Pre-Rinse Spray Valves'!M16,'Floor Space'!$I$5:$I$54,0),MATCH('Pre-Rinse Spray Valves'!M$10,'Floor Space'!$I$5:$DK$5,0))*'Pre-Rinse Spray Valves'!T16 -> 15.40362717 | R16: 214.2195042 | S16: 1051.445459 | T16: 5.76644517 | U16: 0.01486776566 | X16: 1991 | Y16: 466.7793008 | Z16: 0 | AA16: 89.57469984 | AB16: =INDEX('Floor Space'!$I$5:$DK$50,MATCH('Pre-Rinse Spray Valves'!X16,'Floor Space'!$I$5:$I$50,0),MATCH('Pre-Rinse Spray Valves'!X$10,'Floor Space'!$I$5:$DK$5,0))*'Pre-Rinse Spray Valves'!AE16 -> 6.939965258 | AC16: 96.51466509 | AD16: 473.7192661 | AE16: 5.76644517 | AF16: 0.01486776566 | AI16: 1991 | AJ16: 547.705257 | AK16: 0 | AL16: 105.1043478 | AM16: =INDEX('Floor Space'!$I$5:$DK$50,MATCH('Pre-Rinse Spray Valves'!AI16,'Floor Space'!$I$5:$I$50,0),MATCH('Pre-Rinse Spray Valves'!AI$10,'Floor Space'!$I$5:$DK$5,0))*'Pre-Rinse Spray Valves'!AP16 -> 8.14315341 | AN16: 113.2475012 | AO16: 555.8484104 | AP16: 5.76644517 | AQ16: 0.01486776566 | AT16: 1991 | AU16: 502.9113552 | AV16: 0 | AW16: 96.04303649 | AX16: =INDEX('Floor Space'!$I$5:$DK$50,MATCH('Pre-Rinse Spray Valves'!AT16,'Floor Space'!$I$5:$I$50,0),MATCH('Pre-Rinse Spray Valves'!AT$10,'Floor Space'!$I$5:$DK$5,0))*'Pre-Rinse Spray Valves'!BA16 -> 5.620334623 | AY16: 101.6633711 | AZ16: 508.5316898 | BA16: 5.76644517 | BB16: 0.01117559698 | BE16: 1991 | BF16: 928.86889 | BG16: 0 | BH16: 177.3898875 | BI16: =INDEX('Floor Space'!$I$5:$DK$50,MATCH('Pre-Rinse Spray Valves'!BE16,'Floor Space'!$I$5:$I$50,0),MATCH('Pre-Rinse Spray Valves'!BE$10,'Floor Space'!$I$5:$DK$5,0))*'Pre-Rinse Spray Valves'!BL16 -> 10.38066436 | BJ16: 187.7705518 | BK16: 939.2495544 | BL16: 5.76644517 | BM16: 0.01117559698 | BP16: 1991 | BQ16: 232.2172225 | BR16: 0 | BS16: 44.34747187 | BT16: =INDEX('Floor Space'!$I$5:$DK$50,MATCH('Pre-Rinse Spray Valves'!BP16,'Floor Space'!$I$5:$I$50,0),MATCH('Pre-Rinse Spray Valves'!BP$10,'Floor Space'!$I$5:$DK$5,0))*'Pre-Rinse Spray Valves'!BW16 -> 2.595166091 | BU16: 46.94263796 | BV16: 234.8123886 | BW16: 5.76644517 | BX16: 0.01117559698 | CA16: 1991 | CB16: 448.3459091 | CC16: 0 | CD16: 85.62245028 | CE16: =INDEX('Floor Space'!$I$5:$DK$50,MATCH('Pre-Rinse Spray Valves'!CA16,'Floor Space'!$I$5:$I$50,0),MATCH('Pre-Rinse Spray Valves'!CA$10,'Floor Space'!$I$5:$DK$5,0))*'Pre-Rinse Spray Valves'!CH16 -> 5.010533188 | CF16: 90.63298347 | CG16: 453.3564422 | CH16: 5.76644517 | CI16: 0.01117559698 | CL16: 1991 | CM16: 916.2983461 | CN16: 0 | CO16: 175.1156393 | CP16: =INDEX('Floor Space'!$I$5:$DK$50,MATCH('Pre-Rinse Spray Valves'!CL16,'Floor Space'!$I$5:$I$50,0),MATCH('Pre-Rinse Spray Valves'!CL$10,'Floor Space'!$I$5:$DK$5,0))*'Pre-Rinse Spray Valves'!CS16 -> 21.96373459 | CQ16: 197.0793739 | CR16: 938.2620807 | CS16: 5.76644517 | CT16: 0.02397006901 | CW16: 1991 | CX16: 464.8463972 | CY16: 0 | CZ16: 89.57600224 | DA16: =INDEX('Floor Space'!$I$5:$DK$50,MATCH('Pre-Rinse Spray Valves'!CW16,'Floor Space'!$I$5:$I$50,0),MATCH('Pre-Rinse Spray Valves'!CW$10,'Floor Space'!$I$5:$DK$5,0))*'Pre-Rinse Spray Valves'!DD16 -> 11.31465115 | DB16: 100.8906534 | DC16: 476.1610483 | DD16: 5.76644517 | DE16: 0.02434062352 | DH16: 1991 | DI16: 1136.127978 | DJ16: 0 | DK16: 215.5123648 | DL16: =INDEX('Floor Space'!$I$5:$DK$50,MATCH('Pre-Rinse Spray Valves'!DH16,'Floor Space'!$I$5:$I$50,0),MATCH('Pre-Rinse Spray Valves'!DH$10,'Floor Space'!$I$5:$DK$5,0))*'Pre-Rinse Spray Valves'!DO16 -> 32.15350452 | DM16: 247.6658693 | DN16: 1168.281483 | DO16: 5.76644517 | DP16: 0.02830095301 | DS16: 1991 | DT16: 220.8499095 | DU16: 0 | DV16: 43.98898679 | DW16: =INDEX('Floor Space'!$I$5:$DK$50,MATCH('Pre-Rinse Spray Valves'!DS16,'Floor Space'!$I$5:$I$50,0),MATCH('Pre-Rinse Spray Valves'!DS$10,'Floor Space'!$I$5:$DK$5,0))*'Pre-Rinse Spray Valves'!DZ16 -> 2.462926113 | DX16: 46.4519129 | DY16: 223.3128356 | DZ16: 5.76644517 | EA16: 0.01115203587 | ED16: 1991 | EE16: 89.36836155 | EF16: 0 | EG16: 17.6294053 | EH16: =INDEX('Floor Space'!$I$5:$DK$50,MATCH('Pre-Rinse Spray Valves'!ED16,'Floor Space'!$I$5:$I$50,0),MATCH('Pre-Rinse Spray Valves'!ED$10,'Floor Space'!$I$5:$DK$5,0))*'Pre-Rinse Spray Valves'!EK16 -> 0.9966391736 | EI16: 18.62604447 | EJ16: 90.36500072 | EK16: 5.76644517 | EL16: 0.01115203587 | EO16: 1991 | EP16: 205.868597 | EQ16: 0 | ER16: 40.70441314 | ES16: =INDEX('Floor Space'!$I$5:$DK$50,MATCH('Pre-Rinse Spray Valves'!EO16,'Floor Space'!$I$5:$I$50,0),MATCH('Pre-Rinse Spray Valves'!EO$10,'Floor Space'!$I$5:$DK$5,0))*'Pre-Rinse Spray Valves'!EV16 -> 2.714911584 | ET16: 43.41932473 | EU16: 208.5835086 | EV16: 5.76644517 | EW16: 0.01318759453 | EZ16: 1991 | FA16: 655.4489926 | FB16: 0 | FC16: 126.2549684 | FD16: =INDEX('Floor Space'!$I$5:$DK$50,MATCH('Pre-Rinse Spray Valves'!EZ16,'Floor Space'!$I$5:$I$50,0),MATCH('Pre-Rinse Spray Valves'!EZ$10,'Floor Space'!$I$5:$DK$5,0))*'Pre-Rinse Spray Valves'!FG16 -> 8.326389306 | FE16: 134.5813577 | FF16: 663.7753819 | FG16: 5.76644517 | FH16: 0.0127033368 | FK16: 1991 | FL16: 239.215353 | FM16: 0 | FN16: 45.92563818 | FO16: =INDEX('Floor Space'!$I$5:$DK$50,MATCH('Pre-Rinse Spray Valves'!FK16,'Floor Space'!$I$5:$I$50,0),MATCH('Pre-Rinse Spray Valves'!FK$10,'Floor Space'!$I$5:$DK$5,0))*'Pre-Rinse Spray Valves'!FR16 -> 3.875268134 | FP16: 49.80090631 | FQ16: 243.0906211 | FR16: 5.76644517 | FS16: 0.01619991395 | FV16: 1991 | FW16: 520.1260113 | FX16: 0 | FY16: 99.15481957 | FZ16: =INDEX('Floor Space'!$I$5:$DK$50,MATCH('Pre-Rinse Spray Valves'!FV16,'Floor Space'!$I$5:$I$50,0),MATCH('Pre-Rinse Spray Valves'!FV$10,'Floor Space'!$I$5:$DK$5,0))*'Pre-Rinse Spray Valves'!GC16 -> 8.0309534 | GA16: 107.185773 | GB16: 528.1569647 | GC16: 5.76644517 | GD16: 0.01544039949 | GG16: 1991 | GH16: 746.1584387 | GI16: 0 | GJ16: 143.1287234 | GK16: =INDEX('Floor Space'!$I$5:$DK$50,MATCH('Pre-Rinse Spray Valves'!GG16,'Floor Space'!$I$5:$I$50,0),MATCH('Pre-Rinse Spray Valves'!GG$10,'Floor Space'!$I$5:$DK$5,0))*'Pre-Rinse Spray Valves'!GN16 -> 16.62997901 | GL16: 159.7587024 | GM16: 762.7884177 | GN16: 5.76644517 | GO16: 0.02228746356 | GR16: 1991 | GS16: 1452.939858 | GT16: 0 | GU16: 274.5175353 | GV16: =INDEX('Floor Space'!$I$5:$DK$50,MATCH('Pre-Rinse Spray Valves'!GR16,'Floor Space'!$I$5:$I$50,0),MATCH('Pre-Rinse Spray Valves'!GR$10,'Floor Space'!$I$5:$DK$5,0))*'Pre-Rinse Spray Valves'!GY16 -> 33.09831026 | GW16: 307.6158456 | GX16: 1486.038168 | GY16: 5.76644517 | GZ16: 0.02278023421
B17: 1992 | C17: 11005.77872 | D17: 0 | E17: 2105.788355 | F17: 203.6020381 | G17: 2309.390393 | H17: 11209.38076 | I17: 5.76644517 | J17: 0.01849955767 | M17: 1992 | N17: 1051.445459 | O17: 0 | P17: 201.7718249 | Q17: =INDEX('Floor Space'!$I$5:$DK$54,MATCH('Pre-Rinse Spray Valves'!M17,'Floor Space'!$I$5:$I$54,0),MATCH('Pre-Rinse Spray Valves'!M$10,'Floor Space'!$I$5:$DK$5,0))*'Pre-Rinse Spray Valves'!T17 -> 12.25794274 | R17: 214.0297677 | S17: 1063.703402 | T17: 5.76644517 | U17: 0.01165818221 | X17: 1992 | Y17: 473.7192661 | Z17: 0 | AA17: 90.90647548 | AB17: =INDEX('Floor Space'!$I$5:$DK$50,MATCH('Pre-Rinse Spray Valves'!X17,'Floor Space'!$I$5:$I$50,0),MATCH('Pre-Rinse Spray Valves'!X$10,'Floor Space'!$I$5:$DK$5,0))*'Pre-Rinse Spray Valves'!AE17 -> 5.52270552 | AC17: 96.429181 | AD17: 479.2419716 | AE17: 5.76644517 | AF17: 0.01165818221 | AI17: 1992 | AJ17: 555.8484104 | AK17: 0 | AL17: 106.6670146 | AM17: =INDEX('Floor Space'!$I$5:$DK$50,MATCH('Pre-Rinse Spray Valves'!AI17,'Floor Space'!$I$5:$I$50,0),MATCH('Pre-Rinse Spray Valves'!AI$10,'Floor Space'!$I$5:$DK$5,0))*'Pre-Rinse Spray Valves'!AP17 -> 6.480182049 | AN17: 113.1471967 | AO17: 562.3285924 | AP17: 5.76644517 | AQ17: 0.01165818221 | AT17: 1992 | AU17: 508.5316898 | AV17: 0 | AW17: 97.11637476 | AX17: =INDEX('Floor Space'!$I$5:$DK$50,MATCH('Pre-Rinse Spray Valves'!AT17,'Floor Space'!$I$5:$I$50,0),MATCH('Pre-Rinse Spray Valves'!AT$10,'Floor Space'!$I$5:$DK$5,0))*'Pre-Rinse Spray Valves'!BA17 -> 7.071426492 | AY17: 104.1878012 | AZ17: 515.6031163 | BA17: 5.76644517 | BB17: 0.01390557685 | BE17: 1992 | BF17: 939.2495544 | BG17: 0 | BH17: 179.3723254 | BI17: =INDEX('Floor Space'!$I$5:$DK$50,MATCH('Pre-Rinse Spray Valves'!BE17,'Floor Space'!$I$5:$I$50,0),MATCH('Pre-Rinse Spray Valves'!BE$10,'Floor Space'!$I$5:$DK$5,0))*'Pre-Rinse Spray Valves'!BL17 -> 13.06080686 | BJ17: 192.4331322 | BK17: 952.3103613 | BL17: 5.76644517 | BM17: 0.01390557685 | BP17: 1992 | BQ17: 234.8123886 | BR17: 0 | BS17: 44.84308134 | BT17: =INDEX('Floor Space'!$I$5:$DK$50,MATCH('Pre-Rinse Spray Valves'!BP17,'Floor Space'!$I$5:$I$50,0),MATCH('Pre-Rinse Spray Valves'!BP$10,'Floor Space'!$I$5:$DK$5,0))*'Pre-Rinse Spray Valves'!BW17 -> 3.265201715 | BU17: 48.10828305 | BV17: 238.0775903 | BW17: 5.76644517 | BX17: 0.01390557685 | CA17: 1992 | CB17: 453.3564422 | CC17: 0 | CD17: 86.57933228 | CE17: =INDEX('Floor Space'!$I$5:$DK$50,MATCH('Pre-Rinse Spray Valves'!CA17,'Floor Space'!$I$5:$I$50,0),MATCH('Pre-Rinse Spray Valves'!CA$10,'Floor Space'!$I$5:$DK$5,0))*'Pre-Rinse Spray Valves'!CH17 -> 6.304182847 | CF17: 92.88351513 | CG17: 459.6606251 | CH17: 5.76644517 | CI17: 0.01390557685 | CL17: 1992 | CM17: 938.2620807 | CN17: 0 | CO17: 179.3131732 | CP17: =INDEX('Floor Space'!$I$5:$DK$50,MATCH('Pre-Rinse Spray Valves'!CL17,'Floor Space'!$I$5:$I$50,0),MATCH('Pre-Rinse Spray Valves'!CL$10,'Floor Space'!$I$5:$DK$5,0))*'Pre-Rinse Spray Valves'!CS17 -> 26.01237904 | CQ17: 205.3255523 | CR17: 964.2744597 | CS17: 5.76644517 | CT17: 0.02772400118 | CW17: 1992 | CX17: 476.1610483 | CY17: 0 | CZ17: 91.75633799 | DA17: =INDEX('Floor Space'!$I$5:$DK$50,MATCH('Pre-Rinse Spray Valves'!CW17,'Floor Space'!$I$5:$I$50,0),MATCH('Pre-Rinse Spray Valves'!CW$10,'Floor Space'!$I$5:$DK$5,0))*'Pre-Rinse Spray Valves'!DD17 -> 13.40031647 | DB17: 105.1566545 | DC17: 489.5613648 | DD17: 5.76644517 | DE17: 0.02814240375 | DH17: 1992 | DI17: 1168.281483 | DJ17: 0 | DK17: 221.6115701 | DL17: =INDEX('Floor Space'!$I$5:$DK$50,MATCH('Pre-Rinse Spray Valves'!DH17,'Floor Space'!$I$5:$I$50,0),MATCH('Pre-Rinse Spray Valves'!DH$10,'Floor Space'!$I$5:$DK$5,0))*'Pre-Rinse Spray Valves'!DO17 -> 30.17042114 | DM17: 251.7819913 | DN17: 1198.451904 | DO17: 5.76644517 | DP17: 0.0258246164 | DS17: 1992 | DT17: 223.3128356 | DU17: 0 | DV17: 44.47955355 | DW17: =INDEX('Floor Space'!$I$5:$DK$50,MATCH('Pre-Rinse Spray Valves'!DS17,'Floor Space'!$I$5:$I$50,0),MATCH('Pre-Rinse Spray Valves'!DS$10,'Floor Space'!$I$5:$DK$5,0))*'Pre-Rinse Spray Valves'!DZ17 -> 3.969715332 | DX17: 48.44926888 | DY17: 227.282551 | DZ17: 5.76644517 | EA17: 0.01777647631 | ED17: 1992 | EE17: 90.36500072 | EF17: 0 | EG17: 17.82600906 | EH17: =INDEX('Floor Space'!$I$5:$DK$50,MATCH('Pre-Rinse Spray Valves'!ED17,'Floor Space'!$I$5:$I$50,0),MATCH('Pre-Rinse Spray Valves'!ED$10,'Floor Space'!$I$5:$DK$5,0))*'Pre-Rinse Spray Valves'!EK17 -> 1.606371295 | EI17: 19.43238035 | EJ17: 91.97137202 | EK17: 5.76644517 | EL17: 0.01777647631 | EO17: 1992 | EP17: 208.5835086 | EQ17: 0 | ER17: 41.24120644 | ES17: =INDEX('Floor Space'!$I$5:$DK$50,MATCH('Pre-Rinse Spray Valves'!EO17,'Floor Space'!$I$5:$I$50,0),MATCH('Pre-Rinse Spray Valves'!EO$10,'Floor Space'!$I$5:$DK$5,0))*'Pre-Rinse Spray Valves'!EV17 -> 2.237530654 | ET17: 43.47873709 | EU17: 210.8210392 | EV17: 5.76644517 | EW17: 0.0107272654 | EZ17: 1992 | FA17: 663.7753819 | FB17: 0 | FC17: 127.8588278 | FD17: =INDEX('Floor Space'!$I$5:$DK$50,MATCH('Pre-Rinse Spray Valves'!EZ17,'Floor Space'!$I$5:$I$50,0),MATCH('Pre-Rinse Spray Valves'!EZ$10,'Floor Space'!$I$5:$DK$5,0))*'Pre-Rinse Spray Valves'!FG17 -> 5.14745188 | FE17: 133.0062797 | FF17: 668.9228338 | FG17: 5.76644517 | FH17: 0.007754809866 | FK17: 1992 | FL17: 243.0906211 | FM17: 0 | FN17: 46.66962956 | FO17: =INDEX('Floor Space'!$I$5:$DK$50,MATCH('Pre-Rinse Spray Valves'!FK17,'Floor Space'!$I$5:$I$50,0),MATCH('Pre-Rinse Spray Valves'!FK$10,'Floor Space'!$I$5:$DK$5,0))*'Pre-Rinse Spray Valves'!FR17 -> 7.040125147 | FP17: 53.70975471 | FQ17: 250.1307463 | FR17: 5.76644517 | FS17: 0.02896090814 | FV17: 1992 | FW17: 528.1569647 | FX17: 0 | FY17: 100.6858096 | FZ17: =INDEX('Floor Space'!$I$5:$DK$50,MATCH('Pre-Rinse Spray Valves'!FV17,'Floor Space'!$I$5:$I$50,0),MATCH('Pre-Rinse Spray Valves'!FV$10,'Floor Space'!$I$5:$DK$5,0))*'Pre-Rinse Spray Valves'!GC17 -> 14.45813968 | GA17: 115.1439493 | GB17: 542.6151044 | GC17: 5.76644517 | GD17: 0.0273747023 | GG17: 1992 | GH17: 762.7884177 | GI17: 0 | GJ17: 146.3186996 | GK17: =INDEX('Floor Space'!$I$5:$DK$50,MATCH('Pre-Rinse Spray Valves'!GG17,'Floor Space'!$I$5:$I$50,0),MATCH('Pre-Rinse Spray Valves'!GG$10,'Floor Space'!$I$5:$DK$5,0))*'Pre-Rinse Spray Valves'!GN17 -> 15.07921598 | GL17: 161.3979155 | GM17: 777.8676337 | GN17: 5.76644517 | GO17: 0.01976854346 | GR17: 1992 | GS17: 1486.038168 | GT17: 0 | GU17: 280.771109 | GV17: =INDEX('Floor Space'!$I$5:$DK$50,MATCH('Pre-Rinse Spray Valves'!GR17,'Floor Space'!$I$5:$I$50,0),MATCH('Pre-Rinse Spray Valves'!GR$10,'Floor Space'!$I$5:$DK$5,0))*'Pre-Rinse Spray Valves'!GY17 -> 30.51792325 | GW17: 311.2890323 | GX17: 1516.556092 | GY17: 5.76644517 | GZ17: 0.02053643298
B18: 1993 | C18: 11209.38076 | D18: 0 | E18: 2144.700674 | F18: 210.598465 | G18: 2355.299139 | H18: 11419.97922 | I18: 5.76644517 | J18: 0.0187876984 | M18: 1993 | N18: 1063.703402 | O18: 0 | P18: 204.1241176 | Q18: =INDEX('Floor Space'!$I$5:$DK$54,MATCH('Pre-Rinse Spray Valves'!M18,'Floor Space'!$I$5:$I$54,0),MATCH('Pre-Rinse Spray Valves'!M$10,'Floor Space'!$I$5:$DK$5,0))*'Pre-Rinse Spray Valves'!T18 -> 10.93289077 | R18: 215.0570084 | S18: 1074.636292 | T18: 5.76644517 | U18: 0.0102781384 | X18: 1993 | Y18: 479.2419716 | Z18: 0 | AA18: 91.96627974 | AB18: =INDEX('Floor Space'!$I$5:$DK$50,MATCH('Pre-Rinse Spray Valves'!X18,'Floor Space'!$I$5:$I$50,0),MATCH('Pre-Rinse Spray Valves'!X$10,'Floor Space'!$I$5:$DK$5,0))*'Pre-Rinse Spray Valves'!AE18 -> 4.925715309 | AC18: 96.89199505 | AD18: 484.1676869 | AE18: 5.76644517 | AF18: 0.0102781384 | AI18: 1993 | AJ18: 562.3285924 | AK18: 0 | AL18: 107.9105581 | AM18: =INDEX('Floor Space'!$I$5:$DK$50,MATCH('Pre-Rinse Spray Valves'!AI18,'Floor Space'!$I$5:$I$50,0),MATCH('Pre-Rinse Spray Valves'!AI$10,'Floor Space'!$I$5:$DK$5,0))*'Pre-Rinse Spray Valves'!AP18 -> 5.779691097 | AN18: 113.6902492 | AO18: 568.1082835 | AP18: 5.76644517 | AQ18: 0.0102781384 | AT18: 1993 | AU18: 515.6031163 | AV18: 0 | AW18: 98.46683397 | AX18: =INDEX('Floor Space'!$I$5:$DK$50,MATCH('Pre-Rinse Spray Valves'!AT18,'Floor Space'!$I$5:$I$50,0),MATCH('Pre-Rinse Spray Valves'!AT$10,'Floor Space'!$I$5:$DK$5,0))*'Pre-Rinse Spray Valves'!BA18 -> 10.80536751 | AY18: 109.2722015 | AZ18: 526.4084838 | BA18: 5.76644517 | BB18: 0.0209567537 | BE18: 1993 | BF18: 952.3103613 | BG18: 0 | BH18: 181.866601 | BI18: =INDEX('Floor Space'!$I$5:$DK$50,MATCH('Pre-Rinse Spray Valves'!BE18,'Floor Space'!$I$5:$I$50,0),MATCH('Pre-Rinse Spray Valves'!BE$10,'Floor Space'!$I$5:$DK$5,0))*'Pre-Rinse Spray Valves'!BL18 -> 19.95733369 | BJ18: 201.8239347 | BK18: 972.2676949 | BL18: 5.76644517 | BM18: 0.0209567537 | BP18: 1993 | BQ18: 238.0775903 | BR18: 0 | BS18: 45.46665025 | BT18: =INDEX('Floor Space'!$I$5:$DK$50,MATCH('Pre-Rinse Spray Valves'!BP18,'Floor Space'!$I$5:$I$50,0),MATCH('Pre-Rinse Spray Valves'!BP$10,'Floor Space'!$I$5:$DK$5,0))*'Pre-Rinse Spray Valves'!BW18 -> 4.989333421 | BU18: 50.45598368 | BV18: 243.0669237 | BW18: 5.76644517 | BX18: 0.0209567537 | CA18: 1993 | CB18: 459.6606251 | CC18: 0 | CD18: 87.78326784 | CE18: =INDEX('Floor Space'!$I$5:$DK$50,MATCH('Pre-Rinse Spray Valves'!CA18,'Floor Space'!$I$5:$I$50,0),MATCH('Pre-Rinse Spray Valves'!CA$10,'Floor Space'!$I$5:$DK$5,0))*'Pre-Rinse Spray Valves'!CH18 -> 9.632994505 | CF18: 97.41626234 | CG18: 469.2936196 | CH18: 5.76644517 | CI18: 0.0209567537 | CL18: 1993 | CM18: 964.2744597 | CN18: 0 | CO18: 184.2844519 | CP18: =INDEX('Floor Space'!$I$5:$DK$50,MATCH('Pre-Rinse Spray Valves'!CL18,'Floor Space'!$I$5:$I$50,0),MATCH('Pre-Rinse Spray Valves'!CL$10,'Floor Space'!$I$5:$DK$5,0))*'Pre-Rinse Spray Valves'!CS18 -> 22.23717757 | CQ18: 206.5216294 | CR18: 986.5116373 | CS18: 5.76644517 | CT18: 0.02306104589 | CW18: 1993 | CX18: 489.5613648 | CY18: 0 | CZ18: 94.3385819 | DA18: =INDEX('Floor Space'!$I$5:$DK$50,MATCH('Pre-Rinse Spray Valves'!CW18,'Floor Space'!$I$5:$I$50,0),MATCH('Pre-Rinse Spray Valves'!CW$10,'Floor Space'!$I$5:$DK$5,0))*'Pre-Rinse Spray Valves'!DD18 -> 11.45551572 | DB18: 105.7940976 | DC18: 501.0168805 | DD18: 5.76644517 | DE18: 0.02339955017 | DH18: 1993 | DI18: 1198.451904 | DJ18: 0 | DK18: 227.3346039 | DL18: =INDEX('Floor Space'!$I$5:$DK$50,MATCH('Pre-Rinse Spray Valves'!DH18,'Floor Space'!$I$5:$I$50,0),MATCH('Pre-Rinse Spray Valves'!DH$10,'Floor Space'!$I$5:$DK$5,0))*'Pre-Rinse Spray Valves'!DO18 -> 25.24286746 | DM18: 252.5774714 | DN18: 1223.694771 | DO18: 5.76644517 | DP18: 0.02106289571 | DS18: 1993 | DT18: 227.282551 | DU18: 0 | DV18: 45.27024328 | DW18: =INDEX('Floor Space'!$I$5:$DK$50,MATCH('Pre-Rinse Spray Valves'!DS18,'Floor Space'!$I$5:$I$50,0),MATCH('Pre-Rinse Spray Valves'!DS$10,'Floor Space'!$I$5:$DK$5,0))*'Pre-Rinse Spray Valves'!DZ18 -> 5.673629437 | DX18: 50.94387271 | DY18: 232.9561804 | DZ18: 5.76644517 | EA18: 0.02496289052 | ED18: 1993 | EE18: 91.97137202 | EF18: 0 | EG18: 18.14289268 | EH18: =INDEX('Floor Space'!$I$5:$DK$50,MATCH('Pre-Rinse Spray Valves'!ED18,'Floor Space'!$I$5:$I$50,0),MATCH('Pre-Rinse Spray Valves'!ED$10,'Floor Space'!$I$5:$DK$5,0))*'Pre-Rinse Spray Valves'!EK18 -> 2.295871291 | EI18: 20.43876398 | EJ18: 94.26724331 | EK18: 5.76644517 | EL18: 0.02496289052 | EO18: 1993 | EP18: 210.8210392 | EQ18: 0 | ER18: 41.6836118 | ES18: =INDEX('Floor Space'!$I$5:$DK$50,MATCH('Pre-Rinse Spray Valves'!EO18,'Floor Space'!$I$5:$I$50,0),MATCH('Pre-Rinse Spray Valves'!EO$10,'Floor Space'!$I$5:$DK$5,0))*'Pre-Rinse Spray Valves'!EV18 -> 2.233990056 | ET18: 43.91760186 | EU18: 213.0550293 | EV18: 5.76644517 | EW18: 0.01059661818 | EZ18: 1993 | FA18: 668.9228338 | FB18: 0 | FC18: 128.8503487 | FD18: =INDEX('Floor Space'!$I$5:$DK$50,MATCH('Pre-Rinse Spray Valves'!EZ18,'Floor Space'!$I$5:$I$50,0),MATCH('Pre-Rinse Spray Valves'!EZ$10,'Floor Space'!$I$5:$DK$5,0))*'Pre-Rinse Spray Valves'!FG18 -> 7.750390631 | FE18: 136.6007393 | FF18: 676.6732244 | FG18: 5.76644517 | FH18: 0.01158637475 | FK18: 1993 | FL18: 250.1307463 | FM18: 0 | FN18: 48.02122442 | FO18: =INDEX('Floor Space'!$I$5:$DK$50,MATCH('Pre-Rinse Spray Valves'!FK18,'Floor Space'!$I$5:$I$50,0),MATCH('Pre-Rinse Spray Valves'!FK$10,'Floor Space'!$I$5:$DK$5,0))*'Pre-Rinse Spray Valves'!FR18 -> 5.39513138 | FP18: 53.4163558 | FQ18: 255.5258776 | FR18: 5.76644517 | FS18: 0.02156924512 | FV18: 1993 | FW18: 542.6151044 | FX18: 0 | FY18: 103.4420537 | FZ18: =INDEX('Floor Space'!$I$5:$DK$50,MATCH('Pre-Rinse Spray Valves'!FV18,'Floor Space'!$I$5:$I$50,0),MATCH('Pre-Rinse Spray Valves'!FV$10,'Floor Space'!$I$5:$DK$5,0))*'Pre-Rinse Spray Valves'!GC18 -> 11.31042174 | GA18: 114.7524754 | GB18: 553.9255261 | GC18: 5.76644517 | GD18: 0.02084428105 | GG18: 1993 | GH18: 777.8676337 | GI18: 0 | GJ18: 149.2112071 | GK18: =INDEX('Floor Space'!$I$5:$DK$50,MATCH('Pre-Rinse Spray Valves'!GG18,'Floor Space'!$I$5:$I$50,0),MATCH('Pre-Rinse Spray Valves'!GG$10,'Floor Space'!$I$5:$DK$5,0))*'Pre-Rinse Spray Valves'!GN18 -> 16.14559884 | GL18: 165.356806 | GM18: 794.0132325 | GN18: 5.76644517 | GO18: 0.02075622913 | GR18: 1993 | GS18: 1516.556092 | GT18: 0 | GU18: 286.5371461 | GV18: =INDEX('Floor Space'!$I$5:$DK$50,MATCH('Pre-Rinse Spray Valves'!GR18,'Floor Space'!$I$5:$I$50,0),MATCH('Pre-Rinse Spray Valves'!GR$10,'Floor Space'!$I$5:$DK$5,0))*'Pre-Rinse Spray Valves'!GY18 -> 33.83454454 | GW18: 320.3716906 | GX18: 1550.390636 | GY18: 5.76644517 | GZ18: 0.02231011746
B19: 1994 | C19: 11419.97922 | D19: 0 | E19: 2184.965299 | F19: 242.2888528 | G19: 2427.254152 | H19: 11662.26808 | I19: 5.76644517 | J19: 0.02121622536 | M19: 1994 | N19: 1074.636292 | O19: 0 | P19: 206.2221336 | Q19: =INDEX('Floor Space'!$I$5:$DK$54,MATCH('Pre-Rinse Spray Valves'!M19,'Floor Space'!$I$5:$I$54,0),MATCH('Pre-Rinse Spray Valves'!M$10,'Floor Space'!$I$5:$DK$5,0))*'Pre-Rinse Spray Valves'!T19 -> 17.14631093 | R19: 223.3684445 | S19: 1091.782603 | T19: 5.76644517 | U19: 0.01595545493 | X19: 1994 | Y19: 484.1676869 | Z19: 0 | AA19: 92.91152189 | AB19: =INDEX('Floor Space'!$I$5:$DK$50,MATCH('Pre-Rinse Spray Valves'!X19,'Floor Space'!$I$5:$I$50,0),MATCH('Pre-Rinse Spray Valves'!X$10,'Floor Space'!$I$5:$DK$5,0))*'Pre-Rinse Spray Valves'!AE19 -> 7.725115707 | AC19: 100.6366376 | AD19: 491.8928026 | AE19: 5.76644517 | AF19: 0.01595545493 | AI19: 1994 | AJ19: 568.1082835 | AK19: 0 | AL19: 109.0196778 | AM19: =INDEX('Floor Space'!$I$5:$DK$50,MATCH('Pre-Rinse Spray Valves'!AI19,'Floor Space'!$I$5:$I$50,0),MATCH('Pre-Rinse Spray Valves'!AI$10,'Floor Space'!$I$5:$DK$5,0))*'Pre-Rinse Spray Valves'!AP19 -> 9.064426113 | AN19: 118.0841039 | AO19: 577.1727096 | AP19: 5.76644517 | AQ19: 0.01595545493 | AT19: 1994 | AU19: 526.4084838 | AV19: 0 | AW19: 100.5303792 | AX19: =INDEX('Floor Space'!$I$5:$DK$50,MATCH('Pre-Rinse Spray Valves'!AT19,'Floor Space'!$I$5:$I$50,0),MATCH('Pre-Rinse Spray Valves'!AT$10,'Floor Space'!$I$5:$DK$5,0))*'Pre-Rinse Spray Valves'!BA19 -> 14.32432687 | AY19: 114.854706 | AZ19: 540.7328107 | BA19: 5.76644517 | BB19: 0.0272114286 | BE19: 1994 | BF19: 972.2676949 | BG19: 0 | BH19: 185.6779346 | BI19: =INDEX('Floor Space'!$I$5:$DK$50,MATCH('Pre-Rinse Spray Valves'!BE19,'Floor Space'!$I$5:$I$50,0),MATCH('Pre-Rinse Spray Valves'!BE$10,'Floor Space'!$I$5:$DK$5,0))*'Pre-Rinse Spray Valves'!BL19 -> 26.45679296 | BJ19: 212.1347275 | BK19: 998.7244879 | BL19: 5.76644517 | BM19: 0.0272114286 | BP19: 1994 | BQ19: 243.0669237 | BR19: 0 | BS19: 46.41948364 | BT19: =INDEX('Floor Space'!$I$5:$DK$50,MATCH('Pre-Rinse Spray Valves'!BP19,'Floor Space'!$I$5:$I$50,0),MATCH('Pre-Rinse Spray Valves'!BP$10,'Floor Space'!$I$5:$DK$5,0))*'Pre-Rinse Spray Valves'!BW19 -> 6.614198241 | BU19: 53.03368189 | BV19: 249.681122 | BW19: 5.76644517 | BX19: 0.0272114286 | CA19: 1994 | CB19: 469.2936196 | CC19: 0 | CD19: 89.62292016 | CE19: =INDEX('Floor Space'!$I$5:$DK$50,MATCH('Pre-Rinse Spray Valves'!CA19,'Floor Space'!$I$5:$I$50,0),MATCH('Pre-Rinse Spray Valves'!CA$10,'Floor Space'!$I$5:$DK$5,0))*'Pre-Rinse Spray Valves'!CH19 -> 12.77014982 | CF19: 102.39307 | CG19: 482.0637694 | CH19: 5.76644517 | CI19: 0.0272114286 | CL19: 1994 | CM19: 986.5116373 | CN19: 0 | CO19: 188.5342441 | CP19: =INDEX('Floor Space'!$I$5:$DK$50,MATCH('Pre-Rinse Spray Valves'!CL19,'Floor Space'!$I$5:$I$50,0),MATCH('Pre-Rinse Spray Valves'!CL$10,'Floor Space'!$I$5:$DK$5,0))*'Pre-Rinse Spray Valves'!CS19 -> 21.43539074 | CQ19: 209.9696348 | CR19: 1007.947028 | CS19: 5.76644517 | CT19: 0.02172847225 | CW19: 1994 | CX19: 501.0168805 | CY19: 0 | CZ19: 96.54606228 | DA19: =INDEX('Floor Space'!$I$5:$DK$50,MATCH('Pre-Rinse Spray Valves'!CW19,'Floor Space'!$I$5:$I$50,0),MATCH('Pre-Rinse Spray Valves'!CW$10,'Floor Space'!$I$5:$DK$5,0))*'Pre-Rinse Spray Valves'!DD19 -> 11.04247402 | DB19: 107.5885363 | DC19: 512.0593545 | DD19: 5.76644517 | DE19: 0.02204012369 | DH19: 1994 | DI19: 1223.694771 | DJ19: 0 | DK19: 232.122929 | DL19: =INDEX('Floor Space'!$I$5:$DK$50,MATCH('Pre-Rinse Spray Valves'!DH19,'Floor Space'!$I$5:$I$50,0),MATCH('Pre-Rinse Spray Valves'!DH$10,'Floor Space'!$I$5:$DK$5,0))*'Pre-Rinse Spray Valves'!DO19 -> 34.65939169 | DM19: 266.7823207 | DN19: 1258.354163 | DO19: 5.76644517 | DP19: 0.02832355952 | DS19: 1994 | DT19: 232.9561804 | DU19: 0 | DV19: 46.4003194 | DW19: =INDEX('Floor Space'!$I$5:$DK$50,MATCH('Pre-Rinse Spray Valves'!DS19,'Floor Space'!$I$5:$I$50,0),MATCH('Pre-Rinse Spray Valves'!DS$10,'Floor Space'!$I$5:$DK$5,0))*'Pre-Rinse Spray Valves'!DZ19 -> 7.26241974 | DX19: 53.66273914 | DY19: 240.2186001 | DZ19: 5.76644517 | EA19: 0.03117504643 | ED19: 1994 | EE19: 94.26724331 | EF19: 0 | EG19: 18.59579173 | EH19: =INDEX('Floor Space'!$I$5:$DK$50,MATCH('Pre-Rinse Spray Valves'!ED19,'Floor Space'!$I$5:$I$50,0),MATCH('Pre-Rinse Spray Valves'!ED$10,'Floor Space'!$I$5:$DK$5,0))*'Pre-Rinse Spray Valves'!EK19 -> 2.938785687 | EI19: 21.53457742 | EJ19: 97.206029 | EK19: 5.76644517 | EL19: 0.03117504643 | EO19: 1994 | EP19: 213.0550293 | EQ19: 0 | ER19: 42.12531712 | ES19: =INDEX('Floor Space'!$I$5:$DK$50,MATCH('Pre-Rinse Spray Valves'!EO19,'Floor Space'!$I$5:$I$50,0),MATCH('Pre-Rinse Spray Valves'!EO$10,'Floor Space'!$I$5:$DK$5,0))*'Pre-Rinse Spray Valves'!EV19 -> 2.767305504 | ET19: 44.89262263 | EU19: 215.8223348 | EV19: 5.76644517 | EW19: 0.01298868895 | EZ19: 1994 | FA19: 676.6732244 | FB19: 0 | FC19: 130.3432571 | FD19: =INDEX('Floor Space'!$I$5:$DK$50,MATCH('Pre-Rinse Spray Valves'!EZ19,'Floor Space'!$I$5:$I$50,0),MATCH('Pre-Rinse Spray Valves'!EZ$10,'Floor Space'!$I$5:$DK$5,0))*'Pre-Rinse Spray Valves'!FG19 -> 8.648710526 | FE19: 138.9919677 | FF19: 685.3219349 | FG19: 5.76644517 | FH19: 0.01278122174 | FK19: 1994 | FL19: 255.5258776 | FM19: 0 | FN19: 49.05700598 | FO19: =INDEX('Floor Space'!$I$5:$DK$50,MATCH('Pre-Rinse Spray Valves'!FK19,'Floor Space'!$I$5:$I$50,0),MATCH('Pre-Rinse Spray Valves'!FK$10,'Floor Space'!$I$5:$DK$5,0))*'Pre-Rinse Spray Valves'!FR19 -> 5.426477268 | FP19: 54.48348325 | FQ19: 260.9523549 | FR19: 5.76644517 | FS19: 0.0212365077 | FV19: 1994 | FW19: 553.9255261 | FX19: 0 | FY19: 105.5982289 | FZ19: =INDEX('Floor Space'!$I$5:$DK$50,MATCH('Pre-Rinse Spray Valves'!FV19,'Floor Space'!$I$5:$I$50,0),MATCH('Pre-Rinse Spray Valves'!FV$10,'Floor Space'!$I$5:$DK$5,0))*'Pre-Rinse Spray Valves'!GC19 -> 11.18547491 | GA19: 116.7837038 | GB19: 565.1110011 | GC19: 5.76644517 | GD19: 0.02019310248 | GG19: 1994 | GH19: 794.0132325 | GI19: 0 | GJ19: 152.3082691 | GK19: =INDEX('Floor Space'!$I$5:$DK$50,MATCH('Pre-Rinse Spray Valves'!GG19,'Floor Space'!$I$5:$I$50,0),MATCH('Pre-Rinse Spray Valves'!GG$10,'Floor Space'!$I$5:$DK$5,0))*'Pre-Rinse Spray Valves'!GN19 -> 13.98115205 | GL19: 166.2894212 | GM19: 807.9943846 | GN19: 5.76644517 | GO19: 0.01760821039 | GR19: 1994 | GS19: 1550.390636 | GT19: 0 | GU19: 292.9298235 | GV19: =INDEX('Floor Space'!$I$5:$DK$50,MATCH('Pre-Rinse Spray Valves'!GR19,'Floor Space'!$I$5:$I$50,0),MATCH('Pre-Rinse Spray Valves'!GR$10,'Floor Space'!$I$5:$DK$5,0))*'Pre-Rinse Spray Valves'!GY19 -> 28.83995001 | GW19: 321.7697735 | GX19: 1579.230586 | GY19: 5.76644517 | GZ19: 0.01860173129
B20: 1995 | C20: 11662.26808 | D20: 0 | E20: 2231.311001 | F20: 296.1257005 | G20: 2527.436701 | H20: 11958.39378 | I20: 5.76644517 | J20: 0.02539177616 | M20: 1995 | N20: 1091.782603 | O20: 0 | P20: 209.5125015 | Q20: =INDEX('Floor Space'!$I$5:$DK$54,MATCH('Pre-Rinse Spray Valves'!M20,'Floor Space'!$I$5:$I$54,0),MATCH('Pre-Rinse Spray Valves'!M$10,'Floor Space'!$I$5:$DK$5,0))*'Pre-Rinse Spray Valves'!T20 -> 21.44742137 | R20: 230.9599229 | S20: 1113.230025 | T20: 5.76644517 | U20: 0.01964440659 | X20: 1995 | Y20: 491.8928026 | Z20: 0 | AA20: 94.39396749 | AB20: =INDEX('Floor Space'!$I$5:$DK$50,MATCH('Pre-Rinse Spray Valves'!X20,'Floor Space'!$I$5:$I$50,0),MATCH('Pre-Rinse Spray Valves'!X$10,'Floor Space'!$I$5:$DK$5,0))*'Pre-Rinse Spray Valves'!AE20 -> 9.662942214 | AC20: 104.0569097 | AD20: 501.5557448 | AE20: 5.76644517 | AF20: 0.01964440659 | AI20: 1995 | AJ20: 577.1727096 | AK20: 0 | AL20: 110.7591363 | AM20: =INDEX('Floor Space'!$I$5:$DK$50,MATCH('Pre-Rinse Spray Valves'!AI20,'Floor Space'!$I$5:$I$50,0),MATCH('Pre-Rinse Spray Valves'!AI$10,'Floor Space'!$I$5:$DK$5,0))*'Pre-Rinse Spray Valves'!AP20 -> 11.33821538 | AN20: 122.0973517 | AO20: 588.510925 | AP20: 5.76644517 | AQ20: 0.01964440659 | AT20: 1995 | AU20: 540.7328107 | AV20: 0 | AW20: 103.2659544 | AX20: =INDEX('Floor Space'!$I$5:$DK$50,MATCH('Pre-Rinse Spray Valves'!AT20,'Floor Space'!$I$5:$I$50,0),MATCH('Pre-Rinse Spray Valves'!AT$10,'Floor Space'!$I$5:$DK$5,0))*'Pre-Rinse Spray Valves'!BA20 -> 13.15812545 | AY20: 116.4240798 | AZ20: 553.8909361 | BA20: 5.76644517 | BB20: 0.02433387653 | BE20: 1995 | BF20: 998.7244879 | BG20: 0 | BH20: 190.7304964 | BI20: =INDEX('Floor Space'!$I$5:$DK$50,MATCH('Pre-Rinse Spray Valves'!BE20,'Floor Space'!$I$5:$I$50,0),MATCH('Pre-Rinse Spray Valves'!BE$10,'Floor Space'!$I$5:$DK$5,0))*'Pre-Rinse Spray Valves'!BL20 -> 24.30283838 | BJ20: 215.0333348 | BK20: 1023.027326 | BL20: 5.76644517 | BM20: 0.02433387653 | BP20: 1995 | BQ20: 249.681122 | BR20: 0 | BS20: 47.68262411 | BT20: =INDEX('Floor Space'!$I$5:$DK$50,MATCH('Pre-Rinse Spray Valves'!BP20,'Floor Space'!$I$5:$I$50,0),MATCH('Pre-Rinse Spray Valves'!BP$10,'Floor Space'!$I$5:$DK$5,0))*'Pre-Rinse Spray Valves'!BW20 -> 6.075709595 | BU20: 53.7583337 | BV20: 255.7568316 | BW20: 5.76644517 | BX20: 0.02433387653 | CA20: 1995 | CB20: 482.0637694 | CC20: 0 | CD20: 92.06168785 | CE20: =INDEX('Floor Space'!$I$5:$DK$50,MATCH('Pre-Rinse Spray Valves'!CA20,'Floor Space'!$I$5:$I$50,0),MATCH('Pre-Rinse Spray Valves'!CA$10,'Floor Space'!$I$5:$DK$5,0))*'Pre-Rinse Spray Valves'!CH20 -> 11.73048025 | CF20: 103.7921681 | CG20: 493.7942497 | CH20: 5.76644517 | CI20: 0.02433387653 | CL20: 1995 | CM20: 1007.947028 | CN20: 0 | CO20: 192.6308052 | CP20: =INDEX('Floor Space'!$I$5:$DK$50,MATCH('Pre-Rinse Spray Valves'!CL20,'Floor Space'!$I$5:$I$50,0),MATCH('Pre-Rinse Spray Valves'!CL$10,'Floor Space'!$I$5:$DK$5,0))*'Pre-Rinse Spray Valves'!CS20 -> 28.29592938 | CQ20: 220.9267345 | CR20: 1036.242957 | CS20: 5.76644517 | CT20: 0.02807283379 | CW20: 1995 | CX20: 512.0593545 | CY20: 0 | CZ20: 98.67394944 | DA20: =INDEX('Floor Space'!$I$5:$DK$50,MATCH('Pre-Rinse Spray Valves'!CW20,'Floor Space'!$I$5:$I$50,0),MATCH('Pre-Rinse Spray Valves'!CW$10,'Floor Space'!$I$5:$DK$5,0))*'Pre-Rinse Spray Valves'!DD20 -> 14.57669089 | DB20: 113.2506403 | DC20: 526.6360454 | DD20: 5.76644517 | DE20: 0.02846679934 | DH20: 1995 | DI20: 1258.354163 | DJ20: 0 | DK20: 238.6974766 | DL20: =INDEX('Floor Space'!$I$5:$DK$50,MATCH('Pre-Rinse Spray Valves'!DH20,'Floor Space'!$I$5:$I$50,0),MATCH('Pre-Rinse Spray Valves'!DH$10,'Floor Space'!$I$5:$DK$5,0))*'Pre-Rinse Spray Valves'!DO20 -> 56.02269863 | DM20: 294.7201752 | DN20: 1314.376862 | DO20: 5.76644517 | DP20: 0.04452061294 | DS20: 1995 | DT20: 240.2186001 | DU20: 0 | DV20: 47.84685152 | DW20: =INDEX('Floor Space'!$I$5:$DK$50,MATCH('Pre-Rinse Spray Valves'!DS20,'Floor Space'!$I$5:$I$50,0),MATCH('Pre-Rinse Spray Valves'!DS$10,'Floor Space'!$I$5:$DK$5,0))*'Pre-Rinse Spray Valves'!DZ20 -> 6.531635697 | DX20: 54.37848721 | DY20: 246.7502358 | DZ20: 5.76644517 | EA20: 0.02719038281 | ED20: 1995 | EE20: 97.206029 | EF20: 0 | EG20: 19.1755164 | EH20: =INDEX('Floor Space'!$I$5:$DK$50,MATCH('Pre-Rinse Spray Valves'!ED20,'Floor Space'!$I$5:$I$50,0),MATCH('Pre-Rinse Spray Valves'!ED$10,'Floor Space'!$I$5:$DK$5,0))*'Pre-Rinse Spray Valves'!EK20 -> 2.64306914 | EI20: 21.81858554 | EJ20: 99.84909814 | EK20: 5.76644517 | EL20: 0.02719038281 | EO20: 1995 | EP20: 215.8223348 | EQ20: 0 | ER20: 42.67246976 | ES20: =INDEX('Floor Space'!$I$5:$DK$50,MATCH('Pre-Rinse Spray Valves'!EO20,'Floor Space'!$I$5:$I$50,0),MATCH('Pre-Rinse Spray Valves'!EO$10,'Floor Space'!$I$5:$DK$5,0))*'Pre-Rinse Spray Valves'!EV20 -> 2.913669416 | ET20: 45.58613918 | EU20: 218.7360042 | EV20: 5.76644517 | EW20: 0.01350031459 | EZ20: 1995 | FA20: 685.3219349 | FB20: 0 | FC20: 132.0092032 | FD20: =INDEX('Floor Space'!$I$5:$DK$50,MATCH('Pre-Rinse Spray Valves'!EZ20,'Floor Space'!$I$5:$I$50,0),MATCH('Pre-Rinse Spray Valves'!EZ$10,'Floor Space'!$I$5:$DK$5,0))*'Pre-Rinse Spray Valves'!FG20 -> 13.12604381 | FE20: 145.135247 | FF20: 698.4479787 | FG20: 5.76644517 | FH20: 0.01915310622 | FK20: 1995 | FL20: 260.9523549 | FM20: 0 | FN20: 50.09880546 | FO20: =INDEX('Floor Space'!$I$5:$DK$50,MATCH('Pre-Rinse Spray Valves'!FK20,'Floor Space'!$I$5:$I$50,0),MATCH('Pre-Rinse Spray Valves'!FK$10,'Floor Space'!$I$5:$DK$5,0))*'Pre-Rinse Spray Valves'!FR20 -> 5.150718294 | FP20: 55.24952376 | FQ20: 266.1030732 | FR20: 5.76644517 | FS20: 0.01973815602 | FV20: 1995 | FW20: 565.1110011 | FX20: 0 | FY20: 107.7305848 | FZ20: =INDEX('Floor Space'!$I$5:$DK$50,MATCH('Pre-Rinse Spray Valves'!FV20,'Floor Space'!$I$5:$I$50,0),MATCH('Pre-Rinse Spray Valves'!FV$10,'Floor Space'!$I$5:$DK$5,0))*'Pre-Rinse Spray Valves'!GC20 -> 10.48515925 | GA20: 118.215744 | GB20: 575.5961603 | GC20: 5.76644517 | GD20: 0.01855415879 | GG20: 1995 | GH20: 807.9943846 | GI20: 0 | GJ20: 154.9901452 | GK20: =INDEX('Floor Space'!$I$5:$DK$50,MATCH('Pre-Rinse Spray Valves'!GG20,'Floor Space'!$I$5:$I$50,0),MATCH('Pre-Rinse Spray Valves'!GG$10,'Floor Space'!$I$5:$DK$5,0))*'Pre-Rinse Spray Valves'!GN20 -> 19.54795811 | GL20: 174.5381033 | GM20: 827.5423427 | GN20: 5.76644517 | GO20: 0.0241931856 | GR20: 1995 | GS20: 1579.230586 | GT20: 0 | GU20: 298.3788254 | GV20: =INDEX('Floor Space'!$I$5:$DK$50,MATCH('Pre-Rinse Spray Valves'!GR20,'Floor Space'!$I$5:$I$50,0),MATCH('Pre-Rinse Spray Valves'!GR$10,'Floor Space'!$I$5:$DK$5,0))*'Pre-Rinse Spray Valves'!GY20 -> 39.11639526 | GW20: 337.4952206 | GX20: 1618.346982 | GY20: 5.76644517 | GZ20: 0.0247692741
B21: 1996 | C21: 11958.39378 | D21: 0 | E21: 2287.909919 | F21: 292.8344384 | G21: 2580.744358 | H21: 12251.22822 | I21: 5.76644517 | J21: 0.02448777352 | M21: 1996 | N21: 1113.230025 | O21: 0 | P21: 213.6282503 | Q21: =INDEX('Floor Space'!$I$5:$DK$54,MATCH('Pre-Rinse Spray Valves'!M21,'Floor Space'!$I$5:$I$54,0),MATCH('Pre-Rinse Spray Valves'!M$10,'Floor Space'!$I$5:$DK$5,0))*'Pre-Rinse Spray Valves'!T21 -> 24.71792159 | R21: 238.3461719 | S21: 1137.947946 | T21: 5.76644517 | U21: 0.02220378632 | X21: 1996 | Y21: 501.5557448 | Z21: 0 | AA21: 96.24828097 | AB21: =INDEX('Floor Space'!$I$5:$DK$50,MATCH('Pre-Rinse Spray Valves'!X21,'Floor Space'!$I$5:$I$50,0),MATCH('Pre-Rinse Spray Valves'!X$10,'Floor Space'!$I$5:$DK$5,0))*'Pre-Rinse Spray Valves'!AE21 -> 11.13643658 | AC21: 107.3847175 | AD21: 512.6921814 | AE21: 5.76644517 | AF21: 0.02220378632 | AI21: 1996 | AJ21: 588.510925 | AK21: 0 | AL21: 112.9349338 | AM21: =INDEX('Floor Space'!$I$5:$DK$50,MATCH('Pre-Rinse Spray Valves'!AI21,'Floor Space'!$I$5:$I$50,0),MATCH('Pre-Rinse Spray Valves'!AI$10,'Floor Space'!$I$5:$DK$5,0))*'Pre-Rinse Spray Valves'!AP21 -> 13.06717082 | AN21: 126.0021047 | AO21: 601.5780958 | AP21: 5.76644517 | AQ21: 0.02220378632 | AT21: 1996 | AU21: 553.8909361 | AV21: 0 | AW21: 105.7788154 | AX21: =INDEX('Floor Space'!$I$5:$DK$50,MATCH('Pre-Rinse Spray Valves'!AT21,'Floor Space'!$I$5:$I$50,0),MATCH('Pre-Rinse Spray Valves'!AT$10,'Floor Space'!$I$5:$DK$5,0))*'Pre-Rinse Spray Valves'!BA21 -> 7.196473053 | AY21: 112.9752884 | AZ21: 561.0874092 | BA21: 5.76644517 | BB21: 0.01299258136 | BE21: 1996 | BF21: 1023.027326 | BG21: 0 | BH21: 195.3717088 | BI21: =INDEX('Floor Space'!$I$5:$DK$50,MATCH('Pre-Rinse Spray Valves'!BE21,'Floor Space'!$I$5:$I$50,0),MATCH('Pre-Rinse Spray Valves'!BE$10,'Floor Space'!$I$5:$DK$5,0))*'Pre-Rinse Spray Valves'!BL21 -> 13.29176577 | BJ21: 208.6634746 | BK21: 1036.319092 | BL21: 5.76644517 | BM21: 0.01299258136 | BP21: 1996 | BQ21: 255.7568316 | BR21: 0 | BS21: 48.8429272 | BT21: =INDEX('Floor Space'!$I$5:$DK$50,MATCH('Pre-Rinse Spray Valves'!BP21,'Floor Space'!$I$5:$I$50,0),MATCH('Pre-Rinse Spray Valves'!BP$10,'Floor Space'!$I$5:$DK$5,0))*'Pre-Rinse Spray Valves'!BW21 -> 3.322941443 | BU21: 52.16586864 | BV21: 259.079773 | BW21: 5.76644517 | BX21: 0.01299258136 | CA21: 1996 | CB21: 493.7942497 | CC21: 0 | CD21: 94.3019056 | CE21: =INDEX('Floor Space'!$I$5:$DK$50,MATCH('Pre-Rinse Spray Valves'!CA21,'Floor Space'!$I$5:$I$50,0),MATCH('Pre-Rinse Spray Valves'!CA$10,'Floor Space'!$I$5:$DK$5,0))*'Pre-Rinse Spray Valves'!CH21 -> 6.415661964 | CF21: 100.7175676 | CG21: 500.2099116 | CH21: 5.76644517 | CI21: 0.01299258136 | CL21: 1996 | CM21: 1036.242957 | CN21: 0 | CO21: 198.0384977 | CP21: =INDEX('Floor Space'!$I$5:$DK$50,MATCH('Pre-Rinse Spray Valves'!CL21,'Floor Space'!$I$5:$I$50,0),MATCH('Pre-Rinse Spray Valves'!CL$10,'Floor Space'!$I$5:$DK$5,0))*'Pre-Rinse Spray Valves'!CS21 -> 20.29593333 | CQ21: 218.3344311 | CR21: 1056.538891 | CS21: 5.76644517 | CT21: 0.01958607601 | CW21: 1996 | CX21: 526.6360454 | CY21: 0 | CZ21: 101.482881 | DA21: =INDEX('Floor Space'!$I$5:$DK$50,MATCH('Pre-Rinse Spray Valves'!CW21,'Floor Space'!$I$5:$I$50,0),MATCH('Pre-Rinse Spray Valves'!CW$10,'Floor Space'!$I$5:$DK$5,0))*'Pre-Rinse Spray Valves'!DD21 -> 10.45548081 | DB21: 111.9383618 | DC21: 537.0915262 | DD21: 5.76644517 | DE21: 0.01985333305 | DH21: 1996 | DI21: 1314.376862 | DJ21: 0 | DK21: 249.3244345 | DL21: =INDEX('Floor Space'!$I$5:$DK$50,MATCH('Pre-Rinse Spray Valves'!DH21,'Floor Space'!$I$5:$I$50,0),MATCH('Pre-Rinse Spray Valves'!DH$10,'Floor Space'!$I$5:$DK$5,0))*'Pre-Rinse Spray Valves'!DO21 -> 63.86020295 | DM21: 313.1846375 | DN21: 1378.237064 | DO21: 5.76644517 | DP21: 0.04858591536 | DS21: 1996 | DT21: 246.7502358 | DU21: 0 | DV21: 49.14782572 | DW21: =INDEX('Floor Space'!$I$5:$DK$50,MATCH('Pre-Rinse Spray Valves'!DS21,'Floor Space'!$I$5:$I$50,0),MATCH('Pre-Rinse Spray Valves'!DS$10,'Floor Space'!$I$5:$DK$5,0))*'Pre-Rinse Spray Valves'!DZ21 -> 4.093139796 | DX21: 53.24096552 | DY21: 250.8433756 | DZ21: 5.76644517 | EA21: 0.01658819001 | ED21: 1996 | EE21: 99.84909814 | EF21: 0 | EG21: 19.69690603 | EH21: =INDEX('Floor Space'!$I$5:$DK$50,MATCH('Pre-Rinse Spray Valves'!ED21,'Floor Space'!$I$5:$I$50,0),MATCH('Pre-Rinse Spray Valves'!ED$10,'Floor Space'!$I$5:$DK$5,0))*'Pre-Rinse Spray Valves'!EK21 -> 1.656315812 | EI21: 21.35322184 | EJ21: 101.5054139 | EK21: 5.76644517 | EL21: 0.01658819001 | EO21: 1996 | EP21: 218.7360042 | EQ21: 0 | ER21: 43.24856153 | ES21: =INDEX('Floor Space'!$I$5:$DK$50,MATCH('Pre-Rinse Spray Valves'!EO21,'Floor Space'!$I$5:$I$50,0),MATCH('Pre-Rinse Spray Valves'!EO$10,'Floor Space'!$I$5:$DK$5,0))*'Pre-Rinse Spray Valves'!EV21 -> 2.517802955 | ET21: 45.76636449 | EU21: 221.2538071 | EV21: 5.76644517 | EW21: 0.01151069283 | EZ21: 1996 | FA21: 698.4479787 | FB21: 0 | FC21: 134.5375895 | FD21: =INDEX('Floor Space'!$I$5:$DK$50,MATCH('Pre-Rinse Spray Valves'!EZ21,'Floor Space'!$I$5:$I$50,0),MATCH('Pre-Rinse Spray Valves'!EZ$10,'Floor Space'!$I$5:$DK$5,0))*'Pre-Rinse Spray Valves'!FG21 -> 15.73000899 | FE21: 150.2675985 | FF21: 714.1779877 | FG21: 5.76644517 | FH21: 0.02252137521 | FK21: 1996 | FL21: 266.1030732 | FM21: 0 | FN21: 51.0876635 | FO21: =INDEX('Floor Space'!$I$5:$DK$50,MATCH('Pre-Rinse Spray Valves'!FK21,'Floor Space'!$I$5:$I$50,0),MATCH('Pre-Rinse Spray Valves'!FK$10,'Floor Space'!$I$5:$DK$5,0))*'Pre-Rinse Spray Valves'!FR21 -> 4.388734348 | FP21: 55.47639785 | FQ21: 270.4918076 | FR21: 5.76644517 | FS21: 0.01649261053 | FV21: 1996 | FW21: 575.5961603 | FX21: 0 | FY21: 109.7294351 | FZ21: =INDEX('Floor Space'!$I$5:$DK$50,MATCH('Pre-Rinse Spray Valves'!FV21,'Floor Space'!$I$5:$I$50,0),MATCH('Pre-Rinse Spray Valves'!FV$10,'Floor Space'!$I$5:$DK$5,0))*'Pre-Rinse Spray Valves'!GC21 -> 9.058027612 | GA21: 118.7874627 | GB21: 584.6541879 | GC21: 5.76644517 | GD21: 0.0157367756 | GG21: 1996 | GH21: 827.5423427 | GI21: 0 | GJ21: 158.7398505 | GK21: =INDEX('Floor Space'!$I$5:$DK$50,MATCH('Pre-Rinse Spray Valves'!GG21,'Floor Space'!$I$5:$I$50,0),MATCH('Pre-Rinse Spray Valves'!GG$10,'Floor Space'!$I$5:$DK$5,0))*'Pre-Rinse Spray Valves'!GN21 -> 26.97861935 | GL21: 185.7184699 | GM21: 854.520962 | GN21: 5.76644517 | GO21: 0.03260089298 | GR21: 1996 | GS21: 1618.346982 | GT21: 0 | GU21: 305.7694523 | GV21: =INDEX('Floor Space'!$I$5:$DK$50,MATCH('Pre-Rinse Spray Valves'!GR21,'Floor Space'!$I$5:$I$50,0),MATCH('Pre-Rinse Spray Valves'!GR$10,'Floor Space'!$I$5:$DK$5,0))*'Pre-Rinse Spray Valves'!GY21 -> 54.65180126 | GW21: 360.4212535 | GX21: 1672.998783 | GY21: 5.76644517 | GZ21: 0.03377013822
B22: 1997 | C22: 12251.22822 | D22: 0 | E22: 2343.817801 | F22: 337.8392143 | G22: 2681.657015 | H22: 12589.06743 | I22: 5.76644517 | J22: 0.02757594654 | M22: 1997 | N22: 1137.947946 | O22: 0 | P22: 218.3716063 | Q22: =INDEX('Floor Space'!$I$5:$DK$54,MATCH('Pre-Rinse Spray Valves'!M22,'Floor Space'!$I$5:$I$54,0),MATCH('Pre-Rinse Spray Valves'!M$10,'Floor Space'!$I$5:$DK$5,0))*'Pre-Rinse Spray Valves'!T22 -> 26.99711516 | R22: 245.3687215 | S22: 1164.945062 | T22: 5.76644517 | U22: 0.02372438498 | X22: 1997 | Y22: 512.6921814 | Z22: 0 | AA22: 98.38535723 | AB22: =INDEX('Floor Space'!$I$5:$DK$50,MATCH('Pre-Rinse Spray Valves'!X22,'Floor Space'!$I$5:$I$50,0),MATCH('Pre-Rinse Spray Valves'!X$10,'Floor Space'!$I$5:$DK$5,0))*'Pre-Rinse Spray Valves'!AE22 -> 12.16330669 | AC22: 110.5486639 | AD22: 524.8554881 | AE22: 5.76644517 | AF22: 0.02372438498 | AI22: 1997 | AJ22: 601.5780958 | AK22: 0 | AL22: 115.442517 | AM22: =INDEX('Floor Space'!$I$5:$DK$50,MATCH('Pre-Rinse Spray Valves'!AI22,'Floor Space'!$I$5:$I$50,0),MATCH('Pre-Rinse Spray Valves'!AI$10,'Floor Space'!$I$5:$DK$5,0))*'Pre-Rinse Spray Valves'!AP22 -> 14.27207034 | AN22: 129.7145873 | AO22: 615.8501662 | AP22: 5.76644517 | AQ22: 0.02372438498 | AT22: 1997 | AU22: 561.0874092 | AV22: 0 | AW22: 107.1531552 | AX22: =INDEX('Floor Space'!$I$5:$DK$50,MATCH('Pre-Rinse Spray Valves'!AT22,'Floor Space'!$I$5:$I$50,0),MATCH('Pre-Rinse Spray Valves'!AT$10,'Floor Space'!$I$5:$DK$5,0))*'Pre-Rinse Spray Valves'!BA22 -> 8.978698108 | AY22: 116.1318533 | AZ22: 570.0661073 | BA22: 5.76644517 | BB22: 0.01600231615 | BE22: 1997 | BF22: 1036.319092 | BG22: 0 | BH22: 197.9100916 | BI22: =INDEX('Floor Space'!$I$5:$DK$50,MATCH('Pre-Rinse Spray Valves'!BE22,'Floor Space'!$I$5:$I$50,0),MATCH('Pre-Rinse Spray Valves'!BE$10,'Floor Space'!$I$5:$DK$5,0))*'Pre-Rinse Spray Valves'!BL22 -> 16.58350574 | BJ22: 214.4935974 | BK22: 1052.902598 | BL22: 5.76644517 | BM22: 0.01600231615 | BP22: 1997 | BQ22: 259.079773 | BR22: 0 | BS22: 49.4775229 | BT22: =INDEX('Floor Space'!$I$5:$DK$50,MATCH('Pre-Rinse Spray Valves'!BP22,'Floor Space'!$I$5:$I$50,0),MATCH('Pre-Rinse Spray Valves'!BP$10,'Floor Space'!$I$5:$DK$5,0))*'Pre-Rinse Spray Valves'!BW22 -> 4.145876435 | BU22: 53.62339934 | BV22: 263.2256495 | BW22: 5.76644517 | BX22: 0.01600231615 | CA22: 1997 | CB22: 500.2099116 | CC22: 0 | CD22: 95.52713078 | CE22: =INDEX('Floor Space'!$I$5:$DK$50,MATCH('Pre-Rinse Spray Valves'!CA22,'Floor Space'!$I$5:$I$50,0),MATCH('Pre-Rinse Spray Valves'!CA$10,'Floor Space'!$I$5:$DK$5,0))*'Pre-Rinse Spray Valves'!CH22 -> 8.004517146 | CF22: 103.5316479 | CG22: 508.2144288 | CH22: 5.76644517 | CI22: 0.01600231615 | CL22: 1997 | CM22: 1056.538891 | CN22: 0 | CO22: 201.9172948 | CP22: =INDEX('Floor Space'!$I$5:$DK$50,MATCH('Pre-Rinse Spray Valves'!CL22,'Floor Space'!$I$5:$I$50,0),MATCH('Pre-Rinse Spray Valves'!CL$10,'Floor Space'!$I$5:$DK$5,0))*'Pre-Rinse Spray Valves'!CS22 -> 23.4787232 | CQ22: 225.396018 | CR22: 1080.017614 | CS22: 5.76644517 | CT22: 0.02222229906 | CW22: 1997 | CX22: 537.0915262 | CY22: 0 | CZ22: 103.4976544 | DA22: =INDEX('Floor Space'!$I$5:$DK$50,MATCH('Pre-Rinse Spray Valves'!CW22,'Floor Space'!$I$5:$I$50,0),MATCH('Pre-Rinse Spray Valves'!CW$10,'Floor Space'!$I$5:$DK$5,0))*'Pre-Rinse Spray Valves'!DD22 -> 12.09509983 | DB22: 115.5927542 | DC22: 549.1866261 | DD22: 5.76644517 | DE22: 0.02251962513 | DH22: 1997 | DI22: 1378.237064 | DJ22: 0 | DK22: 261.4380904 | DL22: =INDEX('Floor Space'!$I$5:$DK$50,MATCH('Pre-Rinse Spray Valves'!DH22,'Floor Space'!$I$5:$I$50,0),MATCH('Pre-Rinse Spray Valves'!DH$10,'Floor Space'!$I$5:$DK$5,0))*'Pre-Rinse Spray Valves'!DO22 -> 65.45405416 | DM22: 326.8921446 | DN22: 1443.691119 | DO22: 5.76644517 | DP22: 0.04749114347 | DS22: 1997 | DT22: 250.8433756 | DU22: 0 | DV22: 49.9630992 | DW22: =INDEX('Floor Space'!$I$5:$DK$50,MATCH('Pre-Rinse Spray Valves'!DS22,'Floor Space'!$I$5:$I$50,0),MATCH('Pre-Rinse Spray Valves'!DS$10,'Floor Space'!$I$5:$DK$5,0))*'Pre-Rinse Spray Valves'!DZ22 -> 4.788576042 | DX22: 54.75167524 | DY22: 255.6319517 | DZ22: 5.76644517 | EA22: 0.01908990433 | ED22: 1997 | EE22: 101.5054139 | EF22: 0 | EG22: 20.02364205 | EH22: =INDEX('Floor Space'!$I$5:$DK$50,MATCH('Pre-Rinse Spray Valves'!ED22,'Floor Space'!$I$5:$I$50,0),MATCH('Pre-Rinse Spray Valves'!ED$10,'Floor Space'!$I$5:$DK$5,0))*'Pre-Rinse Spray Valves'!EK22 -> 1.937728641 | EI22: 21.96137069 | EJ22: 103.4431426 | EK22: 5.76644517 | EL22: 0.01908990433 | EO22: 1997 | EP22: 221.2538071 | EQ22: 0 | ER22: 43.74638244 | ES22: =INDEX('Floor Space'!$I$5:$DK$50,MATCH('Pre-Rinse Spray Valves'!EO22,'Floor Space'!$I$5:$I$50,0),MATCH('Pre-Rinse Spray Valves'!EO$10,'Floor Space'!$I$5:$DK$5,0))*'Pre-Rinse Spray Valves'!EV22 -> 4.021507329 | ET22: 47.76788977 | EU22: 225.2753145 | EV22: 5.76644517 | EW22: 0.01817599155 | EZ22: 1997 | FA22: 714.1779877 | FB22: 0 | FC22: 137.567561 | FD22: =INDEX('Floor Space'!$I$5:$DK$50,MATCH('Pre-Rinse Spray Valves'!EZ22,'Floor Space'!$I$5:$I$50,0),MATCH('Pre-Rinse Spray Valves'!EZ$10,'Floor Space'!$I$5:$DK$5,0))*'Pre-Rinse Spray Valves'!FG22 -> 27.47095267 | FE22: 165.0385137 | FF22: 741.6489404 | FG22: 5.76644517 | FH22: 0.03846513495 | FK22: 1997 | FL22: 270.4918076 | FM22: 0 | FN22: 51.93023244 | FO22: =INDEX('Floor Space'!$I$5:$DK$50,MATCH('Pre-Rinse Spray Valves'!FK22,'Floor Space'!$I$5:$I$50,0),MATCH('Pre-Rinse Spray Valves'!FK$10,'Floor Space'!$I$5:$DK$5,0))*'Pre-Rinse Spray Valves'!FR22 -> 6.786133305 | FP22: 58.71636574 | FQ22: 277.2779409 | FR22: 5.76644517 | FS22: 0.02508812879 | FV22: 1997 | FW22: 584.6541879 | FX22: 0 | FY22: 111.4562226 | FZ22: =INDEX('Floor Space'!$I$5:$DK$50,MATCH('Pre-Rinse Spray Valves'!FV22,'Floor Space'!$I$5:$I$50,0),MATCH('Pre-Rinse Spray Valves'!FV$10,'Floor Space'!$I$5:$DK$5,0))*'Pre-Rinse Spray Valves'!GC22 -> 13.96001408 | GA22: 125.4162367 | GB22: 598.614202 | GC22: 5.76644517 | GD22: 0.02387738661 | GG22: 1997 | GH22: 854.520962 | GI22: 0 | GJ22: 163.9149114 | GK22: =INDEX('Floor Space'!$I$5:$DK$50,MATCH('Pre-Rinse Spray Valves'!GG22,'Floor Space'!$I$5:$I$50,0),MATCH('Pre-Rinse Spray Valves'!GG$10,'Floor Space'!$I$5:$DK$5,0))*'Pre-Rinse Spray Valves'!GN22 -> 28.75959146 | GL22: 192.6745029 | GM22: 883.2805535 | GN22: 5.76644517 | GO22: 0.0336558057 | GR22: 1997 | GS22: 1672.998783 | GT22: 0 | GU22: 316.0953289 | GV22: =INDEX('Floor Space'!$I$5:$DK$50,MATCH('Pre-Rinse Spray Valves'!GR22,'Floor Space'!$I$5:$I$50,0),MATCH('Pre-Rinse Spray Valves'!GR$10,'Floor Space'!$I$5:$DK$5,0))*'Pre-Rinse Spray Valves'!GY22 -> 57.94174397 | GW22: 374.0370729 | GX22: 1730.940527 | GY22: 5.76644517 | GZ22: 0.03463346451
B23: 1998 | C23: 12589.06743 | D23: 0 | E23: 2408.358395 | F23: 397.4356023 | G23: 2805.793997 | H23: 12986.50303 | I23: 5.76644517 | J23: 0.0315699002 | M23: 1998 | N23: 1164.945062 | O23: 0 | P23: 223.5523384 | Q23: =INDEX('Floor Space'!$I$5:$DK$54,MATCH('Pre-Rinse Spray Valves'!M23,'Floor Space'!$I$5:$I$54,0),MATCH('Pre-Rinse Spray Valves'!M$10,'Floor Space'!$I$5:$DK$5,0))*'Pre-Rinse Spray Valves'!T23 -> 38.52215842 | R23: 262.0744968 | S23: 1203.46722 | T23: 5.76644517 | U23: 0.0330677898 | X23: 1998 | Y23: 524.8554881 | Z23: 0 | AA23: 100.7194893 | AB23: =INDEX('Floor Space'!$I$5:$DK$50,MATCH('Pre-Rinse Spray Valves'!X23,'Floor Space'!$I$5:$I$50,0),MATCH('Pre-Rinse Spray Valves'!X$10,'Floor Space'!$I$5:$DK$5,0))*'Pre-Rinse Spray Valves'!AE23 -> 17.35581096 | AC23: 118.0753003 | AD23: 542.2112991 | AE23: 5.76644517 | AF23: 0.0330677898 | AI23: 1998 | AJ23: 615.8501662 | AK23: 0 | AL23: 118.1813197 | AM23: =INDEX('Floor Space'!$I$5:$DK$50,MATCH('Pre-Rinse Spray Valves'!AI23,'Floor Space'!$I$5:$I$50,0),MATCH('Pre-Rinse Spray Valves'!AI$10,'Floor Space'!$I$5:$DK$5,0))*'Pre-Rinse Spray Valves'!AP23 -> 20.36480384 | AN23: 138.5461235 | AO23: 636.21497 | AP23: 5.76644517 | AQ23: 0.0330677898 | AT23: 1998 | AU23: 570.0661073 | AV23: 0 | AW23: 108.8678539 | AX23: =INDEX('Floor Space'!$I$5:$DK$50,MATCH('Pre-Rinse Spray Valves'!AT23,'Floor Space'!$I$5:$I$50,0),MATCH('Pre-Rinse Spray Valves'!AT$10,'Floor Space'!$I$5:$DK$5,0))*'Pre-Rinse Spray Valves'!BA23 -> 12.43866623 | AY23: 121.3065201 | AZ23: 582.5047735 | BA23: 5.76644517 | BB23: 0.02181969086 | BE23: 1998 | BF23: 1052.902598 | BG23: 0 | BH23: 201.0771115 | BI23: =INDEX('Floor Space'!$I$5:$DK$50,MATCH('Pre-Rinse Spray Valves'!BE23,'Floor Space'!$I$5:$I$50,0),MATCH('Pre-Rinse Spray Valves'!BE$10,'Floor Space'!$I$5:$DK$5,0))*'Pre-Rinse Spray Valves'!BL23 -> 22.97400919 | BJ23: 224.0511207 | BK23: 1075.876607 | BL23: 5.76644517 | BM23: 0.02181969086 | BP23: 1998 | BQ23: 263.2256495 | BR23: 0 | BS23: 50.26927787 | BT23: =INDEX('Floor Space'!$I$5:$DK$50,MATCH('Pre-Rinse Spray Valves'!BP23,'Floor Space'!$I$5:$I$50,0),MATCH('Pre-Rinse Spray Valves'!BP$10,'Floor Space'!$I$5:$DK$5,0))*'Pre-Rinse Spray Valves'!BW23 -> 5.743502297 | BU23: 56.01278016 | BV23: 268.9691517 | BW23: 5.76644517 | BX23: 0.02181969086 | CA23: 1998 | CB23: 508.2144288 | CC23: 0 | CD23: 97.05578613 | CE23: =INDEX('Floor Space'!$I$5:$DK$50,MATCH('Pre-Rinse Spray Valves'!CA23,'Floor Space'!$I$5:$I$50,0),MATCH('Pre-Rinse Spray Valves'!CA$10,'Floor Space'!$I$5:$DK$5,0))*'Pre-Rinse Spray Valves'!CH23 -> 11.08908173 | CF23: 108.1448679 | CG23: 519.3035105 | CH23: 5.76644517 | CI23: 0.02181969086 | CL23: 1998 | CM23: 1080.017614 | CN23: 0 | CO23: 206.4043613 | CP23: =INDEX('Floor Space'!$I$5:$DK$50,MATCH('Pre-Rinse Spray Valves'!CL23,'Floor Space'!$I$5:$I$50,0),MATCH('Pre-Rinse Spray Valves'!CL$10,'Floor Space'!$I$5:$DK$5,0))*'Pre-Rinse Spray Valves'!CS23 -> 21.08647767 | CQ23: 227.490839 | CR23: 1101.104092 | CS23: 5.76644517 | CT23: 0.01952419794 | CW23: 1998 | CX23: 549.1866261 | CY23: 0 | CZ23: 105.8283828 | DA23: =INDEX('Floor Space'!$I$5:$DK$50,MATCH('Pre-Rinse Spray Valves'!CW23,'Floor Space'!$I$5:$I$50,0),MATCH('Pre-Rinse Spray Valves'!CW$10,'Floor Space'!$I$5:$DK$5,0))*'Pre-Rinse Spray Valves'!DD23 -> 10.86273092 | DB23: 116.6911137 | DC23: 560.049357 | DD23: 5.76644517 | DE23: 0.01977967125 | DH23: 1998 | DI23: 1443.691119 | DJ23: 0 | DK23: 273.8540843 | DL23: =INDEX('Floor Space'!$I$5:$DK$50,MATCH('Pre-Rinse Spray Valves'!DH23,'Floor Space'!$I$5:$I$50,0),MATCH('Pre-Rinse Spray Valves'!DH$10,'Floor Space'!$I$5:$DK$5,0))*'Pre-Rinse Spray Valves'!DO23 -> 68.22974408 | DM23: 342.0838283 | DN23: 1511.920863 | DO23: 5.76644517 | DP23: 0.04726062466 | DS23: 1998 | DT23: 255.6319517 | DU23: 0 | DV23: 50.91688998 | DW23: =INDEX('Floor Space'!$I$5:$DK$50,MATCH('Pre-Rinse Spray Valves'!DS23,'Floor Space'!$I$5:$I$50,0),MATCH('Pre-Rinse Spray Valves'!DS$10,'Floor Space'!$I$5:$DK$5,0))*'Pre-Rinse Spray Valves'!DZ23 -> 6.97645445 | DX23: 57.89334443 | DY23: 262.6084061 | DZ23: 5.76644517 | EA23: 0.02729101117 | ED23: 1998 | EE23: 103.4431426 | EF23: 0 | EG23: 20.40589146 | EH23: =INDEX('Floor Space'!$I$5:$DK$50,MATCH('Pre-Rinse Spray Valves'!ED23,'Floor Space'!$I$5:$I$50,0),MATCH('Pre-Rinse Spray Valves'!ED$10,'Floor Space'!$I$5:$DK$5,0))*'Pre-Rinse Spray Valves'!EK23 -> 2.82306796 | EI23: 23.22895942 | EJ23: 106.2662105 | EK23: 5.76644517 | EL23: 0.02729101117 | EO23: 1998 | EP23: 225.2753145 | EQ23: 0 | ER23: 44.54151632 | ES23: =INDEX('Floor Space'!$I$5:$DK$50,MATCH('Pre-Rinse Spray Valves'!EO23,'Floor Space'!$I$5:$I$50,0),MATCH('Pre-Rinse Spray Valves'!EO$10,'Floor Space'!$I$5:$DK$5,0))*'Pre-Rinse Spray Valves'!EV23 -> 3.264603736 | ET23: 47.80612005 | EU23: 228.5399182 | EV23: 5.76644517 | EW23: 0.01449161771 | EZ23: 1998 | FA23: 741.6489404 | FB23: 0 | FC23: 142.8591158 | FD23: =INDEX('Floor Space'!$I$5:$DK$50,MATCH('Pre-Rinse Spray Valves'!EZ23,'Floor Space'!$I$5:$I$50,0),MATCH('Pre-Rinse Spray Valves'!EZ$10,'Floor Space'!$I$5:$DK$5,0))*'Pre-Rinse Spray Valves'!FG23 -> 25.25474633 | FE23: 168.1138622 | FF23: 766.9036867 | FG23: 5.76644517 | FH23: 0.03405215724 | FK23: 1998 | FL23: 277.2779409 | FM23: 0 | FN23: 53.2330648 | FO23: =INDEX('Floor Space'!$I$5:$DK$50,MATCH('Pre-Rinse Spray Valves'!FK23,'Floor Space'!$I$5:$I$50,0),MATCH('Pre-Rinse Spray Valves'!FK$10,'Floor Space'!$I$5:$DK$5,0))*'Pre-Rinse Spray Valves'!FR23 -> 7.931184372 | FP23: 61.16424917 | FQ23: 285.2091252 | FR23: 5.76644517 | FS23: 0.02860373367 | FV23: 1998 | FW23: 598.614202 | FX23: 0 | FY23: 114.1175059 | FZ23: =INDEX('Floor Space'!$I$5:$DK$50,MATCH('Pre-Rinse Spray Valves'!FV23,'Floor Space'!$I$5:$I$50,0),MATCH('Pre-Rinse Spray Valves'!FV$10,'Floor Space'!$I$5:$DK$5,0))*'Pre-Rinse Spray Valves'!GC23 -> 16.15744835 | GA23: 130.2749543 | GB23: 614.7716503 | GC23: 5.76644517 | GD23: 0.02699142169 | GG23: 1998 | GH23: 883.2805535 | GI23: 0 | GJ23: 169.4315998 | GK23: =INDEX('Floor Space'!$I$5:$DK$50,MATCH('Pre-Rinse Spray Valves'!GG23,'Floor Space'!$I$5:$I$50,0),MATCH('Pre-Rinse Spray Valves'!GG$10,'Floor Space'!$I$5:$DK$5,0))*'Pre-Rinse Spray Valves'!GN23 -> 35.10010006 | GL23: 204.5316999 | GM23: 918.3806535 | GN23: 5.76644517 | GO23: 0.03973833673 | GR23: 1998 | GS23: 1730.940527 | GT23: 0 | GU23: 327.0428053 | GV23: =INDEX('Floor Space'!$I$5:$DK$50,MATCH('Pre-Rinse Spray Valves'!GR23,'Floor Space'!$I$5:$I$50,0),MATCH('Pre-Rinse Spray Valves'!GR$10,'Floor Space'!$I$5:$DK$5,0))*'Pre-Rinse Spray Valves'!GY23 -> 71.26101172 | GW23: 398.303817 | GX23: 1802.201538 | GY23: 5.76644517 | GZ23: 0.04116895446
B24: 1999 | C24: 12986.50303 | D24: 0 | E24: 2484.288887 | F24: 450.3332424 | G24: 2934.62213 | H24: 13436.83627 | I24: 5.76644517 | J24: 0.03467702131 | M24: 1999 | N24: 1203.46722 | O24: 0 | P24: 230.9447201 | Q24: =INDEX('Floor Space'!$I$5:$DK$54,MATCH('Pre-Rinse Spray Valves'!M24,'Floor Space'!$I$5:$I$54,0),MATCH('Pre-Rinse Spray Valves'!M$10,'Floor Space'!$I$5:$DK$5,0))*'Pre-Rinse Spray Valves'!T24 -> 46.10011476 | R24: 277.0448349 | S24: 1249.567335 | T24: 5.76644517 | U24: 0.03830608262 | X24: 1999 | Y24: 542.2112991 | Z24: 0 | AA24: 104.0500602 | AB24: =INDEX('Floor Space'!$I$5:$DK$50,MATCH('Pre-Rinse Spray Valves'!X24,'Floor Space'!$I$5:$I$50,0),MATCH('Pre-Rinse Spray Valves'!X$10,'Floor Space'!$I$5:$DK$5,0))*'Pre-Rinse Spray Valves'!AE24 -> 20.76999082 | AC24: 124.820051 | AD24: 562.9812899 | AE24: 5.76644517 | AF24: 0.03830608262 | AI24: 1999 | AJ24: 636.21497 | AK24: 0 | AL24: 122.0893147 | AM24: =INDEX('Floor Space'!$I$5:$DK$50,MATCH('Pre-Rinse Spray Valves'!AI24,'Floor Space'!$I$5:$I$50,0),MATCH('Pre-Rinse Spray Valves'!AI$10,'Floor Space'!$I$5:$DK$5,0))*'Pre-Rinse Spray Valves'!AP24 -> 24.37090321 | AN24: 146.4602179 | AO24: 660.5858732 | AP24: 5.76644517 | AQ24: 0.03830608262 | AT24: 1999 | AU24: 582.5047735 | AV24: 0 | AW24: 111.2433168 | AX24: =INDEX('Floor Space'!$I$5:$DK$50,MATCH('Pre-Rinse Spray Valves'!AT24,'Floor Space'!$I$5:$I$50,0),MATCH('Pre-Rinse Spray Valves'!AT$10,'Floor Space'!$I$5:$DK$5,0))*'Pre-Rinse Spray Valves'!BA24 -> 15.64202305 | AY24: 126.8853399 | AZ24: 598.1467965 | BA24: 5.76644517 | BB24: 0.02685303839 | BE24: 1999 | BF24: 1075.876607 | BG24: 0 | BH24: 205.4645519 | BI24: =INDEX('Floor Space'!$I$5:$DK$50,MATCH('Pre-Rinse Spray Valves'!BE24,'Floor Space'!$I$5:$I$50,0),MATCH('Pre-Rinse Spray Valves'!BE$10,'Floor Space'!$I$5:$DK$5,0))*'Pre-Rinse Spray Valves'!BL24 -> 28.89055583 | BJ24: 234.3551077 | BK24: 1104.767163 | BL24: 5.76644517 | BM24: 0.02685303839 | BP24: 1999 | BQ24: 268.9691517 | BR24: 0 | BS24: 51.36613797 | BT24: =INDEX('Floor Space'!$I$5:$DK$50,MATCH('Pre-Rinse Spray Valves'!BP24,'Floor Space'!$I$5:$I$50,0),MATCH('Pre-Rinse Spray Valves'!BP$10,'Floor Space'!$I$5:$DK$5,0))*'Pre-Rinse Spray Valves'!BW24 -> 7.222638958 | BU24: 58.58877693 | BV24: 276.1917907 | BW24: 5.76644517 | BX24: 0.02685303839 | CA24: 1999 | CB24: 519.3035105 | CC24: 0 | CD24: 99.17351338 | CE24: =INDEX('Floor Space'!$I$5:$DK$50,MATCH('Pre-Rinse Spray Valves'!CA24,'Floor Space'!$I$5:$I$50,0),MATCH('Pre-Rinse Spray Valves'!CA$10,'Floor Space'!$I$5:$DK$5,0))*'Pre-Rinse Spray Valves'!CH24 -> 13.9448771 | CF24: 113.1183905 | CG24: 533.2483876 | CH24: 5.76644517 | CI24: 0.02685303839 | CL24: 1999 | CM24: 1101.104092 | CN24: 0 | CO24: 210.4342409 | CP24: =INDEX('Floor Space'!$I$5:$DK$50,MATCH('Pre-Rinse Spray Valves'!CL24,'Floor Space'!$I$5:$I$50,0),MATCH('Pre-Rinse Spray Valves'!CL$10,'Floor Space'!$I$5:$DK$5,0))*'Pre-Rinse Spray Valves'!CS24 -> 25.78059493 | CQ24: 236.2148358 | CR24: 1126.884687 | CS24: 5.76644517 | CT24: 0.02341340399 | CW24: 1999 | CX24: 560.049357 | CY24: 0 | CZ24: 107.9216334 | DA24: =INDEX('Floor Space'!$I$5:$DK$50,MATCH('Pre-Rinse Spray Valves'!CW24,'Floor Space'!$I$5:$I$50,0),MATCH('Pre-Rinse Spray Valves'!CW$10,'Floor Space'!$I$5:$DK$5,0))*'Pre-Rinse Spray Valves'!DD24 -> 13.28091254 | DB24: 121.2025459 | DC24: 573.3302695 | DD24: 5.76644517 | DE24: 0.02371382517 | DH24: 1999 | DI24: 1511.920863 | DJ24: 0 | DK24: 286.7965993 | DL24: =INDEX('Floor Space'!$I$5:$DK$50,MATCH('Pre-Rinse Spray Valves'!DH24,'Floor Space'!$I$5:$I$50,0),MATCH('Pre-Rinse Spray Valves'!DH$10,'Floor Space'!$I$5:$DK$5,0))*'Pre-Rinse Spray Valves'!DO24 -> 62.48154394 | DM24: 349.2781433 | DN24: 1574.402407 | DO24: 5.76644517 | DP24: 0.04132593542 | DS24: 1999 | DT24: 262.6084061 | DU24: 0 | DV24: 52.30646339 | DW24: =INDEX('Floor Space'!$I$5:$DK$50,MATCH('Pre-Rinse Spray Valves'!DS24,'Floor Space'!$I$5:$I$50,0),MATCH('Pre-Rinse Spray Valves'!DS$10,'Floor Space'!$I$5:$DK$5,0))*'Pre-Rinse Spray Valves'!DZ24 -> 8.916111919 | DX24: 61.22257531 | DY24: 271.524518 | DZ24: 5.76644517 | EA24: 0.03395211924 | ED24: 1999 | EE24: 106.2662105 | EF24: 0 | EG24: 20.96278887 | EH24: =INDEX('Floor Space'!$I$5:$DK$50,MATCH('Pre-Rinse Spray Valves'!ED24,'Floor Space'!$I$5:$I$50,0),MATCH('Pre-Rinse Spray Valves'!ED$10,'Floor Space'!$I$5:$DK$5,0))*'Pre-Rinse Spray Valves'!EK24 -> 3.607963052 | EI24: 24.57075193 | EJ24: 109.8741736 | EK24: 5.76644517 | EL24: 0.03395211924 | EO24: 1999 | EP24: 228.5399182 | EQ24: 0 | ER24: 45.18699494 | ES24: =INDEX('Floor Space'!$I$5:$DK$50,MATCH('Pre-Rinse Spray Valves'!EO24,'Floor Space'!$I$5:$I$50,0),MATCH('Pre-Rinse Spray Valves'!EO$10,'Floor Space'!$I$5:$DK$5,0))*'Pre-Rinse Spray Valves'!EV24 -> 3.558427183 | ET24: 48.74542212 | EU24: 232.0983454 | EV24: 5.76644517 | EW24: 0.01557026541 | EZ24: 1999 | FA24: 766.9036867 | FB24: 0 | FC24: 147.7237769 | FD24: =INDEX('Floor Space'!$I$5:$DK$50,MATCH('Pre-Rinse Spray Valves'!EZ24,'Floor Space'!$I$5:$I$50,0),MATCH('Pre-Rinse Spray Valves'!EZ$10,'Floor Space'!$I$5:$DK$5,0))*'Pre-Rinse Spray Valves'!FG24 -> 19.3111329 | FE24: 167.0349098 | FF24: 786.2148196 | FG24: 5.76644517 | FH24: 0.02518064946 | FK24: 1999 | FL24: 285.2091252 | FM24: 0 | FN24: 54.75572921 | FO24: =INDEX('Floor Space'!$I$5:$DK$50,MATCH('Pre-Rinse Spray Valves'!FK24,'Floor Space'!$I$5:$I$50,0),MATCH('Pre-Rinse Spray Valves'!FK$10,'Floor Space'!$I$5:$DK$5,0))*'Pre-Rinse Spray Valves'!FR24 -> 12.42906998 | FP24: 67.18479919 | FQ24: 297.6381952 | FR24: 5.76644517 | FS24: 0.04357879494 | FV24: 1999 | FW24: 614.7716503 | FX24: 0 | FY24: 117.1976997 | FZ24: =INDEX('Floor Space'!$I$5:$DK$50,MATCH('Pre-Rinse Spray Valves'!FV24,'Floor Space'!$I$5:$I$50,0),MATCH('Pre-Rinse Spray Valves'!FV$10,'Floor Space'!$I$5:$DK$5,0))*'Pre-Rinse Spray Valves'!GC24 -> 25.21581796 | GA24: 142.4135176 | GB24: 639.9874683 | GC24: 5.76644517 | GD24: 0.04101655948 | GG24: 1999 | GH24: 918.3806535 | GI24: 0 | GJ24: 176.1645298 | GK24: =INDEX('Floor Space'!$I$5:$DK$50,MATCH('Pre-Rinse Spray Valves'!GG24,'Floor Space'!$I$5:$I$50,0),MATCH('Pre-Rinse Spray Valves'!GG$10,'Floor Space'!$I$5:$DK$5,0))*'Pre-Rinse Spray Valves'!GN24 -> 39.30443785 | GL24: 215.4689676 | GM24: 957.6850914 | GN24: 5.76644517 | GO24: 0.04279754555 | GR24: 1999 | GS24: 1802.201538 | GT24: 0 | GU24: 340.5068156 | GV24: =INDEX('Floor Space'!$I$5:$DK$50,MATCH('Pre-Rinse Spray Valves'!GR24,'Floor Space'!$I$5:$I$50,0),MATCH('Pre-Rinse Spray Valves'!GR$10,'Floor Space'!$I$5:$DK$5,0))*'Pre-Rinse Spray Valves'!GY24 -> 79.50612645 | GW24: 420.0129421 | GX24: 1881.707665 | GY24: 5.76644517 | GZ24: 0.04411611285
B25: 2000 | C25: 13436.83627 | D25: 0 | E25: 2570.348841 | F25: 428.9477273 | G25: 2999.296568 | H25: 13865.784 | I25: 5.76644517 | J25: 0.03192326813 | M25: 2000 | N25: 1249.567335 | O25: 0 | P25: 239.7913076 | Q25: =INDEX('Floor Space'!$I$5:$DK$54,MATCH('Pre-Rinse Spray Valves'!M25,'Floor Space'!$I$5:$I$54,0),MATCH('Pre-Rinse Spray Valves'!M$10,'Floor Space'!$I$5:$DK$5,0))*'Pre-Rinse Spray Valves'!T25 -> 48.92332924 | R25: 288.7146369 | S25: 1298.490664 | T25: 5.76644517 | U25: 0.03915221523 | X25: 2000 | Y25: 562.9812899 | Z25: 0 | AA25: 108.0358104 | AB25: =INDEX('Floor Space'!$I$5:$DK$50,MATCH('Pre-Rinse Spray Valves'!X25,'Floor Space'!$I$5:$I$50,0),MATCH('Pre-Rinse Spray Valves'!X$10,'Floor Space'!$I$5:$DK$5,0))*'Pre-Rinse Spray Valves'!AE25 -> 22.04196463 | AC25: 130.0777751 | AD25: 585.0232545 | AE25: 5.76644517 | AF25: 0.03915221523 | AI25: 2000 | AJ25: 660.5858732 | AK25: 0 | AL25: 126.7660781 | AM25: =INDEX('Floor Space'!$I$5:$DK$50,MATCH('Pre-Rinse Spray Valves'!AI25,'Floor Space'!$I$5:$I$50,0),MATCH('Pre-Rinse Spray Valves'!AI$10,'Floor Space'!$I$5:$DK$5,0))*'Pre-Rinse Spray Valves'!AP25 -> 25.86340029 | AN25: 152.6294784 | AO25: 686.4492735 | AP25: 5.76644517 | AQ25: 0.03915221523 | AT25: 2000 | AU25: 598.1467965 | AV25: 0 | AW25: 114.2305379 | AX25: =INDEX('Floor Space'!$I$5:$DK$50,MATCH('Pre-Rinse Spray Valves'!AT25,'Floor Space'!$I$5:$I$50,0),MATCH('Pre-Rinse Spray Valves'!AT$10,'Floor Space'!$I$5:$DK$5,0))*'Pre-Rinse Spray Valves'!BA25 -> 13.51387346 | AY25: 127.7444113 | AZ25: 611.66067 | BA25: 5.76644517 | BB25: 0.02259290452 | BE25: 2000 | BF25: 1104.767163 | BG25: 0 | BH25: 210.9818994 | BI25: =INDEX('Floor Space'!$I$5:$DK$50,MATCH('Pre-Rinse Spray Valves'!BE25,'Floor Space'!$I$5:$I$50,0),MATCH('Pre-Rinse Spray Valves'!BE$10,'Floor Space'!$I$5:$DK$5,0))*'Pre-Rinse Spray Valves'!BL25 -> 24.95989902 | BJ25: 235.9417984 | BK25: 1129.727062 | BL25: 5.76644517 | BM25: 0.02259290452 | BP25: 2000 | BQ25: 276.1917907 | BR25: 0 | BS25: 52.74547484 | BT25: =INDEX('Floor Space'!$I$5:$DK$50,MATCH('Pre-Rinse Spray Valves'!BP25,'Floor Space'!$I$5:$I$50,0),MATCH('Pre-Rinse Spray Valves'!BP$10,'Floor Space'!$I$5:$DK$5,0))*'Pre-Rinse Spray Valves'!BW25 -> 6.239974756 | BU25: 58.9854496 | BV25: 282.4317655 | BW25: 5.76644517 | BX25: 0.02259290452 | CA25: 2000 | CB25: 533.2483876 | CC25: 0 | CD25: 101.8366235 | CE25: =INDEX('Floor Space'!$I$5:$DK$50,MATCH('Pre-Rinse Spray Valves'!CA25,'Floor Space'!$I$5:$I$50,0),MATCH('Pre-Rinse Spray Valves'!CA$10,'Floor Space'!$I$5:$DK$5,0))*'Pre-Rinse Spray Valves'!CH25 -> 12.0476299 | CF25: 113.8842534 | CG25: 545.2960175 | CH25: 5.76644517 | CI25: 0.02259290452 | CL25: 2000 | CM25: 1126.884687 | CN25: 0 | CO25: 215.3612228 | CP25: =INDEX('Floor Space'!$I$5:$DK$50,MATCH('Pre-Rinse Spray Valves'!CL25,'Floor Space'!$I$5:$I$50,0),MATCH('Pre-Rinse Spray Valves'!CL$10,'Floor Space'!$I$5:$DK$5,0))*'Pre-Rinse Spray Valves'!CS25 -> 23.25788473 | CQ25: 238.6191075 | CR25: 1150.142571 | CS25: 5.76644517 | CT25: 0.02063909911 | CW25: 2000 | CX25: 573.3302695 | CY25: 0 | CZ25: 110.4808681 | DA25: =INDEX('Floor Space'!$I$5:$DK$50,MATCH('Pre-Rinse Spray Valves'!CW25,'Floor Space'!$I$5:$I$50,0),MATCH('Pre-Rinse Spray Valves'!CW$10,'Floor Space'!$I$5:$DK$5,0))*'Pre-Rinse Spray Valves'!DD25 -> 11.98133456 | DB25: 122.4622027 | DC25: 585.3116041 | DD25: 5.76644517 | DE25: 0.02089778823 | DH25: 2000 | DI25: 1574.402407 | DJ25: 0 | DK25: 298.6487371 | DL25: =INDEX('Floor Space'!$I$5:$DK$50,MATCH('Pre-Rinse Spray Valves'!DH25,'Floor Space'!$I$5:$I$50,0),MATCH('Pre-Rinse Spray Valves'!DH$10,'Floor Space'!$I$5:$DK$5,0))*'Pre-Rinse Spray Valves'!DO25 -> 54.54936036 | DM25: 353.1980974 | DN25: 1628.951767 | DO25: 5.76644517 | DP25: 0.03464766068 | DS25: 2000 | DT25: 271.524518 | DU25: 0 | DV25: 54.08237868 | DW25: =INDEX('Floor Space'!$I$5:$DK$50,MATCH('Pre-Rinse Spray Valves'!DS25,'Floor Space'!$I$5:$I$50,0),MATCH('Pre-Rinse Spray Valves'!DS$10,'Floor Space'!$I$5:$DK$5,0))*'Pre-Rinse Spray Valves'!DZ25 -> 7.20319528 | DX25: 61.28557396 | DY25: 278.7277133 | DZ25: 5.76644517 | EA25: 0.02652871031 | ED25: 2000 | EE25: 109.8741736 | EF25: 0 | EG25: 21.67451998 | EH25: =INDEX('Floor Space'!$I$5:$DK$50,MATCH('Pre-Rinse Spray Valves'!ED25,'Floor Space'!$I$5:$I$50,0),MATCH('Pre-Rinse Spray Valves'!ED$10,'Floor Space'!$I$5:$DK$5,0))*'Pre-Rinse Spray Valves'!EK25 -> 2.914820122 | EI25: 24.5893401 | EJ25: 112.7889937 | EK25: 5.76644517 | EL25: 0.02652871031 | EO25: 2000 | EP25: 232.0983454 | EQ25: 0 | ER25: 45.89056845 | ES25: =INDEX('Floor Space'!$I$5:$DK$50,MATCH('Pre-Rinse Spray Valves'!EO25,'Floor Space'!$I$5:$I$50,0),MATCH('Pre-Rinse Spray Valves'!EO$10,'Floor Space'!$I$5:$DK$5,0))*'Pre-Rinse Spray Valves'!EV25 -> 3.623230494 | ET25: 49.51379894 | EU25: 235.7215759 | EV25: 5.76644517 | EW25: 0.01561075538 | EZ25: 2000 | FA25: 786.2148196 | FB25: 0 | FC25: 151.4435575 | FD25: =INDEX('Floor Space'!$I$5:$DK$50,MATCH('Pre-Rinse Spray Valves'!EZ25,'Floor Space'!$I$5:$I$50,0),MATCH('Pre-Rinse Spray Valves'!EZ$10,'Floor Space'!$I$5:$DK$5,0))*'Pre-Rinse Spray Valves'!FG25 -> 19.70623819 | FE25: 171.1497957 | FF25: 805.9210578 | FG25: 5.76644517 | FH25: 0.02506469949 | FK25: 2000 | FL25: 297.6381952 | FM25: 0 | FN25: 57.1419179 | FO25: =INDEX('Floor Space'!$I$5:$DK$50,MATCH('Pre-Rinse Spray Valves'!FK25,'Floor Space'!$I$5:$I$50,0),MATCH('Pre-Rinse Spray Valves'!FK$10,'Floor Space'!$I$5:$DK$5,0))*'Pre-Rinse Spray Valves'!FR25 -> 11.11733525 | FP25: 68.25925315 | FQ25: 308.7555305 | FR25: 5.76644517 | FS25: 0.03735184338 | FV25: 2000 | FW25: 639.9874683 | FX25: 0 | FY25: 122.0047461 | FZ25: =INDEX('Floor Space'!$I$5:$DK$50,MATCH('Pre-Rinse Spray Valves'!FV25,'Floor Space'!$I$5:$I$50,0),MATCH('Pre-Rinse Spray Valves'!FV$10,'Floor Space'!$I$5:$DK$5,0))*'Pre-Rinse Spray Valves'!GC25 -> 22.55659402 | GA25: 144.5613401 | GB25: 662.5440623 | GC25: 5.76644517 | GD25: 0.03524536829 | GG25: 2000 | GH25: 957.6850914 | GI25: 0 | GJ25: 183.7039393 | GK25: =INDEX('Floor Space'!$I$5:$DK$50,MATCH('Pre-Rinse Spray Valves'!GG25,'Floor Space'!$I$5:$I$50,0),MATCH('Pre-Rinse Spray Valves'!GG$10,'Floor Space'!$I$5:$DK$5,0))*'Pre-Rinse Spray Valves'!GN25 -> 38.89818136 | GL25: 222.6021206 | GM25: 996.5832727 | GN25: 5.76644517 | GO25: 0.04061688097 | GR25: 2000 | GS25: 1881.707665 | GT25: 0 | GU25: 355.5286527 | GV25: =INDEX('Floor Space'!$I$5:$DK$50,MATCH('Pre-Rinse Spray Valves'!GR25,'Floor Space'!$I$5:$I$50,0),MATCH('Pre-Rinse Spray Valves'!GR$10,'Floor Space'!$I$5:$DK$5,0))*'Pre-Rinse Spray Valves'!GY25 -> 79.54948158 | GW25: 435.0781343 | GX25: 1961.257146 | GY25: 5.76644517 | GZ25: 0.04227515414
B26: 2001 | C26: 13865.784 | D26: 0 | E26: 2652.319289 | F26: 359.3945025 | G26: 3011.713792 | H26: 14225.1785 | I26: 5.76644517 | J26: 0.02591952265 | M26: 2001 | N26: 1298.490664 | O26: 0 | P26: 249.1796685 | Q26: =INDEX('Floor Space'!$I$5:$DK$54,MATCH('Pre-Rinse Spray Valves'!M26,'Floor Space'!$I$5:$I$54,0),MATCH('Pre-Rinse Spray Valves'!M$10,'Floor Space'!$I$5:$DK$5,0))*'Pre-Rinse Spray Valves'!T26 -> 32.79552571 | R26: 281.9751942 | S26: 1331.28619 | T26: 5.76644517 | U26: 0.02525665114 | X26: 2001 | Y26: 585.0232545 | Z26: 0 | AA26: 112.2656517 | AB26: =INDEX('Floor Space'!$I$5:$DK$50,MATCH('Pre-Rinse Spray Valves'!X26,'Floor Space'!$I$5:$I$50,0),MATCH('Pre-Rinse Spray Valves'!X$10,'Floor Space'!$I$5:$DK$5,0))*'Pre-Rinse Spray Valves'!AE26 -> 14.77572825 | AC26: 127.04138 | AD26: 599.7989828 | AE26: 5.76644517 | AF26: 0.02525665114 | AI26: 2001 | AJ26: 686.4492735 | AK26: 0 | AL26: 131.7292509 | AM26: =INDEX('Floor Space'!$I$5:$DK$50,MATCH('Pre-Rinse Spray Valves'!AI26,'Floor Space'!$I$5:$I$50,0),MATCH('Pre-Rinse Spray Valves'!AI$10,'Floor Space'!$I$5:$DK$5,0))*'Pre-Rinse Spray Valves'!AP26 -> 17.33740983 | AN26: 149.0666607 | AO26: 703.7866833 | AP26: 5.76644517 | AQ26: 0.02525665114 | AT26: 2001 | AU26: 611.66067 | AV26: 0 | AW26: 116.8113375 | AX26: =INDEX('Floor Space'!$I$5:$DK$50,MATCH('Pre-Rinse Spray Valves'!AT26,'Floor Space'!$I$5:$I$50,0),MATCH('Pre-Rinse Spray Valves'!AT$10,'Floor Space'!$I$5:$DK$5,0))*'Pre-Rinse Spray Valves'!BA26 -> 12.1884603 | AY26: 128.9997978 | AZ26: 623.8491303 | BA26: 5.76644517 | BB26: 0.01992683345 | BE26: 2001 | BF26: 1129.727062 | BG26: 0 | BH26: 215.7485933 | BI26: =INDEX('Floor Space'!$I$5:$DK$50,MATCH('Pre-Rinse Spray Valves'!BE26,'Floor Space'!$I$5:$I$50,0),MATCH('Pre-Rinse Spray Valves'!BE$10,'Floor Space'!$I$5:$DK$5,0))*'Pre-Rinse Spray Valves'!BL26 -> 22.511883 | BJ26: 238.2604763 | BK26: 1152.238945 | BL26: 5.76644517 | BM26: 0.01992683345 | BP26: 2001 | BQ26: 282.4317655 | BR26: 0 | BS26: 53.93714832 | BT26: =INDEX('Floor Space'!$I$5:$DK$50,MATCH('Pre-Rinse Spray Valves'!BP26,'Floor Space'!$I$5:$I$50,0),MATCH('Pre-Rinse Spray Valves'!BP$10,'Floor Space'!$I$5:$DK$5,0))*'Pre-Rinse Spray Valves'!BW26 -> 5.627970751 | BU26: 59.56511907 | BV26: 288.0597362 | BW26: 5.76644517 | BX26: 0.01992683345 | CA26: 2001 | CB26: 545.2960175 | CC26: 0 | CD26: 104.1374087 | CE26: =INDEX('Floor Space'!$I$5:$DK$50,MATCH('Pre-Rinse Spray Valves'!CA26,'Floor Space'!$I$5:$I$50,0),MATCH('Pre-Rinse Spray Valves'!CA$10,'Floor Space'!$I$5:$DK$5,0))*'Pre-Rinse Spray Valves'!CH26 -> 10.86602292 | CF26: 115.0034316 | CG26: 556.1620404 | CH26: 5.76644517 | CI26: 0.01992683345 | CL26: 2001 | CM26: 1150.142571 | CN26: 0 | CO26: 219.8060844 | CP26: =INDEX('Floor Space'!$I$5:$DK$50,MATCH('Pre-Rinse Spray Valves'!CL26,'Floor Space'!$I$5:$I$50,0),MATCH('Pre-Rinse Spray Valves'!CL$10,'Floor Space'!$I$5:$DK$5,0))*'Pre-Rinse Spray Valves'!CS26 -> 27.02074 | CQ26: 246.8268244 | CR26: 1177.163311 | CS26: 5.76644517 | CT26: 0.02349338306 | CW26: 2001 | CX26: 585.3116041 | CY26: 0 | CZ26: 112.7896739 | DA26: =INDEX('Floor Space'!$I$5:$DK$50,MATCH('Pre-Rinse Spray Valves'!CW26,'Floor Space'!$I$5:$I$50,0),MATCH('Pre-Rinse Spray Valves'!CW$10,'Floor Space'!$I$5:$DK$5,0))*'Pre-Rinse Spray Valves'!DD26 -> 13.91977515 | DB26: 126.7094491 | DC26: 599.2313792 | DD26: 5.76644517 | DE26: 0.0237818199 | DH26: 2001 | DI26: 1628.951767 | DJ26: 0 | DK26: 308.9962172 | DL26: =INDEX('Floor Space'!$I$5:$DK$50,MATCH('Pre-Rinse Spray Valves'!DH26,'Floor Space'!$I$5:$I$50,0),MATCH('Pre-Rinse Spray Valves'!DH$10,'Floor Space'!$I$5:$DK$5,0))*'Pre-Rinse Spray Valves'!DO26 -> 60.020725 | DM26: 369.0169422 | DN26: 1688.972492 | DO26: 5.76644517 | DP26: 0.03684622603 | DS26: 2001 | DT26: 278.7277133 | DU26: 0 | DV26: 55.51711443 | DW26: =INDEX('Floor Space'!$I$5:$DK$50,MATCH('Pre-Rinse Spray Valves'!DS26,'Floor Space'!$I$5:$I$50,0),MATCH('Pre-Rinse Spray Valves'!DS$10,'Floor Space'!$I$5:$DK$5,0))*'Pre-Rinse Spray Valves'!DZ26 -> 6.328426238 | DX26: 61.84554067 | DY26: 285.0561396 | DZ26: 5.76644517 | EA26: 0.02270468968 | ED26: 2001 | EE26: 112.7889937 | EF26: 0 | EG26: 22.24951704 | EH26: =INDEX('Floor Space'!$I$5:$DK$50,MATCH('Pre-Rinse Spray Valves'!ED26,'Floor Space'!$I$5:$I$50,0),MATCH('Pre-Rinse Spray Valves'!ED$10,'Floor Space'!$I$5:$DK$5,0))*'Pre-Rinse Spray Valves'!EK26 -> 2.560839102 | EI26: 24.81035614 | EJ26: 115.3498328 | EK26: 5.76644517 | EL26: 0.02270468968 | EO26: 2001 | EP26: 235.7215759 | EQ26: 0 | ER26: 46.60695488 | ES26: =INDEX('Floor Space'!$I$5:$DK$50,MATCH('Pre-Rinse Spray Valves'!EO26,'Floor Space'!$I$5:$I$50,0),MATCH('Pre-Rinse Spray Valves'!EO$10,'Floor Space'!$I$5:$DK$5,0))*'Pre-Rinse Spray Valves'!EV26 -> 2.433209204 | ET26: 49.04016409 | EU26: 238.1547851 | EV26: 5.76644517 | EW26: 0.01032238646 | EZ26: 2001 | FA26: 805.9210578 | FB26: 0 | FC26: 155.2394448 | FD26: =INDEX('Floor Space'!$I$5:$DK$50,MATCH('Pre-Rinse Spray Valves'!EZ26,'Floor Space'!$I$5:$I$50,0),MATCH('Pre-Rinse Spray Valves'!EZ$10,'Floor Space'!$I$5:$DK$5,0))*'Pre-Rinse Spray Valves'!FG26 -> 11.48943441 | FE26: 166.7288792 | FF26: 817.4104922 | FG26: 5.76644517 | FH26: 0.01425627771 | FK26: 2001 | FL26: 308.7555305 | FM26: 0 | FN26: 59.27627387 | FO26: =INDEX('Floor Space'!$I$5:$DK$50,MATCH('Pre-Rinse Spray Valves'!FK26,'Floor Space'!$I$5:$I$50,0),MATCH('Pre-Rinse Spray Valves'!FK$10,'Floor Space'!$I$5:$DK$5,0))*'Pre-Rinse Spray Valves'!FR26 -> 9.056624498 | FP26: 68.33289837 | FQ26: 317.812155 | FR26: 5.76644517 | FS26: 0.02933267133 | FV26: 2001 | FW26: 662.5440623 | FX26: 0 | FY26: 126.3048483 | FZ26: =INDEX('Floor Space'!$I$5:$DK$50,MATCH('Pre-Rinse Spray Valves'!FV26,'Floor Space'!$I$5:$I$50,0),MATCH('Pre-Rinse Spray Valves'!FV$10,'Floor Space'!$I$5:$DK$5,0))*'Pre-Rinse Spray Valves'!GC26 -> 18.53215972 | GA26: 144.837008 | GB26: 681.076222 | GC26: 5.76644517 | GD26: 0.02797121093 | GG26: 2001 | GH26: 996.5832727 | GI26: 0 | GJ26: 191.1654203 | GK26: =INDEX('Floor Space'!$I$5:$DK$50,MATCH('Pre-Rinse Spray Valves'!GG26,'Floor Space'!$I$5:$I$50,0),MATCH('Pre-Rinse Spray Valves'!GG$10,'Floor Space'!$I$5:$DK$5,0))*'Pre-Rinse Spray Valves'!GN26 -> 30.32467828 | GL26: 221.4900986 | GM26: 1026.907951 | GN26: 5.76644517 | GO26: 0.03042864466 | GR26: 2001 | GS26: 1961.257146 | GT26: 0 | GU26: 370.5586813 | GV26: =INDEX('Floor Space'!$I$5:$DK$50,MATCH('Pre-Rinse Spray Valves'!GR26,'Floor Space'!$I$5:$I$50,0),MATCH('Pre-Rinse Spray Valves'!GR$10,'Floor Space'!$I$5:$DK$5,0))*'Pre-Rinse Spray Valves'!GY26 -> 61.6048902 | GW26: 432.1635715 | GX26: 2022.862037 | GY26: 5.76644517 | GZ26: 0.03141091942
B27: 2002 | C27: 14225.1785 | D27: 0 | E27: 2720.971719 | F27: 280.3575887 | G27: 3001.329308 | H27: 14505.53609 | I27: 5.76644517 | J27: 0.01970854627 | M27: 2002 | N27: 1331.28619 | O27: 0 | P27: 255.4731125 | Q27: =INDEX('Floor Space'!$I$5:$DK$54,MATCH('Pre-Rinse Spray Valves'!M27,'Floor Space'!$I$5:$I$54,0),MATCH('Pre-Rinse Spray Valves'!M$10,'Floor Space'!$I$5:$DK$5,0))*'Pre-Rinse Spray Valves'!T27 -> 22.67451566 | R27: 278.1476282 | S27: =N27+Q27-O27 -> 1353.960705 | T27: 5.76644517 | U27: 0.01703203702 | X27: 2002 | Y27: 599.7989828 | Z27: 0 | AA27: 115.1011061 | AB27: =INDEX('Floor Space'!$I$5:$DK$50,MATCH('Pre-Rinse Spray Valves'!X27,'Floor Space'!$I$5:$I$50,0),MATCH('Pre-Rinse Spray Valves'!X$10,'Floor Space'!$I$5:$DK$5,0))*'Pre-Rinse Spray Valves'!AE27 -> 10.21579848 | AC27: 125.3169046 | AD27: =Y27+AB27-Z27 -> 610.0147813 | AE27: 5.76644517 | AF27: 0.01703203702 | AI27: 2002 | AJ27: 703.7866833 | AK27: 0 | AL27: 135.0562906 | AM27: =INDEX('Floor Space'!$I$5:$DK$50,MATCH('Pre-Rinse Spray Valves'!AI27,'Floor Space'!$I$5:$I$50,0),MATCH('Pre-Rinse Spray Valves'!AI$10,'Floor Space'!$I$5:$DK$5,0))*'Pre-Rinse Spray Valves'!AP27 -> 11.98692084 | AN27: 147.0432115 | AO27: =AJ27+AM27-AK27 -> 715.7736042 | AP27: 5.76644517 | AQ27: 0.01703203702 | AT27: 2002 | AU27: 623.8491303 | AV27: 0 | AW27: 119.1390176 | AX27: =INDEX('Floor Space'!$I$5:$DK$50,MATCH('Pre-Rinse Spray Valves'!AT27,'Floor Space'!$I$5:$I$50,0),MATCH('Pre-Rinse Spray Valves'!AT$10,'Floor Space'!$I$5:$DK$5,0))*'Pre-Rinse Spray Valves'!BA27 -> 9.939345721 | AY27: 129.0783633 | AZ27: =AU27+AX27-AV27 -> 633.788476 | BA27: 5.76644517 | BB27: 0.01593229074 | BE27: 2002 | BF27: 1152.238945 | BG27: 0 | BH27: 220.0477796 | BI27: =INDEX('Floor Space'!$I$5:$DK$50,MATCH('Pre-Rinse Spray Valves'!BE27,'Floor Space'!$I$5:$I$50,0),MATCH('Pre-Rinse Spray Valves'!BE$10,'Floor Space'!$I$5:$DK$5,0))*'Pre-Rinse Spray Valves'!BL27 -> 18.35780587 | BJ27: 238.4055854 | BK27: =BF27+BI27-BG27 -> 1170.596751 | BL27: 5.76644517 | BM27: 0.01593229074 | BP27: 2002 | BQ27: 288.0597362 | BR27: 0 | BS27: 55.01194489 | BT27: =INDEX('Floor Space'!$I$5:$DK$50,MATCH('Pre-Rinse Spray Valves'!BP27,'Floor Space'!$I$5:$I$50,0),MATCH('Pre-Rinse Spray Valves'!BP$10,'Floor Space'!$I$5:$DK$5,0))*'Pre-Rinse Spray Valves'!BW27 -> 4.589451468 | BU27: 59.60139636 | BV27: =BQ27+BT27-BR27 -> 292.6491877 | BW27: 5.76644517 | BX27: 0.01593229074 | CA27: 2002 | CB27: 556.1620404 | CC27: 0 | CD27: 106.2125374 | CE27: =INDEX('Floor Space'!$I$5:$DK$50,MATCH('Pre-Rinse Spray Valves'!CA27,'Floor Space'!$I$5:$I$50,0),MATCH('Pre-Rinse Spray Valves'!CA$10,'Floor Space'!$I$5:$DK$5,0))*'Pre-Rinse Spray Valves'!CH27 -> 8.860935326 | CF27: 115.0734728 | CG27: =CB27+CE27-CC27 -> 565.0229758 | CH27: 5.76644517 | CI27: 0.01593229074 | CL27: 2002 | CM27: 1177.163311 | CN27: 0 | CO27: 224.970073 | CP27: =INDEX('Floor Space'!$I$5:$DK$50,MATCH('Pre-Rinse Spray Valves'!CL27,'Floor Space'!$I$5:$I$50,0),MATCH('Pre-Rinse Spray Valves'!CL$10,'Floor Space'!$I$5:$DK$5,0))*'Pre-Rinse Spray Valves'!CS27 -> 33.17260607 | CQ27: 258.142679 | CR27: =CM27+CP27-CN27 -> 1210.335917 | CS27: 5.76644517 | CT27: 0.02818012229 | CW27: 2002 | CX27: 599.2313792 | CY27: 0 | CZ27: 115.4720176 | DA27: =INDEX('Floor Space'!$I$5:$DK$50,MATCH('Pre-Rinse Spray Valves'!CW27,'Floor Space'!$I$5:$I$50,0),MATCH('Pre-Rinse Spray Valves'!CW$10,'Floor Space'!$I$5:$DK$5,0))*'Pre-Rinse Spray Valves'!DD27 -> 15.82155707 | DB27: 131.2935747 | DC27: =CX27+DA27-CY27 -> 615.0529363 | DD27: 5.76644517 | DE27: 0.02640308506 | DH27: 2002 | DI27: 1688.972492 | DJ27: 0 | DK27: 320.3815617 | DL27: =INDEX('Floor Space'!$I$5:$DK$50,MATCH('Pre-Rinse Spray Valves'!DH27,'Floor Space'!$I$5:$I$50,0),MATCH('Pre-Rinse Spray Valves'!DH$10,'Floor Space'!$I$5:$DK$5,0))*'Pre-Rinse Spray Valves'!DO27 -> 33.95495122 | DM27: 354.3365129 | DN27: =DI27+DL27-DJ27 -> 1722.927443 | DO27: 5.76644517 | DP27: 0.02010391014 | DS27: 2002 | DT27: 285.0561396 | DU27: 0 | DV27: 56.77761329 | DW27: =INDEX('Floor Space'!$I$5:$DK$50,MATCH('Pre-Rinse Spray Valves'!DS27,'Floor Space'!$I$5:$I$50,0),MATCH('Pre-Rinse Spray Valves'!DS$10,'Floor Space'!$I$5:$DK$5,0))*'Pre-Rinse Spray Valves'!DZ27 -> 3.657554169 | DX27: 60.43516746 | DY27: =DT27+DW27-DU27 -> 288.7136937 | DZ27: 5.76644517 | EA27: 0.01283099594 | ED27: 2002 | EE27: 115.3498328 | EF27: 0 | EG27: 22.75468542 | EH27: =INDEX('Floor Space'!$I$5:$DK$50,MATCH('Pre-Rinse Spray Valves'!ED27,'Floor Space'!$I$5:$I$50,0),MATCH('Pre-Rinse Spray Valves'!ED$10,'Floor Space'!$I$5:$DK$5,0))*'Pre-Rinse Spray Valves'!EK27 -> 1.480053236 | EI27: 24.23473866 | EJ27: =EE27+EH27-EF27 -> 116.8298861 | EK27: 5.76644517 | EL27: 0.01283099594 | EO27: 2002 | EP27: 238.1547851 | EQ27: 0 | ER27: 47.08804988 | ES27: =INDEX('Floor Space'!$I$5:$DK$50,MATCH('Pre-Rinse Spray Valves'!EO27,'Floor Space'!$I$5:$I$50,0),MATCH('Pre-Rinse Spray Valves'!EO$10,'Floor Space'!$I$5:$DK$5,0))*'Pre-Rinse Spray Valves'!EV27 -> 7.552282885 | ET27: 54.64033277 | EU27: =EP27+ES27-EQ27 -> 245.707068 | EV27: 5.76644517 | EW27: 0.03171165712 | EZ27: 2002 | FA27: 817.4104922 | FB27: 0 | FC27: 157.4525814 | FD27: =INDEX('Floor Space'!$I$5:$DK$50,MATCH('Pre-Rinse Spray Valves'!EZ27,'Floor Space'!$I$5:$I$50,0),MATCH('Pre-Rinse Spray Valves'!EZ$10,'Floor Space'!$I$5:$DK$5,0))*'Pre-Rinse Spray Valves'!FG27 -> 5.354363466 | FE27: 162.8069449 | FF27: =FA27+FD27-FB27 -> 822.7648557 | FG27: 5.76644517 | FH27: 0.006550397281 | FK27: 2002 | FL27: 317.812155 | FM27: 0 | FN27: 61.01500533 | FO27: =INDEX('Floor Space'!$I$5:$DK$50,MATCH('Pre-Rinse Spray Valves'!FK27,'Floor Space'!$I$5:$I$50,0),MATCH('Pre-Rinse Spray Valves'!FK$10,'Floor Space'!$I$5:$DK$5,0))*'Pre-Rinse Spray Valves'!FR27 -> 5.857992977 | FP27: 66.87299831 | FQ27: =FL27+FO27-FM27 -> 323.6701479 | FR27: 5.76644517 | FS27: 0.01843224963 | FV27: 2002 | FW27: 681.076222 | FX27: 0 | FY27: 129.8377478 | FZ27: =INDEX('Floor Space'!$I$5:$DK$50,MATCH('Pre-Rinse Spray Valves'!FV27,'Floor Space'!$I$5:$I$50,0),MATCH('Pre-Rinse Spray Valves'!FV$10,'Floor Space'!$I$5:$DK$5,0))*'Pre-Rinse Spray Valves'!GC27 -> 18.16278484 | GA27: 148.0005327 | GB27: =FW27+FZ27-FX27 -> 699.2390069 | GC27: 5.76644517 | GD27: 0.02666777116 | GG27: 2002 | GH27: 1026.907951 | GI27: 0 | GJ27: 196.982325 | GK27: =INDEX('Floor Space'!$I$5:$DK$50,MATCH('Pre-Rinse Spray Valves'!GG27,'Floor Space'!$I$5:$I$50,0),MATCH('Pre-Rinse Spray Valves'!GG$10,'Floor Space'!$I$5:$DK$5,0))*'Pre-Rinse Spray Valves'!GN27 -> 27.09130146 | GL27: 224.0736264 | GM27: =GH27+GK27-GI27 -> 1053.999252 | GN27: 5.76644517 | GO27: 0.0263814312 | GR27: 2002 | GS27: 2022.862037 | GT27: 0 | GU27: 382.1982702 | GV27: =INDEX('Floor Space'!$I$5:$DK$50,MATCH('Pre-Rinse Spray Valves'!GR27,'Floor Space'!$I$5:$I$50,0),MATCH('Pre-Rinse Spray Valves'!GR$10,'Floor Space'!$I$5:$DK$5,0))*'Pre-Rinse Spray Valves'!GY27 -> 41.62736797 | GW27: 423.8256382 | GX27: =GS27+GV27-GT27 -> 2064.489405 | GY27: 5.76644517 | GZ27: 0.02057845133
B28: 2003 | C28: 14505.53609 | D28: 0 | E28: 2774.579706 | F28: 300.048266 | G28: 3074.627972 | H28: 14805.58436 | I28: 5.76644517 | J28: 0.0206850863 | M28: 2003 | N28: 1353.960705 | O28: 0 | P28: 259.82434 | Q28: =INDEX('Floor Space'!$I$5:$DK$54,MATCH('Pre-Rinse Spray Valves'!M28,'Floor Space'!$I$5:$I$54,0),MATCH('Pre-Rinse Spray Valves'!M$10,'Floor Space'!$I$5:$DK$5,0))*'Pre-Rinse Spray Valves'!T28 -> 20.67336414 | R28: 280.4977041 | S28: 1374.634069 | T28: 5.76644517 | U28: 0.01526880659 | X28: 2003 | Y28: 610.0147813 | Z28: 0 | AA28: 117.0615124 | AB28: =INDEX('Floor Space'!$I$5:$DK$50,MATCH('Pre-Rinse Spray Valves'!X28,'Floor Space'!$I$5:$I$50,0),MATCH('Pre-Rinse Spray Valves'!X$10,'Floor Space'!$I$5:$DK$5,0))*'Pre-Rinse Spray Valves'!AE28 -> 9.314197711 | AC28: 126.3757101 | AD28: =Y28+AB28-Z28 -> 619.328979 | AE28: 5.76644517 | AF28: 0.01526880659 | AI28: 2003 | AJ28: 715.7736042 | AK28: 0 | AL28: 137.3565744 | AM28: =INDEX('Floor Space'!$I$5:$DK$50,MATCH('Pre-Rinse Spray Valves'!AI28,'Floor Space'!$I$5:$I$50,0),MATCH('Pre-Rinse Spray Valves'!AI$10,'Floor Space'!$I$5:$DK$5,0))*'Pre-Rinse Spray Valves'!AP28 -> 10.92900872 | AN28: 148.2855831 | AO28: =AJ28+AM28-AK28 -> 726.7026129 | AP28: 5.76644517 | AQ28: 0.01526880659 | AT28: 2003 | AU28: 633.788476 | AV28: 0 | AW28: 121.0371751 | AX28: =INDEX('Floor Space'!$I$5:$DK$50,MATCH('Pre-Rinse Spray Valves'!AT28,'Floor Space'!$I$5:$I$50,0),MATCH('Pre-Rinse Spray Valves'!AT$10,'Floor Space'!$I$5:$DK$5,0))*'Pre-Rinse Spray Valves'!BA28 -> 9.418079802 | AY28: 130.4552549 | AZ28: =AU28+AX28-AV28 -> 643.2065558 | BA28: 5.76644517 | BB28: 0.01485997325 | BE28: 2003 | BF28: 1170.596751 | BG28: 0 | BH28: 223.5536448 | BI28: =INDEX('Floor Space'!$I$5:$DK$50,MATCH('Pre-Rinse Spray Valves'!BE28,'Floor Space'!$I$5:$I$50,0),MATCH('Pre-Rinse Spray Valves'!BE$10,'Floor Space'!$I$5:$DK$5,0))*'Pre-Rinse Spray Valves'!BL28 -> 17.39503641 | BJ28: 240.9486812 | BK28: =BF28+BI28-BG28 -> 1187.991787 | BL28: 5.76644517 | BM28: 0.01485997325 | BP28: 2003 | BQ28: 292.6491877 | BR28: 0 | BS28: 55.88841119 | BT28: =INDEX('Floor Space'!$I$5:$DK$50,MATCH('Pre-Rinse Spray Valves'!BP28,'Floor Space'!$I$5:$I$50,0),MATCH('Pre-Rinse Spray Valves'!BP$10,'Floor Space'!$I$5:$DK$5,0))*'Pre-Rinse Spray Valves'!BW28 -> 4.348759101 | BU28: 60.23717029 | BV28: =BQ28+BT28-BR28 -> 296.9979468 | BW28: 5.76644517 | BX28: 0.01485997325 | CA28: 2003 | CB28: 565.0229758 | CC28: 0 | CD28: 107.9047465 | CE28: =INDEX('Floor Space'!$I$5:$DK$50,MATCH('Pre-Rinse Spray Valves'!CA28,'Floor Space'!$I$5:$I$50,0),MATCH('Pre-Rinse Spray Valves'!CA$10,'Floor Space'!$I$5:$DK$5,0))*'Pre-Rinse Spray Valves'!CH28 -> 8.396226307 | CF28: 116.3009728 | CG28: =CB28+CE28-CC28 -> 573.4192021 | CH28: 5.76644517 | CI28: 0.01485997325 | CL28: 2003 | CM28: 1210.335917 | CN28: 0 | CO28: 231.3097571 | CP28: =INDEX('Floor Space'!$I$5:$DK$50,MATCH('Pre-Rinse Spray Valves'!CL28,'Floor Space'!$I$5:$I$50,0),MATCH('Pre-Rinse Spray Valves'!CL$10,'Floor Space'!$I$5:$DK$5,0))*'Pre-Rinse Spray Valves'!CS28 -> 37.21513785 | CQ28: 268.524895 | CR28: =CM28+CP28-CN28 -> 1247.551055 | CS28: 5.76644517 | CT28: 0.03074777615 | CW28: 2003 | CX28: 615.0529363 | CY28: 0 | CZ28: 118.5208351 | DA28: =INDEX('Floor Space'!$I$5:$DK$50,MATCH('Pre-Rinse Spray Valves'!CW28,'Floor Space'!$I$5:$I$50,0),MATCH('Pre-Rinse Spray Valves'!CW$10,'Floor Space'!$I$5:$DK$5,0))*'Pre-Rinse Spray Valves'!DD28 -> 18.43161162 | DB28: 136.9524468 | DC28: =CX28+DA28-CY28 -> 633.4845479 | DD28: 5.76644517 | DE28: 0.02996752073 | DH28: 2003 | DI28: 1722.927443 | DJ28: 0 | DK28: 326.8224838 | DL28: =INDEX('Floor Space'!$I$5:$DK$50,MATCH('Pre-Rinse Spray Valves'!DH28,'Floor Space'!$I$5:$I$50,0),MATCH('Pre-Rinse Spray Valves'!DH$10,'Floor Space'!$I$5:$DK$5,0))*'Pre-Rinse Spray Valves'!DO28 -> 39.13838571 | DM28: 365.9608695 | DN28: =DI28+DL28-DJ28 -> 1762.065829 | DO28: 5.76644517 | DP28: 0.02271621238 | DS28: 2003 | DT28: 288.7136937 | DU28: 0 | DV28: 57.50612661 | DW28: =INDEX('Floor Space'!$I$5:$DK$50,MATCH('Pre-Rinse Spray Valves'!DS28,'Floor Space'!$I$5:$I$50,0),MATCH('Pre-Rinse Spray Valves'!DS$10,'Floor Space'!$I$5:$DK$5,0))*'Pre-Rinse Spray Valves'!DZ28 -> 3.574537286 | DX28: 61.0806639 | DY28: =DT28+DW28-DU28 -> 292.288231 | DZ28: 5.76644517 | EA28: 0.01238090663 | ED28: 2003 | EE28: 116.8298861 | EF28: 0 | EG28: 23.0466507 | EH28: =INDEX('Floor Space'!$I$5:$DK$50,MATCH('Pre-Rinse Spray Valves'!ED28,'Floor Space'!$I$5:$I$50,0),MATCH('Pre-Rinse Spray Valves'!ED$10,'Floor Space'!$I$5:$DK$5,0))*'Pre-Rinse Spray Valves'!EK28 -> 1.446459911 | EI28: 24.49311061 | EJ28: =EE28+EH28-EF28 -> 118.276346 | EK28: 5.76644517 | EL28: 0.01238090663 | EO28: 2003 | EP28: 245.707068 | EQ28: 0 | ER28: 48.58128998 | ES28: =INDEX('Floor Space'!$I$5:$DK$50,MATCH('Pre-Rinse Spray Valves'!EO28,'Floor Space'!$I$5:$I$50,0),MATCH('Pre-Rinse Spray Valves'!EO$10,'Floor Space'!$I$5:$DK$5,0))*'Pre-Rinse Spray Valves'!EV28 -> 7.38086588 | ET28: 55.96215586 | EU28: =EP28+ES28-EQ28 -> 253.0879338 | EV28: 5.76644517 | EW28: 0.03003929004 | EZ28: 2003 | FA28: 822.7648557 | FB28: 0 | FC28: 158.4839584 | FD28: =INDEX('Floor Space'!$I$5:$DK$50,MATCH('Pre-Rinse Spray Valves'!EZ28,'Floor Space'!$I$5:$I$50,0),MATCH('Pre-Rinse Spray Valves'!EZ$10,'Floor Space'!$I$5:$DK$5,0))*'Pre-Rinse Spray Valves'!FG28 -> 9.535266872 | FE28: 168.0192253 | FF28: =FA28+FD28-FB28 -> 832.3001226 | FG28: 5.76644517 | FH28: 0.01158929773 | FK28: 2003 | FL28: 323.6701479 | FM28: 0 | FN28: 62.13964914 | FO28: =INDEX('Floor Space'!$I$5:$DK$50,MATCH('Pre-Rinse Spray Valves'!FK28,'Floor Space'!$I$5:$I$50,0),MATCH('Pre-Rinse Spray Valves'!FK$10,'Floor Space'!$I$5:$DK$5,0))*'Pre-Rinse Spray Valves'!FR28 -> 5.993359147 | FP28: 68.13300829 | FQ28: =FL28+FO28-FM28 -> 329.6635071 | FR28: 5.76644517 | FS28: 0.01851687338 | FV28: 2003 | FW28: 699.2390069 | FX28: 0 | FY28: 133.3002312 | FZ28: =INDEX('Floor Space'!$I$5:$DK$50,MATCH('Pre-Rinse Spray Valves'!FV28,'Floor Space'!$I$5:$I$50,0),MATCH('Pre-Rinse Spray Valves'!FV$10,'Floor Space'!$I$5:$DK$5,0))*'Pre-Rinse Spray Valves'!GC28 -> 18.74100934 | GA28: 152.0412405 | GB28: =FW28+FZ28-FX28 -> 717.9800162 | GC28: 5.76644517 | GD28: 0.02680200783 | GG28: 2003 | GH28: 1053.999252 | GI28: 0 | GJ28: 202.1790006 | GK28: =INDEX('Floor Space'!$I$5:$DK$50,MATCH('Pre-Rinse Spray Valves'!GG28,'Floor Space'!$I$5:$I$50,0),MATCH('Pre-Rinse Spray Valves'!GG$10,'Floor Space'!$I$5:$DK$5,0))*'Pre-Rinse Spray Valves'!GN28 -> 23.39870063 | GL28: 225.5777012 | GM28: =GH28+GK28-GI28 -> 1077.397953 | GN28: 5.76644517 | GO28: 0.02219992146 | GR28: 2003 | GS28: 2064.489405 | GT28: 0 | GU28: 390.0633187 | GV28: =INDEX('Floor Space'!$I$5:$DK$50,MATCH('Pre-Rinse Spray Valves'!GR28,'Floor Space'!$I$5:$I$50,0),MATCH('Pre-Rinse Spray Valves'!GR$10,'Floor Space'!$I$5:$DK$5,0))*'Pre-Rinse Spray Valves'!GY28 -> 54.71825954 | GW28: 444.7815783 | GX28: =GS28+GV28-GT28 -> 2119.207664 | GY28: 5.76644517 | GZ28: 0.02650450005
B29: 2004 | C29: 14805.58436 | D29: 0 | E29: 2831.91787 | F29: 293.6319695 | G29: 3125.54984 | H29: 15099.21633 | I29: 5.76644517 | J29: 0.01983251471 | M29: 2004 | N29: 1374.634069 | O29: 0 | P29: 263.7915476 | Q29: =INDEX('Floor Space'!$I$5:$DK$54,MATCH('Pre-Rinse Spray Valves'!M29,'Floor Space'!$I$5:$I$54,0),MATCH('Pre-Rinse Spray Valves'!M$10,'Floor Space'!$I$5:$DK$5,0))*'Pre-Rinse Spray Valves'!T29 -> 24.41454345 | R29: 288.206091 | S29: 1399.048613 | T29: 5.76644517 | U29: 0.01776075829 | X29: 2004 | Y29: 619.328979 | Z29: 0 | AA29: 118.848902 | AB29: =INDEX('Floor Space'!$I$5:$DK$50,MATCH('Pre-Rinse Spray Valves'!X29,'Floor Space'!$I$5:$I$50,0),MATCH('Pre-Rinse Spray Valves'!X$10,'Floor Space'!$I$5:$DK$5,0))*'Pre-Rinse Spray Valves'!AE29 -> 10.9997523 | AC29: 129.8486543 | AD29: 630.3287313 | AE29: 5.76644517 | AF29: 0.01776075829 | AI29: 2004 | AJ29: 726.7026129 | AK29: 0 | AL29: 139.4538453 | AM29: =INDEX('Floor Space'!$I$5:$DK$50,MATCH('Pre-Rinse Spray Valves'!AI29,'Floor Space'!$I$5:$I$50,0),MATCH('Pre-Rinse Spray Valves'!AI$10,'Floor Space'!$I$5:$DK$5,0))*'Pre-Rinse Spray Valves'!AP29 -> 12.90678946 | AN29: 152.3606348 | AO29: 739.6094024 | AP29: 5.76644517 | AQ29: 0.01776075829 | AT29: 2004 | AU29: 643.2065558 | AV29: 0 | AW29: 122.8357842 | AX29: =INDEX('Floor Space'!$I$5:$DK$50,MATCH('Pre-Rinse Spray Valves'!AT29,'Floor Space'!$I$5:$I$50,0),MATCH('Pre-Rinse Spray Valves'!AT$10,'Floor Space'!$I$5:$DK$5,0))*'Pre-Rinse Spray Valves'!BA29 -> 10.17859561 | AY29: 133.0143798 | AZ29: 653.3851514 | BA29: 5.76644517 | BB29: 0.01582476969 | BE29: 2004 | BF29: 1187.991787 | BG29: 0 | BH29: 226.875646 | BI29: =INDEX('Floor Space'!$I$5:$DK$50,MATCH('Pre-Rinse Spray Valves'!BE29,'Floor Space'!$I$5:$I$50,0),MATCH('Pre-Rinse Spray Valves'!BE$10,'Floor Space'!$I$5:$DK$5,0))*'Pre-Rinse Spray Valves'!BL29 -> 18.79969642 | BJ29: 245.6753424 | BK29: 1206.791484 | BL29: 5.76644517 | BM29: 0.01582476969 | BP29: 2004 | BQ29: 296.9979468 | BR29: 0 | BS29: 56.71891149 | BT29: =INDEX('Floor Space'!$I$5:$DK$50,MATCH('Pre-Rinse Spray Valves'!BP29,'Floor Space'!$I$5:$I$50,0),MATCH('Pre-Rinse Spray Valves'!BP$10,'Floor Space'!$I$5:$DK$5,0))*'Pre-Rinse Spray Valves'!BW29 -> 4.699924106 | BU29: 61.41883559 | BV29: 301.6978709 | BW29: 5.76644517 | BX29: 0.01582476969 | CA29: 2004 | CB29: 573.4192021 | CC29: 0 | CD29: 109.5082081 | CE29: =INDEX('Floor Space'!$I$5:$DK$50,MATCH('Pre-Rinse Spray Valves'!CA29,'Floor Space'!$I$5:$I$50,0),MATCH('Pre-Rinse Spray Valves'!CA$10,'Floor Space'!$I$5:$DK$5,0))*'Pre-Rinse Spray Valves'!CH29 -> 9.074226808 | CF29: 118.5824349 | CG29: 582.4934289 | CH29: 5.76644517 | CI29: 0.01582476969 | CL29: 2004 | CM29: 1247.551055 | CN29: 0 | CO29: 238.4220178 | CP29: =INDEX('Floor Space'!$I$5:$DK$50,MATCH('Pre-Rinse Spray Valves'!CL29,'Floor Space'!$I$5:$I$50,0),MATCH('Pre-Rinse Spray Valves'!CL$10,'Floor Space'!$I$5:$DK$5,0))*'Pre-Rinse Spray Valves'!CS29 -> 24.9041926 | CQ29: 263.3262104 | CR29: 1272.455248 | CS29: 5.76644517 | CT29: 0.01996246366 | CW29: 2004 | CX29: 633.4845479 | CY29: 0 | CZ29: 122.0726107 | DA29: =INDEX('Floor Space'!$I$5:$DK$50,MATCH('Pre-Rinse Spray Valves'!CW29,'Floor Space'!$I$5:$I$50,0),MATCH('Pre-Rinse Spray Valves'!CW$10,'Floor Space'!$I$5:$DK$5,0))*'Pre-Rinse Spray Valves'!DD29 -> 9.806566584 | DB29: 131.8791773 | DC29: 643.2911145 | DD29: 5.76644517 | DE29: 0.01548035641 | DH29: 2004 | DI29: 1762.065829 | DJ29: 0 | DK29: 334.2466527 | DL29: =INDEX('Floor Space'!$I$5:$DK$50,MATCH('Pre-Rinse Spray Valves'!DH29,'Floor Space'!$I$5:$I$50,0),MATCH('Pre-Rinse Spray Valves'!DH$10,'Floor Space'!$I$5:$DK$5,0))*'Pre-Rinse Spray Valves'!DO29 -> 35.08248731 | DM29: 369.32914 | DN29: 1797.148316 | DO29: 5.76644517 | DP29: 0.0199098619 | DS29: 2004 | DT29: 292.288231 | DU29: 0 | DV29: 58.2181046 | DW29: =INDEX('Floor Space'!$I$5:$DK$50,MATCH('Pre-Rinse Spray Valves'!DS29,'Floor Space'!$I$5:$I$50,0),MATCH('Pre-Rinse Spray Valves'!DS$10,'Floor Space'!$I$5:$DK$5,0))*'Pre-Rinse Spray Valves'!DZ29 -> 3.856224552 | DX29: 62.07432915 | DY29: 296.1444556 | DZ29: 5.76644517 | EA29: 0.01319322553 | ED29: 2004 | EE29: 118.276346 | EF29: 0 | EG29: 23.33198913 | EH29: =INDEX('Floor Space'!$I$5:$DK$50,MATCH('Pre-Rinse Spray Valves'!ED29,'Floor Space'!$I$5:$I$50,0),MATCH('Pre-Rinse Spray Valves'!ED$10,'Floor Space'!$I$5:$DK$5,0))*'Pre-Rinse Spray Valves'!EK29 -> 1.560446507 | EI29: 24.89243564 | EJ29: 119.8367925 | EK29: 5.76644517 | EL29: 0.01319322553 | EO29: 2004 | EP29: 253.0879338 | EQ29: 0 | ER29: 50.04063744 | ES29: =INDEX('Floor Space'!$I$5:$DK$50,MATCH('Pre-Rinse Spray Valves'!EO29,'Floor Space'!$I$5:$I$50,0),MATCH('Pre-Rinse Spray Valves'!EO$10,'Floor Space'!$I$5:$DK$5,0))*'Pre-Rinse Spray Valves'!EV29 -> 7.962506457 | ET29: 58.00314389 | EU29: 261.0504403 | EV29: 5.76644517 | EW29: 0.03146142266 | EZ29: 2004 | FA29: 832.3001226 | FB29: 0 | FC29: 160.3206762 | FD29: =INDEX('Floor Space'!$I$5:$DK$50,MATCH('Pre-Rinse Spray Valves'!EZ29,'Floor Space'!$I$5:$I$50,0),MATCH('Pre-Rinse Spray Valves'!EZ$10,'Floor Space'!$I$5:$DK$5,0))*'Pre-Rinse Spray Valves'!FG29 -> 10.75600025 | FE29: 171.0766764 | FF29: 843.0561228 | FG29: 5.76644517 | FH29: 0.01292322319 | FK29: 2004 | FL29: 329.6635071 | FM29: 0 | FN29: 63.29028115 | FO29: =INDEX('Floor Space'!$I$5:$DK$50,MATCH('Pre-Rinse Spray Valves'!FK29,'Floor Space'!$I$5:$I$50,0),MATCH('Pre-Rinse Spray Valves'!FK$10,'Floor Space'!$I$5:$DK$5,0))*'Pre-Rinse Spray Valves'!FR29 -> 6.505398604 | FP29: 69.79567976 | FQ29: 336.1689057 | FR29: 5.76644517 | FS29: 0.01973345082 | FV29: 2004 | FW29: 717.9800162 | FX29: 0 | FY29: 136.872945 | FZ29: =INDEX('Floor Space'!$I$5:$DK$50,MATCH('Pre-Rinse Spray Valves'!FV29,'Floor Space'!$I$5:$I$50,0),MATCH('Pre-Rinse Spray Valves'!FV$10,'Floor Space'!$I$5:$DK$5,0))*'Pre-Rinse Spray Valves'!GC29 -> 19.31642456 | GA29: 156.1893696 | GB29: 737.2964408 | GC29: 5.76644517 | GD29: 0.02690384708 | GG29: 2004 | GH29: 1077.397953 | GI29: 0 | GJ29: 206.6673585 | GK29: =INDEX('Floor Space'!$I$5:$DK$50,MATCH('Pre-Rinse Spray Valves'!GG29,'Floor Space'!$I$5:$I$50,0),MATCH('Pre-Rinse Spray Valves'!GG$10,'Floor Space'!$I$5:$DK$5,0))*'Pre-Rinse Spray Valves'!GN29 -> 32.38484046 | GL29: 239.052199 | GM29: 1109.782794 | GN29: 5.76644517 | GO29: 0.03005838313 | GR29: 2004 | GS29: 2119.207664 | GT29: 0 | GU29: 400.401752 | GV29: =INDEX('Floor Space'!$I$5:$DK$50,MATCH('Pre-Rinse Spray Valves'!GR29,'Floor Space'!$I$5:$I$50,0),MATCH('Pre-Rinse Spray Valves'!GR$10,'Floor Space'!$I$5:$DK$5,0))*'Pre-Rinse Spray Valves'!GY29 -> 50.42335351 | GW29: 450.8251055 | GX29: 2169.631018 | GY29: 5.76644517 | GZ29: 0.02379349337
B30: 2005 | C30: 15099.21633 | D30: 0 | E30: 2888.051798 | F30: 319.7910069 | G30: 3207.842805 | H30: 15419.00734 | I30: 5.76644517 | J30: 0.02117931156 | M30: 2005 | N30: 1399.048613 | O30: 0 | P30: 268.4766855 | Q30: =INDEX('Floor Space'!$I$5:$DK$54,MATCH('Pre-Rinse Spray Valves'!M30,'Floor Space'!$I$5:$I$54,0),MATCH('Pre-Rinse Spray Valves'!M$10,'Floor Space'!$I$5:$DK$5,0))*'Pre-Rinse Spray Valves'!T30 -> 18.8749165 | R30: 287.351602 | S30: 1417.923529 | T30: 5.76644517 | U30: 0.01349125136 | X30: 2005 | Y30: 630.3287313 | Z30: 0 | AA30: 120.9597486 | AB30: =INDEX('Floor Space'!$I$5:$DK$50,MATCH('Pre-Rinse Spray Valves'!X30,'Floor Space'!$I$5:$I$50,0),MATCH('Pre-Rinse Spray Valves'!X$10,'Floor Space'!$I$5:$DK$5,0))*'Pre-Rinse Spray Valves'!AE30 -> 8.503923351 | AC30: 129.463672 | AD30: 638.8326546 | AE30: 5.76644517 | AF30: 0.01349125136 | AI30: 2005 | AJ30: 739.6094024 | AK30: 0 | AL30: 141.9306514 | AM30: =INDEX('Floor Space'!$I$5:$DK$50,MATCH('Pre-Rinse Spray Valves'!AI30,'Floor Space'!$I$5:$I$50,0),MATCH('Pre-Rinse Spray Valves'!AI$10,'Floor Space'!$I$5:$DK$5,0))*'Pre-Rinse Spray Valves'!AP30 -> 9.978256353 | AN30: 151.9089077 | AO30: 749.5876587 | AP30: 5.76644517 | AQ30: 0.01349125136 | AT30: 2005 | AU30: 653.3851514 | AV30: 0 | AW30: 124.7796322 | AX30: =INDEX('Floor Space'!$I$5:$DK$50,MATCH('Pre-Rinse Spray Valves'!AT30,'Floor Space'!$I$5:$I$50,0),MATCH('Pre-Rinse Spray Valves'!AT$10,'Floor Space'!$I$5:$DK$5,0))*'Pre-Rinse Spray Valves'!BA30 -> 13.78106565 | AY30: 138.5606979 | AZ30: 667.1662171 | BA30: 5.76644517 | BB30: 0.02109179498 | BE30: 2005 | BF30: 1206.791484 | BG30: 0 | BH30: 230.4659008 | BI30: =INDEX('Floor Space'!$I$5:$DK$50,MATCH('Pre-Rinse Spray Valves'!BE30,'Floor Space'!$I$5:$I$50,0),MATCH('Pre-Rinse Spray Valves'!BE$10,'Floor Space'!$I$5:$DK$5,0))*'Pre-Rinse Spray Valves'!BL30 -> 25.45339855 | BJ30: 255.9192993 | BK30: 1232.244882 | BL30: 5.76644517 | BM30: 0.02109179498 | BP30: 2005 | BQ30: 301.6978709 | BR30: 0 | BS30: 57.6164752 | BT30: =INDEX('Floor Space'!$I$5:$DK$50,MATCH('Pre-Rinse Spray Valves'!BP30,'Floor Space'!$I$5:$I$50,0),MATCH('Pre-Rinse Spray Valves'!BP$10,'Floor Space'!$I$5:$DK$5,0))*'Pre-Rinse Spray Valves'!BW30 -> 6.363349637 | BU30: 63.97982484 | BV30: 308.0612205 | BW30: 5.76644517 | BX30: 0.02109179498 | CA30: 2005 | CB30: 582.4934289 | CC30: 0 | CD30: 111.2411503 | CE30: =INDEX('Floor Space'!$I$5:$DK$50,MATCH('Pre-Rinse Spray Valves'!CA30,'Floor Space'!$I$5:$I$50,0),MATCH('Pre-Rinse Spray Valves'!CA$10,'Floor Space'!$I$5:$DK$5,0))*'Pre-Rinse Spray Valves'!CH30 -> 12.28583198 | CF30: 123.5269823 | CG30: 594.7792609 | CH30: 5.76644517 | CI30: 0.02109179498 | CL30: 2005 | CM30: 1272.455248 | CN30: 0 | CO30: 243.1815086 | CP30: =INDEX('Floor Space'!$I$5:$DK$50,MATCH('Pre-Rinse Spray Valves'!CL30,'Floor Space'!$I$5:$I$50,0),MATCH('Pre-Rinse Spray Valves'!CL$10,'Floor Space'!$I$5:$DK$5,0))*'Pre-Rinse Spray Valves'!CS30 -> 28.9185034 | CQ30: 272.100012 | CR30: 1301.373751 | CS30: 5.76644517 | CT30: 0.02272653868 | CW30: 2005 | CX30: 643.2911145 | CY30: 0 | CZ30: 123.9623382 | DA30: =INDEX('Floor Space'!$I$5:$DK$50,MATCH('Pre-Rinse Spray Valves'!CW30,'Floor Space'!$I$5:$I$50,0),MATCH('Pre-Rinse Spray Valves'!CW$10,'Floor Space'!$I$5:$DK$5,0))*'Pre-Rinse Spray Valves'!DD30 -> 12.80837035 | DB30: 136.7707086 | DC30: 656.0994849 | DD30: 5.76644517 | DE30: 0.0199106906 | DH30: 2005 | DI30: 1797.148316 | DJ30: 0 | DK30: 340.9014574 | DL30: =INDEX('Floor Space'!$I$5:$DK$50,MATCH('Pre-Rinse Spray Valves'!DH30,'Floor Space'!$I$5:$I$50,0),MATCH('Pre-Rinse Spray Valves'!DH$10,'Floor Space'!$I$5:$DK$5,0))*'Pre-Rinse Spray Valves'!DO30 -> 54.64928132 | DM30: 395.5507388 | DN30: 1851.797598 | DO30: 5.76644517 | DP30: 0.0304088877 | DS30: 2005 | DT30: 296.1444556 | DU30: 0 | DV30: 58.98618918 | DW30: =INDEX('Floor Space'!$I$5:$DK$50,MATCH('Pre-Rinse Spray Valves'!DS30,'Floor Space'!$I$5:$I$50,0),MATCH('Pre-Rinse Spray Valves'!DS$10,'Floor Space'!$I$5:$DK$5,0))*'Pre-Rinse Spray Valves'!DZ30 -> 0.5759236686 | DX30: 59.56211285 | DY30: 296.7203792 | DZ30: 5.76644517 | EA30: 0.001944738987 | ED30: 2005 | EE30: 119.8367925 | EF30: 0 | EG30: 23.63981332 | EH30: =INDEX('Floor Space'!$I$5:$DK$50,MATCH('Pre-Rinse Spray Valves'!ED30,'Floor Space'!$I$5:$I$50,0),MATCH('Pre-Rinse Spray Valves'!ED$10,'Floor Space'!$I$5:$DK$5,0))*'Pre-Rinse Spray Valves'!EK30 -> 0.811954579 | EI30: 24.4517679 | EJ30: 120.6487471 | EK30: 5.76644517 | EL30: 0.006775503267 | EO30: 2005 | EP30: 261.0504403 | EQ30: 0 | ER30: 51.61498708 | ES30: =INDEX('Floor Space'!$I$5:$DK$50,MATCH('Pre-Rinse Spray Valves'!EO30,'Floor Space'!$I$5:$I$50,0),MATCH('Pre-Rinse Spray Valves'!EO$10,'Floor Space'!$I$5:$DK$5,0))*'Pre-Rinse Spray Valves'!EV30 -> 1.423240707 | ET30: 53.03822779 | EU30: 262.473681 | EV30: 5.76644517 | EW30: 0.005451975892 | EZ30: 2005 | FA30: 843.0561228 | FB30: 0 | FC30: 162.3925361 | FD30: =INDEX('Floor Space'!$I$5:$DK$50,MATCH('Pre-Rinse Spray Valves'!EZ30,'Floor Space'!$I$5:$I$50,0),MATCH('Pre-Rinse Spray Valves'!EZ$10,'Floor Space'!$I$5:$DK$5,0))*'Pre-Rinse Spray Valves'!FG30 -> 13.55005053 | FE30: 175.9425866 | FF30: 856.6061734 | FG30: 5.76644517 | FH30: 0.01607253676 | FK30: 2005 | FL30: 336.1689057 | FM30: 0 | FN30: 64.53921681 | FO30: =INDEX('Floor Space'!$I$5:$DK$50,MATCH('Pre-Rinse Spray Valves'!FK30,'Floor Space'!$I$5:$I$50,0),MATCH('Pre-Rinse Spray Valves'!FK$10,'Floor Space'!$I$5:$DK$5,0))*'Pre-Rinse Spray Valves'!FR30 -> 20.84951668 | FP30: 85.38873348 | FQ30: 357.0184224 | FR30: 5.76644517 | FS30: 0.06202095531 | FV30: 2005 | FW30: 737.2964408 | FX30: 0 | FY30: 140.5553538 | FZ30: =INDEX('Floor Space'!$I$5:$DK$50,MATCH('Pre-Rinse Spray Valves'!FV30,'Floor Space'!$I$5:$I$50,0),MATCH('Pre-Rinse Spray Valves'!FV$10,'Floor Space'!$I$5:$DK$5,0))*'Pre-Rinse Spray Valves'!GC30 -> 23.29541206 | GA30: 163.8507659 | GB30: 760.5918528 | GC30: 5.76644517 | GD30: 0.03159572022 | GG30: 2005 | GH30: 1109.782794 | GI30: 0 | GJ30: 212.8794452 | GK30: =INDEX('Floor Space'!$I$5:$DK$50,MATCH('Pre-Rinse Spray Valves'!GG30,'Floor Space'!$I$5:$I$50,0),MATCH('Pre-Rinse Spray Valves'!GG$10,'Floor Space'!$I$5:$DK$5,0))*'Pre-Rinse Spray Valves'!GN30 -> 19.54582722 | GL30: 232.4252724 | GM30: 1129.328621 | GN30: 5.76644517 | GO30: 0.01761229975 | GR30: 2005 | GS30: 2169.631018 | GT30: 0 | GU30: 409.9287084 | GV30: =INDEX('Floor Space'!$I$5:$DK$50,MATCH('Pre-Rinse Spray Valves'!GR30,'Floor Space'!$I$5:$I$50,0),MATCH('Pre-Rinse Spray Valves'!GR$10,'Floor Space'!$I$5:$DK$5,0))*'Pre-Rinse Spray Valves'!GY30 -> 48.12218437 | GW30: 458.0508928 | GX30: 2217.753202 | GY30: 5.76644517 | GZ30: 0.02217989325
B31: 2006 | C31: 15419.00734 | D31: 0 | E31: 2949.087717 | F31: 374.2787816 | G31: 3323.366498 | H31: 15793.28612 | I31: 5.76644517 | J31: 0.02427385716 | M31: 2006 | N31: 1417.923529 | O31: 0 | P31: 272.098772 | Q31: =INDEX('Floor Space'!$I$5:$DK$54,MATCH('Pre-Rinse Spray Valves'!M31,'Floor Space'!$I$5:$I$54,0),MATCH('Pre-Rinse Spray Valves'!M$10,'Floor Space'!$I$5:$DK$5,0))*'Pre-Rinse Spray Valves'!T31 -> 35.08521383 | R31: 307.1839858 | S31: 1453.008743 | T31: 5.76644517 | U31: 0.02474408041 | X31: 2006 | Y31: 638.8326546 | Z31: 0 | AA31: 122.591647 | AB31: =INDEX('Floor Space'!$I$5:$DK$50,MATCH('Pre-Rinse Spray Valves'!X31,'Floor Space'!$I$5:$I$50,0),MATCH('Pre-Rinse Spray Valves'!X$10,'Floor Space'!$I$5:$DK$5,0))*'Pre-Rinse Spray Valves'!AE31 -> 15.80732658 | AC31: 138.3989736 | AD31: 654.6399812 | AE31: 5.76644517 | AF31: 0.02474408041 | AI31: 2006 | AJ31: 749.5876587 | AK31: 0 | AL31: 143.8454735 | AM31: =INDEX('Floor Space'!$I$5:$DK$50,MATCH('Pre-Rinse Spray Valves'!AI31,'Floor Space'!$I$5:$I$50,0),MATCH('Pre-Rinse Spray Valves'!AI$10,'Floor Space'!$I$5:$DK$5,0))*'Pre-Rinse Spray Valves'!AP31 -> 18.5478573 | AN31: 162.3933308 | AO31: 768.135516 | AP31: 5.76644517 | AQ31: 0.02474408041 | AT31: 2006 | AU31: 667.1662171 | AV31: 0 | AW31: 127.4114586 | AX31: =INDEX('Floor Space'!$I$5:$DK$50,MATCH('Pre-Rinse Spray Valves'!AT31,'Floor Space'!$I$5:$I$50,0),MATCH('Pre-Rinse Spray Valves'!AT$10,'Floor Space'!$I$5:$DK$5,0))*'Pre-Rinse Spray Valves'!BA31 -> 17.8617609 | AY31: 145.2732195 | AZ31: 685.027978 | BA31: 5.76644517 | BB31: 0.02677257996 | BE31: 2006 | BF31: 1232.244882 | BG31: 0 | BH31: 235.3268403 | BI31: =INDEX('Floor Space'!$I$5:$DK$50,MATCH('Pre-Rinse Spray Valves'!BE31,'Floor Space'!$I$5:$I$50,0),MATCH('Pre-Rinse Spray Valves'!BE$10,'Floor Space'!$I$5:$DK$5,0))*'Pre-Rinse Spray Valves'!BL31 -> 32.99037464 | BJ31: 268.317215 | BK31: 1265.235257 | BL31: 5.76644517 | BM31: 0.02677257996 | BP31: 2006 | BQ31: 308.0612205 | BR31: 0 | BS31: 58.83171008 | BT31: =INDEX('Floor Space'!$I$5:$DK$50,MATCH('Pre-Rinse Spray Valves'!BP31,'Floor Space'!$I$5:$I$50,0),MATCH('Pre-Rinse Spray Valves'!BP$10,'Floor Space'!$I$5:$DK$5,0))*'Pre-Rinse Spray Valves'!BW31 -> 8.24759366 | BU31: 67.07930374 | BV31: 316.3088142 | BW31: 5.76644517 | BX31: 0.02677257996 | CA31: 2006 | CB31: 594.7792609 | CC31: 0 | CD31: 113.5874258 | CE31: =INDEX('Floor Space'!$I$5:$DK$50,MATCH('Pre-Rinse Spray Valves'!CA31,'Floor Space'!$I$5:$I$50,0),MATCH('Pre-Rinse Spray Valves'!CA$10,'Floor Space'!$I$5:$DK$5,0))*'Pre-Rinse Spray Valves'!CH31 -> 15.92377532 | CF31: 129.5112012 | CG31: 610.7030362 | CH31: 5.76644517 | CI31: 0.02677257996 | CL31: 2006 | CM31: 1301.373751 | CN31: 0 | CO31: 248.7081826 | CP31: =INDEX('Floor Space'!$I$5:$DK$50,MATCH('Pre-Rinse Spray Valves'!CL31,'Floor Space'!$I$5:$I$50,0),MATCH('Pre-Rinse Spray Valves'!CL$10,'Floor Space'!$I$5:$DK$5,0))*'Pre-Rinse Spray Valves'!CS31 -> 28.07059377 | CQ31: 276.7787764 | CR31: 1329.444345 | CS31: 5.76644517 | CT31: 0.02156997077 | CW31: 2006 | CX31: 656.0994849 | CY31: 0 | CZ31: 126.430514 | DA31: =INDEX('Floor Space'!$I$5:$DK$50,MATCH('Pre-Rinse Spray Valves'!CW31,'Floor Space'!$I$5:$I$50,0),MATCH('Pre-Rinse Spray Valves'!CW$10,'Floor Space'!$I$5:$DK$5,0))*'Pre-Rinse Spray Valves'!DD31 -> 11.3352858 | DB31: 137.7657998 | DC31: 667.4347707 | DD31: 5.76644517 | DE31: 0.01727677899 | DH31: 2006 | DI31: 1851.797598 | DJ31: 0 | DK31: 351.2678916 | DL31: =INDEX('Floor Space'!$I$5:$DK$50,MATCH('Pre-Rinse Spray Valves'!DH31,'Floor Space'!$I$5:$I$50,0),MATCH('Pre-Rinse Spray Valves'!DH$10,'Floor Space'!$I$5:$DK$5,0))*'Pre-Rinse Spray Valves'!DO31 -> 52.34853889 | DM31: 403.6164305 | DN31: 1904.146136 | DO31: 5.76644517 | DP31: 0.02826903921 | DS31: 2006 | DT31: 296.7203792 | DU31: 0 | DV31: 59.10090192 | DW31: =INDEX('Floor Space'!$I$5:$DK$50,MATCH('Pre-Rinse Spray Valves'!DS31,'Floor Space'!$I$5:$I$50,0),MATCH('Pre-Rinse Spray Valves'!DS$10,'Floor Space'!$I$5:$DK$5,0))*'Pre-Rinse Spray Valves'!DZ31 -> 0.5961419291 | DX31: 59.69704385 | DY31: 297.3165212 | DZ31: 5.76644517 | EA31: 0.002009103421 | ED31: 2006 | EE31: 120.6487471 | EF31: 0 | EG31: 23.79998496 | EH31: =INDEX('Floor Space'!$I$5:$DK$50,MATCH('Pre-Rinse Spray Valves'!ED31,'Floor Space'!$I$5:$I$50,0),MATCH('Pre-Rinse Spray Valves'!ED$10,'Floor Space'!$I$5:$DK$5,0))*'Pre-Rinse Spray Valves'!EK31 -> 0.7957231773 | EI31: 24.59570813 | EJ31: 121.4444702 | EK31: 5.76644517 | EL31: 0.006595370417 | EO31: 2006 | EP31: 262.473681 | EQ31: 0 | ER31: 51.89639075 | ES31: =INDEX('Floor Space'!$I$5:$DK$50,MATCH('Pre-Rinse Spray Valves'!EO31,'Floor Space'!$I$5:$I$50,0),MATCH('Pre-Rinse Spray Valves'!EO$10,'Floor Space'!$I$5:$DK$5,0))*'Pre-Rinse Spray Valves'!EV31 -> 1.473204709 | ET31: 53.36959546 | EU31: 263.9468857 | EV31: 5.76644517 | EW31: 0.005612771169 | EZ31: 2006 | FA31: 856.6061734 | FB31: 0 | FC31: 165.0025961 | FD31: =INDEX('Floor Space'!$I$5:$DK$50,MATCH('Pre-Rinse Spray Valves'!EZ31,'Floor Space'!$I$5:$I$50,0),MATCH('Pre-Rinse Spray Valves'!EZ$10,'Floor Space'!$I$5:$DK$5,0))*'Pre-Rinse Spray Valves'!FG31 -> 17.56654105 | FE31: 182.5691371 | FF31: 874.1727144 | FG31: 5.76644517 | FH31: 0.02050713805 | FK31: 2006 | FL31: 357.0184224 | FM31: 0 | FN31: 68.54200069 | FO31: =INDEX('Floor Space'!$I$5:$DK$50,MATCH('Pre-Rinse Spray Valves'!FK31,'Floor Space'!$I$5:$I$50,0),MATCH('Pre-Rinse Spray Valves'!FK$10,'Floor Space'!$I$5:$DK$5,0))*'Pre-Rinse Spray Valves'!FR31 -> 5.234663597 | FP31: 73.77666428 | FQ31: 362.253086 | FR31: 5.76644517 | FS31: 0.01466216662 | FV31: 2006 | FW31: 760.5918528 | FX31: 0 | FY31: 144.9963015 | FZ31: =INDEX('Floor Space'!$I$5:$DK$50,MATCH('Pre-Rinse Spray Valves'!FV31,'Floor Space'!$I$5:$I$50,0),MATCH('Pre-Rinse Spray Valves'!FV$10,'Floor Space'!$I$5:$DK$5,0))*'Pre-Rinse Spray Valves'!GC31 -> 20.6822667 | GA31: 165.6785682 | GB31: 781.2741195 | GC31: 5.76644517 | GD31: 0.02719233269 | GG31: 2006 | GH31: 1129.328621 | GI31: 0 | GJ31: 216.6287418 | GK31: =INDEX('Floor Space'!$I$5:$DK$50,MATCH('Pre-Rinse Spray Valves'!GG31,'Floor Space'!$I$5:$I$50,0),MATCH('Pre-Rinse Spray Valves'!GG$10,'Floor Space'!$I$5:$DK$5,0))*'Pre-Rinse Spray Valves'!GN31 -> 23.62663667 | GL31: 240.2553785 | GM31: 1152.955257 | GN31: 5.76644517 | GO31: 0.02092095802 | GR31: 2006 | GS31: 2217.753202 | GT31: 0 | GU31: 419.0208834 | GV31: =INDEX('Floor Space'!$I$5:$DK$50,MATCH('Pre-Rinse Spray Valves'!GR31,'Floor Space'!$I$5:$I$50,0),MATCH('Pre-Rinse Spray Valves'!GR$10,'Floor Space'!$I$5:$DK$5,0))*'Pre-Rinse Spray Valves'!GY31 -> 68.08528309 | GW31: 487.1061665 | GX31: 2285.838485 | GY31: 5.76644517 | GZ31: 0.03070011714
B32: 2007 | C32: 15793.28612 | D32: 0 | E32: 3020.514339 | F32: 344.3412434 | G32: 3364.855583 | H32: 16137.62736 | I32: 5.76644517 | J32: 0.02180301432 | M32: 2007 | N32: 1453.008743 | O32: 0 | P32: 278.8316059 | Q32: =INDEX('Floor Space'!$I$5:$DK$54,MATCH('Pre-Rinse Spray Valves'!M32,'Floor Space'!$I$5:$I$54,0),MATCH('Pre-Rinse Spray Valves'!M$10,'Floor Space'!$I$5:$DK$5,0))*'Pre-Rinse Spray Valves'!T32 -> 26.25130338 | R32: 305.0829092 | S32: 1479.260047 | T32: 5.76644517 | U32: 0.01806685851 | X32: 2007 | Y32: 654.6399812 | Z32: 0 | AA32: 125.6250646 | AB32: =INDEX('Floor Space'!$I$5:$DK$50,MATCH('Pre-Rinse Spray Valves'!X32,'Floor Space'!$I$5:$I$50,0),MATCH('Pre-Rinse Spray Valves'!X$10,'Floor Space'!$I$5:$DK$5,0))*'Pre-Rinse Spray Valves'!AE32 -> 11.82728792 | AC32: 137.4523525 | AD32: 666.4672691 | AE32: 5.76644517 | AF32: 0.01806685851 | AI32: 2007 | AJ32: 768.135516 | AK32: 0 | AL32: 147.4047974 | AM32: =INDEX('Floor Space'!$I$5:$DK$50,MATCH('Pre-Rinse Spray Valves'!AI32,'Floor Space'!$I$5:$I$50,0),MATCH('Pre-Rinse Spray Valves'!AI$10,'Floor Space'!$I$5:$DK$5,0))*'Pre-Rinse Spray Valves'!AP32 -> 13.87779569 | AN32: 161.2825931 | AO32: 782.0133117 | AP32: 5.76644517 | AQ32: 0.01806685851 | AT32: 2007 | AU32: 685.027978 | AV32: 0 | AW32: 130.8225921 | AX32: =INDEX('Floor Space'!$I$5:$DK$50,MATCH('Pre-Rinse Spray Valves'!AT32,'Floor Space'!$I$5:$I$50,0),MATCH('Pre-Rinse Spray Valves'!AT$10,'Floor Space'!$I$5:$DK$5,0))*'Pre-Rinse Spray Valves'!BA32 -> 14.93744158 | AY32: 145.7600337 | AZ32: 699.9654196 | BA32: 5.76644517 | BB32: 0.02180559343 | BE32: 2007 | BF32: 1265.235257 | BG32: 0 | BH32: 241.627147 | BI32: =INDEX('Floor Space'!$I$5:$DK$50,MATCH('Pre-Rinse Spray Valves'!BE32,'Floor Space'!$I$5:$I$50,0),MATCH('Pre-Rinse Spray Valves'!BE$10,'Floor Space'!$I$5:$DK$5,0))*'Pre-Rinse Spray Valves'!BL32 -> 27.5892056 | BJ32: 269.2163526 | BK32: 1292.824462 | BL32: 5.76644517 | BM32: 0.02180559343 | BP32: 2007 | BQ32: 316.3088142 | BR32: 0 | BS32: 60.40678674 | BT32: =INDEX('Floor Space'!$I$5:$DK$50,MATCH('Pre-Rinse Spray Valves'!BP32,'Floor Space'!$I$5:$I$50,0),MATCH('Pre-Rinse Spray Valves'!BP$10,'Floor Space'!$I$5:$DK$5,0))*'Pre-Rinse Spray Valves'!BW32 -> 6.8973014 | BU32: 67.30408814 | BV32: 323.2061156 | BW32: 5.76644517 | BX32: 0.02180559343 | CA32: 2007 | CB32: 610.7030362 | CC32: 0 | CD32: 116.6284543 | CE32: =INDEX('Floor Space'!$I$5:$DK$50,MATCH('Pre-Rinse Spray Valves'!CA32,'Floor Space'!$I$5:$I$50,0),MATCH('Pre-Rinse Spray Valves'!CA$10,'Floor Space'!$I$5:$DK$5,0))*'Pre-Rinse Spray Valves'!CH32 -> 13.31674211 | CF32: 129.9451964 | CG32: 624.0197783 | CH32: 5.76644517 | CI32: 0.02180559343 | CL32: 2007 | CM32: 1329.444345 | CN32: 0 | CO32: 254.0728108 | CP32: =INDEX('Floor Space'!$I$5:$DK$50,MATCH('Pre-Rinse Spray Valves'!CL32,'Floor Space'!$I$5:$I$50,0),MATCH('Pre-Rinse Spray Valves'!CL$10,'Floor Space'!$I$5:$DK$5,0))*'Pre-Rinse Spray Valves'!CS32 -> 30.36692167 | CQ32: 284.4397325 | CR32: 1359.811267 | CS32: 5.76644517 | CT32: 0.02284181492 | CW32: 2007 | CX32: 667.4347707 | CY32: 0 | CZ32: 128.6148261 | DA32: =INDEX('Floor Space'!$I$5:$DK$50,MATCH('Pre-Rinse Spray Valves'!CW32,'Floor Space'!$I$5:$I$50,0),MATCH('Pre-Rinse Spray Valves'!CW$10,'Floor Space'!$I$5:$DK$5,0))*'Pre-Rinse Spray Valves'!DD32 -> 12.54386514 | DB32: 141.1586912 | DC32: 679.9786358 | DD32: 5.76644517 | DE32: 0.01879414392 | DH32: 2007 | DI32: 1904.146136 | DJ32: 0 | DK32: 361.1978974 | DL32: =INDEX('Floor Space'!$I$5:$DK$50,MATCH('Pre-Rinse Spray Valves'!DH32,'Floor Space'!$I$5:$I$50,0),MATCH('Pre-Rinse Spray Valves'!DH$10,'Floor Space'!$I$5:$DK$5,0))*'Pre-Rinse Spray Valves'!DO32 -> 50.14861904 | DM32: 411.3465164 | DN32: 1954.294756 | DO32: 5.76644517 | DP32: 0.02633653903 | DS32: 2007 | DT32: 297.3165212 | DU32: 0 | DV32: 59.21964175 | DW32: =INDEX('Floor Space'!$I$5:$DK$50,MATCH('Pre-Rinse Spray Valves'!DS32,'Floor Space'!$I$5:$I$50,0),MATCH('Pre-Rinse Spray Valves'!DS$10,'Floor Space'!$I$5:$DK$5,0))*'Pre-Rinse Spray Valves'!DZ32 -> 0.6056948281 | DX32: 59.82533658 | DY32: 297.922216 | DZ32: 5.76644517 | EA32: 0.002037205419 | ED32: 2007 | EE32: 121.4444702 | EF32: 0 | EG32: 23.95695467 | EH32: =INDEX('Floor Space'!$I$5:$DK$50,MATCH('Pre-Rinse Spray Valves'!ED32,'Floor Space'!$I$5:$I$50,0),MATCH('Pre-Rinse Spray Valves'!ED$10,'Floor Space'!$I$5:$DK$5,0))*'Pre-Rinse Spray Valves'!EK32 -> 0.8286295286 | EI32: 24.7855842 | EJ32: 122.2730998 | EK32: 5.76644517 | EL32: 0.006823114523 | EO32: 2007 | EP32: 263.9468857 | EQ32: 0 | ER32: 52.18767331 | ES32: =INDEX('Floor Space'!$I$5:$DK$50,MATCH('Pre-Rinse Spray Valves'!EO32,'Floor Space'!$I$5:$I$50,0),MATCH('Pre-Rinse Spray Valves'!EO$10,'Floor Space'!$I$5:$DK$5,0))*'Pre-Rinse Spray Valves'!EV32 -> 1.496812134 | ET32: 53.68448545 | EU32: 265.4436979 | EV32: 5.76644517 | EW32: 0.00567088386 | EZ32: 2007 | FA32: 874.1727144 | FB32: 0 | FC32: 168.3863271 | FD32: =INDEX('Floor Space'!$I$5:$DK$50,MATCH('Pre-Rinse Spray Valves'!EZ32,'Floor Space'!$I$5:$I$50,0),MATCH('Pre-Rinse Spray Valves'!EZ$10,'Floor Space'!$I$5:$DK$5,0))*'Pre-Rinse Spray Valves'!FG32 -> 17.22739304 | FE32: 185.6137201 | FF32: 891.4001074 | FG32: 5.76644517 | FH32: 0.01970708163 | FK32: 2007 | FL32: 362.253086 | FM32: 0 | FN32: 69.54697492 | FO32: =INDEX('Floor Space'!$I$5:$DK$50,MATCH('Pre-Rinse Spray Valves'!FK32,'Floor Space'!$I$5:$I$50,0),MATCH('Pre-Rinse Spray Valves'!FK$10,'Floor Space'!$I$5:$DK$5,0))*'Pre-Rinse Spray Valves'!FR32 -> 8.969423285 | FP32: 78.51639821 | FQ32: 371.2225093 | FR32: 5.76644517 | FS32: 0.0247601018 | FV32: 2007 | FW32: 781.2741195 | FX32: 0 | FY32: 148.9390891 | FZ32: =INDEX('Floor Space'!$I$5:$DK$50,MATCH('Pre-Rinse Spray Valves'!FV32,'Floor Space'!$I$5:$I$50,0),MATCH('Pre-Rinse Spray Valves'!FV$10,'Floor Space'!$I$5:$DK$5,0))*'Pre-Rinse Spray Valves'!GC32 -> 16.83768153 | GA32: 165.7767707 | GB32: 798.1118011 | GC32: 5.76644517 | GD32: 0.021551567 | GG32: 2007 | GH32: 1152.955257 | GI32: 0 | GJ32: 221.1608226 | GK32: =INDEX('Floor Space'!$I$5:$DK$50,MATCH('Pre-Rinse Spray Valves'!GG32,'Floor Space'!$I$5:$I$50,0),MATCH('Pre-Rinse Spray Valves'!GG$10,'Floor Space'!$I$5:$DK$5,0))*'Pre-Rinse Spray Valves'!GN32 -> 24.76225142 | GL32: 245.923074 | GM32: 1177.717509 | GN32: 5.76644517 | GO32: 0.02147720066 | GR32: 2007 | GS32: 2285.838485 | GT32: 0 | GU32: 431.8848736 | GV32: =INDEX('Floor Space'!$I$5:$DK$50,MATCH('Pre-Rinse Spray Valves'!GR32,'Floor Space'!$I$5:$I$50,0),MATCH('Pre-Rinse Spray Valves'!GR$10,'Floor Space'!$I$5:$DK$5,0))*'Pre-Rinse Spray Valves'!GY32 -> 65.85687415 | GW32: 497.7417478 | GX32: 2351.695359 | GY32: 5.76644517 | GZ32: 0.02881081694
B33: 2008 | C33: 16137.62736 | D33: 0 | E33: 3086.22317 | F33: 337.2489042 | G33: 3423.472074 | H33: 16474.87626 | I33: 5.76644517 | J33: 0.02089829543 | M33: 2008 | N33: 1479.260047 | O33: 0 | P33: 283.869217 | Q33: =INDEX('Floor Space'!$I$5:$DK$54,MATCH('Pre-Rinse Spray Valves'!M33,'Floor Space'!$I$5:$I$54,0),MATCH('Pre-Rinse Spray Valves'!M$10,'Floor Space'!$I$5:$DK$5,0))*'Pre-Rinse Spray Valves'!T33 -> 27.42304942 | R33: 311.2922664 | S33: 1506.683096 | T33: 5.76644517 | U33: 0.01853835604 | X33: 2008 | Y33: 666.4672691 | Z33: 0 | AA33: 127.8947149 | AB33: =INDEX('Floor Space'!$I$5:$DK$50,MATCH('Pre-Rinse Spray Valves'!X33,'Floor Space'!$I$5:$I$50,0),MATCH('Pre-Rinse Spray Valves'!X$10,'Floor Space'!$I$5:$DK$5,0))*'Pre-Rinse Spray Valves'!AE33 -> 12.35520752 | AC33: 140.2499224 | AD33: 678.8224766 | AE33: 5.76644517 | AF33: 0.01853835604 | AI33: 2008 | AJ33: 782.0133117 | AK33: 0 | AL33: 150.067939 | AM33: =INDEX('Floor Space'!$I$5:$DK$50,MATCH('Pre-Rinse Spray Valves'!AI33,'Floor Space'!$I$5:$I$50,0),MATCH('Pre-Rinse Spray Valves'!AI$10,'Floor Space'!$I$5:$DK$5,0))*'Pre-Rinse Spray Valves'!AP33 -> 14.4972412 | AN33: 164.5651802 | AO33: 796.5105529 | AP33: 5.76644517 | AQ33: 0.01853835604 | AT33: 2008 | AU33: 699.9654196 | AV33: 0 | AW33: 133.6752564 | AX33: =INDEX('Floor Space'!$I$5:$DK$50,MATCH('Pre-Rinse Spray Valves'!AT33,'Floor Space'!$I$5:$I$50,0),MATCH('Pre-Rinse Spray Valves'!AT$10,'Floor Space'!$I$5:$DK$5,0))*'Pre-Rinse Spray Valves'!BA33 -> 13.92041564 | AY33: 147.595672 | AZ33: 713.8858352 | BA33: 5.76644517 | BB33: 0.0198872905 | BE33: 2008 | BF33: 1292.824462 | BG33: 0 | BH33: 246.8959703 | BI33: =INDEX('Floor Space'!$I$5:$DK$50,MATCH('Pre-Rinse Spray Valves'!BE33,'Floor Space'!$I$5:$I$50,0),MATCH('Pre-Rinse Spray Valves'!BE$10,'Floor Space'!$I$5:$DK$5,0))*'Pre-Rinse Spray Valves'!BL33 -> 25.71077565 | BJ33: 272.606746 | BK33: 1318.535238 | BL33: 5.76644517 | BM33: 0.0198872905 | BP33: 2008 | BQ33: 323.2061156 | BR33: 0 | BS33: 61.72399258 | BT33: =INDEX('Floor Space'!$I$5:$DK$50,MATCH('Pre-Rinse Spray Valves'!BP33,'Floor Space'!$I$5:$I$50,0),MATCH('Pre-Rinse Spray Valves'!BP$10,'Floor Space'!$I$5:$DK$5,0))*'Pre-Rinse Spray Valves'!BW33 -> 6.427693913 | BU33: 68.15168649 | BV33: 329.6338095 | BW33: 5.76644517 | BX33: 0.0198872905 | CA33: 2008 | CB33: 624.0197783 | CC33: 0 | CD33: 119.1716069 | CE33: =INDEX('Floor Space'!$I$5:$DK$50,MATCH('Pre-Rinse Spray Valves'!CA33,'Floor Space'!$I$5:$I$50,0),MATCH('Pre-Rinse Spray Valves'!CA$10,'Floor Space'!$I$5:$DK$5,0))*'Pre-Rinse Spray Valves'!CH33 -> 12.41006261 | CF33: 131.5816695 | CG33: 636.4298409 | CH33: 5.76644517 | CI33: 0.0198872905 | CL33: 2008 | CM33: 1359.811267 | CN33: 0 | CO33: 259.8762949 | CP33: =INDEX('Floor Space'!$I$5:$DK$50,MATCH('Pre-Rinse Spray Valves'!CL33,'Floor Space'!$I$5:$I$50,0),MATCH('Pre-Rinse Spray Valves'!CL$10,'Floor Space'!$I$5:$DK$5,0))*'Pre-Rinse Spray Valves'!CS33 -> 33.53248478 | CQ33: 293.4087797 | CR33: 1393.343751 | CS33: 5.76644517 | CT33: 0.02465966094 | CW33: 2008 | CX33: 679.9786358 | CY33: 0 | CZ33: 131.0320316 | DA33: =INDEX('Floor Space'!$I$5:$DK$50,MATCH('Pre-Rinse Spray Valves'!CW33,'Floor Space'!$I$5:$I$50,0),MATCH('Pre-Rinse Spray Valves'!CW$10,'Floor Space'!$I$5:$DK$5,0))*'Pre-Rinse Spray Valves'!DD33 -> 14.00264225 | DB33: 145.0346739 | DC33: 693.9812781 | DD33: 5.76644517 | DE33: 0.02059276794 | DH33: 2008 | DI33: 1954.294756 | DJ33: 0 | DK33: 370.7105999 | DL33: =INDEX('Floor Space'!$I$5:$DK$50,MATCH('Pre-Rinse Spray Valves'!DH33,'Floor Space'!$I$5:$I$50,0),MATCH('Pre-Rinse Spray Valves'!DH$10,'Floor Space'!$I$5:$DK$5,0))*'Pre-Rinse Spray Valves'!DO33 -> 48.40790352 | DM33: 419.1185034 | DN33: 2002.702659 | DO33: 5.76644517 | DP33: 0.02477001148 | DS33: 2008 | DT33: 297.922216 | DU33: 0 | DV33: 59.34028432 | DW33: =INDEX('Floor Space'!$I$5:$DK$50,MATCH('Pre-Rinse Spray Valves'!DS33,'Floor Space'!$I$5:$I$50,0),MATCH('Pre-Rinse Spray Valves'!DS$10,'Floor Space'!$I$5:$DK$5,0))*'Pre-Rinse Spray Valves'!DZ33 -> 0.6685547672 | DX33: 60.00883909 | DY33: 298.5907708 | DZ33: 5.76644517 | EA33: 0.002244058118 | ED33: 2008 | EE33: 122.2730998 | EF33: 0 | EG33: 24.12041572 | EH33: =INDEX('Floor Space'!$I$5:$DK$50,MATCH('Pre-Rinse Spray Valves'!ED33,'Floor Space'!$I$5:$I$50,0),MATCH('Pre-Rinse Spray Valves'!ED$10,'Floor Space'!$I$5:$DK$5,0))*'Pre-Rinse Spray Valves'!EK33 -> 0.9313347225 | EI33: 25.05175044 | EJ33: 123.2044345 | EK33: 5.76644517 | EL33: 0.007616840697 | EO33: 2008 | EP33: 265.4436979 | EQ33: 0 | ER33: 52.48362355 | ES33: =INDEX('Floor Space'!$I$5:$DK$50,MATCH('Pre-Rinse Spray Valves'!EO33,'Floor Space'!$I$5:$I$50,0),MATCH('Pre-Rinse Spray Valves'!EO$10,'Floor Space'!$I$5:$DK$5,0))*'Pre-Rinse Spray Valves'!EV33 -> 1.652153595 | ET33: 54.13577714 | EU33: 267.0958515 | EV33: 5.76644517 | EW33: 0.006224120628 | EZ33: 2008 | FA33: 891.4001074 | FB33: 0 | FC33: 171.7047302 | FD33: =INDEX('Floor Space'!$I$5:$DK$50,MATCH('Pre-Rinse Spray Valves'!EZ33,'Floor Space'!$I$5:$I$50,0),MATCH('Pre-Rinse Spray Valves'!EZ$10,'Floor Space'!$I$5:$DK$5,0))*'Pre-Rinse Spray Valves'!FG33 -> 14.50403315 | FE33: 186.2087633 | FF33: 905.9041406 | FG33: 5.76644517 | FH33: 0.01627106956 | FK33: 2008 | FL33: 371.2225093 | FM33: 0 | FN33: 71.2689651 | FO33: =INDEX('Floor Space'!$I$5:$DK$50,MATCH('Pre-Rinse Spray Valves'!FK33,'Floor Space'!$I$5:$I$50,0),MATCH('Pre-Rinse Spray Valves'!FK$10,'Floor Space'!$I$5:$DK$5,0))*'Pre-Rinse Spray Valves'!FR33 -> 8.642743612 | FP33: 79.91170871 | FQ33: 379.8652529 | FR33: 5.76644517 | FS33: 0.02328184147 | FV33: 2008 | FW33: 798.1118011 | FX33: 0 | FY33: 152.1489599 | FZ33: =INDEX('Floor Space'!$I$5:$DK$50,MATCH('Pre-Rinse Spray Valves'!FV33,'Floor Space'!$I$5:$I$50,0),MATCH('Pre-Rinse Spray Valves'!FV$10,'Floor Space'!$I$5:$DK$5,0))*'Pre-Rinse Spray Valves'!GC33 -> 17.58714337 | GA33: 169.7361033 | GB33: 815.6989444 | GC33: 5.76644517 | GD33: 0.02203593951 | GG33: 2008 | GH33: 1177.717509 | GI33: 0 | GJ33: 225.910738 | GK33: =INDEX('Floor Space'!$I$5:$DK$50,MATCH('Pre-Rinse Spray Valves'!GG33,'Floor Space'!$I$5:$I$50,0),MATCH('Pre-Rinse Spray Valves'!GG$10,'Floor Space'!$I$5:$DK$5,0))*'Pre-Rinse Spray Valves'!GN33 -> 23.54272493 | GL33: 249.4534629 | GM33: 1201.260234 | GN33: 5.76644517 | GO33: 0.019990129 | GR33: 2008 | GS33: 2351.695359 | GT33: 0 | GU33: 444.3278296 | GV33: =INDEX('Floor Space'!$I$5:$DK$50,MATCH('Pre-Rinse Spray Valves'!GR33,'Floor Space'!$I$5:$I$50,0),MATCH('Pre-Rinse Spray Valves'!GR$10,'Floor Space'!$I$5:$DK$5,0))*'Pre-Rinse Spray Valves'!GY33 -> 61.03273949 | GW33: 505.3605691 | GX33: 2412.728099 | GY33: 5.76644517 | GZ33: 0.02595265549
B34: 2009 | C34: 16474.87626 | D34: 0 | E34: 3150.590801 | F34: 324.8158499 | G34: 3475.406651 | H34: 16799.69211 | I34: 5.76644517 | J34: 0.01971582941 | M34: 2009 | N34: 1506.683096 | O34: 0 | P34: 289.1316856 | Q34: =INDEX('Floor Space'!$I$5:$DK$54,MATCH('Pre-Rinse Spray Valves'!M34,'Floor Space'!$I$5:$I$54,0),MATCH('Pre-Rinse Spray Valves'!M$10,'Floor Space'!$I$5:$DK$5,0))*'Pre-Rinse Spray Valves'!T34 -> 25.31148337 | R34: 314.443169 | S34: 1531.994579 | T34: 5.76644517 | U34: 0.01679947392 | X34: 2009 | Y34: 678.8224766 | Z34: 0 | AA34: 130.2656726 | AB34: =INDEX('Floor Space'!$I$5:$DK$50,MATCH('Pre-Rinse Spray Valves'!X34,'Floor Space'!$I$5:$I$50,0),MATCH('Pre-Rinse Spray Valves'!X$10,'Floor Space'!$I$5:$DK$5,0))*'Pre-Rinse Spray Valves'!AE34 -> 11.40386049 | AC34: 141.6695331 | AD34: 690.2263371 | AE34: 5.76644517 | AF34: 0.01679947392 | AI34: 2009 | AJ34: 796.5105529 | AK34: 0 | AL34: 152.8499519 | AM34: =INDEX('Floor Space'!$I$5:$DK$50,MATCH('Pre-Rinse Spray Valves'!AI34,'Floor Space'!$I$5:$I$50,0),MATCH('Pre-Rinse Spray Valves'!AI$10,'Floor Space'!$I$5:$DK$5,0))*'Pre-Rinse Spray Valves'!AP34 -> 13.38095826 | AN34: 166.2309102 | AO34: 809.8915112 | AP34: 5.76644517 | AQ34: 0.01679947392 | AT34: 2009 | AU34: 713.8858352 | AV34: 0 | AW34: 136.333695 | AX34: =INDEX('Floor Space'!$I$5:$DK$50,MATCH('Pre-Rinse Spray Valves'!AT34,'Floor Space'!$I$5:$I$50,0),MATCH('Pre-Rinse Spray Valves'!AT$10,'Floor Space'!$I$5:$DK$5,0))*'Pre-Rinse Spray Valves'!BA34 -> 13.53480047 | AY34: 149.8684955 | AZ34: 727.4206357 | BA34: 5.76644517 | BB34: 0.01895933468 | BE34: 2009 | BF34: 1318.535238 | BG34: 0 | BH34: 251.8060622 | BI34: =INDEX('Floor Space'!$I$5:$DK$50,MATCH('Pre-Rinse Spray Valves'!BE34,'Floor Space'!$I$5:$I$50,0),MATCH('Pre-Rinse Spray Valves'!BE$10,'Floor Space'!$I$5:$DK$5,0))*'Pre-Rinse Spray Valves'!BL34 -> 24.99855086 | BJ34: 276.8046131 | BK34: 1343.533789 | BL34: 5.76644517 | BM34: 0.01895933468 | BP34: 2009 | BQ34: 329.6338095 | BR34: 0 | BS34: 62.95151555 | BT34: =INDEX('Floor Space'!$I$5:$DK$50,MATCH('Pre-Rinse Spray Valves'!BP34,'Floor Space'!$I$5:$I$50,0),MATCH('Pre-Rinse Spray Valves'!BP$10,'Floor Space'!$I$5:$DK$5,0))*'Pre-Rinse Spray Valves'!BW34 -> 6.249637715 | BU34: 69.20115326 | BV34: 335.8834472 | BW34: 5.76644517 | BX34: 0.01895933468 | CA34: 2009 | CB34: 636.4298409 | CC34: 0 | CD34: 121.5416073 | CE34: =INDEX('Floor Space'!$I$5:$DK$50,MATCH('Pre-Rinse Spray Valves'!CA34,'Floor Space'!$I$5:$I$50,0),MATCH('Pre-Rinse Spray Valves'!CA$10,'Floor Space'!$I$5:$DK$5,0))*'Pre-Rinse Spray Valves'!CH34 -> 12.06628635 | CF34: 133.6078936 | CG34: 648.4961272 | CH34: 5.76644517 | CI34: 0.01895933468 | CL34: 2009 | CM34: 1393.343751 | CN34: 0 | CO34: 266.2847563 | CP34: =INDEX('Floor Space'!$I$5:$DK$50,MATCH('Pre-Rinse Spray Valves'!CL34,'Floor Space'!$I$5:$I$50,0),MATCH('Pre-Rinse Spray Valves'!CL$10,'Floor Space'!$I$5:$DK$5,0))*'Pre-Rinse Spray Valves'!CS34 -> 32.14118287 | CQ34: 298.4259391 | CR34: 1425.484934 | CS34: 5.76644517 | CT34: 0.02306766212 | CW34: 2009 | CX34: 693.9812781 | CY34: 0 | CZ34: 133.7303438 | DA34: =INDEX('Floor Space'!$I$5:$DK$50,MATCH('Pre-Rinse Spray Valves'!CW34,'Floor Space'!$I$5:$I$50,0),MATCH('Pre-Rinse Spray Valves'!CW$10,'Floor Space'!$I$5:$DK$5,0))*'Pre-Rinse Spray Valves'!DD34 -> 13.29847854 | DB34: 147.0288224 | DC34: 707.2797566 | DD34: 5.76644517 | DE34: 0.01916258978 | DH34: 2009 | DI34: 2002.702659 | DJ34: 0 | DK34: 379.8931057 | DL34: =INDEX('Floor Space'!$I$5:$DK$50,MATCH('Pre-Rinse Spray Valves'!DH34,'Floor Space'!$I$5:$I$50,0),MATCH('Pre-Rinse Spray Valves'!DH$10,'Floor Space'!$I$5:$DK$5,0))*'Pre-Rinse Spray Valves'!DO34 -> 46.54634282 | DM34: 426.4394485 | DN34: 2049.249002 | DO34: 5.76644517 | DP34: 0.02324176413 | DS34: 2009 | DT34: 298.5907708 | DU34: 0 | DV34: 59.47344737 | DW34: =INDEX('Floor Space'!$I$5:$DK$50,MATCH('Pre-Rinse Spray Valves'!DS34,'Floor Space'!$I$5:$I$50,0),MATCH('Pre-Rinse Spray Valves'!DS$10,'Floor Space'!$I$5:$DK$5,0))*'Pre-Rinse Spray Valves'!DZ34 -> 0.5767941685 | DX34: 60.05024154 | DY34: 299.1675649 | DZ34: 5.76644517 | EA34: 0.001931721356 | ED34: 2009 | EE34: 123.2044345 | EF34: 0 | EG34: 24.30413708 | EH34: =INDEX('Floor Space'!$I$5:$DK$50,MATCH('Pre-Rinse Spray Valves'!ED34,'Floor Space'!$I$5:$I$50,0),MATCH('Pre-Rinse Spray Valves'!ED$10,'Floor Space'!$I$5:$DK$5,0))*'Pre-Rinse Spray Valves'!EK34 -> 0.8166241201 | EI34: 25.1207612 | EJ34: 124.0210586 | EK34: 5.76644517 | EL34: 0.006628203957 | EO34: 2009 | EP34: 267.0958515 | EQ34: 0 | ER34: 52.81028795 | ES34: =INDEX('Floor Space'!$I$5:$DK$50,MATCH('Pre-Rinse Spray Valves'!EO34,'Floor Space'!$I$5:$I$50,0),MATCH('Pre-Rinse Spray Valves'!EO$10,'Floor Space'!$I$5:$DK$5,0))*'Pre-Rinse Spray Valves'!EV34 -> 1.425391914 | ET34: 54.23567986 | EU34: 268.5212434 | EV34: 5.76644517 | EW34: 0.005336630675 | EZ34: 2009 | FA34: 905.9041406 | FB34: 0 | FC34: 174.4985498 | FD34: =INDEX('Floor Space'!$I$5:$DK$50,MATCH('Pre-Rinse Spray Valves'!EZ34,'Floor Space'!$I$5:$I$50,0),MATCH('Pre-Rinse Spray Valves'!EZ$10,'Floor Space'!$I$5:$DK$5,0))*'Pre-Rinse Spray Valves'!FG34 -> 13.0813154 | FE34: 187.5798652 | FF34: 918.985456 | FG34: 5.76644517 | FH34: 0.0144400658 | FK34: 2009 | FL34: 379.8652529 | FM34: 0 | FN34: 72.92823785 | FO34: =INDEX('Floor Space'!$I$5:$DK$50,MATCH('Pre-Rinse Spray Valves'!FK34,'Floor Space'!$I$5:$I$50,0),MATCH('Pre-Rinse Spray Valves'!FK$10,'Floor Space'!$I$5:$DK$5,0))*'Pre-Rinse Spray Valves'!FR34 -> 9.391708121 | FP34: 82.31994597 | FQ34: 389.256961 | FR34: 5.76644517 | FS34: 0.02472378837 | FV34: 2009 | FW34: 815.6989444 | FX34: 0 | FY34: 155.5017052 | FZ34: =INDEX('Floor Space'!$I$5:$DK$50,MATCH('Pre-Rinse Spray Valves'!FV34,'Floor Space'!$I$5:$I$50,0),MATCH('Pre-Rinse Spray Valves'!FV$10,'Floor Space'!$I$5:$DK$5,0))*'Pre-Rinse Spray Valves'!GC34 -> 18.36882294 | GA34: 173.8705281 | GB34: 834.0677674 | GC34: 5.76644517 | GD34: 0.02251912065 | GG34: 2009 | GH34: 1201.260234 | GI34: 0 | GJ34: 230.4267228 | GK34: =INDEX('Floor Space'!$I$5:$DK$50,MATCH('Pre-Rinse Spray Valves'!GG34,'Floor Space'!$I$5:$I$50,0),MATCH('Pre-Rinse Spray Valves'!GG$10,'Floor Space'!$I$5:$DK$5,0))*'Pre-Rinse Spray Valves'!GN34 -> 25.08443188 | GL34: 255.5111546 | GM34: 1226.344666 | GN34: 5.76644517 | GO34: 0.02088176331 | GR34: 2009 | GS34: 2412.728099 | GT34: 0 | GU34: 455.8593167 | GV34: =INDEX('Floor Space'!$I$5:$DK$50,MATCH('Pre-Rinse Spray Valves'!GR34,'Floor Space'!$I$5:$I$50,0),MATCH('Pre-Rinse Spray Valves'!GR$10,'Floor Space'!$I$5:$DK$5,0))*'Pre-Rinse Spray Valves'!GY34 -> 57.13917961 | GW34: 512.9984963 | GX34: 2469.867278 | GY34: 5.76644517 | GZ34: 0.0236823949
B35: 2010 | C35: 16799.69211 | D35: 0 | E35: 3212.585524 | F35: 200.3078852 | G35: 3412.89341 | H35: 17000 | I35: 5.76644517 | J35: 0.01192330692 | M35: 2010 | N35: 1531.994579 | O35: 0 | P35: 293.9889459 | Q35: =INDEX('Floor Space'!$I$5:$DK$54,MATCH('Pre-Rinse Spray Valves'!M35,'Floor Space'!$I$5:$I$54,0),MATCH('Pre-Rinse Spray Valves'!M$10,'Floor Space'!$I$5:$DK$5,0))*'Pre-Rinse Spray Valves'!T35 -> 19.62854907 | R35: 313.6174949 | S35: =HLOOKUP(M10,'Saturation and Lifetime'!$C$58:$T$59,2,FALSE)*'Pre-Rinse Spray Valves'!V36 -> 1551.623128 | T35: 5.76644517 | U35: 0.01281241418 | X35: 2010 | Y35: 690.2263371 | Z35: 0 | AA35: 132.4540674 | AB35: =INDEX('Floor Space'!$I$5:$DK$50,MATCH('Pre-Rinse Spray Valves'!X35,'Floor Space'!$I$5:$I$50,0),MATCH('Pre-Rinse Spray Valves'!X$10,'Floor Space'!$I$5:$DK$5,0))*'Pre-Rinse Spray Valves'!AE35 -> 8.84346571 | AC35: 141.2975331 | AD35: =HLOOKUP(X10,'Saturation and Lifetime'!$C$58:$T$59,2,FALSE)*'Pre-Rinse Spray Valves'!AG36 -> 699.0698028 | AE35: 5.76644517 | AF35: 0.01281241418 | AI35: 2010 | AJ35: 809.8915112 | AK35: 0 | AL35: 155.4177507 | AM35: =INDEX('Floor Space'!$I$5:$DK$50,MATCH('Pre-Rinse Spray Valves'!AI35,'Floor Space'!$I$5:$I$50,0),MATCH('Pre-Rinse Spray Valves'!AI$10,'Floor Space'!$I$5:$DK$5,0))*'Pre-Rinse Spray Valves'!AP35 -> 10.37666548 | AN35: 165.7944162 | AO35: =HLOOKUP(AI10,'Saturation and Lifetime'!$C$58:$T$59,2,FALSE)*'Pre-Rinse Spray Valves'!AR36 -> 820.2681767 | AP35: 5.76644517 | AQ35: 0.01281241418 | AT35: 2010 | AU35: 727.4206357 | AV35: 0 | AW35: 138.9184912 | AX35: =INDEX('Floor Space'!$I$5:$DK$50,MATCH('Pre-Rinse Spray Valves'!AT35,'Floor Space'!$I$5:$I$50,0),MATCH('Pre-Rinse Spray Valves'!AT$10,'Floor Space'!$I$5:$DK$5,0))*'Pre-Rinse Spray Valves'!BA35 -> 5.858095401 | AY35: 144.7765866 | AZ35: =HLOOKUP(AT10,'Saturation and Lifetime'!$C$58:$T$59,2,FALSE)*'Pre-Rinse Spray Valves'!BC36 -> 733.2787311 | BA35: 5.76644517 | BB35: 0.008053243356 | BE35: 2010 | BF35: 1343.533789 | BG35: 0 | BH35: 256.5801376 | BI35: =INDEX('Floor Space'!$I$5:$DK$50,MATCH('Pre-Rinse Spray Valves'!BE35,'Floor Space'!$I$5:$I$50,0),MATCH('Pre-Rinse Spray Valves'!BE$10,'Floor Space'!$I$5:$DK$5,0))*'Pre-Rinse Spray Valves'!BL35 -> 10.81980456 | BJ35: 267.3999422 | BK35: =HLOOKUP(BE10,'Saturation and Lifetime'!$C$58:$T$59,2,FALSE)*'Pre-Rinse Spray Valves'!BN36 -> 1354.353593 | BL35: 5.76644517 | BM35: 0.008053243356 | BP35: 2010 | BQ35: 335.8834472 | BR35: 0 | BS35: 64.1450344 | BT35: =INDEX('Floor Space'!$I$5:$DK$50,MATCH('Pre-Rinse Spray Valves'!BP35,'Floor Space'!$I$5:$I$50,0),MATCH('Pre-Rinse Spray Valves'!BP$10,'Floor Space'!$I$5:$DK$5,0))*'Pre-Rinse Spray Valves'!BW35 -> 2.70495114 | BU35: 66.84998554 | BV35: =HLOOKUP(BP10,'Saturation and Lifetime'!$C$58:$T$59,2,FALSE)*'Pre-Rinse Spray Valves'!BY36 -> 338.5883984 | BW35: 5.76644517 | BX35: 0.008053243356 | CA35: 2010 | CB35: 648.4961272 | CC35: 0 | CD35: 123.8459553 | CE35: =INDEX('Floor Space'!$I$5:$DK$50,MATCH('Pre-Rinse Spray Valves'!CA35,'Floor Space'!$I$5:$I$50,0),MATCH('Pre-Rinse Spray Valves'!CA$10,'Floor Space'!$I$5:$DK$5,0))*'Pre-Rinse Spray Valves'!CH35 -> 5.222497128 | CF35: 129.0684524 | CG35: =HLOOKUP(CA10,'Saturation and Lifetime'!$C$58:$T$59,2,FALSE)*'Pre-Rinse Spray Valves'!CJ36 -> 653.7186244 | CH35: 5.76644517 | CI35: 0.008053243356 | CL35: 2010 | CM35: 1425.484934 | CN35: 0 | CO35: 272.4273231 | CP35: =INDEX('Floor Space'!$I$5:$DK$50,MATCH('Pre-Rinse Spray Valves'!CL35,'Floor Space'!$I$5:$I$50,0),MATCH('Pre-Rinse Spray Valves'!CL$10,'Floor Space'!$I$5:$DK$5,0))*'Pre-Rinse Spray Valves'!CS35 -> 5.774870206 | CQ35: 278.2021933 | CR35: =HLOOKUP(CL10,'Saturation and Lifetime'!$C$58:$T$59,2,FALSE)*'Pre-Rinse Spray Valves'!CU36 -> 1431.259805 | CS35: 5.76644517 | CT35: 0.004051161866 | CW35: 2010 | CX35: 707.2797566 | CY35: 0 | CZ35: 136.2929635 | DA35: =INDEX('Floor Space'!$I$5:$DK$50,MATCH('Pre-Rinse Spray Valves'!CW35,'Floor Space'!$I$5:$I$50,0),MATCH('Pre-Rinse Spray Valves'!CW$10,'Floor Space'!$I$5:$DK$5,0))*'Pre-Rinse Spray Valves'!DD35 -> 4.249465538 | DB35: 140.5424291 | DC35: =HLOOKUP(CW10,'Saturation and Lifetime'!$C$58:$T$59,2,FALSE)*'Pre-Rinse Spray Valves'!DF36 -> 711.5292221 | DD35: 5.76644517 | DE35: 0.00600818205 | DH35: 2010 | DI35: 2049.249002 | DJ35: 0 | DK35: 388.7224917 | DL35: =INDEX('Floor Space'!$I$5:$DK$50,MATCH('Pre-Rinse Spray Valves'!DH35,'Floor Space'!$I$5:$I$50,0),MATCH('Pre-Rinse Spray Valves'!DH$10,'Floor Space'!$I$5:$DK$5,0))*'Pre-Rinse Spray Valves'!DO35 -> 46.66156321 | DM35: 435.3840549 | DN35: =HLOOKUP(DH10,'Saturation and Lifetime'!$C$58:$T$59,2,FALSE)*'Pre-Rinse Spray Valves'!DQ36 -> 2095.910565 | DO35: 5.76644517 | DP35: 0.02277007975 | DS35: 2010 | DT35: 299.1675649 | DU35: 0 | DV35: 59.5883335 | DW35: =INDEX('Floor Space'!$I$5:$DK$50,MATCH('Pre-Rinse Spray Valves'!DS35,'Floor Space'!$I$5:$I$50,0),MATCH('Pre-Rinse Spray Valves'!DS$10,'Floor Space'!$I$5:$DK$5,0))*'Pre-Rinse Spray Valves'!DZ35 -> 2.598158137 | DX35: 62.18649163 | DY35: =HLOOKUP(DS10,'Saturation and Lifetime'!$C$58:$T$59,2,FALSE)*'Pre-Rinse Spray Valves'!EB36 -> 301.7657231 | DZ35: 5.76644517 | EA35: 0.008684625078 | ED35: 2010 | EE35: 124.0210586 | EF35: 0 | EG35: 24.46522986 | EH35: =INDEX('Floor Space'!$I$5:$DK$50,MATCH('Pre-Rinse Spray Valves'!ED35,'Floor Space'!$I$5:$I$50,0),MATCH('Pre-Rinse Spray Valves'!ED$10,'Floor Space'!$I$5:$DK$5,0))*'Pre-Rinse Spray Valves'!EK35 -> 0.6732870086 | EI35: 25.13851687 | EJ35: =HLOOKUP(ED10,'Saturation and Lifetime'!$C$58:$T$59,2,FALSE)*'Pre-Rinse Spray Valves'!EM36 -> 124.6943456 | EK35: 5.76644517 | EL35: 0.005428811979 | EO35: 2010 | EP35: 268.5212434 | EQ35: 0 | ER35: 53.09211695 | ES35: =INDEX('Floor Space'!$I$5:$DK$50,MATCH('Pre-Rinse Spray Valves'!EO35,'Floor Space'!$I$5:$I$50,0),MATCH('Pre-Rinse Spray Valves'!EO$10,'Floor Space'!$I$5:$DK$5,0))*'Pre-Rinse Spray Valves'!EV35 -> 4.956859358 | ET35: 58.04897631 | EU35: =HLOOKUP(EO10,'Saturation and Lifetime'!$C$58:$T$59,2,FALSE)*'Pre-Rinse Spray Valves'!EX36 -> 273.4781027 | EV35: 5.76644517 | EW35: 0.01845984063 | EZ35: 2010 | FA35: 918.985456 | FB35: 0 | FC35: 177.0183203 | FD35: =INDEX('Floor Space'!$I$5:$DK$50,MATCH('Pre-Rinse Spray Valves'!EZ35,'Floor Space'!$I$5:$I$50,0),MATCH('Pre-Rinse Spray Valves'!EZ$10,'Floor Space'!$I$5:$DK$5,0))*'Pre-Rinse Spray Valves'!FG35 -> 7.599684123 | FE35: 184.6180045 | FF35: =HLOOKUP(EZ10,'Saturation and Lifetime'!$C$58:$T$59,2,FALSE)*'Pre-Rinse Spray Valves'!FI36 -> 926.5851401 | FG35: 5.76644517 | FH35: 0.008269645699 | FK35: 2010 | FL35: 389.256961 | FM35: 0 | FN35: 74.73130017 | FO35: =INDEX('Floor Space'!$I$5:$DK$50,MATCH('Pre-Rinse Spray Valves'!FK35,'Floor Space'!$I$5:$I$50,0),MATCH('Pre-Rinse Spray Valves'!FK$10,'Floor Space'!$I$5:$DK$5,0))*'Pre-Rinse Spray Valves'!FR35 -> 3.223676537 | FP35: 77.9549767 | FQ35: =HLOOKUP(FK10,'Saturation and Lifetime'!$C$58:$T$59,2,FALSE)*'Pre-Rinse Spray Valves'!FT36 -> 392.4806375 | FR35: 5.76644517 | FS35: 0.008281615643 | FV35: 2010 | FW35: 834.0677674 | FX35: 0 | FY35: 159.0034668 | FZ35: =INDEX('Floor Space'!$I$5:$DK$50,MATCH('Pre-Rinse Spray Valves'!FV35,'Floor Space'!$I$5:$I$50,0),MATCH('Pre-Rinse Spray Valves'!FV$10,'Floor Space'!$I$5:$DK$5,0))*'Pre-Rinse Spray Valves'!GC35 -> 12.78446446 | GA35: 171.7879313 | GB35: =HLOOKUP(FV10,'Saturation and Lifetime'!$C$58:$T$59,2,FALSE)*'Pre-Rinse Spray Valves'!GE36 -> 846.8522318 | GC35: 5.76644517 | GD35: 0.0153278486 | GG35: 2010 | GH35: 1226.344666 | GI35: 0 | GJ35: 235.238439 | GK35: =INDEX('Floor Space'!$I$5:$DK$50,MATCH('Pre-Rinse Spray Valves'!GG35,'Floor Space'!$I$5:$I$50,0),MATCH('Pre-Rinse Spray Valves'!GG$10,'Floor Space'!$I$5:$DK$5,0))*'Pre-Rinse Spray Valves'!GN35 -> 29.79096631 | GL35: 265.0294053 | GM35: =HLOOKUP(GG10,'Saturation and Lifetime'!$C$58:$T$59,2,FALSE)*'Pre-Rinse Spray Valves'!GP36 -> 1256.135632 | GN35: 5.76644517 | GO35: 0.02429249063 | GR35: 2010 | GS35: 2469.867278 | GT35: 0 | GU35: 466.6551571 | GV35: =INDEX('Floor Space'!$I$5:$DK$50,MATCH('Pre-Rinse Spray Valves'!GR35,'Floor Space'!$I$5:$I$50,0),MATCH('Pre-Rinse Spray Valves'!GR$10,'Floor Space'!$I$5:$DK$5,0))*'Pre-Rinse Spray Valves'!GY35 -> 18.54086183 | GW35: 485.1960189 | GX35: =HLOOKUP(GR10,'Saturation and Lifetime'!$C$58:$T$59,2,FALSE)*'Pre-Rinse Spray Valves'!HA36 -> 2488.40814 | GY35: 5.76644517 | GZ35: 0.007506825162
